Workbook

Sheet 様式2-1準備用
B1: 様式2-1（準備用）
B2: ●構造物及び設備の取得年度、帳簿原価等
B3: 帳簿価格、取得年度が0のデータは様式2-1に編集しません。（削除する必要はありません。）
B4: ②系統 | C4: ③区分 | D4: ④工種 | E4: ⑤施設名 | F4: ⑥帳簿価格 （千円） | G4: ⑦取得年度 | H4: ⑧改築費 （千円） | I4: ⑨ 法定耐用年数 | J4: ⑩再改築費 （千円） | K4: ⑪更新基準 （現有資産） | M4: ＜施設（大分類）＞ | P4: 【集計表】 | Q4: ⑥現在価格 （千円） | R4: ⑧改築費 （千円） | S4: ⑩再改築費 （千円）
K5: 60 | M5: ●取水施設 | P5: 建築 | Q5: =SUMIF($D:$D,$P5,$F:$F) -> 0 | R5: =SUMIF($D:$D,$P5,$H:$H) -> 0 | S5: =SUMIF($D:$D,$P5,$J:$J) -> 0
K6: 15 | M6: 浅井戸 | P6: 土木 | Q6: =SUMIF($D:$D,$P6,$F:$F) -> 0 | R6: =SUMIF($D:$D,$P6,$H:$H) -> 0 | S6: =SUMIF($D:$D,$P6,$J:$J) -> 0
K7: 15 | M7: 深井戸 | P7: 電気 | Q7: 0 | R7: 0 | S7: 0
K8: 60 | M8: 取水口と沈砂池 | P8: 機械 | Q8: 0 | R8: 0 | S8: 0
K9: 15 | M9: ●浄水場内施設 | P9: 計装 | Q9: 0 | R9: 0 | S9: 0
K10: 15 | M10: 急速ろ過《天日乾燥床・高圧受電》 | P10: その他１ | Q10: 0 | R10: 0 | S10: 0
K11: 60 | M11: （直接基礎浄水池） | P11: その他２ | Q11: 0 | R11: 0 | S11: 0
K12: 15 | M12: 急速ろ過《機械脱水機・特高受電》 | P12: その他３ | Q12: 0 | R12: 0 | S12: 0
K13: 15 | M13: （ポンプ井と杭基礎浄水池・ポンプ井） | P13: 計 | Q13: =SUM(Q5:Q12) -> 0 | R13: =SUM(R5:R12) -> 0 | S13: =SUM(S5:S12) -> 0
K14: 60 | M14: 膜ろ過
K15: 15 | M15: 紫外線処理 | P15: 工種 | Q15: ※法定耐用年数
K16: 15 | M16: ろ過機 | P16: 建築 | Q16: 50
K17: 60 | M17: オゾン処理 | P17: 土木 | Q17: 60
K18: 15 | M18: 活性炭処理《粉末》 | P18: 配水池《SUS》 | Q18: 45
K19: 15 | M19: 活性炭処理《粒状》 | P19: 電気 | Q19: 15
K20: 60 | M20: 緩速ろ過池 | P20: 機械 | Q20: 15
K21: 15 | M21: ●送配水ポンプ施設
K22: 15 | M22: 送水ポンプ施設-場外
K23: 60 | M23: 配水ポンプ施設-場外
K24: 15 | M24: ●配水池
K25: 15 | M25: RC
K26: 60 | M26: PC
K27: 15 | M27: SUS
K28: 15
K29: 60
K30: 15
K31: 15
K32: 60
K33: 15
K34: 60
K35: 50
K36: 15
K37: 15
K38: 50
K39: 15
K40: 15
K41: 60
K42: 15
K43: 15
K44: 60
K45: 15
K46: 15
K47: 60
K48: 50
K49: 50
K50: 15
K51: 15
K52: 15
K53: 50
K54: 15
K55: 15
K56: 60
K57: 60
K58: 15
K59: 15
K60: 60
K61: 15
K62: 15
K63: 60
K64: 15
K65: 15
K66: 60
K67: 15
K68: 15
K69: 60
K70: 15
K71: 15
K72: 60
K73: 15
K74: 60
K75: 50
K76: 15
K77: 15
K78: 50
K79: 15
K80: 15
K81: 60
K82: 15
K83: 15
K84: 60
K85: 15
K86: 15
K87: 50
K88: 15
K89: 15
K90: 50
K91: 50
K92: 15
K93: 15
K94: 15
K95: 50
K96: 15
K97: 15
K98: 60
K99: 15
K100: 15
K101: 60
K102: 15
K103: 15
K104: 60
K105: 15
K106: 60
K107: 50
K108: 15
K109: 15
K110: 50
K111: 15
K112: 15
K113: 60
K114: 15
K115: 15
K116: 60
K117: 15
K118: 15
K119: 60
K120: 50
K121: 50
K122: 15
K123: 15
K124: 15
K125: 50
K126: 15
K127: 15
K128: 60
K129: 15
K130: 15
K131: 60
K132: 50
K133: 50
K134: 15
K135: 15
K136: 15
K137: 50
K138: 15
K139: 15
K140: 60
K141: 50
K142: 15
K143: 15
K144: 50
K145: 15
K146: 15
K147: 45
K148: 60
K149: 15
K150: 15
K151: 60
K152: 15
K153: 15
K154: 60
K155: 15
K156: 15
K157: 15
K158: 60
K159: 15
K160: 60
K161: 50
K162: 15
K163: 15
K164: 50
K165: 15
K166: 15
K167: 60
K168: 15
K169: 15
K170: 60
K171: 15
K172: 15
K173: 60
K174: 50
K175: 50
K176: 15
K177: 15
K178: 15
K179: 50
K180: 15
K181: 15
K182: 60
K183: 15
K184: 15
K185: 15
K186: 60
K187: 50
K188: 15
K189: 15
K190: 50
K191: 15
K192: 15
K193: 60
K194: 60
K195: 45
B1016: ※行を増やしたい際は、この行の上に挿入するようにしてください｡

Sheet 取水施設
L1: 戻る
A2: ●取水施設-浅井戸
C4: 取水量(m3/日)： | E4: 建設年度： | O4: 費用関数 | S4: 費用関数
A5: 係数 | B5: ②系統 | C5: ③区分 | D5: ④工種 | E5: ⑤施設名 | F5: ⑥帳簿価格 （千円） | G5: ⑦取得年度 | H5: ⑧改築費 （千円） | I5: ⑨法定耐用年数 | J5: ⑩再改築費 （千円） | K5: ⑪更新基準 （現有資産） | L5: 備考 | M5: 係数 初期値 | O5: ⑥'現在価格 （千円） | R5: デフレータ (R5が100) | S5: 現在価格 (税込10%, 百万円)
A6: 1 | B6: A浄水場 | C6: 取水 | D6: 土木 | E6: 浅井戸 | F6: =IF($D$4=0,0,ROUND($O6*R6/100,)) -> 0 | G6: =IF($F$4=0,0,IF(A6=0,0,$F$4)) -> 0 | H6: =IF($D$4=0,0,$O6) -> 0 | I6: =VLOOKUP(D6,'様式2-1準備用'!$P$16:$Q$20,2,FALSE) -> 60 | J6: =IF($D$4=0,0,$O6) -> 0 | K6: =I6 -> 60 | M6: 1 | O6: =IF($D$4=0,0,$A6*$S6*100/110*1000) -> 0 | R6: =IFERROR(VLOOKUP(G6,デフレータ!$D$5:$E$129,2,TRUE),100) -> 100 | S6: =22.992*EXP(0.000007*$D$4) -> 22.992
A7: 1 | C7: 取水 | D7: 機械 | E7: 浅井戸 | F7: =IF($D$4=0,0,ROUND($O7*R7/100,)) -> 0 | G7: =IF($F$4=0,0,IF(A7=0,0,$F$4)) -> 0 | H7: =IF($D$4=0,0,$O7) -> 0 | I7: =VLOOKUP(D7,'様式2-1準備用'!$P$16:$Q$20,2,FALSE) -> 15 | J7: =IF($D$4=0,0,$O7) -> 0 | K7: 15 | M7: 1 | O7: =IF($D$4=0,0,$A7*$S7*100/110*1000) -> 0 | R7: =IFERROR(VLOOKUP(G7,デフレータ!$D$5:$E$129,2,TRUE),100) -> 100 | S7: =0.0708*($D$4^0.6989) -> 0
A8: 1 | C8: 取水 | D8: 電気 | E8: 浅井戸 | F8: 0 | G8: =IF($F$4=0,0,IF(A8=0,0,$F$4)) -> 0 | H8: 0 | I8: =VLOOKUP(D8,'様式2-1準備用'!$P$16:$Q$20,2,FALSE) -> 15 | J8: 0 | K8: 15 | M8: 1 | O8: 0 | R8: =IFERROR(VLOOKUP(G8,デフレータ!$D$5:$E$129,2,TRUE),100) -> 100 | S8: =0.4413*($D$4^0.5447) -> 0
L10: 戻る
A11: ●取水施設-深井戸
C13: 取水量(m3/日)： | E13: 建設年度： | O13: 費用関数 | S13: 費用関数
A14: 係数 | B14: ②系統 | C14: ③区分 | D14: ④工種 | E14: ⑤施設名 | F14: ⑥帳簿価格 （千円） | G14: ⑦取得年度 | H14: ⑧改築費 （千円） | I14: ⑨法定耐用年数 | J14: ⑩再改築費 （千円） | K14: ⑪更新基準 （現有資産） | L14: 備考 | M14: 係数 初期値 | O14: ⑥現在価格 （千円） | R14: デフレータ (R5が100) | S14: 現在価格 (税込10%)
A15: 1 | B15: B水源 | C15: 取水 | D15: 土木 | E15: 深井戸 | F15: =IF($D$4=0,0,ROUND($O15*R15/100,)) -> 0 | G15: =IF($F$13=0,0,IF(A15=0,0,$F$13)) -> 0 | H15: =IF($D$13=0,0,$O15) -> 0 | I15: =VLOOKUP(D15,'様式2-1準備用'!$P$16:$Q$20,2,FALSE) -> 60 | J15: =IF($D$13=0,0,$O15) -> 0 | K15: =I15 -> 60 | L15: 7,200m3/日以上なら複数本に分割 | M15: 1 | O15: =IF($D$13=0,0,$A15*$S15*100/110*1000) -> 0 | R15: =IFERROR(VLOOKUP(G15,デフレータ!$D$5:$E$129,2,TRUE),100) -> 100 | S15: =0.5771*(($D$13/T15)^0.5665)*T15 -> 0 | T15: =IF($D$13>=7200,ROUNDUP($D$13/7200,),1) -> 1 | U15: 本
A16: 1 | C16: 取水 | D16: 機械 | E16: 深井戸 | F16: 0 | G16: =IF($F$13=0,0,IF(A16=0,0,$F$13)) -> 0 | H16: =IF($D$13=0,0,$O16) -> 0 | I16: =VLOOKUP(D16,'様式2-1準備用'!$P$16:$Q$20,2,FALSE) -> 15 | J16: =IF($D$13=0,0,$O16) -> 0 | K16: 15 | L16: 7,200m3/日以上なら複数本に分割 | M16: 1 | O16: =IF($D$13=0,0,$A16*$S16*100/110*1000) -> 0 | R16: =IFERROR(VLOOKUP(G16,デフレータ!$D$5:$E$129,2,TRUE),100) -> 100 | S16: =6.5477*EXP(0.0002*$D$13/T16)*T16 -> 6.5477 | T16: =IF($D$13>=7200,ROUNDUP($D$13/7200,),1) -> 1 | U16: 本
A17: 1 | C17: 取水 | D17: 電気 | E17: 深井戸 | F17: 0 | G17: =IF($F$13=0,0,IF(A17=0,0,$F$13)) -> 0 | H17: =IF($D$13=0,0,$O17) -> 0 | I17: =VLOOKUP(D17,'様式2-1準備用'!$P$16:$Q$20,2,FALSE) -> 15 | J17: =IF($D$13=0,0,$O17) -> 0 | K17: 15 | L17: 7,200m3/日以上なら複数本に分割 | M17: 1 | O17: 0 | R17: =IFERROR(VLOOKUP(G17,デフレータ!$D$5:$E$129,2,TRUE),100) -> 100 | S17: =13.266*(($D$13/T17)^0.0164)*T17 -> 0 | T17: =IF($D$13>=7200,ROUNDUP($D$13/7200,),1) -> 1 | U17: 本
L19: 戻る
A20: ●取水施設-取水口と沈砂池
C22: 取水量(m3/日)： | E22: 建設年度： | O22: 費用関数 | S22: 費用関数
A23: 係数 | B23: ②系統 | C23: ③区分 | D23: ④工種 | E23: ⑤施設名 | F23: ⑥帳簿価格 （千円） | G23: ⑦取得年度 | H23: ⑧改築費 （千円） | I23: ⑨法定耐用年数 | J23: ⑩再改築費 （千円） | K23: ⑪更新基準 （現有資産） | L23: 備考 | M23: 係数 初期値 | O23: ⑥現在価格 （千円） | R23: デフレータ (R5が100) | S23: 現在価格 (税込10%)
A24: 1 | B24: C浄水場 | C24: 取水 | D24: 土木 | E24: 取水口 | F24: =IF($D$4=0,0,ROUND($O24*R24/100,)) -> 0 | G24: =IF($F$22=0,0,IF(A24=0,0,$F$22)) -> 0 | H24: =IF($D$22=0,0,$O24) -> 0 | I24: =VLOOKUP(D24,'様式2-1準備用'!$P$16:$Q$20,2,FALSE) -> 60 | J24: =IF($D$22=0,0,$O24) -> 0 | K24: =I24 -> 60 | M24: 1 | O24: =IF($D$22=0,0,$A24*$S24*100/110*1000) -> 0 | R24: =IFERROR(VLOOKUP(G24,デフレータ!$D$5:$E$129,2,TRUE),100) -> 100 | S24: =0.002*$D$22+85.394 -> 85.394
A25: 1 | C25: 取水 | D25: 機械 | E25: 取水口 | F25: 0 | G25: 0 | H25: =IF($D$22=0,0,$O25) -> 0 | I25: =VLOOKUP(D25,'様式2-1準備用'!$P$16:$Q$20,2,FALSE) -> 15 | J25: =IF($D$22=0,0,$O25) -> 0 | K25: 15 | M25: 1 | O25: =IF($D$22=0,0,$A25*$S25*100/110*1000) -> 0 | R25: =IFERROR(VLOOKUP(G25,デフレータ!$D$5:$E$129,2,TRUE),100) -> 100 | S25: =0.0538*($D$22^0.6851) -> 0
A26: 1 | C26: 取水 | D26: 電気 | E26: 取水口 | F26: 0 | G26: 0 | H26: =IF($D$22=0,0,$O26) -> 0 | I26: =VLOOKUP(D26,'様式2-1準備用'!$P$16:$Q$20,2,FALSE) -> 15 | J26: 0 | K26: 15 | M26: 1 | O26: 0 | R26: =IFERROR(VLOOKUP(G26,デフレータ!$D$5:$E$129,2,TRUE),100) -> 100 | S26: =0.145*($D$22^0.5457) -> 0
A27: 1 | C27: 取水 | D27: 土木 | E27: 沈砂池 | F27: 0 | G27: 0 | H27: 0 | I27: =VLOOKUP(D27,'様式2-1準備用'!$P$16:$Q$20,2,FALSE) -> 60 | J27: 0 | K27: 60 | M27: 1 | O27: 0 | R27: =IFERROR(VLOOKUP(G27,デフレータ!$D$5:$E$129,2,TRUE),100) -> 100 | S27: =0.0183*($D$22^0.9083) -> 0
A28: 1 | C28: 取水 | D28: 機械 | E28: 沈砂池 | F28: 0 | G28: 0 | H28: 0 | I28: =VLOOKUP(D28,'様式2-1準備用'!$P$16:$Q$20,2,FALSE) -> 15 | J28: 0 | K28: 15 | M28: 1 | O28: 0 | R28: =IFERROR(VLOOKUP(G28,デフレータ!$D$5:$E$129,2,TRUE),100) -> 100 | S28: =0.0288*($D$22^0.7474) -> 0
A29: 1 | C29: 取水 | D29: 電気 | E29: 沈砂池 | F29: 0 | G29: 0 | H29: =IF($D$22=0,0,$O29) -> 0 | I29: =VLOOKUP(D29,'様式2-1準備用'!$P$16:$Q$20,2,FALSE) -> 15 | J29: =IF($D$22=0,0,$O29) -> 0 | K29: 15 | M29: 1 | O29: 0 | R29: =IFERROR(VLOOKUP(G29,デフレータ!$D$5:$E$129,2,TRUE),100) -> 100 | S29: =0.0352*($D$22^0.7127) -> 0

Sheet 浄水場内施設（急速ろ過）
L1: 戻る
A2: ●浄水場内施設-急速ろ過《天日乾燥床・高圧受電》（直接基礎浄水池・ポンプ井）
C4: 浄水施設能力(m3/日)： | E4: 建設年度： | O4: 費用関数 | S4: 費用関数
A5: 係数 | B5: ②系統 | C5: ③区分 | D5: ④工種 | E5: ⑤施設名 | F5: ⑥帳簿価格 （千円） | G5: ⑦取得年度 | H5: ⑧改築費 （千円） | I5: ⑨法定耐用年数 | J5: ⑩再改築費 （千円） | K5: ⑪更新基準 （現有資産） | L5: 備考 | M5: 係数 初期値 | O5: ⑥現在価格 （千円） | R5: デフレータ (R5が100) | S5: 現在価格 (税込10%, 百万円)
A6: 1 | C6: 浄水 | D6: 土木 | E6: 着水井 | F6: =IF($D$4=0,0,ROUND($O6*R6/100,)) -> 0 | G6: =IF($F$4=0,0,IF(A6=0,0,$F$4)) -> 0 | H6: =IF($D$4=0,0,$O6) -> 0 | I6: =VLOOKUP(D6,'様式2-1準備用'!$P$16:$Q$20,2,FALSE) -> 60 | J6: =IF($D$4=0,0,$O6) -> 0 | K6: =I6 -> 60 | M6: 1 | O6: =IF($D$4=0,0,$A6*S6*100/110*1000) -> 0 | R6: =IFERROR(VLOOKUP(G6,デフレータ!$D$5:$E$129,2,TRUE),100) -> 100 | S6: =19.995*($D$4^0.1553) -> 0
A7: 1 | C7: 浄水 | D7: 機械 | E7: 着水井 | F7: =IF($D$4=0,0,ROUND($O7*R7/100,)) -> 0 | G7: =IF($F$4=0,0,IF(A7=0,0,$F$4)) -> 0 | H7: =IF($D$4=0,0,$O7) -> 0 | I7: =VLOOKUP(D7,'様式2-1準備用'!$P$16:$Q$20,2,FALSE) -> 15 | J7: =IF($D$4=0,0,$O7) -> 0 | K7: =I7 -> 15 | M7: 1 | O7: =IF($D$4=0,0,$A7*S7*100/110*1000) -> 0 | R7: =IFERROR(VLOOKUP(G7,デフレータ!$D$5:$E$129,2,TRUE),100) -> 100 | S7: =0.073*($D$4^0.5733) -> 0
A8: 1 | C8: 浄水 | D8: 電気 | E8: 着水井 | F8: 0 | G8: 0 | H8: 0 | I8: =VLOOKUP(D8,'様式2-1準備用'!$P$16:$Q$20,2,FALSE) -> 15 | J8: 0 | K8: 15 | M8: 1 | O8: 0 | R8: =IFERROR(VLOOKUP(G8,デフレータ!$D$5:$E$129,2,TRUE),100) -> 100 | S8: =0.0004*($D$4^1.0027) -> 0
A9: 1 | C9: 浄水 | D9: 土木 | E9: 急速攪拌池 | F9: 0 | G9: 0 | H9: 0 | I9: =VLOOKUP(D9,'様式2-1準備用'!$P$16:$Q$20,2,FALSE) -> 60 | J9: 0 | K9: 60 | M9: 1 | O9: 0 | R9: =IFERROR(VLOOKUP(G9,デフレータ!$D$5:$E$129,2,TRUE),100) -> 100 | S9: =0.0159*($D$4^0.7382) -> 0
A10: 1 | C10: 浄水 | D10: 機械 | E10: 急速攪拌池 | F10: 0 | G10: 0 | H10: 0 | I10: =VLOOKUP(D10,'様式2-1準備用'!$P$16:$Q$20,2,FALSE) -> 15 | J10: 0 | K10: 15 | M10: 1 | O10: 0 | R10: =IFERROR(VLOOKUP(G10,デフレータ!$D$5:$E$129,2,TRUE),100) -> 100 | S10: =0.4134*($D$4^0.3787) -> 0
A11: 1 | C11: 浄水 | D11: 電気 | E11: 急速攪拌池 | F11: 0 | G11: 0 | H11: 0 | I11: =VLOOKUP(D11,'様式2-1準備用'!$P$16:$Q$20,2,FALSE) -> 15 | J11: 0 | K11: 15 | M11: 1 | O11: 0 | R11: =IFERROR(VLOOKUP(G11,デフレータ!$D$5:$E$129,2,TRUE),100) -> 100 | S11: =9.3765*EXP(0.00001*$D$4) -> 9.3765
A12: 1 | C12: 浄水 | D12: 土木 | E12: フロック形成池 | F12: 0 | G12: 0 | H12: 0 | I12: =VLOOKUP(D12,'様式2-1準備用'!$P$16:$Q$20,2,FALSE) -> 60 | J12: 0 | K12: 60 | M12: 1 | O12: 0 | R12: =IFERROR(VLOOKUP(G12,デフレータ!$D$5:$E$129,2,TRUE),100) -> 100 | S12: =0.2813*($D$4^0.6175) -> 0
A13: 1 | C13: 浄水 | D13: 機械 | E13: フロック形成池 | F13: 0 | G13: 0 | H13: 0 | I13: =VLOOKUP(D13,'様式2-1準備用'!$P$16:$Q$20,2,FALSE) -> 15 | J13: 0 | K13: 15 | L13: 機械式 | M13: 1 | O13: 0 | R13: =IFERROR(VLOOKUP(G13,デフレータ!$D$5:$E$129,2,TRUE),100) -> 100 | S13: =0.0037*$D$4+47.624 -> 47.624
A14: 1 | C14: 浄水 | D14: 電気 | E14: フロック形成池 | F14: 0 | G14: 0 | H14: 0 | I14: =VLOOKUP(D14,'様式2-1準備用'!$P$16:$Q$20,2,FALSE) -> 15 | J14: 0 | K14: 15 | L14: 機械式 | M14: 1 | O14: 0 | R14: =IFERROR(VLOOKUP(G14,デフレータ!$D$5:$E$129,2,TRUE),100) -> 100 | S14: =8.0566*EXP(0.00001*$D$4) -> 8.0566
A15: 1 | C15: 浄水 | D15: 土木 | E15: 沈澱池（横流式「傾斜板式」） | F15: 0 | G15: 0 | H15: 0 | I15: =VLOOKUP(D15,'様式2-1準備用'!$P$16:$Q$20,2,FALSE) -> 60 | J15: 0 | K15: 60 | M15: 1 | O15: 0 | R15: =IFERROR(VLOOKUP(G15,デフレータ!$D$5:$E$129,2,TRUE),100) -> 100 | S15: =0.0114*($D$4^0.9871) -> 0
A16: 1 | C16: 浄水 | D16: 機械 | E16: 沈澱池（横流式「傾斜板式」） | F16: 0 | G16: 0 | H16: 0 | I16: =VLOOKUP(D16,'様式2-1準備用'!$P$16:$Q$20,2,FALSE) -> 15 | J16: 0 | K16: 15 | M16: 1 | O16: 0 | R16: =IFERROR(VLOOKUP(G16,デフレータ!$D$5:$E$129,2,TRUE),100) -> 100 | S16: =296.75*EXP(0.000002*$D$4) -> 296.75
A17: 1 | C17: 浄水 | D17: 電気 | E17: 沈澱池（横流式「傾斜板式」） | F17: 0 | G17: 0 | H17: 0 | I17: =VLOOKUP(D17,'様式2-1準備用'!$P$16:$Q$20,2,FALSE) -> 15 | J17: 0 | K17: 15 | M17: 1 | O17: 0 | R17: =IFERROR(VLOOKUP(G17,デフレータ!$D$5:$E$129,2,TRUE),100) -> 100 | S17: =0.0014*($D$4^1.008) -> 0
A18: 1 | C18: 浄水 | D18: 土木 | E18: 急速ろ過池 | F18: 0 | G18: 0 | H18: 0 | I18: =VLOOKUP(D18,'様式2-1準備用'!$P$16:$Q$20,2,FALSE) -> 60 | J18: 0 | K18: 60 | L18: 重力式 | M18: 1 | O18: 0 | R18: =IFERROR(VLOOKUP(G18,デフレータ!$D$5:$E$129,2,TRUE),100) -> 100 | S18: =0.0119*$D$4+124.63 -> 124.63
A19: 1 | C19: 浄水 | D19: 機械 | E19: 急速ろ過池 | F19: 0 | G19: 0 | H19: 0 | I19: =VLOOKUP(D19,'様式2-1準備用'!$P$16:$Q$20,2,FALSE) -> 15 | J19: 0 | K19: 15 | L19: 重力式 | M19: 1 | O19: 0 | R19: =IFERROR(VLOOKUP(G19,デフレータ!$D$5:$E$129,2,TRUE),100) -> 100 | S19: =4.0196*($D$4^0.4107) -> 0
A20: 1 | C20: 浄水 | D20: 電気 | E20: 急速ろ過池 | F20: 0 | G20: 0 | H20: 0 | I20: =VLOOKUP(D20,'様式2-1準備用'!$P$16:$Q$20,2,FALSE) -> 15 | J20: 0 | K20: 15 | M20: 1 | O20: 0 | R20: =IFERROR(VLOOKUP(G20,デフレータ!$D$5:$E$129,2,TRUE),100) -> 100 | S20: =0.3742*($D$4^0.5438) -> 0
A21: 1 | C21: 浄水 | D21: 土木 | E21: 塩素混和池 | F21: 0 | G21: 0 | H21: 0 | I21: =VLOOKUP(D21,'様式2-1準備用'!$P$16:$Q$20,2,FALSE) -> 60 | J21: 0 | K21: 60 | M21: 1 | O21: 0 | R21: =IFERROR(VLOOKUP(G21,デフレータ!$D$5:$E$129,2,TRUE),100) -> 100 | S21: =0.2411*($D$4^0.6425) -> 0
A22: 1 | C22: 浄水 | D22: 機械 | E22: 塩素混和池 | F22: 0 | G22: 0 | H22: 0 | I22: =VLOOKUP(D22,'様式2-1準備用'!$P$16:$Q$20,2,FALSE) -> 15 | J22: 0 | K22: 15 | M22: 1 | O22: 0 | R22: =IFERROR(VLOOKUP(G22,デフレータ!$D$5:$E$129,2,TRUE),100) -> 100 | S22: =0.0572*($D$4^0.6528) -> 0
A23: 1 | C23: 浄水 | D23: 土木 | E23: 浄水池・ポンプ井《直接基礎》 | F23: 0 | G23: 0 | H23: 0 | I23: =VLOOKUP(D23,'様式2-1準備用'!$P$16:$Q$20,2,FALSE) -> 60 | J23: 0 | K23: 60 | L23: 直接基礎、RC | M23: 1 | O23: 0 | R23: =IFERROR(VLOOKUP(G23,デフレータ!$D$5:$E$129,2,TRUE),100) -> 100 | S23: =0.3156*($D$4^0.6844) -> 0
A24: 1 | C24: 送水 | D24: 建築 | E24: 送水ポンプ施設《場内》 | F24: 0 | G24: 0 | H24: 0 | I24: =VLOOKUP(D24,'様式2-1準備用'!$P$16:$Q$20,2,FALSE) -> 50 | J24: 0 | K24: 50 | L24: 直接基礎、RC造 | M24: 1 | O24: 0 | R24: =IFERROR(VLOOKUP(G24,デフレータ!$D$5:$E$129,2,TRUE),100) -> 100 | S24: =2.8678*($T$24^0.7782) -> 0 | T24: =2.2437*($D$4^0.5111) -> 0
A25: 1 | C25: 送水 | D25: 機械 | E25: 送水ポンプ施設《場内》 | F25: 0 | G25: 0 | H25: 0 | I25: =VLOOKUP(D25,'様式2-1準備用'!$P$16:$Q$20,2,FALSE) -> 15 | J25: 0 | K25: 15 | M25: 1 | O25: 0 | R25: =IFERROR(VLOOKUP(G25,デフレータ!$D$5:$E$129,2,TRUE),100) -> 100 | S25: =0.1052*($D$4^0.6761) -> 0
A26: 1 | C26: 送水 | D26: 電気 | E26: 送水ポンプ施設《場内》 | F26: 0 | G26: 0 | H26: 0 | I26: =VLOOKUP(D26,'様式2-1準備用'!$P$16:$Q$20,2,FALSE) -> 15 | J26: 0 | K26: 15 | M26: 1 | O26: 0 | R26: =IFERROR(VLOOKUP(G26,デフレータ!$D$5:$E$129,2,TRUE),100) -> 100 | S26: =0.0016*$D$4+140.56 -> 140.56
A27: 1 | C27: 配水 | D27: 建築 | E27: 配水ポンプ施設《場内》 | F27: 0 | G27: 0 | H27: 0 | I27: =VLOOKUP(D27,'様式2-1準備用'!$P$16:$Q$20,2,FALSE) -> 50 | J27: 0 | K27: 50 | L27: 直接基礎、RC造 | M27: 1 | O27: 0 | R27: =IFERROR(VLOOKUP(G27,デフレータ!$D$5:$E$129,2,TRUE),100) -> 100 | S27: =2.8678*($T$27^0.7782) -> 0 | T27: =2.2437*($D$4^0.5111) -> 0
A28: 1 | C28: 配水 | D28: 機械 | E28: 配水ポンプ施設《場内》 | F28: 0 | G28: 0 | H28: 0 | I28: =VLOOKUP(D28,'様式2-1準備用'!$P$16:$Q$20,2,FALSE) -> 15 | J28: 0 | K28: 15 | M28: 1 | O28: 0 | R28: =IFERROR(VLOOKUP(G28,デフレータ!$D$5:$E$129,2,TRUE),100) -> 100 | S28: =0.1052*($D$4^0.6761) -> 0
A29: 1 | C29: 配水 | D29: 電気 | E29: 配水ポンプ施設《場内》 | F29: 0 | G29: 0 | H29: 0 | I29: =VLOOKUP(D29,'様式2-1準備用'!$P$16:$Q$20,2,FALSE) -> 15 | J29: 0 | K29: 15 | M29: 1 | O29: 0 | R29: =IFERROR(VLOOKUP(G29,デフレータ!$D$5:$E$129,2,TRUE),100) -> 100 | S29: =0.0016*$D$4+140.56 -> 140.56
A30: 1 | C30: 浄水 | D30: 土木 | E30: 排水池・排泥池 | F30: 0 | G30: 0 | H30: 0 | I30: =VLOOKUP(D30,'様式2-1準備用'!$P$16:$Q$20,2,FALSE) -> 60 | J30: 0 | K30: 60 | L30: 直接基礎 | M30: 1 | O30: 0 | R30: =IFERROR(VLOOKUP(G30,デフレータ!$D$5:$E$129,2,TRUE),100) -> 100 | S30: =29.81*EXP(0.00003*$D$4) -> 29.81
A31: 1 | C31: 浄水 | D31: 機械 | E31: 排水池・排泥池 | F31: 0 | G31: 0 | H31: 0 | I31: =VLOOKUP(D31,'様式2-1準備用'!$P$16:$Q$20,2,FALSE) -> 15 | J31: 0 | K31: 15 | M31: 1 | O31: 0 | R31: =IFERROR(VLOOKUP(G31,デフレータ!$D$5:$E$129,2,TRUE),100) -> 100 | S31: =0.0003*$D$4+57.868 -> 57.868
A32: 1 | C32: 浄水 | D32: 電気 | E32: 排水池・排泥池 | F32: 0 | G32: 0 | H32: 0 | I32: =VLOOKUP(D32,'様式2-1準備用'!$P$16:$Q$20,2,FALSE) -> 15 | J32: 0 | K32: 15 | M32: 1 | O32: 0 | R32: =IFERROR(VLOOKUP(G32,デフレータ!$D$5:$E$129,2,TRUE),100) -> 100 | S32: =0.001*$D$4+90.873 -> 90.873
A33: 1 | C33: 浄水 | D33: 土木 | E33: 濃縮槽 | F33: 0 | G33: 0 | H33: 0 | I33: =VLOOKUP(D33,'様式2-1準備用'!$P$16:$Q$20,2,FALSE) -> 60 | J33: 0 | K33: 60 | L33: 杭基礎 | M33: 1 | O33: 0 | R33: =IFERROR(VLOOKUP(G33,デフレータ!$D$5:$E$129,2,TRUE),100) -> 100 | S33: =155.18*EXP(0.000003*$D$4) -> 155.18
A34: 1 | C34: 浄水 | D34: 機械 | E34: 濃縮槽 | F34: 0 | G34: 0 | H34: 0 | I34: =VLOOKUP(D34,'様式2-1準備用'!$P$16:$Q$20,2,FALSE) -> 15 | J34: 0 | K34: 15 | M34: 1 | O34: 0 | R34: =IFERROR(VLOOKUP(G34,デフレータ!$D$5:$E$129,2,TRUE),100) -> 100 | S34: =41.062*EXP(0.000003*$D$4) -> 41.062
A35: 1 | C35: 浄水 | D35: 電気 | E35: 濃縮槽 | F35: 0 | G35: 0 | H35: 0 | I35: =VLOOKUP(D35,'様式2-1準備用'!$P$16:$Q$20,2,FALSE) -> 15 | J35: 0 | K35: 15 | M35: 1 | O35: 0 | R35: =IFERROR(VLOOKUP(G35,デフレータ!$D$5:$E$129,2,TRUE),100) -> 100 | S35: =29.827*EXP(0.00001*$D$4) -> 29.827
A36: 1 | C36: 浄水 | D36: 土木 | E36: 天日乾燥床 | F36: 0 | G36: 0 | H36: 0 | I36: =VLOOKUP(D36,'様式2-1準備用'!$P$16:$Q$20,2,FALSE) -> 60 | J36: 0 | K36: 60 | L36: 直接基礎 | M36: 1 | O36: 0 | R36: =IFERROR(VLOOKUP(G36,デフレータ!$D$5:$E$129,2,TRUE),100) -> 100 | S36: =0.0482*($D$4^0.689) -> 0
A37: 1 | C37: 浄水 | D37: 建築 | E37: 管理本館 | F37: 0 | G37: 0 | H37: 0 | I37: =VLOOKUP(D37,'様式2-1準備用'!$P$16:$Q$20,2,FALSE) -> 50 | J37: 0 | K37: 50 | M37: 1 | O37: 0 | R37: =IFERROR(VLOOKUP(G37,デフレータ!$D$5:$E$129,2,TRUE),100) -> 100 | S37: =132.83*EXP(0.000002*$D$4) -> 132.83
A38: 1 | C38: 浄水 | D38: 建築 | E38: 薬品注入施設 | F38: 0 | G38: 0 | H38: 0 | I38: =VLOOKUP(D38,'様式2-1準備用'!$P$16:$Q$20,2,FALSE) -> 50 | J38: 0 | K38: 50 | M38: 1 | O38: 0 | R38: =IFERROR(VLOOKUP(G38,デフレータ!$D$5:$E$129,2,TRUE),100) -> 100 | S38: =0.0302*($D$4^0.6794) -> 0
A39: 1 | C39: 浄水 | D39: 機械 | E39: 薬品注入施設 | F39: 0 | G39: 0 | H39: 0 | I39: =VLOOKUP(D39,'様式2-1準備用'!$P$16:$Q$20,2,FALSE) -> 15 | J39: 0 | K39: 15 | M39: 1 | O39: 0 | R39: =IFERROR(VLOOKUP(G39,デフレータ!$D$5:$E$129,2,TRUE),100) -> 100 | S39: =0.0188*($D$4^0.7883) -> 0
A40: 1 | C40: 浄水 | D40: 電気 | E40: 薬品注入施設 | F40: 0 | G40: 0 | H40: 0 | I40: =VLOOKUP(D40,'様式2-1準備用'!$P$16:$Q$20,2,FALSE) -> 15 | J40: 0 | K40: 15 | M40: 1 | O40: 0 | R40: =IFERROR(VLOOKUP(G40,デフレータ!$D$5:$E$129,2,TRUE),100) -> 100 | S40: =0.307*($D$4^0.5154) -> 0
A41: 1 | C41: 浄水 | D41: 電気 | E41: 中央監視操作施設 | F41: 0 | G41: 0 | H41: 0 | I41: =VLOOKUP(D41,'様式2-1準備用'!$P$16:$Q$20,2,FALSE) -> 15 | J41: 0 | K41: 15 | M41: 1 | O41: 0 | R41: =IFERROR(VLOOKUP(G41,デフレータ!$D$5:$E$129,2,TRUE),100) -> 100 | S41: =0.1448*($D$4^0.7681) -> 0
A42: 1 | C42: 浄水 | D42: 建築 | E42: 自家発電施設 | F42: 0 | G42: 0 | H42: 0 | I42: =VLOOKUP(D42,'様式2-1準備用'!$P$16:$Q$20,2,FALSE) -> 50 | J42: 0 | K42: 50 | M42: 1 | O42: 0 | R42: =IFERROR(VLOOKUP(G42,デフレータ!$D$5:$E$129,2,TRUE),100) -> 100 | S42: =70.24*EXP(0.000003*$D$4) -> 70.24
A43: 1 | C43: 浄水 | D43: 電気 | E43: 自家発電施設 | F43: 0 | G43: 0 | H43: 0 | I43: =VLOOKUP(D43,'様式2-1準備用'!$P$16:$Q$20,2,FALSE) -> 15 | J43: 0 | K43: 15 | M43: 1 | O43: 0 | R43: =IFERROR(VLOOKUP(G43,デフレータ!$D$5:$E$129,2,TRUE),100) -> 100 | S43: =0.3104*$T$43+59.48 -> 59.48 | T43: =0.9197*($D$4^0.6292) -> 0
A44: 1 | C44: 浄水 | D44: 電気 | E44: 受配電施設《高圧》 | F44: 0 | G44: 0 | H44: 0 | I44: =VLOOKUP(D44,'様式2-1準備用'!$P$16:$Q$20,2,FALSE) -> 15 | J44: 0 | K44: 15 | L44: 高圧 | M44: 1 | O44: 0 | R44: =IFERROR(VLOOKUP(G44,デフレータ!$D$5:$E$129,2,TRUE),100) -> 100 | S44: =1.1448*($D$4^0.5194) -> 0
A45: 1 | C45: 浄水 | D45: 土木 | E45: 場内整備・場内配管 | F45: 0 | G45: 0 | H45: 0 | I45: =VLOOKUP(D45,'様式2-1準備用'!$P$16:$Q$20,2,FALSE) -> 60 | J45: 0 | K45: 60 | M45: 1 | O45: 0 | R45: =IFERROR(VLOOKUP(G45,デフレータ!$D$5:$E$129,2,TRUE),100) -> 100 | S45: =0.005*$D$4+44.527 -> 44.527
L47: 戻る
A48: ●浄水場内施設-急速ろ過《機械脱水機・特高受電》（杭基礎浄水池・ポンプ井）
C50: 浄水施設能力(m3/日)： | E50: 建設年度： | O50: 費用関数 | S50: 費用関数
A51: 係数 | B51: ②系統 | C51: ③区分 | D51: ④工種 | E51: ⑤施設名 | F51: ⑥帳簿価格 （千円） | G51: ⑦取得年度 | H51: ⑧改築費 （千円） | I51: ⑨法定耐用年数 | J51: ⑩再改築費 （千円） | K51: ⑪更新基準 （現有資産） | L51: 備考 | M51: 係数 初期値 | O51: ⑥現在価格 （千円） | R51: デフレータ (R5が100) | S51: 現在価格 (税込10%, 百万円)
A52: 1 | C52: 浄水 | D52: 土木 | E52: 着水井 | F52: =IF($D$4=0,0,ROUND($O52*R52/100,)) -> 0 | G52: =IF($F$50=0,0,IF(A52=0,0,$F$50)) -> 0 | H52: =IF($D$50=0,0,$O52) -> 0 | I52: =VLOOKUP(D52,'様式2-1準備用'!$P$16:$Q$20,2,FALSE) -> 60 | J52: =IF($D$50=0,0,$O52) -> 0 | K52: =I52 -> 60 | M52: 1 | O52: =IF($D$50=0,0,$A52*S52*100/110*1000) -> 0 | R52: =IFERROR(VLOOKUP(G52,デフレータ!$D$5:$E$129,2,TRUE),100) -> 100 | S52: =19.995*($D$50^0.1553) -> 0
A53: 1 | C53: 浄水 | D53: 機械 | E53: 着水井 | F53: 0 | G53: =IF($F$50=0,0,IF(A53=0,0,$F$50)) -> 0 | H53: =IF($D$50=0,0,$O53) -> 0 | I53: =VLOOKUP(D53,'様式2-1準備用'!$P$16:$Q$20,2,FALSE) -> 15 | J53: 0 | K53: 15 | M53: 1 | O53: =IF($D$50=0,0,$A53*S53*100/110*1000) -> 0 | R53: =IFERROR(VLOOKUP(G53,デフレータ!$D$5:$E$129,2,TRUE),100) -> 100 | S53: =0.073*($D$50^0.5733) -> 0
A54: 1 | C54: 浄水 | D54: 電気 | E54: 着水井 | F54: 0 | G54: 0 | H54: 0 | I54: =VLOOKUP(D54,'様式2-1準備用'!$P$16:$Q$20,2,FALSE) -> 15 | J54: 0 | K54: 15 | M54: 1 | O54: 0 | R54: =IFERROR(VLOOKUP(G54,デフレータ!$D$5:$E$129,2,TRUE),100) -> 100 | S54: =0.0004*($D$50^1.0027) -> 0
A55: 1 | C55: 浄水 | D55: 土木 | E55: 急速攪拌池 | F55: 0 | G55: 0 | H55: =IF($D$50=0,0,$O55) -> 0 | I55: =VLOOKUP(D55,'様式2-1準備用'!$P$16:$Q$20,2,FALSE) -> 60 | J55: =IF($D$50=0,0,$O55) -> 0 | K55: 60 | M55: 1 | O55: 0 | R55: =IFERROR(VLOOKUP(G55,デフレータ!$D$5:$E$129,2,TRUE),100) -> 100 | S55: =0.0159*($D$50^0.7382) -> 0
A56: 1 | C56: 浄水 | D56: 機械 | E56: 急速攪拌池 | F56: 0 | G56: 0 | H56: =IF($D$50=0,0,$O56) -> 0 | I56: =VLOOKUP(D56,'様式2-1準備用'!$P$16:$Q$20,2,FALSE) -> 15 | J56: 0 | K56: 15 | M56: 1 | O56: 0 | R56: =IFERROR(VLOOKUP(G56,デフレータ!$D$5:$E$129,2,TRUE),100) -> 100 | S56: =0.4134*($D$50^0.3787) -> 0
A57: 1 | C57: 浄水 | D57: 電気 | E57: 急速攪拌池 | F57: 0 | G57: 0 | H57: 0 | I57: =VLOOKUP(D57,'様式2-1準備用'!$P$16:$Q$20,2,FALSE) -> 15 | J57: 0 | K57: 15 | M57: 1 | O57: 0 | R57: =IFERROR(VLOOKUP(G57,デフレータ!$D$5:$E$129,2,TRUE),100) -> 100 | S57: =9.3765*EXP(0.00001*$D$50) -> 9.3765
A58: 1 | C58: 浄水 | D58: 土木 | E58: フロック形成池 | F58: 0 | G58: 0 | H58: 0 | I58: =VLOOKUP(D58,'様式2-1準備用'!$P$16:$Q$20,2,FALSE) -> 60 | J58: 0 | K58: 60 | M58: 1 | O58: 0 | R58: =IFERROR(VLOOKUP(G58,デフレータ!$D$5:$E$129,2,TRUE),100) -> 100 | S58: =0.2813*($D$50^0.6175) -> 0
A59: 1 | C59: 浄水 | D59: 機械 | E59: フロック形成池 | F59: 0 | G59: 0 | H59: 0 | I59: =VLOOKUP(D59,'様式2-1準備用'!$P$16:$Q$20,2,FALSE) -> 15 | J59: 0 | K59: 15 | L59: 機械式 | M59: 1 | O59: 0 | R59: =IFERROR(VLOOKUP(G59,デフレータ!$D$5:$E$129,2,TRUE),100) -> 100 | S59: =0.0037*$D$50+47.624 -> 47.624
A60: 1 | C60: 浄水 | D60: 電気 | E60: フロック形成池 | F60: 0 | G60: =IF($F$50=0,0,IF(A60=0,0,$F$50)) -> 0 | H60: 0 | I60: =VLOOKUP(D60,'様式2-1準備用'!$P$16:$Q$20,2,FALSE) -> 15 | J60: 0 | K60: 15 | L60: 機械式 | M60: 1 | O60: 0 | R60: =IFERROR(VLOOKUP(G60,デフレータ!$D$5:$E$129,2,TRUE),100) -> 100 | S60: =8.0566*EXP(0.00001*$D$50) -> 8.0566
A61: 1 | C61: 浄水 | D61: 土木 | E61: 沈澱池（横流式「傾斜板式」） | F61: 0 | G61: 0 | H61: 0 | I61: =VLOOKUP(D61,'様式2-1準備用'!$P$16:$Q$20,2,FALSE) -> 60 | J61: 0 | K61: 60 | M61: 1 | O61: 0 | R61: =IFERROR(VLOOKUP(G61,デフレータ!$D$5:$E$129,2,TRUE),100) -> 100 | S61: =0.0114*($D$50^0.9871) -> 0
A62: 1 | C62: 浄水 | D62: 機械 | E62: 沈澱池（横流式「傾斜板式」） | F62: 0 | G62: 0 | H62: 0 | I62: =VLOOKUP(D62,'様式2-1準備用'!$P$16:$Q$20,2,FALSE) -> 15 | J62: 0 | K62: 15 | M62: 1 | O62: 0 | R62: =IFERROR(VLOOKUP(G62,デフレータ!$D$5:$E$129,2,TRUE),100) -> 100 | S62: =296.75*EXP(0.000002*$D$50) -> 296.75
A63: 1 | C63: 浄水 | D63: 電気 | E63: 沈澱池（横流式「傾斜板式」） | F63: 0 | G63: 0 | H63: 0 | I63: =VLOOKUP(D63,'様式2-1準備用'!$P$16:$Q$20,2,FALSE) -> 15 | J63: 0 | K63: 15 | M63: 1 | O63: 0 | R63: =IFERROR(VLOOKUP(G63,デフレータ!$D$5:$E$129,2,TRUE),100) -> 100 | S63: =0.0014*($D$50^1.008) -> 0
A64: 1 | C64: 浄水 | D64: 土木 | E64: 急速ろ過池 | F64: 0 | G64: 0 | H64: 0 | I64: =VLOOKUP(D64,'様式2-1準備用'!$P$16:$Q$20,2,FALSE) -> 60 | J64: 0 | K64: 60 | L64: 重力式 | M64: 1 | O64: 0 | R64: =IFERROR(VLOOKUP(G64,デフレータ!$D$5:$E$129,2,TRUE),100) -> 100 | S64: =0.0119*$D$50+124.63 -> 124.63
A65: 1 | C65: 浄水 | D65: 機械 | E65: 急速ろ過池 | F65: 0 | G65: 0 | H65: 0 | I65: =VLOOKUP(D65,'様式2-1準備用'!$P$16:$Q$20,2,FALSE) -> 15 | J65: 0 | K65: 15 | L65: 重力式 | M65: 1 | O65: 0 | R65: =IFERROR(VLOOKUP(G65,デフレータ!$D$5:$E$129,2,TRUE),100) -> 100 | S65: =4.0196*($D$50^0.4107) -> 0
A66: 1 | C66: 浄水 | D66: 電気 | E66: 急速ろ過池 | F66: 0 | G66: 0 | H66: 0 | I66: =VLOOKUP(D66,'様式2-1準備用'!$P$16:$Q$20,2,FALSE) -> 15 | J66: 0 | K66: 15 | M66: 1 | O66: 0 | R66: =IFERROR(VLOOKUP(G66,デフレータ!$D$5:$E$129,2,TRUE),100) -> 100 | S66: =0.3742*($D$50^0.5438) -> 0
A67: 1 | C67: 浄水 | D67: 土木 | E67: 塩素混和池 | F67: 0 | G67: 0 | H67: 0 | I67: =VLOOKUP(D67,'様式2-1準備用'!$P$16:$Q$20,2,FALSE) -> 60 | J67: 0 | K67: 60 | M67: 1 | O67: 0 | R67: =IFERROR(VLOOKUP(G67,デフレータ!$D$5:$E$129,2,TRUE),100) -> 100 | S67: =0.2411*($D$50^0.6425) -> 0
A68: 1 | C68: 浄水 | D68: 機械 | E68: 塩素混和池 | F68: 0 | G68: 0 | H68: 0 | I68: =VLOOKUP(D68,'様式2-1準備用'!$P$16:$Q$20,2,FALSE) -> 15 | J68: 0 | K68: 15 | M68: 1 | O68: 0 | R68: =IFERROR(VLOOKUP(G68,デフレータ!$D$5:$E$129,2,TRUE),100) -> 100 | S68: =0.0572*($D$50^0.6528) -> 0
A69: 1 | C69: 浄水 | D69: 土木 | E69: 浄水池・ポンプ井《杭基礎》 | F69: 0 | G69: 0 | H69: 0 | I69: =VLOOKUP(D69,'様式2-1準備用'!$P$16:$Q$20,2,FALSE) -> 60 | J69: 0 | K69: 60 | L69: 杭基礎、RC | M69: 1 | O69: 0 | R69: =IFERROR(VLOOKUP(G69,デフレータ!$D$5:$E$129,2,TRUE),100) -> 100 | S69: =0.3156*($D$50^0.6844) -> 0
A70: 1 | C70: 送水 | D70: 建築 | E70: 送水ポンプ施設《場内》 | F70: 0 | G70: 0 | H70: 0 | I70: =VLOOKUP(D70,'様式2-1準備用'!$P$16:$Q$20,2,FALSE) -> 50 | J70: 0 | K70: 50 | L70: 直接基礎、RC造 | M70: 1 | O70: 0 | R70: =IFERROR(VLOOKUP(G70,デフレータ!$D$5:$E$129,2,TRUE),100) -> 100 | S70: =2.8678*($T$70^0.7782) -> 0 | T70: =2.2437*($D$50^0.5111) -> 0
A71: 1 | C71: 送水 | D71: 機械 | E71: 送水ポンプ施設《場内》 | F71: 0 | G71: 0 | H71: 0 | I71: =VLOOKUP(D71,'様式2-1準備用'!$P$16:$Q$20,2,FALSE) -> 15 | J71: 0 | K71: 15 | M71: 1 | O71: 0 | R71: =IFERROR(VLOOKUP(G71,デフレータ!$D$5:$E$129,2,TRUE),100) -> 100 | S71: =0.1052*($D$50^0.6761) -> 0
A72: 1 | C72: 送水 | D72: 電気 | E72: 送水ポンプ施設《場内》 | F72: 0 | G72: 0 | H72: 0 | I72: =VLOOKUP(D72,'様式2-1準備用'!$P$16:$Q$20,2,FALSE) -> 15 | J72: 0 | K72: 15 | M72: 1 | O72: 0 | R72: =IFERROR(VLOOKUP(G72,デフレータ!$D$5:$E$129,2,TRUE),100) -> 100 | S72: =0.0016*$D$50+140.56 -> 140.56
A73: 1 | C73: 配水 | D73: 建築 | E73: 配水ポンプ施設《場内》 | F73: 0 | G73: 0 | H73: 0 | I73: =VLOOKUP(D73,'様式2-1準備用'!$P$16:$Q$20,2,FALSE) -> 50 | J73: 0 | K73: 50 | L73: 直接基礎、RC造 | M73: 1 | O73: 0 | R73: =IFERROR(VLOOKUP(G73,デフレータ!$D$5:$E$129,2,TRUE),100) -> 100 | S73: =2.8678*($T$73^0.7782) -> 0 | T73: =2.2437*($D$50^0.5111) -> 0
A74: 1 | C74: 配水 | D74: 機械 | E74: 配水ポンプ施設《場内》 | F74: 0 | G74: 0 | H74: 0 | I74: =VLOOKUP(D74,'様式2-1準備用'!$P$16:$Q$20,2,FALSE) -> 15 | J74: 0 | K74: 15 | M74: 1 | O74: 0 | R74: =IFERROR(VLOOKUP(G74,デフレータ!$D$5:$E$129,2,TRUE),100) -> 100 | S74: =0.1052*($D$50^0.6761) -> 0
A75: 1 | C75: 配水 | D75: 電気 | E75: 配水ポンプ施設《場内》 | F75: 0 | G75: 0 | H75: 0 | I75: =VLOOKUP(D75,'様式2-1準備用'!$P$16:$Q$20,2,FALSE) -> 15 | J75: 0 | K75: 15 | M75: 1 | O75: 0 | R75: =IFERROR(VLOOKUP(G75,デフレータ!$D$5:$E$129,2,TRUE),100) -> 100 | S75: =0.0016*$D$50+140.56 -> 140.56
A76: 1 | C76: 浄水 | D76: 土木 | E76: 排水池・排泥池 | F76: 0 | G76: 0 | H76: 0 | I76: =VLOOKUP(D76,'様式2-1準備用'!$P$16:$Q$20,2,FALSE) -> 60 | J76: 0 | K76: 60 | L76: 直接基礎 | M76: 1 | O76: 0 | R76: =IFERROR(VLOOKUP(G76,デフレータ!$D$5:$E$129,2,TRUE),100) -> 100 | S76: =29.81*EXP(0.00003*$D$50) -> 29.81
A77: 1 | C77: 浄水 | D77: 機械 | E77: 排水池・排泥池 | F77: 0 | G77: 0 | H77: 0 | I77: =VLOOKUP(D77,'様式2-1準備用'!$P$16:$Q$20,2,FALSE) -> 15 | J77: 0 | K77: 15 | M77: 1 | O77: 0 | R77: =IFERROR(VLOOKUP(G77,デフレータ!$D$5:$E$129,2,TRUE),100) -> 100 | S77: =0.0003*$D$50+57.868 -> 57.868
A78: 1 | C78: 浄水 | D78: 電気 | E78: 排水池・排泥池 | F78: 0 | G78: 0 | H78: 0 | I78: =VLOOKUP(D78,'様式2-1準備用'!$P$16:$Q$20,2,FALSE) -> 15 | J78: 0 | K78: 15 | M78: 1 | O78: 0 | R78: =IFERROR(VLOOKUP(G78,デフレータ!$D$5:$E$129,2,TRUE),100) -> 100 | S78: =0.001*$D$50+90.873 -> 90.873
A79: 1 | C79: 浄水 | D79: 土木 | E79: 濃縮槽 | F79: 0 | G79: 0 | H79: 0 | I79: =VLOOKUP(D79,'様式2-1準備用'!$P$16:$Q$20,2,FALSE) -> 60 | J79: 0 | K79: 60 | L79: 杭基礎 | M79: 1 | O79: 0 | R79: =IFERROR(VLOOKUP(G79,デフレータ!$D$5:$E$129,2,TRUE),100) -> 100 | S79: =155.18*EXP(0.000003*$D$50) -> 155.18
A80: 1 | C80: 浄水 | D80: 機械 | E80: 濃縮槽 | F80: 0 | G80: 0 | H80: 0 | I80: =VLOOKUP(D80,'様式2-1準備用'!$P$16:$Q$20,2,FALSE) -> 15 | J80: 0 | K80: 15 | M80: 1 | O80: 0 | R80: =IFERROR(VLOOKUP(G80,デフレータ!$D$5:$E$129,2,TRUE),100) -> 100 | S80: =41.062*EXP(0.000003*$D$50) -> 41.062
A81: 1 | C81: 浄水 | D81: 電気 | E81: 濃縮槽 | F81: 0 | G81: 0 | H81: 0 | I81: =VLOOKUP(D81,'様式2-1準備用'!$P$16:$Q$20,2,FALSE) -> 15 | J81: 0 | K81: 15 | M81: 1 | O81: 0 | R81: =IFERROR(VLOOKUP(G81,デフレータ!$D$5:$E$129,2,TRUE),100) -> 100 | S81: =29.827*EXP(0.00001*$D$50) -> 29.827
A82: 1 | C82: 浄水 | D82: 建築 | E82: 機械脱水機施設 | F82: 0 | G82: 0 | H82: 0 | I82: =VLOOKUP(D82,'様式2-1準備用'!$P$16:$Q$20,2,FALSE) -> 50 | J82: 0 | K82: 50 | M82: 1 | O82: 0 | R82: =IFERROR(VLOOKUP(G82,デフレータ!$D$5:$E$129,2,TRUE),100) -> 100 | S82: =0.003*$D$50+218.79 -> 218.79
A83: 1 | C83: 浄水 | D83: 機械 | E83: 機械脱水機施設 | F83: 0 | G83: 0 | H83: 0 | I83: =VLOOKUP(D83,'様式2-1準備用'!$P$16:$Q$20,2,FALSE) -> 15 | J83: 0 | K83: 15 | M83: 1 | O83: 0 | R83: =IFERROR(VLOOKUP(G83,デフレータ!$D$5:$E$129,2,TRUE),100) -> 100 | S83: =0.9374*($D$50^0.6059) -> 0
A84: 1 | C84: 浄水 | D84: 電気 | E84: 機械脱水機施設 | F84: 0 | G84: 0 | H84: 0 | I84: =VLOOKUP(D84,'様式2-1準備用'!$P$16:$Q$20,2,FALSE) -> 15 | J84: 0 | K84: 15 | M84: 1 | O84: 0 | R84: =IFERROR(VLOOKUP(G84,デフレータ!$D$5:$E$129,2,TRUE),100) -> 100 | S84: =0.9339*($D$50^0.4862) -> 0
A85: 1 | C85: 浄水 | D85: 建築 | E85: 管理本館 | F85: 0 | G85: 0 | H85: 0 | I85: =VLOOKUP(D85,'様式2-1準備用'!$P$16:$Q$20,2,FALSE) -> 50 | J85: 0 | K85: 50 | M85: 1 | O85: 0 | R85: =IFERROR(VLOOKUP(G85,デフレータ!$D$5:$E$129,2,TRUE),100) -> 100 | S85: =132.83*EXP(0.000002*$D$50) -> 132.83
A86: 1 | C86: 浄水 | D86: 建築 | E86: 薬品注入施設 | F86: 0 | G86: 0 | H86: 0 | I86: =VLOOKUP(D86,'様式2-1準備用'!$P$16:$Q$20,2,FALSE) -> 50 | J86: 0 | K86: 50 | M86: 1 | O86: 0 | R86: =IFERROR(VLOOKUP(G86,デフレータ!$D$5:$E$129,2,TRUE),100) -> 100 | S86: =0.0302*($D$50^0.6794) -> 0
A87: 1 | C87: 浄水 | D87: 機械 | E87: 薬品注入施設 | F87: 0 | G87: 0 | H87: 0 | I87: =VLOOKUP(D87,'様式2-1準備用'!$P$16:$Q$20,2,FALSE) -> 15 | J87: 0 | K87: 15 | M87: 1 | O87: 0 | R87: =IFERROR(VLOOKUP(G87,デフレータ!$D$5:$E$129,2,TRUE),100) -> 100 | S87: =0.0188*($D$50^0.7883) -> 0
A88: 1 | C88: 浄水 | D88: 電気 | E88: 薬品注入施設 | F88: 0 | G88: 0 | H88: 0 | I88: =VLOOKUP(D88,'様式2-1準備用'!$P$16:$Q$20,2,FALSE) -> 15 | J88: 0 | K88: 15 | M88: 1 | O88: 0 | R88: =IFERROR(VLOOKUP(G88,デフレータ!$D$5:$E$129,2,TRUE),100) -> 100 | S88: =0.307*($D$50^0.5154) -> 0
A89: 1 | C89: 浄水 | D89: 電気 | E89: 中央監視操作施設 | F89: 0 | G89: 0 | H89: 0 | I89: =VLOOKUP(D89,'様式2-1準備用'!$P$16:$Q$20,2,FALSE) -> 15 | J89: 0 | K89: 15 | M89: 1 | O89: 0 | R89: =IFERROR(VLOOKUP(G89,デフレータ!$D$5:$E$129,2,TRUE),100) -> 100 | S89: =0.1448*($D$50^0.7681) -> 0
A90: 1 | C90: 浄水 | D90: 建築 | E90: 自家発電施設 | F90: 0 | G90: 0 | H90: 0 | I90: =VLOOKUP(D90,'様式2-1準備用'!$P$16:$Q$20,2,FALSE) -> 50 | J90: 0 | K90: 50 | M90: 1 | O90: 0 | R90: =IFERROR(VLOOKUP(G90,デフレータ!$D$5:$E$129,2,TRUE),100) -> 100 | S90: =70.24*EXP(0.000003*$D$50) -> 70.24
A91: 1 | C91: 浄水 | D91: 電気 | E91: 自家発電施設 | F91: 0 | G91: 0 | H91: 0 | I91: =VLOOKUP(D91,'様式2-1準備用'!$P$16:$Q$20,2,FALSE) -> 15 | J91: 0 | K91: 15 | M91: 1 | O91: 0 | R91: =IFERROR(VLOOKUP(G91,デフレータ!$D$5:$E$129,2,TRUE),100) -> 100 | S91: =0.3104*$T$91+59.48 -> 59.48 | T91: =0.9197*($D$50^0.6292) -> 0
A92: 1 | C92: 浄水 | D92: 電気 | E92: 受配電施設《特高》 | F92: 0 | G92: 0 | H92: 0 | I92: =VLOOKUP(D92,'様式2-1準備用'!$P$16:$Q$20,2,FALSE) -> 15 | J92: 0 | K92: 15 | L92: 特高 | M92: 1 | O92: 0 | R92: =IFERROR(VLOOKUP(G92,デフレータ!$D$5:$E$129,2,TRUE),100) -> 100 | S92: =1.1448*($D$50^0.5194) -> 0
A93: 1 | C93: 浄水 | D93: 土木 | E93: 場内整備・場内配管 | F93: 0 | G93: 0 | H93: =IF($D$50=0,0,$O93) -> 0 | I93: =VLOOKUP(D93,'様式2-1準備用'!$P$16:$Q$20,2,FALSE) -> 60 | J93: =IF($D$50=0,0,$O93) -> 0 | K93: 60 | M93: 1 | O93: 0 | R93: =IFERROR(VLOOKUP(G93,デフレータ!$D$5:$E$129,2,TRUE),100) -> 100 | S93: =0.005*$D$50+44.527 -> 44.527

Sheet 浄水場内施設（膜ろ過）
L1: 戻る
A2: ●浄水場内施設-膜ろ過
C4: 浄水施設能力(m3/日)： | E4: 建設年度： | O4: 費用関数 | S4: 費用関数
A5: 係数 | B5: ②系統 | C5: ③区分 | D5: ④工種 | E5: ⑤施設名 | F5: ⑥帳簿価格 （千円） | G5: ⑦取得年度 | H5: ⑧改築費 （千円） | I5: ⑨法定耐用年数 | J5: ⑩再改築費 （千円） | K5: ⑪更新基準 （現有資産） | L5: 備考 | M5: 係数 初期値 | O5: ⑥現在価格 （千円） | R5: デフレータ (R5が100) | S5: 現在価格 (税込10%, 百万円)
A6: 1 | C6: 浄水 | D6: 土木 | E6: 着水井 | F6: =IF($D$4=0,0,ROUND($O6*R6/100,)) -> 0 | G6: =IF($F$4=0,0,IF(A6=0,0,$F$4)) -> 0 | H6: =IF($D$4=0,0,$O6) -> 0 | I6: =VLOOKUP(D6,'様式2-1準備用'!$P$16:$Q$20,2,FALSE) -> 60 | J6: =IF($D$4=0,0,$O6) -> 0 | K6: =I6 -> 60 | M6: 1 | O6: =IF($D$4=0,0,$A6*S6*100/110*1000) -> 0 | R6: =IFERROR(VLOOKUP(G6,デフレータ!$D$5:$E$129,2,TRUE),100) -> 100 | S6: =19.995*($D$4^0.1553) -> 0
A7: 1 | C7: 浄水 | D7: 機械 | E7: 着水井 | F7: 0 | G7: =IF($F$4=0,0,IF(A7=0,0,$F$4)) -> 0 | H7: =IF($D$4=0,0,$O7) -> 0 | I7: =VLOOKUP(D7,'様式2-1準備用'!$P$16:$Q$20,2,FALSE) -> 15 | J7: =IF($D$4=0,0,$O7) -> 0 | K7: 15 | M7: 1 | O7: =IF($D$4=0,0,$A7*S7*100/110*1000) -> 0 | R7: =IFERROR(VLOOKUP(G7,デフレータ!$D$5:$E$129,2,TRUE),100) -> 100 | S7: =0.073*($D$4^0.5733) -> 0
A8: 1 | C8: 浄水 | D8: 電気 | E8: 着水井 | F8: 0 | G8: 0 | H8: 0 | I8: =VLOOKUP(D8,'様式2-1準備用'!$P$16:$Q$20,2,FALSE) -> 15 | J8: 0 | K8: 15 | M8: 1 | O8: 0 | R8: =IFERROR(VLOOKUP(G8,デフレータ!$D$5:$E$129,2,TRUE),100) -> 100 | S8: =0.0004*($D$4^1.0027) -> 0
A9: 1 | C9: 浄水 | D9: 機械 | E9: 膜処理施設 | F9: 0 | G9: 0 | H9: 0 | I9: =VLOOKUP(D9,'様式2-1準備用'!$P$16:$Q$20,2,FALSE) -> 15 | J9: 0 | K9: 15 | M9: 1 | O9: 0 | R9: =IFERROR(VLOOKUP(G9,デフレータ!$D$5:$E$129,2,TRUE),100) -> 100 | S9: =0.0658*$D$4+697.65 -> 697.65
A10: 1 | C10: 浄水 | D10: 土木 | E10: 浄水池・ポンプ井《直接基礎》 | F10: 0 | G10: 0 | H10: 0 | I10: =VLOOKUP(D10,'様式2-1準備用'!$P$16:$Q$20,2,FALSE) -> 60 | J10: 0 | K10: 60 | L10: 直接基礎、RC | M10: 1 | O10: 0 | R10: =IFERROR(VLOOKUP(G10,デフレータ!$D$5:$E$129,2,TRUE),100) -> 100 | S10: =0.3156*($D$4^0.6844) -> 0
A11: 1 | C11: 送水 | D11: 建築 | E11: 送水ポンプ施設《場内》 | F11: 0 | G11: 0 | H11: 0 | I11: =VLOOKUP(D11,'様式2-1準備用'!$P$16:$Q$20,2,FALSE) -> 50 | J11: 0 | K11: 50 | L11: 直接基礎、RC造 | M11: 1 | O11: 0 | R11: =IFERROR(VLOOKUP(G11,デフレータ!$D$5:$E$129,2,TRUE),100) -> 100 | S11: =2.8678*($T$11^0.7782) -> 0 | T11: =2.2437*($D$4^0.5111) -> 0
A12: 1 | C12: 送水 | D12: 機械 | E12: 送水ポンプ施設《場内》 | F12: 0 | G12: 0 | H12: 0 | I12: =VLOOKUP(D12,'様式2-1準備用'!$P$16:$Q$20,2,FALSE) -> 15 | J12: 0 | K12: 15 | M12: 1 | O12: 0 | R12: =IFERROR(VLOOKUP(G12,デフレータ!$D$5:$E$129,2,TRUE),100) -> 100 | S12: =0.1052*($D$4^0.6761) -> 0
A13: 1 | C13: 送水 | D13: 電気 | E13: 送水ポンプ施設《場内》 | F13: 0 | G13: 0 | H13: 0 | I13: =VLOOKUP(D13,'様式2-1準備用'!$P$16:$Q$20,2,FALSE) -> 15 | J13: 0 | K13: 15 | M13: 1 | O13: 0 | R13: =IFERROR(VLOOKUP(G13,デフレータ!$D$5:$E$129,2,TRUE),100) -> 100 | S13: =0.0016*$D$4+140.56 -> 140.56
A14: 1 | C14: 配水 | D14: 建築 | E14: 配水ポンプ施設《場内》 | F14: 0 | G14: 0 | H14: 0 | I14: =VLOOKUP(D14,'様式2-1準備用'!$P$16:$Q$20,2,FALSE) -> 50 | J14: 0 | K14: 50 | L14: 直接基礎、RC造 | M14: 1 | O14: 0 | R14: =IFERROR(VLOOKUP(G14,デフレータ!$D$5:$E$129,2,TRUE),100) -> 100 | S14: =2.8678*($T$14^0.7782) -> 0 | T14: =2.2437*($D$4^0.5111) -> 0
A15: 1 | C15: 配水 | D15: 機械 | E15: 配水ポンプ施設《場内》 | F15: 0 | G15: 0 | H15: 0 | I15: =VLOOKUP(D15,'様式2-1準備用'!$P$16:$Q$20,2,FALSE) -> 15 | J15: 0 | K15: 15 | M15: 1 | O15: 0 | R15: =IFERROR(VLOOKUP(G15,デフレータ!$D$5:$E$129,2,TRUE),100) -> 100 | S15: =0.1052*($D$4^0.6761) -> 0
A16: 1 | C16: 配水 | D16: 電気 | E16: 配水ポンプ施設《場内》 | F16: 0 | G16: 0 | H16: 0 | I16: =VLOOKUP(D16,'様式2-1準備用'!$P$16:$Q$20,2,FALSE) -> 15 | J16: 0 | K16: 15 | M16: 1 | O16: 0 | R16: =IFERROR(VLOOKUP(G16,デフレータ!$D$5:$E$129,2,TRUE),100) -> 100 | S16: =0.0016*$D$4+140.56 -> 140.56
A17: 1 | C17: 浄水 | D17: 土木 | E17: 排水池・排泥池 | F17: 0 | G17: 0 | H17: 0 | I17: =VLOOKUP(D17,'様式2-1準備用'!$P$16:$Q$20,2,FALSE) -> 60 | J17: 0 | K17: 60 | L17: 直接基礎 | M17: 1 | O17: 0 | R17: =IFERROR(VLOOKUP(G17,デフレータ!$D$5:$E$129,2,TRUE),100) -> 100 | S17: =29.81*EXP(0.00003*$D$4) -> 29.81
A18: 1 | C18: 浄水 | D18: 機械 | E18: 排水池・排泥池 | F18: 0 | G18: 0 | H18: 0 | I18: =VLOOKUP(D18,'様式2-1準備用'!$P$16:$Q$20,2,FALSE) -> 15 | J18: 0 | K18: 15 | M18: 1 | O18: 0 | R18: =IFERROR(VLOOKUP(G18,デフレータ!$D$5:$E$129,2,TRUE),100) -> 100 | S18: =0.0003*$D$4+57.868 -> 57.868
A19: 1 | C19: 浄水 | D19: 電気 | E19: 排水池・排泥池 | F19: 0 | G19: 0 | H19: 0 | I19: =VLOOKUP(D19,'様式2-1準備用'!$P$16:$Q$20,2,FALSE) -> 15 | J19: 0 | K19: 15 | M19: 1 | O19: 0 | R19: =IFERROR(VLOOKUP(G19,デフレータ!$D$5:$E$129,2,TRUE),100) -> 100 | S19: =0.001*$D$4+90.873 -> 90.873
A20: 1 | C20: 浄水 | D20: 建築 | E20: 管理本館 | F20: 0 | G20: 0 | H20: 0 | I20: =VLOOKUP(D20,'様式2-1準備用'!$P$16:$Q$20,2,FALSE) -> 50 | J20: 0 | K20: 50 | M20: 1 | O20: 0 | R20: =IFERROR(VLOOKUP(G20,デフレータ!$D$5:$E$129,2,TRUE),100) -> 100 | S20: =132.83*EXP(0.000002*$D$4) -> 132.83
A21: 1 | C21: 浄水 | D21: 建築 | E21: 薬品注入施設 | F21: 0 | G21: 0 | H21: 0 | I21: =VLOOKUP(D21,'様式2-1準備用'!$P$16:$Q$20,2,FALSE) -> 50 | J21: 0 | K21: 50 | M21: 1 | O21: 0 | R21: =IFERROR(VLOOKUP(G21,デフレータ!$D$5:$E$129,2,TRUE),100) -> 100 | S21: =0.0302*($D$4^0.6794) -> 0
A22: 1 | C22: 浄水 | D22: 機械 | E22: 薬品注入施設 | F22: 0 | G22: 0 | H22: 0 | I22: =VLOOKUP(D22,'様式2-1準備用'!$P$16:$Q$20,2,FALSE) -> 15 | J22: 0 | K22: 15 | M22: 1 | O22: 0 | R22: =IFERROR(VLOOKUP(G22,デフレータ!$D$5:$E$129,2,TRUE),100) -> 100 | S22: =0.0188*($D$4^0.7883) -> 0
A23: 1 | C23: 浄水 | D23: 電気 | E23: 薬品注入施設 | F23: 0 | G23: 0 | H23: 0 | I23: =VLOOKUP(D23,'様式2-1準備用'!$P$16:$Q$20,2,FALSE) -> 15 | J23: 0 | K23: 15 | M23: 1 | O23: 0 | R23: =IFERROR(VLOOKUP(G23,デフレータ!$D$5:$E$129,2,TRUE),100) -> 100 | S23: =0.307*($D$4^0.5154) -> 0
A24: 1 | C24: 浄水 | D24: 電気 | E24: 中央監視操作施設 | F24: 0 | G24: 0 | H24: 0 | I24: =VLOOKUP(D24,'様式2-1準備用'!$P$16:$Q$20,2,FALSE) -> 15 | J24: 0 | K24: 15 | M24: 1 | O24: 0 | R24: =IFERROR(VLOOKUP(G24,デフレータ!$D$5:$E$129,2,TRUE),100) -> 100 | S24: =0.1448*($D$4^0.7681) -> 0
A25: 1 | C25: 浄水 | D25: 建築 | E25: 自家発電施設 | F25: 0 | G25: 0 | H25: 0 | I25: =VLOOKUP(D25,'様式2-1準備用'!$P$16:$Q$20,2,FALSE) -> 50 | J25: 0 | K25: 50 | M25: 1 | O25: 0 | R25: =IFERROR(VLOOKUP(G25,デフレータ!$D$5:$E$129,2,TRUE),100) -> 100 | S25: =70.24*EXP(0.000003*$D$4) -> 70.24
A26: 1 | C26: 浄水 | D26: 電気 | E26: 自家発電施設 | F26: 0 | G26: 0 | H26: 0 | I26: =VLOOKUP(D26,'様式2-1準備用'!$P$16:$Q$20,2,FALSE) -> 15 | J26: 0 | K26: 15 | M26: 1 | O26: 0 | R26: =IFERROR(VLOOKUP(G26,デフレータ!$D$5:$E$129,2,TRUE),100) -> 100 | S26: =0.3104*$T$26+59.48 -> 59.48 | T26: =0.9197*($D$4^0.6292) -> 0
A27: 1 | C27: 浄水 | D27: 電気 | E27: 受配電施設《特高》 | F27: 0 | G27: 0 | H27: 0 | I27: =VLOOKUP(D27,'様式2-1準備用'!$P$16:$Q$20,2,FALSE) -> 15 | J27: 0 | K27: 15 | L27: 特高 | M27: 1 | O27: 0 | R27: =IFERROR(VLOOKUP(G27,デフレータ!$D$5:$E$129,2,TRUE),100) -> 100 | S27: =0.0023*$D$4+469.08 -> 469.08
A28: 1 | C28: 浄水 | D28: 土木 | E28: 場内整備・場内配管 | F28: 0 | G28: 0 | H28: 0 | I28: =VLOOKUP(D28,'様式2-1準備用'!$P$16:$Q$20,2,FALSE) -> 60 | J28: 0 | K28: 60 | M28: 1 | O28: 0 | R28: =IFERROR(VLOOKUP(G28,デフレータ!$D$5:$E$129,2,TRUE),100) -> 100 | S28: =0.005*$D$4+44.527 -> 44.527
E29: ※膜処理施設の費用関数の工種区分は"一式"だが、ここでは"機械"に区分している。

Sheet 浄水場内施設（紫外線）
L1: 戻る
A2: ●浄水場内施設-紫外線処理
C4: 浄水施設能力(m3/日)： | E4: 建設年度： | O4: 費用関数 | S4: 費用関数
A5: 係数 | B5: ②系統 | C5: ③区分 | D5: ④工種 | E5: ⑤施設名 | F5: ⑥帳簿価格 （千円） | G5: ⑦取得年度 | H5: ⑧改築費 （千円） | I5: ⑨法定耐用年数 | J5: ⑩再改築費 （千円） | K5: ⑪更新基準 （現有資産） | L5: 備考 | M5: 係数 初期値 | O5: ⑥現在価格 （千円） | R5: デフレータ (R5が100) | S5: 現在価格 (税込10%, 百万円)
A6: 1 | C6: 浄水 | D6: 土木 | E6: 着水井 | F6: =IF($D$4=0,0,ROUND($O6*R6/100,)) -> 0 | G6: =IF($F$4=0,0,IF(A6=0,0,$F$4)) -> 0 | H6: =IF($D$4=0,0,$O6) -> 0 | I6: =VLOOKUP(D6,'様式2-1準備用'!$P$16:$Q$20,2,FALSE) -> 60 | J6: =IF($D$4=0,0,$O6) -> 0 | K6: =I6 -> 60 | M6: 1 | O6: =IF($D$4=0,0,$A6*S6*100/110*1000) -> 0 | R6: =IFERROR(VLOOKUP(G6,デフレータ!$D$5:$E$129,2,TRUE),100) -> 100 | S6: =19.995*($D$4^0.1553) -> 0
A7: 1 | C7: 浄水 | D7: 機械 | E7: 着水井 | F7: =IF($D$4=0,0,ROUND($O7*R7/100,)) -> 0 | G7: =IF($F$4=0,0,IF(A7=0,0,$F$4)) -> 0 | H7: =IF($D$4=0,0,$O7) -> 0 | I7: =VLOOKUP(D7,'様式2-1準備用'!$P$16:$Q$20,2,FALSE) -> 15 | J7: =IF($D$4=0,0,$O7) -> 0 | K7: 15 | M7: 1 | O7: =IF($D$4=0,0,$A7*S7*100/110*1000) -> 0 | R7: =IFERROR(VLOOKUP(G7,デフレータ!$D$5:$E$129,2,TRUE),100) -> 100 | S7: =0.073*($D$4^0.5733) -> 0
A8: 1 | C8: 浄水 | D8: 電気 | E8: 着水井 | F8: 0 | G8: 0 | H8: 0 | I8: =VLOOKUP(D8,'様式2-1準備用'!$P$16:$Q$20,2,FALSE) -> 15 | J8: 0 | K8: 15 | M8: 1 | O8: 0 | R8: =IFERROR(VLOOKUP(G8,デフレータ!$D$5:$E$129,2,TRUE),100) -> 100 | S8: =0.0004*($D$4^1.0027) -> 0
A9: 1 | C9: 浄水 | D9: 機械 | E9: 紫外線処理施設 | F9: 0 | G9: 0 | H9: 0 | I9: =VLOOKUP(D9,'様式2-1準備用'!$P$16:$Q$20,2,FALSE) -> 15 | J9: 0 | K9: 15 | M9: 1 | O9: 0 | R9: =IFERROR(VLOOKUP(G9,デフレータ!$D$5:$E$129,2,TRUE),100) -> 100 | S9: =0.0235*$D$4+102.95 -> 102.95
A10: 1 | C10: 浄水 | D10: 土木 | E10: 浄水池・ポンプ井《直接基礎》 | F10: 0 | G10: 0 | H10: 0 | I10: =VLOOKUP(D10,'様式2-1準備用'!$P$16:$Q$20,2,FALSE) -> 60 | J10: 0 | K10: 60 | L10: 直接基礎、RC | M10: 1 | O10: 0 | R10: =IFERROR(VLOOKUP(G10,デフレータ!$D$5:$E$129,2,TRUE),100) -> 100 | S10: =0.3156*($D$4^0.6844) -> 0
A11: 1 | C11: 送水 | D11: 建築 | E11: 送水ポンプ施設《場内》 | F11: 0 | G11: 0 | H11: 0 | I11: =VLOOKUP(D11,'様式2-1準備用'!$P$16:$Q$20,2,FALSE) -> 50 | J11: 0 | K11: 50 | L11: 直接基礎、RC造 | M11: 1 | O11: 0 | R11: =IFERROR(VLOOKUP(G11,デフレータ!$D$5:$E$129,2,TRUE),100) -> 100 | S11: =2.8678*($T$11^0.7782) -> 0 | T11: =2.2437*($D$4^0.5111) -> 0
A12: 1 | C12: 送水 | D12: 機械 | E12: 送水ポンプ施設《場内》 | F12: 0 | G12: 0 | H12: 0 | I12: =VLOOKUP(D12,'様式2-1準備用'!$P$16:$Q$20,2,FALSE) -> 15 | J12: 0 | K12: 15 | M12: 1 | O12: 0 | R12: =IFERROR(VLOOKUP(G12,デフレータ!$D$5:$E$129,2,TRUE),100) -> 100 | S12: =0.1052*($D$4^0.6761) -> 0
A13: 1 | C13: 送水 | D13: 電気 | E13: 送水ポンプ施設《場内》 | F13: 0 | G13: 0 | H13: 0 | I13: =VLOOKUP(D13,'様式2-1準備用'!$P$16:$Q$20,2,FALSE) -> 15 | J13: 0 | K13: 15 | M13: 1 | O13: 0 | R13: =IFERROR(VLOOKUP(G13,デフレータ!$D$5:$E$129,2,TRUE),100) -> 100 | S13: =0.0016*$D$4+140.56 -> 140.56
A14: 1 | C14: 配水 | D14: 建築 | E14: 配水ポンプ施設《場内》 | F14: 0 | G14: 0 | H14: 0 | I14: =VLOOKUP(D14,'様式2-1準備用'!$P$16:$Q$20,2,FALSE) -> 50 | J14: 0 | K14: 50 | L14: 直接基礎、RC造 | M14: 1 | O14: 0 | R14: =IFERROR(VLOOKUP(G14,デフレータ!$D$5:$E$129,2,TRUE),100) -> 100 | S14: =2.8678*($T$14^0.7782) -> 0 | T14: =2.2437*($D$4^0.5111) -> 0
A15: 1 | C15: 配水 | D15: 機械 | E15: 配水ポンプ施設《場内》 | F15: 0 | G15: 0 | H15: 0 | I15: =VLOOKUP(D15,'様式2-1準備用'!$P$16:$Q$20,2,FALSE) -> 15 | J15: 0 | K15: 15 | M15: 1 | O15: 0 | R15: =IFERROR(VLOOKUP(G15,デフレータ!$D$5:$E$129,2,TRUE),100) -> 100 | S15: =0.1052*($D$4^0.6761) -> 0
A16: 1 | C16: 配水 | D16: 電気 | E16: 配水ポンプ施設《場内》 | F16: 0 | G16: 0 | H16: 0 | I16: =VLOOKUP(D16,'様式2-1準備用'!$P$16:$Q$20,2,FALSE) -> 15 | J16: 0 | K16: 15 | M16: 1 | O16: 0 | R16: =IFERROR(VLOOKUP(G16,デフレータ!$D$5:$E$129,2,TRUE),100) -> 100 | S16: =0.0016*$D$4+140.56 -> 140.56
A17: 1 | C17: 浄水 | D17: 土木 | E17: 排水池・排泥池 | F17: 0 | G17: 0 | H17: 0 | I17: =VLOOKUP(D17,'様式2-1準備用'!$P$16:$Q$20,2,FALSE) -> 60 | J17: 0 | K17: 60 | L17: 直接基礎 | M17: 1 | O17: 0 | R17: =IFERROR(VLOOKUP(G17,デフレータ!$D$5:$E$129,2,TRUE),100) -> 100 | S17: =29.81*EXP(0.00003*$D$4) -> 29.81
A18: 1 | C18: 浄水 | D18: 機械 | E18: 排水池・排泥池 | F18: 0 | G18: 0 | H18: 0 | I18: =VLOOKUP(D18,'様式2-1準備用'!$P$16:$Q$20,2,FALSE) -> 15 | J18: 0 | K18: 15 | M18: 1 | O18: 0 | R18: =IFERROR(VLOOKUP(G18,デフレータ!$D$5:$E$129,2,TRUE),100) -> 100 | S18: =0.0003*$D$4+57.868 -> 57.868
A19: 1 | C19: 浄水 | D19: 電気 | E19: 排水池・排泥池 | F19: 0 | G19: 0 | H19: 0 | I19: =VLOOKUP(D19,'様式2-1準備用'!$P$16:$Q$20,2,FALSE) -> 15 | J19: 0 | K19: 15 | M19: 1 | O19: 0 | R19: =IFERROR(VLOOKUP(G19,デフレータ!$D$5:$E$129,2,TRUE),100) -> 100 | S19: =0.001*$D$4+90.873 -> 90.873
A20: 1 | C20: 浄水 | D20: 建築 | E20: 管理本館 | F20: 0 | G20: 0 | H20: 0 | I20: =VLOOKUP(D20,'様式2-1準備用'!$P$16:$Q$20,2,FALSE) -> 50 | J20: 0 | K20: 50 | M20: 1 | O20: 0 | R20: =IFERROR(VLOOKUP(G20,デフレータ!$D$5:$E$129,2,TRUE),100) -> 100 | S20: =132.83*EXP(0.000002*$D$4) -> 132.83
A21: 1 | C21: 浄水 | D21: 建築 | E21: 薬品注入施設 | F21: 0 | G21: 0 | H21: 0 | I21: =VLOOKUP(D21,'様式2-1準備用'!$P$16:$Q$20,2,FALSE) -> 50 | J21: 0 | K21: 50 | M21: 1 | O21: 0 | R21: =IFERROR(VLOOKUP(G21,デフレータ!$D$5:$E$129,2,TRUE),100) -> 100 | S21: =0.0302*($D$4^0.6794) -> 0
A22: 1 | C22: 浄水 | D22: 機械 | E22: 薬品注入施設 | F22: 0 | G22: 0 | H22: 0 | I22: =VLOOKUP(D22,'様式2-1準備用'!$P$16:$Q$20,2,FALSE) -> 15 | J22: 0 | K22: 15 | M22: 1 | O22: 0 | R22: =IFERROR(VLOOKUP(G22,デフレータ!$D$5:$E$129,2,TRUE),100) -> 100 | S22: =0.0188*($D$4^0.7883) -> 0
A23: 1 | C23: 浄水 | D23: 電気 | E23: 薬品注入施設 | F23: 0 | G23: 0 | H23: 0 | I23: =VLOOKUP(D23,'様式2-1準備用'!$P$16:$Q$20,2,FALSE) -> 15 | J23: 0 | K23: 15 | M23: 1 | O23: 0 | R23: =IFERROR(VLOOKUP(G23,デフレータ!$D$5:$E$129,2,TRUE),100) -> 100 | S23: =0.307*($D$4^0.5154) -> 0
A24: 1 | C24: 浄水 | D24: 電気 | E24: 中央監視操作施設 | F24: 0 | G24: 0 | H24: 0 | I24: =VLOOKUP(D24,'様式2-1準備用'!$P$16:$Q$20,2,FALSE) -> 15 | J24: 0 | K24: 15 | M24: 1 | O24: 0 | R24: =IFERROR(VLOOKUP(G24,デフレータ!$D$5:$E$129,2,TRUE),100) -> 100 | S24: =0.1448*($D$4^0.7681) -> 0
A25: 1 | C25: 浄水 | D25: 建築 | E25: 自家発電施設 | F25: 0 | G25: 0 | H25: 0 | I25: =VLOOKUP(D25,'様式2-1準備用'!$P$16:$Q$20,2,FALSE) -> 50 | J25: 0 | K25: 50 | M25: 1 | O25: 0 | R25: =IFERROR(VLOOKUP(G25,デフレータ!$D$5:$E$129,2,TRUE),100) -> 100 | S25: =70.24*EXP(0.000003*$D$4) -> 70.24
A26: 1 | C26: 浄水 | D26: 電気 | E26: 自家発電施設 | F26: 0 | G26: 0 | H26: 0 | I26: =VLOOKUP(D26,'様式2-1準備用'!$P$16:$Q$20,2,FALSE) -> 15 | J26: 0 | K26: 15 | M26: 1 | O26: 0 | R26: =IFERROR(VLOOKUP(G26,デフレータ!$D$5:$E$129,2,TRUE),100) -> 100 | S26: =0.3104*$T$26+59.48 -> 59.48 | T26: =0.9197*($D$4^0.6292) -> 0
A27: 1 | C27: 浄水 | D27: 電気 | E27: 受配電施設《高圧》 | F27: 0 | G27: 0 | H27: 0 | I27: =VLOOKUP(D27,'様式2-1準備用'!$P$16:$Q$20,2,FALSE) -> 15 | J27: 0 | K27: 15 | L27: 高圧 | M27: 1 | O27: 0 | R27: =IFERROR(VLOOKUP(G27,デフレータ!$D$5:$E$129,2,TRUE),100) -> 100 | S27: =1.1448*($D$4^0.5194) -> 0
A28: 1 | C28: 浄水 | D28: 土木 | E28: 場内整備・場内配管 | F28: 0 | G28: 0 | H28: 0 | I28: =VLOOKUP(D28,'様式2-1準備用'!$P$16:$Q$20,2,FALSE) -> 60 | J28: 0 | K28: 60 | M28: 1 | O28: 0 | R28: =IFERROR(VLOOKUP(G28,デフレータ!$D$5:$E$129,2,TRUE),100) -> 100 | S28: =0.005*$D$4+44.527 -> 44.527
E29: ※紫外線処理施設の費用関数の工種区分は"一式"だが、ここでは"機械"に区分している。

Sheet 浄水場内施設（ろ過機）
L1: 戻る
A2: ●浄水場内施設-ろ過機
C4: 浄水施設能力(m3/日)： | E4: 建設年度： | O4: 費用関数 | S4: 費用関数
A5: 係数 | B5: ②系統 | C5: ③区分 | D5: ④工種 | E5: ⑤施設名 | F5: ⑥帳簿価格 （千円） | G5: ⑦取得年度 | H5: ⑧改築費 （千円） | I5: ⑨法定耐用年数 | J5: ⑩再改築費 （千円） | K5: ⑪更新基準 （現有資産） | L5: 備考 | M5: 係数 初期値 | O5: ⑥現在価格 （千円） | R5: デフレータ (R5が100) | S5: 現在価格 (税込10%, 百万円)
A6: 1 | C6: 浄水 | D6: 土木 | E6: 着水井 | F6: =IF($D$4=0,0,ROUND($O6*R6/100,)) -> 0 | G6: =IF($F$4=0,0,IF(A6=0,0,$F$4)) -> 0 | H6: =IF($D$4=0,0,$O6) -> 0 | I6: =VLOOKUP(D6,'様式2-1準備用'!$P$16:$Q$20,2,FALSE) -> 60 | J6: =IF($D$4=0,0,$O6) -> 0 | K6: =I6 -> 60 | M6: 1 | O6: =IF($D$4=0,0,$A6*S6*100/110*1000) -> 0 | R6: =IFERROR(VLOOKUP(G6,デフレータ!$D$5:$E$129,2,TRUE),100) -> 100 | S6: =19.995*($D$4^0.1553) -> 0
A7: 1 | C7: 浄水 | D7: 機械 | E7: 着水井 | F7: =IF($D$4=0,0,ROUND($O7*R7/100,)) -> 0 | G7: =IF($F$4=0,0,IF(A7=0,0,$F$4)) -> 0 | H7: =IF($D$4=0,0,$O7) -> 0 | I7: =VLOOKUP(D7,'様式2-1準備用'!$P$16:$Q$20,2,FALSE) -> 15 | J7: =IF($D$4=0,0,$O7) -> 0 | K7: 15 | M7: 1 | O7: =IF($D$4=0,0,$A7*S7*100/110*1000) -> 0 | R7: =IFERROR(VLOOKUP(G7,デフレータ!$D$5:$E$129,2,TRUE),100) -> 100 | S7: =0.073*($D$4^0.5733) -> 0
A8: 1 | C8: 浄水 | D8: 電気 | E8: 着水井 | F8: 0 | G8: 0 | H8: 0 | I8: =VLOOKUP(D8,'様式2-1準備用'!$P$16:$Q$20,2,FALSE) -> 15 | J8: 0 | K8: 15 | M8: 1 | O8: 0 | R8: =IFERROR(VLOOKUP(G8,デフレータ!$D$5:$E$129,2,TRUE),100) -> 100 | S8: =0.0004*($D$4^1.0027) -> 0
A9: 1 | C9: 浄水 | D9: 土木 | E9: 急速攪拌池 | F9: 0 | G9: 0 | H9: 0 | I9: =VLOOKUP(D9,'様式2-1準備用'!$P$16:$Q$20,2,FALSE) -> 60 | J9: 0 | K9: 60 | M9: 1 | O9: 0 | R9: =IFERROR(VLOOKUP(G9,デフレータ!$D$5:$E$129,2,TRUE),100) -> 100 | S9: =0.0159*($D$4^0.7382) -> 0
A10: 1 | C10: 浄水 | D10: 機械 | E10: 急速攪拌池 | F10: 0 | G10: 0 | H10: 0 | I10: =VLOOKUP(D10,'様式2-1準備用'!$P$16:$Q$20,2,FALSE) -> 15 | J10: 0 | K10: 15 | M10: 1 | O10: 0 | R10: =IFERROR(VLOOKUP(G10,デフレータ!$D$5:$E$129,2,TRUE),100) -> 100 | S10: =0.4134*($D$4^0.3787) -> 0
A11: 1 | C11: 浄水 | D11: 電気 | E11: 急速攪拌池 | F11: 0 | G11: 0 | H11: 0 | I11: =VLOOKUP(D11,'様式2-1準備用'!$P$16:$Q$20,2,FALSE) -> 15 | J11: 0 | K11: 15 | M11: 1 | O11: 0 | R11: =IFERROR(VLOOKUP(G11,デフレータ!$D$5:$E$129,2,TRUE),100) -> 100 | S11: =9.3765*EXP(0.00001*$D$4) -> 9.3765
A12: 1 | C12: 浄水 | D12: 土木 | E12: フロック形成池 | F12: 0 | G12: 0 | H12: 0 | I12: =VLOOKUP(D12,'様式2-1準備用'!$P$16:$Q$20,2,FALSE) -> 60 | J12: 0 | K12: 60 | M12: 1 | O12: 0 | R12: =IFERROR(VLOOKUP(G12,デフレータ!$D$5:$E$129,2,TRUE),100) -> 100 | S12: =0.2813*($D$4^0.6175) -> 0
A13: 1 | C13: 浄水 | D13: 機械 | E13: フロック形成池 | F13: 0 | G13: 0 | H13: 0 | I13: =VLOOKUP(D13,'様式2-1準備用'!$P$16:$Q$20,2,FALSE) -> 15 | J13: 0 | K13: 15 | L13: 機械式 | M13: 1 | O13: 0 | R13: =IFERROR(VLOOKUP(G13,デフレータ!$D$5:$E$129,2,TRUE),100) -> 100 | S13: =0.0037*$D$4+47.624 -> 47.624
A14: 1 | C14: 浄水 | D14: 電気 | E14: フロック形成池 | F14: 0 | G14: 0 | H14: 0 | I14: =VLOOKUP(D14,'様式2-1準備用'!$P$16:$Q$20,2,FALSE) -> 15 | J14: 0 | K14: 15 | L14: 機械式 | M14: 1 | O14: 0 | R14: =IFERROR(VLOOKUP(G14,デフレータ!$D$5:$E$129,2,TRUE),100) -> 100 | S14: =8.0566*EXP(0.00001*$D$4) -> 8.0566
A15: 1 | C15: 浄水 | D15: 土木 | E15: 沈澱池（横流式「傾斜板式」） | F15: 0 | G15: 0 | H15: 0 | I15: =VLOOKUP(D15,'様式2-1準備用'!$P$16:$Q$20,2,FALSE) -> 60 | J15: 0 | K15: 60 | M15: 1 | O15: 0 | R15: =IFERROR(VLOOKUP(G15,デフレータ!$D$5:$E$129,2,TRUE),100) -> 100 | S15: =0.0114*($D$4^0.9871) -> 0
A16: 1 | C16: 浄水 | D16: 機械 | E16: 沈澱池（横流式「傾斜板式」） | F16: 0 | G16: 0 | H16: 0 | I16: =VLOOKUP(D16,'様式2-1準備用'!$P$16:$Q$20,2,FALSE) -> 15 | J16: 0 | K16: 15 | M16: 1 | O16: 0 | R16: =IFERROR(VLOOKUP(G16,デフレータ!$D$5:$E$129,2,TRUE),100) -> 100 | S16: =296.75*EXP(0.000002*$D$4) -> 296.75
A17: 1 | C17: 浄水 | D17: 電気 | E17: 沈澱池（横流式「傾斜板式」） | F17: 0 | G17: 0 | H17: 0 | I17: =VLOOKUP(D17,'様式2-1準備用'!$P$16:$Q$20,2,FALSE) -> 15 | J17: 0 | K17: 15 | M17: 1 | O17: 0 | R17: =IFERROR(VLOOKUP(G17,デフレータ!$D$5:$E$129,2,TRUE),100) -> 100 | S17: =0.0014*($D$4^1.008) -> 0
A18: 1 | C18: 浄水 | D18: 機械 | E18: ろ過機 | F18: 0 | G18: 0 | H18: 0 | I18: =VLOOKUP(D18,'様式2-1準備用'!$P$16:$Q$20,2,FALSE) -> 15 | J18: 0 | K18: 15 | M18: 1 | O18: 0 | R18: =IFERROR(VLOOKUP(G18,デフレータ!$D$5:$E$129,2,TRUE),100) -> 100 | S18: =0.0155*$D$4+71.888 -> 71.888
A19: 1 | C19: 浄水 | D19: 土木 | E19: 塩素混和池 | F19: 0 | G19: 0 | H19: 0 | I19: =VLOOKUP(D19,'様式2-1準備用'!$P$16:$Q$20,2,FALSE) -> 60 | J19: 0 | K19: 60 | M19: 1 | O19: 0 | R19: =IFERROR(VLOOKUP(G19,デフレータ!$D$5:$E$129,2,TRUE),100) -> 100 | S19: =0.2411*($D$4^0.6425) -> 0
A20: 1 | C20: 浄水 | D20: 機械 | E20: 塩素混和池 | F20: 0 | G20: 0 | H20: 0 | I20: =VLOOKUP(D20,'様式2-1準備用'!$P$16:$Q$20,2,FALSE) -> 15 | J20: 0 | K20: 15 | M20: 1 | O20: 0 | R20: =IFERROR(VLOOKUP(G20,デフレータ!$D$5:$E$129,2,TRUE),100) -> 100 | S20: =0.0572*($D$4^0.6528) -> 0
A21: 1 | C21: 浄水 | D21: 土木 | E21: 浄水池・ポンプ井《直接基礎》 | F21: 0 | G21: 0 | H21: 0 | I21: =VLOOKUP(D21,'様式2-1準備用'!$P$16:$Q$20,2,FALSE) -> 60 | J21: 0 | K21: 60 | L21: 直接基礎、RC | M21: 1 | O21: 0 | R21: =IFERROR(VLOOKUP(G21,デフレータ!$D$5:$E$129,2,TRUE),100) -> 100 | S21: =0.3156*($D$4^0.6844) -> 0
A22: 1 | C22: 送水 | D22: 建築 | E22: 送水ポンプ施設《場内》 | F22: 0 | G22: 0 | H22: 0 | I22: =VLOOKUP(D22,'様式2-1準備用'!$P$16:$Q$20,2,FALSE) -> 50 | J22: 0 | K22: 50 | L22: 直接基礎、RC造 | M22: 1 | O22: 0 | R22: =IFERROR(VLOOKUP(G22,デフレータ!$D$5:$E$129,2,TRUE),100) -> 100 | S22: =2.8678*($T$22^0.7782) -> 0 | T22: =2.2437*($D$4^0.5111) -> 0
A23: 1 | C23: 送水 | D23: 機械 | E23: 送水ポンプ施設《場内》 | F23: 0 | G23: 0 | H23: 0 | I23: =VLOOKUP(D23,'様式2-1準備用'!$P$16:$Q$20,2,FALSE) -> 15 | J23: 0 | K23: 15 | M23: 1 | O23: 0 | R23: =IFERROR(VLOOKUP(G23,デフレータ!$D$5:$E$129,2,TRUE),100) -> 100 | S23: =0.1052*($D$4^0.6761) -> 0
A24: 1 | C24: 送水 | D24: 電気 | E24: 送水ポンプ施設《場内》 | F24: 0 | G24: 0 | H24: 0 | I24: =VLOOKUP(D24,'様式2-1準備用'!$P$16:$Q$20,2,FALSE) -> 15 | J24: 0 | K24: 15 | M24: 1 | O24: 0 | R24: =IFERROR(VLOOKUP(G24,デフレータ!$D$5:$E$129,2,TRUE),100) -> 100 | S24: =0.0016*$D$4+140.56 -> 140.56
A25: 1 | C25: 配水 | D25: 建築 | E25: 配水ポンプ施設《場内》 | F25: 0 | G25: 0 | H25: 0 | I25: =VLOOKUP(D25,'様式2-1準備用'!$P$16:$Q$20,2,FALSE) -> 50 | J25: 0 | K25: 50 | L25: 直接基礎、RC造 | M25: 1 | O25: 0 | R25: =IFERROR(VLOOKUP(G25,デフレータ!$D$5:$E$129,2,TRUE),100) -> 100 | S25: =2.8678*($T$25^0.7782) -> 0 | T25: =2.2437*($D$4^0.5111) -> 0
A26: 1 | C26: 配水 | D26: 機械 | E26: 配水ポンプ施設《場内》 | F26: 0 | G26: 0 | H26: 0 | I26: =VLOOKUP(D26,'様式2-1準備用'!$P$16:$Q$20,2,FALSE) -> 15 | J26: 0 | K26: 15 | M26: 1 | O26: 0 | R26: =IFERROR(VLOOKUP(G26,デフレータ!$D$5:$E$129,2,TRUE),100) -> 100 | S26: =0.1052*($D$4^0.6761) -> 0
A27: 1 | C27: 配水 | D27: 電気 | E27: 配水ポンプ施設《場内》 | F27: 0 | G27: 0 | H27: 0 | I27: =VLOOKUP(D27,'様式2-1準備用'!$P$16:$Q$20,2,FALSE) -> 15 | J27: 0 | K27: 15 | M27: 1 | O27: 0 | R27: =IFERROR(VLOOKUP(G27,デフレータ!$D$5:$E$129,2,TRUE),100) -> 100 | S27: =0.0016*$D$4+140.56 -> 140.56
A28: 1 | C28: 浄水 | D28: 土木 | E28: 排水池・排泥池 | F28: 0 | G28: 0 | H28: 0 | I28: =VLOOKUP(D28,'様式2-1準備用'!$P$16:$Q$20,2,FALSE) -> 60 | J28: 0 | K28: 60 | L28: 直接基礎 | M28: 1 | O28: 0 | R28: =IFERROR(VLOOKUP(G28,デフレータ!$D$5:$E$129,2,TRUE),100) -> 100 | S28: =29.81*EXP(0.00003*$D$4) -> 29.81
A29: 1 | C29: 浄水 | D29: 機械 | E29: 排水池・排泥池 | F29: 0 | G29: 0 | H29: 0 | I29: =VLOOKUP(D29,'様式2-1準備用'!$P$16:$Q$20,2,FALSE) -> 15 | J29: 0 | K29: 15 | M29: 1 | O29: 0 | R29: =IFERROR(VLOOKUP(G29,デフレータ!$D$5:$E$129,2,TRUE),100) -> 100 | S29: =0.0003*$D$4+57.868 -> 57.868
A30: 1 | C30: 浄水 | D30: 電気 | E30: 排水池・排泥池 | F30: 0 | G30: 0 | H30: 0 | I30: =VLOOKUP(D30,'様式2-1準備用'!$P$16:$Q$20,2,FALSE) -> 15 | J30: 0 | K30: 15 | M30: 1 | O30: 0 | R30: =IFERROR(VLOOKUP(G30,デフレータ!$D$5:$E$129,2,TRUE),100) -> 100 | S30: =0.001*$D$4+90.873 -> 90.873
A31: 1 | C31: 浄水 | D31: 土木 | E31: 濃縮槽 | F31: 0 | G31: 0 | H31: 0 | I31: =VLOOKUP(D31,'様式2-1準備用'!$P$16:$Q$20,2,FALSE) -> 60 | J31: 0 | K31: 60 | L31: 杭基礎 | M31: 1 | O31: 0 | R31: =IFERROR(VLOOKUP(G31,デフレータ!$D$5:$E$129,2,TRUE),100) -> 100 | S31: =155.18*EXP(0.000003*$D$4) -> 155.18
A32: 1 | C32: 浄水 | D32: 機械 | E32: 濃縮槽 | F32: 0 | G32: 0 | H32: 0 | I32: =VLOOKUP(D32,'様式2-1準備用'!$P$16:$Q$20,2,FALSE) -> 15 | J32: 0 | K32: 15 | M32: 1 | O32: 0 | R32: =IFERROR(VLOOKUP(G32,デフレータ!$D$5:$E$129,2,TRUE),100) -> 100 | S32: =41.062*EXP(0.000003*$D$4) -> 41.062
A33: 1 | C33: 浄水 | D33: 電気 | E33: 濃縮槽 | F33: 0 | G33: 0 | H33: 0 | I33: =VLOOKUP(D33,'様式2-1準備用'!$P$16:$Q$20,2,FALSE) -> 15 | J33: 0 | K33: 15 | M33: 1 | O33: 0 | R33: =IFERROR(VLOOKUP(G33,デフレータ!$D$5:$E$129,2,TRUE),100) -> 100 | S33: =29.827*EXP(0.00001*$D$4) -> 29.827
A34: 1 | C34: 浄水 | D34: 土木 | E34: 天日乾燥床 | F34: 0 | G34: 0 | H34: 0 | I34: =VLOOKUP(D34,'様式2-1準備用'!$P$16:$Q$20,2,FALSE) -> 60 | J34: 0 | K34: 60 | L34: 直接基礎 | M34: 1 | O34: 0 | R34: =IFERROR(VLOOKUP(G34,デフレータ!$D$5:$E$129,2,TRUE),100) -> 100 | S34: =0.0482*($D$4^0.689) -> 0
A35: 1 | C35: 浄水 | D35: 建築 | E35: 管理本館 | F35: 0 | G35: 0 | H35: 0 | I35: =VLOOKUP(D35,'様式2-1準備用'!$P$16:$Q$20,2,FALSE) -> 50 | J35: 0 | K35: 50 | M35: 1 | O35: 0 | R35: =IFERROR(VLOOKUP(G35,デフレータ!$D$5:$E$129,2,TRUE),100) -> 100 | S35: =132.83*EXP(0.000002*$D$4) -> 132.83
A36: 1 | C36: 浄水 | D36: 建築 | E36: 薬品注入施設 | F36: 0 | G36: 0 | H36: 0 | I36: =VLOOKUP(D36,'様式2-1準備用'!$P$16:$Q$20,2,FALSE) -> 50 | J36: 0 | K36: 50 | M36: 1 | O36: 0 | R36: =IFERROR(VLOOKUP(G36,デフレータ!$D$5:$E$129,2,TRUE),100) -> 100 | S36: =0.0302*($D$4^0.6794) -> 0
A37: 1 | C37: 浄水 | D37: 機械 | E37: 薬品注入施設 | F37: 0 | G37: 0 | H37: 0 | I37: =VLOOKUP(D37,'様式2-1準備用'!$P$16:$Q$20,2,FALSE) -> 15 | J37: 0 | K37: 15 | M37: 1 | O37: 0 | R37: =IFERROR(VLOOKUP(G37,デフレータ!$D$5:$E$129,2,TRUE),100) -> 100 | S37: =0.0188*($D$4^0.7883) -> 0
A38: 1 | C38: 浄水 | D38: 電気 | E38: 薬品注入施設 | F38: 0 | G38: 0 | H38: 0 | I38: =VLOOKUP(D38,'様式2-1準備用'!$P$16:$Q$20,2,FALSE) -> 15 | J38: 0 | K38: 15 | M38: 1 | O38: 0 | R38: =IFERROR(VLOOKUP(G38,デフレータ!$D$5:$E$129,2,TRUE),100) -> 100 | S38: =0.307*($D$4^0.5154) -> 0
A39: 1 | C39: 浄水 | D39: 電気 | E39: 中央監視操作施設 | F39: 0 | G39: 0 | H39: 0 | I39: =VLOOKUP(D39,'様式2-1準備用'!$P$16:$Q$20,2,FALSE) -> 15 | J39: 0 | K39: 15 | M39: 1 | O39: 0 | R39: =IFERROR(VLOOKUP(G39,デフレータ!$D$5:$E$129,2,TRUE),100) -> 100 | S39: =0.1448*($D$4^0.7681) -> 0
A40: 1 | C40: 浄水 | D40: 建築 | E40: 自家発電施設 | F40: 0 | G40: 0 | H40: 0 | I40: =VLOOKUP(D40,'様式2-1準備用'!$P$16:$Q$20,2,FALSE) -> 50 | J40: 0 | K40: 50 | M40: 1 | O40: 0 | R40: =IFERROR(VLOOKUP(G40,デフレータ!$D$5:$E$129,2,TRUE),100) -> 100 | S40: =70.24*EXP(0.000003*$D$4) -> 70.24
A41: 1 | C41: 浄水 | D41: 電気 | E41: 自家発電施設 | F41: 0 | G41: 0 | H41: 0 | I41: =VLOOKUP(D41,'様式2-1準備用'!$P$16:$Q$20,2,FALSE) -> 15 | J41: 0 | K41: 15 | M41: 1 | O41: 0 | R41: =IFERROR(VLOOKUP(G41,デフレータ!$D$5:$E$129,2,TRUE),100) -> 100 | S41: =0.3104*$T$41+59.48 -> 59.48 | T41: =0.9197*($D$4^0.6292) -> 0
A42: 1 | C42: 浄水 | D42: 電気 | E42: 受配電施設《高圧》 | F42: 0 | G42: 0 | H42: 0 | I42: =VLOOKUP(D42,'様式2-1準備用'!$P$16:$Q$20,2,FALSE) -> 15 | J42: 0 | K42: 15 | L42: 高圧 | M42: 1 | O42: 0 | R42: =IFERROR(VLOOKUP(G42,デフレータ!$D$5:$E$129,2,TRUE),100) -> 100 | S42: =1.1448*($D$4^0.5194) -> 0
A43: 1 | C43: 浄水 | D43: 土木 | E43: 場内整備・場内配管 | F43: 0 | G43: 0 | H43: 0 | I43: =VLOOKUP(D43,'様式2-1準備用'!$P$16:$Q$20,2,FALSE) -> 60 | J43: 0 | K43: 60 | M43: 1 | O43: 0 | R43: =IFERROR(VLOOKUP(G43,デフレータ!$D$5:$E$129,2,TRUE),100) -> 100 | S43: =0.005*$D$4+44.527 -> 44.527
E44: ※ろ過機の工種区分は"一式"だが、ここでは"機械"に区分している。

Sheet 浄水場内施設（その他）
L1: 戻る
A2: ●浄水場内施設-オゾン処理
C4: 浄水施設能力(m3/日)： | E4: 建設年度： | O4: 費用関数 | S4: 費用関数
A5: 係数 | B5: ②系統 | C5: ③区分 | D5: ④工種 | E5: ⑤施設名 | F5: ⑥帳簿価格 （千円） | G5: ⑦取得年度 | H5: ⑧改築費 （千円） | I5: ⑨法定耐用年数 | J5: ⑩再改築費 （千円） | K5: ⑪更新基準 （現有資産） | L5: 備考 | M5: 係数 初期値 | O5: ⑥現在価格 （千円） | R5: デフレータ (R5が100) | S5: 現在価格 (税込10%, 百万円)
A6: 1 | C6: 浄水 | D6: 機械 | E6: オゾン処理施設 | F6: =IF($D$4=0,0,ROUND($O6*R6/100,)) -> 0 | G6: =IF($F$4=0,0,IF(A6=0,0,$F$4)) -> 0 | H6: =IF($D$4=0,0,$O6) -> 0 | I6: =VLOOKUP(D6,'様式2-1準備用'!$P$16:$Q$20,2,FALSE) -> 15 | J6: =IF($D$4=0,0,$O6) -> 0 | K6: =I6 -> 15 | M6: 1 | O6: =IF($D$4=0,0,$A6*S6*100/110*1000) -> 0 | R6: =IFERROR(VLOOKUP(G6,デフレータ!$D$5:$E$129,2,TRUE),100) -> 100 | S6: =0.0702*($D$4^0.8281) -> 0
E7: ※オゾン処理施設の費用関数の工種区分は"一式"だが、ここでは"機械"に区分している。
L8: 戻る
A9: ●浄水場内施設-活性炭処理《粉末》
C11: 浄水施設能力(m3/日)： | E11: 建設年度： | O11: 費用関数 | S11: 費用関数
A12: 係数 | B12: ②系統 | C12: ③区分 | D12: ④工種 | E12: ⑤施設名 | F12: ⑥帳簿価格 （千円） | G12: ⑦取得年度 | H12: ⑧改築費 （千円） | I12: ⑨法定耐用年数 | J12: ⑩再改築費 （千円） | K12: ⑪更新基準 （現有資産） | L12: 備考 | M12: 係数 初期値 | O12: ⑥現在価格 （千円） | R12: デフレータ (R5が100) | S12: 現在価格 (税込10%, 百万円)
A13: 1 | C13: 浄水 | D13: 機械 | E13: 活性炭処理施設《粉末》 | F13: =IF($D$4=0,0,ROUND($O13*R13/100,)) -> 0 | G13: =IF($F$11=0,0,IF(A13=0,0,$F$11)) -> 0 | H13: =IF($D$11=0,0,$O13) -> 0 | I13: =VLOOKUP(D13,'様式2-1準備用'!$P$16:$Q$20,2,FALSE) -> 15 | J13: =IF($D$11=0,0,$O13) -> 0 | K13: =I13 -> 15 | M13: 1 | O13: =IF($D$11=0,0,$A13*S13*100/110*1000) -> 0 | R13: =IFERROR(VLOOKUP(G13,デフレータ!$D$5:$E$129,2,TRUE),100) -> 100 | S13: =0.1286*($D$11^0.6658) -> 0
E14: ※費用関数の工種区分は"一式"だが、ここでは"機械"に区分している。
L15: 戻る
A16: ●浄水場内施設-活性炭処理《粒状》
C18: 浄水施設能力(m3/日)： | E18: 建設年度： | O18: 費用関数 | S18: 費用関数
A19: 係数 | B19: ②系統 | C19: ③区分 | D19: ④工種 | E19: ⑤施設名 | F19: ⑥帳簿価格 （千円） | G19: ⑦取得年度 | H19: ⑧改築費 （千円） | I19: ⑨法定耐用年数 | J19: ⑩再改築費 （千円） | K19: ⑪更新基準 （現有資産） | L19: 備考 | M19: 係数 初期値 | O19: ⑥現在価格 （千円） | R19: デフレータ (R5が100) | S19: 現在価格 (税込10%, 百万円)
A20: 1 | C20: 浄水 | D20: 機械 | E20: 活性炭処理施設《粒状》 | F20: =IF($D$4=0,0,ROUND($O20*R20/100,)) -> 0 | G20: =IF($F$18=0,0,IF(A20=0,0,$F$18)) -> 0 | H20: =IF($D$18=0,0,$O20) -> 0 | I20: =VLOOKUP(D20,'様式2-1準備用'!$P$16:$Q$20,2,FALSE) -> 15 | J20: =IF($D$18=0,0,$O20) -> 0 | K20: =I20 -> 15 | M20: 1 | O20: =IF($D$18=0,0,$A20*S20*100/110*1000) -> 0 | R20: =IFERROR(VLOOKUP(G20,デフレータ!$D$5:$E$129,2,TRUE),100) -> 100 | S20: =0.7166*($D$18^0.6494) -> 0
E21: ※費用関数の工種区分は"一式"だが、ここでは"機械"に区分している。
L22: 戻る
A23: ●浄水場内施設-緩速ろ過池
C25: 浄水施設能力(m3/日)： | E25: 建設年度： | O25: 費用関数 | S25: 費用関数
A26: 係数 | B26: ②系統 | C26: ③区分 | D26: ④工種 | E26: ⑤施設名 | F26: ⑥帳簿価格 （千円） | G26: ⑦取得年度 | H26: ⑧改築費 （千円） | I26: ⑨法定耐用年数 | J26: ⑩再改築費 （千円） | K26: ⑪更新基準 （現有資産） | L26: 備考 | M26: 係数 初期値 | O26: ⑥現在価格 （千円） | R26: デフレータ (R5が100) | S26: 現在価格 (税込10%, 百万円)
A27: 1 | C27: 浄水 | D27: 土木 | E27: 緩速ろ過池 | F27: =IF($D$4=0,0,ROUND($O27*R27/100,)) -> 0 | G27: =IF($F$25=0,0,IF(A27=0,0,$F$25)) -> 0 | H27: =IF($D$25=0,0,$O27) -> 0 | I27: =VLOOKUP(D27,'様式2-1準備用'!$P$16:$Q$20,2,FALSE) -> 60 | J27: =IF($D$25=0,0,$O27) -> 0 | K27: =I27 -> 60 | M27: 1 | O27: =IF($D$25=0,0,$A27*S27*100/110*1000) -> 0 | R27: =IFERROR(VLOOKUP(G27,デフレータ!$D$5:$E$129,2,TRUE),100) -> 100 | S27: =0.0488*$D$25+32.76 -> 32.76

Sheet 送配水ポンプ施設
L1: 戻る
A2: ●送水ポンプ施設-場外
C4: 送水量(m3/日)： | E4: 建設年度： | O4: 費用関数 | S4: 費用関数
A5: 係数 | B5: ②系統 | C5: ③区分 | D5: ④工種 | E5: ⑤施設名 | F5: ⑥帳簿価格 （千円） | G5: ⑦取得年度 | H5: ⑧改築費 （千円） | I5: ⑨法定耐用年数 | J5: ⑩再改築費 （千円） | K5: ⑪更新基準 （現有資産） | L5: 備考 | M5: 係数 初期値 | O5: ⑥現在価格 （千円） | R5: デフレータ (R5が100) | S5: 現在価格 (税込10%, 百万円)
A6: 1 | C6: 送水 | D6: 建築 | E6: 送水ポンプ施設《場外》 | F6: =IF($D$4=0,0,ROUND($O6*R6/100,)) -> 0 | G6: =IF($F$4=0,0,IF(A6=0,0,$F$4)) -> 0 | H6: =IF($D$4=0,0,$O6) -> 0 | I6: =VLOOKUP(D6,'様式2-1準備用'!$P$16:$Q$20,2,FALSE) -> 50 | J6: =IF($D$4=0,0,$O6) -> 0 | K6: =I6 -> 50 | L6: 直接基礎、RC造 | M6: 1 | O6: =IF($D$4=0,0,$A6*S6*100/110*1000) -> 0 | R6: =IFERROR(VLOOKUP(G6,デフレータ!$D$5:$E$129,2,TRUE),100) -> 100 | S6: =1.6155*($D$4^0.565) -> 0
A7: 1 | C7: 送水 | D7: 機械 | E7: 送水ポンプ施設《場外》 | F7: =IF($D$4=0,0,ROUND($O7*R7/100,)) -> 0 | G7: =IF($F$4=0,0,IF(A7=0,0,$F$4)) -> 0 | H7: =IF($D$4=0,0,$O7) -> 0 | I7: =VLOOKUP(D7,'様式2-1準備用'!$P$16:$Q$20,2,FALSE) -> 15 | J7: 0 | K7: 15 | M7: 1 | O7: =IF($D$4=0,0,$A7*S7*100/110*1000) -> 0 | R7: =IFERROR(VLOOKUP(G7,デフレータ!$D$5:$E$129,2,TRUE),100) -> 100 | S7: =0.1141*($D$4^0.7072) -> 0
A8: 1 | C8: 送水 | D8: 電気 | E8: 送水ポンプ施設《場外》 | F8: 0 | G8: =IF($F$4=0,0,IF(A8=0,0,$F$4)) -> 0 | H8: 0 | I8: =VLOOKUP(D8,'様式2-1準備用'!$P$16:$Q$20,2,FALSE) -> 15 | J8: 0 | K8: 15 | M8: 1 | O8: 0 | R8: =IFERROR(VLOOKUP(G8,デフレータ!$D$5:$E$129,2,TRUE),100) -> 100 | S8: =0.4995*($D$4^0.624) -> 0
L11: 戻る
A12: ●配水ポンプ施設-場外
C14: 配水量(m3/日)： | E14: 建設年度： | O14: 費用関数 | S14: 費用関数
A15: 係数 | B15: ②系統 | C15: ③区分 | D15: ④工種 | E15: ⑤施設名 | F15: ⑥帳簿価格 （千円） | G15: ⑦取得年度 | H15: ⑧改築費 （千円） | I15: ⑨法定耐用年数 | J15: ⑩再改築費 （千円） | K15: ⑪更新基準 （現有資産） | L15: 備考 | M15: 係数 初期値 | O15: ⑥現在価格 （千円） | R15: デフレータ (R5が100) | S15: 現在価格 (税込10%, 百万円)
A16: 1 | C16: 配水 | D16: 建築 | E16: 配水ポンプ施設《場外》 | F16: =IF($D$4=0,0,ROUND($O16*R16/100,)) -> 0 | G16: =IF($F$14=0,0,IF(A16=0,0,$F$14)) -> 0 | H16: =IF($D$14=0,0,$O16) -> 0 | I16: =VLOOKUP(D16,'様式2-1準備用'!$P$16:$Q$20,2,FALSE) -> 50 | J16: =IF($D$14=0,0,$O16) -> 0 | K16: =I16 -> 50 | L16: 直接基礎、RC造 | M16: 1 | O16: =IF($D$14=0,0,$A16*S16*100/110*1000) -> 0 | R16: =IFERROR(VLOOKUP(G16,デフレータ!$D$5:$E$129,2,TRUE),100) -> 100 | S16: =1.6155*($D$14^0.565) -> 0
A17: 1 | C17: 配水 | D17: 機械 | E17: 配水ポンプ施設《場外》 | F17: 0 | G17: =IF($F$14=0,0,IF(A17=0,0,$F$14)) -> 0 | H17: =IF($D$14=0,0,$O17) -> 0 | I17: =VLOOKUP(D17,'様式2-1準備用'!$P$16:$Q$20,2,FALSE) -> 15 | J17: =IF($D$14=0,0,$O17) -> 0 | K17: 15 | M17: 1 | O17: =IF($D$14=0,0,$A17*S17*100/110*1000) -> 0 | R17: =IFERROR(VLOOKUP(G17,デフレータ!$D$5:$E$129,2,TRUE),100) -> 100 | S17: =0.1141*($D$14^0.7072) -> 0
A18: 1 | C18: 配水 | D18: 電気 | E18: 配水ポンプ施設《場外》 | F18: 0 | G18: =IF($F$14=0,0,IF(A18=0,0,$F$14)) -> 0 | H18: =IF($D$14=0,0,$O18) -> 0 | I18: =VLOOKUP(D18,'様式2-1準備用'!$P$16:$Q$20,2,FALSE) -> 15 | J18: =IF($D$14=0,0,$O18) -> 0 | K18: 15 | M18: 1 | O18: 0 | R18: =IFERROR(VLOOKUP(G18,デフレータ!$D$5:$E$129,2,TRUE),100) -> 100 | S18: =0.4995*($D$14^0.624) -> 0

Sheet 配水池
L1: 戻る
A2: ●配水池-RC
C4: 有効容量(m3)： | E4: 建設年度： | O4: 費用関数 | S4: 費用関数
A5: 係数 | B5: ②系統 | C5: ③区分 | D5: ④工種 | E5: ⑤施設名 | F5: ⑥帳簿価格 （千円） | G5: ⑦取得年度 | H5: ⑧改築費 （千円） | I5: ⑨法定耐用年数 | J5: ⑩再改築費 （千円） | K5: ⑪更新基準 （現有資産） | L5: 備考 | M5: 係数 初期値 | O5: ⑥現在価格 （千円） | R5: デフレータ (R5が100) | S5: 現在価格 (税込10%, 百万円)
A6: 1 | C6: 配水 | D6: 土木 | E6: 配水池《RC》 | F6: =IF($D$4=0,0,ROUND($O6*R6/100,)) -> 0 | G6: =IF($F$4=0,0,IF(A6=0,0,$F$4)) -> 0 | H6: =IF($D$4=0,0,$O6) -> 0 | I6: =VLOOKUP(D6,'様式2-1準備用'!$P$16:$Q$20,2,FALSE) -> 60 | J6: =IF($D$4=0,0,$O6) -> 0 | K6: =I6 -> 60 | M6: 1 | O6: =IF($D$4=0,0,$A6*S6*100/110*1000) -> 0 | R6: =IFERROR(VLOOKUP(G6,デフレータ!$D$5:$E$129,2,TRUE),100) -> 100 | S6: =0.6019*($D$4^0.8635) -> 0
E7: ※費用関数の工種区分は"一式"だが、ここでは"土木"に区分している。
L8: 戻る
A9: ●配水池-PC
C11: 有効容量(m3)： | E11: 建設年度： | O11: 費用関数 | S11: 費用関数
A12: 係数 | B12: ②系統 | C12: ③区分 | D12: ④工種 | E12: ⑤施設名 | F12: ⑥帳簿価格 （千円） | G12: ⑦取得年度 | H12: ⑧改築費 （千円） | I12: ⑨法定耐用年数 | J12: ⑩再改築費 （千円） | K12: ⑪更新基準 （現有資産） | L12: 備考 | M12: 係数 初期値 | O12: ⑥現在価格 （千円） | R12: デフレータ (R5が100) | S12: 現在価格 (税込10%, 百万円)
A13: 1 | C13: 配水 | D13: 土木 | E13: 配水池《PC》 | F13: =IF($D$4=0,0,ROUND($O13*R13/100,)) -> 0 | G13: =IF($F$11=0,0,IF(A13=0,0,$F$11)) -> 0 | H13: =IF($D$11=0,0,$O13) -> 0 | I13: =VLOOKUP(D13,'様式2-1準備用'!$P$16:$Q$20,2,FALSE) -> 60 | J13: =IF($D$11=0,0,$O13) -> 0 | K13: =I13 -> 60 | M13: 1 | O13: =IF($D$11=0,0,$A13*S13*100/110*1000) -> 0 | R13: =IFERROR(VLOOKUP(G13,デフレータ!$D$5:$E$129,2,TRUE),100) -> 100 | S13: =1.9905*($D$11^0.6415) -> 0
E14: ※費用関数の工種区分は"一式"だが、ここでは"土木"に区分している。
L15: 戻る
A16: ●配水池-SUS
C18: 有効容量(m3)： | E18: 建設年度： | O18: 費用関数 | S18: 費用関数
A19: 係数 | B19: ②系統 | C19: ③区分 | D19: ④工種 | E19: ⑤施設名 | F19: ⑥帳簿価格 （千円） | G19: ⑦取得年度 | H19: ⑧改築費 （千円） | I19: ⑨法定耐用年数 | J19: ⑩再改築費 （千円） | K19: ⑪更新基準 （現有資産） | L19: 備考 | M19: 係数 初期値 | O19: ⑥現在価格 （千円） | R19: デフレータ (R5が100) | S19: 現在価格 (税込10%, 百万円)
A20: 1 | C20: 配水 | D20: 土木 | E20: 配水池《SUS》 | F20: =IF($D$4=0,0,ROUND($O20*R20/100,)) -> 0 | G20: =IF($F$18=0,0,IF(A20=0,0,$F$18)) -> 0 | H20: =IF($D$18=0,0,$O20) -> 0 | I20: ='様式2-1準備用'!Q18 -> 45 | J20: =IF($D$18=0,0,$O20) -> 0 | K20: =I20 -> 45 | M20: 1 | O20: =IF($D$18=0,0,$A20*S20*100/110*1000) -> 0 | R20: =IFERROR(VLOOKUP(G20,デフレータ!$D$5:$E$129,2,TRUE),100) -> 100 | S20: =0.2488*$D$18+127.97 -> 127.97
E21: ※費用関数の工種区分は"一式"だが、ここでは"土木"に区分し、かつ耐用年数の初期設定は60年でなく45年としている。

Sheet 管種別導入布設年度 (hidden)
A1: ●管種別の導入布設年度 | G1: 用途管種別延長へ
A2: 創設事業開始年度： | B2: 1970 | C2: ←水道（事業）が始まった時期
A3: 実績最新年度： | B3: 2020
A4: 水道統計（社団法人 日本水道協会）の 管種区分 | B4: 導入布設年度 | D4: 製造年度 | F4: チェック | G4: 製造年度の参考文献等 | H4: 管種 コード
B5: 開始 | C5: 最終 | D5: 開始 | E5: 最終
A6: 鋳鉄管 （ダクタイル鋳鉄管は含まない） (m) | B6: 1970 | C6: 1975 | D6: 0 | E6: 1970 | F6: =IF(B6="",IF(C6="","-","エラー"),IF(B6<$B$2,"エラー",IF(B6>C6,"エラー",IF(B6<D6,"エラー",IF(B6>C6,"エラー",IF(C6>$B$3,"エラー","OK")))))) -> OK | G6: ダクが広まりA形､K形のみのJWWA規格となった1976年(S46)よりも前とした。（S40年以降が高級鋳鉄管の末期とされている(*1ｐ.12)） | H6: A1
A7: ダクタイル鋳鉄管 耐震型継手を有する (m) | B7: 1982 | C7: 1985 | D7: 1982 | E7: 9999 | F7: =IF(B7="",IF(C7="","-","エラー"),IF(B7<$B$2,"エラー",IF(B7>C7,"エラー",IF(B7<D7,"エラー",IF(B7>C7,"エラー",IF(C7>$B$3,"エラー","OK")))))) -> OK | G7: 資料よりS形、SⅡ形の採用時期と見込まれる(*1ｐ.28) | H7: A2
A8: ダクタイル鋳鉄管 Ｋ形継手等を有するもののうち良い地盤に布設されている (m) | B8: 1980 | C8: 2020 | D8: 1971 | E8: 9999 | F8: OK | G8: 以前からA形、B形、C形、フランジ形があったが、1971年(S46)には、A形､K形のみのJWWA規格となったタイミング | H8: A3
A9: ダクタイル鋳鉄管 (上記以外・不明なものを含む） (m) | B9: 2001 | C9: 2001 | D9: 1971 | E9: 9999 | F9: OK | G9: 同上 | H9: A9
A10: 鋼管 （溶接継手を有する） （m） | B10: 1982 | C10: 1985 | D10: 1953 | E10: 9999 | F10: OK | G10: 資料より1957(S27)以前は印ろう継手と分類されている(*1p.43) | H10: B1
A11: 鋼管 （上記以外・不明なものを含む） (m) | D11: 0 | E11: 9999 | F11: - | G11: 古い印ろう継手か、亜鉛メッキ鋼管（ネジ継手）、塩ビライニング鋼管（ネジ継手）が考えられる。 | H11: B9
A12: 石綿セメント管 (m) | D12: 0 | E12: 1985 | F12: - | G12: 最後の製造中止は1985（S60）(日本エタニットパイプ社) | H12: C1
A13: 硬質塩化ビニル管 （ＲＲロング継手等を有する） (m) | B13: 2000 | C13: 2005 | D13: 2000 | E13: 9999 | F13: OK | G13: JWWA規格化が2000年。 | H13: D1
A14: 硬質塩化ビニル管 （ＲＲ継手等を有する） (m) | B14: 1985 | C14: 1995 | D14: 1981 | E14: 1999 | F14: OK | G14: JWWA規格化が1981年。RRロング登場後は使用しないと想定 | H14: D2
A15: 硬質塩化ビニル管 （上記以外・不明なものを含む） (m) | B15: 1982 | C15: 1982 | D15: 1964 | E15: 9999 | F15: OK | G15: TS継手が初めて規格化された | H15: D9
A16: コンクリート管 (m) | D16: 0 | E16: 1948 | F16: - | G16: 高級鋳鉄管の規格化以前を想定（*1ｐ.3に戦時中はヒューム管、木管といった代用管使用の記述がある。） | H16: E1
A17: 鉛管 (m) | D17: 0 | E17: 1988 | F17: - | G17: H元年に厚生省通知 | H17: F1
A18: ポリエチレン管 （高密度、熱融着継手を有する） （m） | B18: 1995 | C18: 2000 | D18: 1995 | E18: 9999 | F18: OK | G18: 資料よる区切りを採用（*1p.66） | H18: G1
A19: ポリエチレン管 （上記以外・不明なものを含む） （m） | D19: 0 | E19: 1994 | F19: - | G19: 同上 | H19: G9
A20: ステンレス管 耐震型継手を有する (m) | B20: 1985 | C20: 1989 | D20: 1985 | E20: 9999 | F20: OK | G20: ステンレス管の採用が早かった横須賀市で1985年から使用しているため（HPより） | H20: H1
A21: ステンレス管 (上記以外・不明なものを含む） (m) | D21: 1985 | E21: 9999 | F21: - | G21: 同上 | H21: H9
A22: その他 （管種が不明のものを含む） (m) | D22: 0 | E22: 9999 | F22: - | H22: Z9
G23: *1「水道管の分類と特性（案）」(H20.7、(財)水道技術研究センター)
G24: *2 採用がNS形なら1999年(H11)以降。

Sheet 用途管種別延長 (hidden)
A1: ●用途・管種別の布設延長 | C1: 管種別導入布設年度へ | I1: 様式2-2準備用へ
K3: 11 | L3: =K3+1 -> 12 | M3: =L3+1 -> 13 | N3: 14 | O3: 15 | P3: 16 | Q3: 17 | R3: 18 | S3: 19 | T3: 20 | U3: 21 | V3: 22 | W3: 23 | X3: 24 | Y3: 25 | Z3: 26 | AA3: 27 | AB3: 28 | AC3: 29 | AD3: 30 | AE3: 31 | AF3: 32 | AG3: 33 | AH3: 34 | AI3: 35 | AJ3: 36 | AK3: 37 | AL3: 38 | AM3: 39 | AN3: 40 | AO3: 41 | AP3: 42 | AQ3: 43 | AR3: 44 | AS3: 45 | AT3: 46 | AU3: 47 | AV3: 48 | AW3: 49 | AX3: 50 | AY3: 51 | AZ3: 52 | BA3: 53 | BB3: 54 | BC3: 55 | BD3: 56 | BE3: 57 | BF3: 58 | BG3: 59 | BH3: 60 | BI3: 61 | BJ3: 62 | BK3: 63 | BL3: 64 | BM3: 65 | BN3: 66 | BO3: 67 | BP3: 68 | BQ3: 69 | BR3: 70 | BS3: 71 | BT3: 72 | BU3: 73 | BV3: 74 | BW3: 75 | BX3: 76 | BY3: =BX3+1 -> 77 | BZ3: 78 | CA3: 79 | CB3: 80 | CC3: 81 | CD3: 82 | CE3: 83 | CF3: 84 | CG3: 85 | CH3: 86 | CI3: 87 | CJ3: 88 | CK3: 89 | CL3: 90 | CM3: 91 | CN3: 92 | CO3: 93 | CP3: 94 | CQ3: 95 | CR3: 96 | CS3: 97 | CT3: 98 | CU3: 99 | CV3: 100 | CW3: 101 | CX3: 102 | CY3: 103 | CZ3: 104 | DA3: 105 | DB3: 106 | DC3: 107 | DD3: 108 | DE3: 109 | DF3: 110 | DG3: 111 | DH3: 112 | DI3: 113 | DJ3: 114 | DK3: 115 | DL3: 116 | DM3: 117 | DN3: 118 | DO3: 119 | DP3: 120 | DQ3: 121
A4: 用途 | B4: 水道統計（公益社団法人 日本水道協会）の管種区分 | C4: 延長 | D4: 布設事業費 (千円) | E4: h | F4: p | G4: 導入布設年度 | I4: 利用期間 | J4: 利用期間 | K4: 年度別布設延長 | DS4: 管種 コード | DT4: 施設名
C5: （m） | E5: 切片 | F5: 傾き | G5: 開始 | H5: 最終 | I5: （年） | J5: 平均延長 | K5: =管種別導入布設年度!B2 -> 1970 | L5: =K5+1 -> 1971 | M5: =L5+1 -> 1972 | N5: 1973 | O5: 1974 | P5: 1975 | Q5: 1976 | R5: 1977 | S5: 1978 | T5: 1979 | U5: 1980 | V5: 1981 | W5: 1982 | X5: 1983 | Y5: 1984 | Z5: 1985 | AA5: 1986 | AB5: 1987 | AC5: 1988 | AD5: 1989 | AE5: 1990 | AF5: 1991 | AG5: 1992 | AH5: 1993 | AI5: 1994 | AJ5: 1995 | AK5: 1996 | AL5: 1997 | AM5: 1998 | AN5: 1999 | AO5: 2000 | AP5: 2001 | AQ5: 2002 | AR5: 2003 | AS5: 2004 | AT5: 2005 | AU5: 2006 | AV5: 2007 | AW5: 2008 | AX5: 2009 | AY5: 2010 | AZ5: 2011 | BA5: 2012 | BB5: 2013 | BC5: 2014 | BD5: 2015 | BE5: 2016 | BF5: 2017 | BG5: 2018 | BH5: 2019 | BI5: 2020 | BJ5: 2021 | BK5: 2022 | BL5: 2023 | BM5: 2024 | BN5: 2025 | BO5: 2026 | BP5: 2027 | BQ5: 2028 | BR5: 2029 | BS5: 2030 | BT5: 2031 | BU5: 2032 | BV5: 2033 | BW5: 2034 | BX5: 2035 | BY5: =BX5+1 -> 2036 | BZ5: 2037 | CA5: 2038 | CB5: 2039 | CC5: 2040 | CD5: 2041 | CE5: 2042 | CF5: 2043 | CG5: 2044 | CH5: 2045 | CI5: 2046 | CJ5: 2047 | CK5: 2048 | CL5: 2049 | CM5: 2050 | CN5: 2051 | CO5: 2052 | CP5: 2053 | CQ5: 2054 | CR5: 2055 | CS5: 2056 | CT5: 2057 | CU5: 2058 | CV5: 2059 | CW5: 2060 | CX5: 2061 | CY5: 2062 | CZ5: 2063 | DA5: 2064 | DB5: 2065 | DC5: 2066 | DD5: 2067 | DE5: 2068 | DF5: 2069 | DG5: 2070 | DH5: 2071 | DI5: 2072 | DJ5: 2073 | DK5: 2074 | DL5: 2075 | DM5: 2076 | DN5: 2077 | DO5: 2078 | DP5: 2079 | DQ5: 2080 | DR5: （合計）
A6: 導水管 | B6: 鋳鉄管 （ダクタイル鋳鉄管は含まない） (m) | C6: 30 | D6: 3500 | G6: =IF($C6=0,"-",管種別導入布設年度!B6) -> 1970 | H6: =IF($C6=0,"-",管種別導入布設年度!C6) -> 1975 | I6: =IF(C6=0,0,H6-G6+1) -> 6 | J6: =IF(C6=0,0,ROUND(C6/I6,1)) -> 5 | K6: =IF($C6=0,0,IF(K$5<INT($G6),0, IF(K$5>INT($H6),0,$J6))) -> 5 | L6: 5 | M6: 5 | N6: 5 | O6: 5 | P6: 5 | Q6: 0 | R6: 0 | S6: 0 | T6: 0 | U6: =IF($C6=0,0,IF(U$5<INT($G6),0, IF(U$5>INT($H6),0,$J6))) -> 0 | V6: 0 | W6: 0 | X6: 0 | Y6: 0 | Z6: 0 | AA6: 0 | AB6: 0 | AC6: 0 | AD6: 0 | AE6: =IF($C6=0,0,IF(AE$5<INT($G6),0, IF(AE$5>INT($H6),0,$J6))) -> 0 | AF6: 0 | AG6: 0 | AH6: 0 | AI6: 0 | AJ6: 0 | AK6: 0 | AL6: 0 | AM6: 0 | AN6: 0 | AO6: =IF($C6=0,0,IF(AO$5<INT($G6),0, IF(AO$5>INT($H6),0,$J6))) -> 0 | AP6: 0 | AQ6: 0 | AR6: 0 | AS6: 0 | AT6: 0 | AU6: 0 | AV6: 0 | AW6: 0 | AX6: 0 | AY6: =IF($C6=0,0,IF(AY$5<INT($G6),0, IF(AY$5>INT($H6),0,$J6))) -> 0 | AZ6: 0 | BA6: 0 | BB6: 0 | BC6: 0 | BD6: 0 | BE6: 0 | BF6: 0 | BG6: 0 | BH6: 0 | BI6: =IF($C6=0,0,IF(BI$5<INT($G6),0, IF(BI$5>INT($H6),0,$J6))) -> 0 | BJ6: 0 | BK6: 0 | BL6: 0 | BM6: 0 | BN6: 0 | BO6: 0 | BP6: 0 | BQ6: 0 | BR6: 0 | BS6: =IF($C6=0,0,IF(BS$5<INT($G6),0, IF(BS$5>INT($H6),0,$J6))) -> 0 | BT6: 0 | BU6: 0 | BV6: 0 | BW6: 0 | BX6: 0 | BY6: 0 | BZ6: 0 | CA6: 0 | CB6: 0 | CC6: =IF($C6=0,0,IF(CC$5<INT($G6),0, IF(CC$5>INT($H6),0,$J6))) -> 0 | CD6: 0 | CE6: 0 | CF6: 0 | CG6: 0 | CH6: 0 | CI6: 0 | CJ6: 0 | CK6: 0 | CL6: 0 | CM6: =IF($C6=0,0,IF(CM$5<INT($G6),0, IF(CM$5>INT($H6),0,$J6))) -> 0 | CN6: 0 | CO6: 0 | CP6: 0 | CQ6: 0 | CR6: 0 | CS6: 0 | CT6: 0 | CU6: 0 | CV6: 0 | CW6: =IF($C6=0,0,IF(CW$5<INT($G6),0, IF(CW$5>INT($H6),0,$J6))) -> 0 | CX6: 0 | CY6: 0 | CZ6: 0 | DA6: 0 | DB6: 0 | DC6: 0 | DD6: 0 | DE6: 0 | DF6: 0 | DG6: =IF($C6=0,0,IF(DG$5<INT($G6),0, IF(DG$5>INT($H6),0,$J6))) -> 0 | DH6: 0 | DI6: 0 | DJ6: 0 | DK6: 0 | DL6: 0 | DM6: 0 | DN6: 0 | DO6: 0 | DP6: 0 | DQ6: 0 | DR6: =SUM(K6:DQ6) -> 30 | DS6: A1 | DT6: 取・導水管
B7: ダクタイル鋳鉄管 耐震型継手を有する (m) | C7: 120 | D7: 15000 | G7: =IF($C7=0,"-",管種別導入布設年度!B7) -> 1982 | H7: =IF($C7=0,"-",管種別導入布設年度!C7) -> 1985 | I7: 4 | J7: 30 | K7: 0 | L7: 0 | M7: 0 | N7: 0 | O7: 0 | P7: 0 | Q7: 0 | R7: 0 | S7: 0 | T7: 0 | U7: 0 | V7: 0 | W7: 30 | X7: 30 | Y7: 30 | Z7: 30 | AA7: 0 | AB7: 0 | AC7: 0 | AD7: 0 | AE7: 0 | AF7: 0 | AG7: 0 | AH7: 0 | AI7: 0 | AJ7: 0 | AK7: 0 | AL7: 0 | AM7: 0 | AN7: 0 | AO7: 0 | AP7: 0 | AQ7: 0 | AR7: 0 | AS7: 0 | AT7: 0 | AU7: 0 | AV7: 0 | AW7: 0 | AX7: 0 | AY7: 0 | AZ7: 0 | BA7: 0 | BB7: 0 | BC7: 0 | BD7: 0 | BE7: 0 | BF7: 0 | BG7: 0 | BH7: 0 | BI7: 0 | BJ7: 0 | BK7: 0 | BL7: 0 | BM7: 0 | BN7: 0 | BO7: 0 | BP7: 0 | BQ7: 0 | BR7: 0 | BS7: 0 | BT7: 0 | BU7: 0 | BV7: 0 | BW7: 0 | BX7: 0 | BY7: 0 | BZ7: 0 | CA7: 0 | CB7: 0 | CC7: 0 | CD7: 0 | CE7: 0 | CF7: 0 | CG7: 0 | CH7: 0 | CI7: 0 | CJ7: 0 | CK7: 0 | CL7: 0 | CM7: 0 | CN7: 0 | CO7: 0 | CP7: 0 | CQ7: 0 | CR7: 0 | CS7: 0 | CT7: 0 | CU7: 0 | CV7: 0 | CW7: 0 | CX7: 0 | CY7: 0 | CZ7: 0 | DA7: 0 | DB7: 0 | DC7: 0 | DD7: 0 | DE7: 0 | DF7: 0 | DG7: 0 | DH7: 0 | DI7: 0 | DJ7: 0 | DK7: 0 | DL7: 0 | DM7: 0 | DN7: 0 | DO7: 0 | DP7: 0 | DQ7: 0 | DR7: 120 | DS7: A2
B8: ダクタイル鋳鉄管 Ｋ形継手等を有するもののうち良い地盤に布設されている (m) | G8: =IF($C8=0,"-",管種別導入布設年度!B8) -> - | H8: =IF($C8=0,"-",管種別導入布設年度!C8) -> - | I8: 0 | J8: 0 | K8: 0 | L8: 0 | M8: 0 | N8: 0 | O8: 0 | P8: 0 | Q8: 0 | R8: 0 | S8: 0 | T8: 0 | U8: 0 | V8: 0 | W8: 0 | X8: 0 | Y8: 0 | Z8: 0 | AA8: 0 | AB8: 0 | AC8: 0 | AD8: 0 | AE8: 0 | AF8: 0 | AG8: 0 | AH8: 0 | AI8: 0 | AJ8: 0 | AK8: 0 | AL8: 0 | AM8: 0 | AN8: 0 | AO8: 0 | AP8: 0 | AQ8: 0 | AR8: 0 | AS8: 0 | AT8: 0 | AU8: 0 | AV8: 0 | AW8: 0 | AX8: 0 | AY8: 0 | AZ8: 0 | BA8: 0 | BB8: 0 | BC8: 0 | BD8: 0 | BE8: 0 | BF8: 0 | BG8: 0 | BH8: 0 | BI8: 0 | BJ8: 0 | BK8: 0 | BL8: 0 | BM8: 0 | BN8: 0 | BO8: 0 | BP8: 0 | BQ8: 0 | BR8: 0 | BS8: 0 | BT8: 0 | BU8: 0 | BV8: 0 | BW8: 0 | BX8: 0 | BY8: 0 | BZ8: 0 | CA8: 0 | CB8: 0 | CC8: 0 | CD8: 0 | CE8: 0 | CF8: 0 | CG8: 0 | CH8: 0 | CI8: 0 | CJ8: 0 | CK8: 0 | CL8: 0 | CM8: 0 | CN8: 0 | CO8: 0 | CP8: 0 | CQ8: 0 | CR8: 0 | CS8: 0 | CT8: 0 | CU8: 0 | CV8: 0 | CW8: 0 | CX8: 0 | CY8: 0 | CZ8: 0 | DA8: 0 | DB8: 0 | DC8: 0 | DD8: 0 | DE8: 0 | DF8: 0 | DG8: 0 | DH8: 0 | DI8: 0 | DJ8: 0 | DK8: 0 | DL8: 0 | DM8: 0 | DN8: 0 | DO8: 0 | DP8: 0 | DQ8: 0 | DR8: 0 | DS8: A3
B9: ダクタイル鋳鉄管 (上記以外・不明なものを含む） (m) | C9: 100 | E9: =IF(H9<2000,C9/(1999-G9+1),IF(G9<2000,C9/((1999-G9+1)+(H9+2-2000)/2),2*C9/(H9+2-G9))) -> 100 | F9: =IF($H9<2000,0,E9/(H9+IF(G9<2000,1-2000,1-G9))) -> 100 | G9: =IF($C9=0,"-",管種別導入布設年度!B9) -> 2001 | H9: =IF($C9=0,"-",管種別導入布設年度!C9) -> 2001 | I9: 1 | J9: 100 | K9: =IF($C9=0,0,IF(K$5<INT($G9),0,IF(K$5>INT($H9),0,IF(K$5<2000,$E9,$E9-($F9*(K$5-IF($G9<2001,2000,$G9))))))) -> 0 | L9: 0 | M9: 0 | N9: 0 | O9: 0 | P9: 0 | Q9: 0 | R9: 0 | S9: 0 | T9: 0 | U9: 0 | V9: 0 | W9: 0 | X9: 0 | Y9: 0 | Z9: 0 | AA9: 0 | AB9: 0 | AC9: 0 | AD9: 0 | AE9: 0 | AF9: 0 | AG9: 0 | AH9: 0 | AI9: 0 | AJ9: 0 | AK9: 0 | AL9: 0 | AM9: 0 | AN9: 0 | AO9: 0 | AP9: 100 | AQ9: =IF($C9=0,0,IF(AQ$5<INT($G9),0,IF(AQ$5>INT($H9),0,IF(AQ$5<2000,$E9,$E9-($F9*(AQ$5-IF($G9<2001,2000,$G9))))))) -> 0 | AR9: 0 | AS9: 0 | AT9: 0 | AU9: 0 | AV9: 0 | AW9: 0 | AX9: 0 | AY9: 0 | AZ9: 0 | BA9: 0 | BB9: 0 | BC9: 0 | BD9: 0 | BE9: 0 | BF9: 0 | BG9: 0 | BH9: 0 | BI9: 0 | BJ9: 0 | BK9: 0 | BL9: 0 | BM9: 0 | BN9: 0 | BO9: 0 | BP9: 0 | BQ9: 0 | BR9: 0 | BS9: 0 | BT9: 0 | BU9: 0 | BV9: 0 | BW9: =IF($C9=0,0,IF(BW$5<INT($G9),0,IF(BW$5>INT($H9),0,IF(BW$5<2000,$E9,$E9-($F9*(BW$5-IF($G9<2001,2000,$G9))))))) -> 0 | BX9: 0 | BY9: 0 | BZ9: 0 | CA9: 0 | CB9: 0 | CC9: 0 | CD9: 0 | CE9: 0 | CF9: 0 | CG9: 0 | CH9: 0 | CI9: 0 | CJ9: 0 | CK9: 0 | CL9: 0 | CM9: 0 | CN9: 0 | CO9: 0 | CP9: 0 | CQ9: 0 | CR9: 0 | CS9: 0 | CT9: 0 | CU9: 0 | CV9: 0 | CW9: 0 | CX9: 0 | CY9: 0 | CZ9: 0 | DA9: 0 | DB9: 0 | DC9: =IF($C9=0,0,IF(DC$5<INT($G9),0,IF(DC$5>INT($H9),0,IF(DC$5<2000,$E9,$E9-($F9*(DC$5-IF($G9<2001,2000,$G9))))))) -> 0 | DD9: 0 | DE9: 0 | DF9: 0 | DG9: 0 | DH9: 0 | DI9: 0 | DJ9: 0 | DK9: 0 | DL9: 0 | DM9: 0 | DN9: 0 | DO9: 0 | DP9: 0 | DQ9: 0 | DR9: 100 | DS9: A9
B10: 鋼管 （溶接継手を有する） （m） | G10: =IF($C10=0,"-",管種別導入布設年度!B10) -> - | H10: =IF($C10=0,"-",管種別導入布設年度!C10) -> - | I10: 0 | J10: 0 | K10: =IF($C10=0,0,IF(K$5<INT($G10),0, IF(K$5>INT($H10),0,$J10))) -> 0 | L10: 0 | M10: 0 | N10: 0 | O10: 0 | P10: 0 | Q10: 0 | R10: 0 | S10: 0 | T10: 0 | U10: =IF($C10=0,0,IF(U$5<INT($G10),0, IF(U$5>INT($H10),0,$J10))) -> 0 | V10: 0 | W10: 0 | X10: 0 | Y10: 0 | Z10: 0 | AA10: 0 | AB10: 0 | AC10: 0 | AD10: 0 | AE10: =IF($C10=0,0,IF(AE$5<INT($G10),0, IF(AE$5>INT($H10),0,$J10))) -> 0 | AF10: 0 | AG10: 0 | AH10: 0 | AI10: 0 | AJ10: 0 | AK10: 0 | AL10: 0 | AM10: 0 | AN10: 0 | AO10: =IF($C10=0,0,IF(AO$5<INT($G10),0, IF(AO$5>INT($H10),0,$J10))) -> 0 | AP10: 0 | AQ10: 0 | AR10: 0 | AS10: 0 | AT10: 0 | AU10: 0 | AV10: 0 | AW10: 0 | AX10: 0 | AY10: =IF($C10=0,0,IF(AY$5<INT($G10),0, IF(AY$5>INT($H10),0,$J10))) -> 0 | AZ10: 0 | BA10: 0 | BB10: 0 | BC10: 0 | BD10: 0 | BE10: 0 | BF10: 0 | BG10: 0 | BH10: 0 | BI10: =IF($C10=0,0,IF(BI$5<INT($G10),0, IF(BI$5>INT($H10),0,$J10))) -> 0 | BJ10: 0 | BK10: 0 | BL10: 0 | BM10: 0 | BN10: 0 | BO10: 0 | BP10: 0 | BQ10: 0 | BR10: 0 | BS10: =IF($C10=0,0,IF(BS$5<INT($G10),0, IF(BS$5>INT($H10),0,$J10))) -> 0 | BT10: 0 | BU10: 0 | BV10: 0 | BW10: 0 | BX10: 0 | BY10: 0 | BZ10: 0 | CA10: 0 | CB10: 0 | CC10: =IF($C10=0,0,IF(CC$5<INT($G10),0, IF(CC$5>INT($H10),0,$J10))) -> 0 | CD10: 0 | CE10: 0 | CF10: 0 | CG10: 0 | CH10: 0 | CI10: 0 | CJ10: 0 | CK10: 0 | CL10: 0 | CM10: =IF($C10=0,0,IF(CM$5<INT($G10),0, IF(CM$5>INT($H10),0,$J10))) -> 0 | CN10: 0 | CO10: 0 | CP10: 0 | CQ10: 0 | CR10: 0 | CS10: 0 | CT10: 0 | CU10: 0 | CV10: 0 | CW10: =IF($C10=0,0,IF(CW$5<INT($G10),0, IF(CW$5>INT($H10),0,$J10))) -> 0 | CX10: 0 | CY10: 0 | CZ10: 0 | DA10: 0 | DB10: 0 | DC10: 0 | DD10: 0 | DE10: 0 | DF10: 0 | DG10: =IF($C10=0,0,IF(DG$5<INT($G10),0, IF(DG$5>INT($H10),0,$J10))) -> 0 | DH10: 0 | DI10: 0 | DJ10: 0 | DK10: 0 | DL10: 0 | DM10: 0 | DN10: 0 | DO10: 0 | DP10: 0 | DQ10: 0 | DR10: 0 | DS10: B1
B11: 鋼管 （上記以外・不明なものを含む） (m) | G11: =IF($C11=0,"-",管種別導入布設年度!B11) -> - | H11: =IF($C11=0,"-",管種別導入布設年度!C11) -> - | I11: 0 | J11: 0 | K11: 0 | L11: 0 | M11: 0 | N11: 0 | O11: 0 | P11: 0 | Q11: 0 | R11: 0 | S11: 0 | T11: 0 | U11: 0 | V11: 0 | W11: 0 | X11: 0 | Y11: 0 | Z11: 0 | AA11: 0 | AB11: 0 | AC11: 0 | AD11: 0 | AE11: 0 | AF11: 0 | AG11: 0 | AH11: 0 | AI11: 0 | AJ11: 0 | AK11: 0 | AL11: 0 | AM11: 0 | AN11: 0 | AO11: 0 | AP11: 0 | AQ11: 0 | AR11: 0 | AS11: 0 | AT11: 0 | AU11: 0 | AV11: 0 | AW11: 0 | AX11: 0 | AY11: 0 | AZ11: 0 | BA11: 0 | BB11: 0 | BC11: 0 | BD11: 0 | BE11: 0 | BF11: 0 | BG11: 0 | BH11: 0 | BI11: 0 | BJ11: 0 | BK11: 0 | BL11: 0 | BM11: 0 | BN11: 0 | BO11: 0 | BP11: 0 | BQ11: 0 | BR11: 0 | BS11: 0 | BT11: 0 | BU11: 0 | BV11: 0 | BW11: 0 | BX11: 0 | BY11: 0 | BZ11: 0 | CA11: 0 | CB11: 0 | CC11: 0 | CD11: 0 | CE11: 0 | CF11: 0 | CG11: 0 | CH11: 0 | CI11: 0 | CJ11: 0 | CK11: 0 | CL11: 0 | CM11: 0 | CN11: 0 | CO11: 0 | CP11: 0 | CQ11: 0 | CR11: 0 | CS11: 0 | CT11: 0 | CU11: 0 | CV11: 0 | CW11: 0 | CX11: 0 | CY11: 0 | CZ11: 0 | DA11: 0 | DB11: 0 | DC11: 0 | DD11: 0 | DE11: 0 | DF11: 0 | DG11: 0 | DH11: 0 | DI11: 0 | DJ11: 0 | DK11: 0 | DL11: 0 | DM11: 0 | DN11: 0 | DO11: 0 | DP11: 0 | DQ11: 0 | DR11: 0 | DS11: B9
B12: 石綿セメント管 (m) | G12: =IF($C12=0,"-",管種別導入布設年度!B12) -> - | H12: =IF($C12=0,"-",管種別導入布設年度!C12) -> - | I12: 0 | J12: 0 | K12: 0 | L12: 0 | M12: 0 | N12: 0 | O12: 0 | P12: 0 | Q12: 0 | R12: 0 | S12: 0 | T12: 0 | U12: 0 | V12: 0 | W12: 0 | X12: 0 | Y12: 0 | Z12: 0 | AA12: 0 | AB12: 0 | AC12: 0 | AD12: 0 | AE12: 0 | AF12: 0 | AG12: 0 | AH12: 0 | AI12: 0 | AJ12: 0 | AK12: 0 | AL12: 0 | AM12: 0 | AN12: 0 | AO12: 0 | AP12: 0 | AQ12: 0 | AR12: 0 | AS12: 0 | AT12: 0 | AU12: 0 | AV12: 0 | AW12: 0 | AX12: 0 | AY12: 0 | AZ12: 0 | BA12: 0 | BB12: 0 | BC12: 0 | BD12: 0 | BE12: 0 | BF12: 0 | BG12: 0 | BH12: 0 | BI12: 0 | BJ12: 0 | BK12: 0 | BL12: 0 | BM12: 0 | BN12: 0 | BO12: 0 | BP12: 0 | BQ12: 0 | BR12: 0 | BS12: 0 | BT12: 0 | BU12: 0 | BV12: 0 | BW12: 0 | BX12: 0 | BY12: 0 | BZ12: 0 | CA12: 0 | CB12: 0 | CC12: 0 | CD12: 0 | CE12: 0 | CF12: 0 | CG12: 0 | CH12: 0 | CI12: 0 | CJ12: 0 | CK12: 0 | CL12: 0 | CM12: 0 | CN12: 0 | CO12: 0 | CP12: 0 | CQ12: 0 | CR12: 0 | CS12: 0 | CT12: 0 | CU12: 0 | CV12: 0 | CW12: 0 | CX12: 0 | CY12: 0 | CZ12: 0 | DA12: 0 | DB12: 0 | DC12: 0 | DD12: 0 | DE12: 0 | DF12: 0 | DG12: 0 | DH12: 0 | DI12: 0 | DJ12: 0 | DK12: 0 | DL12: 0 | DM12: 0 | DN12: 0 | DO12: 0 | DP12: 0 | DQ12: 0 | DR12: 0 | DS12: C1
B13: 硬質塩化ビニル管 （ＲＲロング継手等を有する） (m) | G13: =IF($C13=0,"-",管種別導入布設年度!B13) -> - | H13: =IF($C13=0,"-",管種別導入布設年度!C13) -> - | I13: 0 | J13: 0 | K13: 0 | L13: 0 | M13: 0 | N13: 0 | O13: 0 | P13: 0 | Q13: 0 | R13: 0 | S13: 0 | T13: 0 | U13: 0 | V13: 0 | W13: 0 | X13: 0 | Y13: 0 | Z13: 0 | AA13: 0 | AB13: 0 | AC13: 0 | AD13: 0 | AE13: 0 | AF13: 0 | AG13: 0 | AH13: 0 | AI13: 0 | AJ13: 0 | AK13: 0 | AL13: 0 | AM13: 0 | AN13: 0 | AO13: 0 | AP13: 0 | AQ13: 0 | AR13: 0 | AS13: 0 | AT13: 0 | AU13: 0 | AV13: 0 | AW13: 0 | AX13: 0 | AY13: 0 | AZ13: 0 | BA13: 0 | BB13: 0 | BC13: 0 | BD13: 0 | BE13: 0 | BF13: 0 | BG13: 0 | BH13: 0 | BI13: 0 | BJ13: 0 | BK13: 0 | BL13: 0 | BM13: 0 | BN13: 0 | BO13: 0 | BP13: 0 | BQ13: 0 | BR13: 0 | BS13: 0 | BT13: 0 | BU13: 0 | BV13: 0 | BW13: 0 | BX13: 0 | BY13: 0 | BZ13: 0 | CA13: 0 | CB13: 0 | CC13: 0 | CD13: 0 | CE13: 0 | CF13: 0 | CG13: 0 | CH13: 0 | CI13: 0 | CJ13: 0 | CK13: 0 | CL13: 0 | CM13: 0 | CN13: 0 | CO13: 0 | CP13: 0 | CQ13: 0 | CR13: 0 | CS13: 0 | CT13: 0 | CU13: 0 | CV13: 0 | CW13: 0 | CX13: 0 | CY13: 0 | CZ13: 0 | DA13: 0 | DB13: 0 | DC13: 0 | DD13: 0 | DE13: 0 | DF13: 0 | DG13: 0 | DH13: 0 | DI13: 0 | DJ13: 0 | DK13: 0 | DL13: 0 | DM13: 0 | DN13: 0 | DO13: 0 | DP13: 0 | DQ13: 0 | DR13: 0 | DS13: D1
B14: 硬質塩化ビニル管 （ＲＲ継手等を有する） (m) | G14: =IF($C14=0,"-",管種別導入布設年度!B14) -> - | H14: =IF($C14=0,"-",管種別導入布設年度!C14) -> - | I14: 0 | J14: 0 | K14: 0 | L14: 0 | M14: 0 | N14: 0 | O14: 0 | P14: 0 | Q14: 0 | R14: 0 | S14: 0 | T14: 0 | U14: 0 | V14: 0 | W14: 0 | X14: 0 | Y14: 0 | Z14: 0 | AA14: 0 | AB14: 0 | AC14: 0 | AD14: 0 | AE14: 0 | AF14: 0 | AG14: 0 | AH14: 0 | AI14: 0 | AJ14: 0 | AK14: 0 | AL14: 0 | AM14: 0 | AN14: 0 | AO14: 0 | AP14: 0 | AQ14: 0 | AR14: 0 | AS14: 0 | AT14: 0 | AU14: 0 | AV14: 0 | AW14: 0 | AX14: 0 | AY14: 0 | AZ14: 0 | BA14: 0 | BB14: 0 | BC14: 0 | BD14: 0 | BE14: 0 | BF14: 0 | BG14: 0 | BH14: 0 | BI14: 0 | BJ14: 0 | BK14: 0 | BL14: 0 | BM14: 0 | BN14: 0 | BO14: 0 | BP14: 0 | BQ14: 0 | BR14: 0 | BS14: 0 | BT14: 0 | BU14: 0 | BV14: 0 | BW14: 0 | BX14: 0 | BY14: 0 | BZ14: 0 | CA14: 0 | CB14: 0 | CC14: 0 | CD14: 0 | CE14: 0 | CF14: 0 | CG14: 0 | CH14: 0 | CI14: 0 | CJ14: 0 | CK14: 0 | CL14: 0 | CM14: 0 | CN14: 0 | CO14: 0 | CP14: 0 | CQ14: 0 | CR14: 0 | CS14: 0 | CT14: 0 | CU14: 0 | CV14: 0 | CW14: 0 | CX14: 0 | CY14: 0 | CZ14: 0 | DA14: 0 | DB14: 0 | DC14: 0 | DD14: 0 | DE14: 0 | DF14: 0 | DG14: 0 | DH14: 0 | DI14: 0 | DJ14: 0 | DK14: 0 | DL14: 0 | DM14: 0 | DN14: 0 | DO14: 0 | DP14: 0 | DQ14: 0 | DR14: 0 | DS14: D2
B15: 硬質塩化ビニル管 （上記以外・不明なものを含む） (m) | E15: =IF(H15<2000,C15/(1999-G15+1),IF(G15<2000,C15/((1999-G15+1)+(H15+2-2000)/2),2*C15/(H15+2-G15))) ->  | F15: =IF($H15<2000,0,E15/(H15+IF(G15<2000,1-2000,1-G15))) ->  | G15: =IF($C15=0,"-",管種別導入布設年度!B15) -> - | H15: =IF($C15=0,"-",管種別導入布設年度!C15) -> - | I15: 0 | J15: 0 | K15: =IF($C15=0,0,IF(K$5<INT($G15),0,IF(K$5>INT($H15),0,IF(K$5<2000,$E15,$E15-($F15*(K$5-IF($G15<2001,2000,$G15))))))) -> 0 | L15: 0 | M15: 0 | N15: 0 | O15: 0 | P15: 0 | Q15: 0 | R15: 0 | S15: 0 | T15: 0 | U15: 0 | V15: 0 | W15: 0 | X15: 0 | Y15: 0 | Z15: 0 | AA15: 0 | AB15: 0 | AC15: 0 | AD15: 0 | AE15: 0 | AF15: 0 | AG15: 0 | AH15: 0 | AI15: 0 | AJ15: 0 | AK15: 0 | AL15: 0 | AM15: 0 | AN15: 0 | AO15: 0 | AP15: 0 | AQ15: =IF($C15=0,0,IF(AQ$5<INT($G15),0,IF(AQ$5>INT($H15),0,IF(AQ$5<2000,$E15,$E15-($F15*(AQ$5-IF($G15<2001,2000,$G15))))))) -> 0 | AR15: 0 | AS15: 0 | AT15: 0 | AU15: 0 | AV15: 0 | AW15: 0 | AX15: 0 | AY15: 0 | AZ15: 0 | BA15: 0 | BB15: 0 | BC15: 0 | BD15: 0 | BE15: 0 | BF15: 0 | BG15: 0 | BH15: 0 | BI15: 0 | BJ15: 0 | BK15: 0 | BL15: 0 | BM15: 0 | BN15: 0 | BO15: 0 | BP15: 0 | BQ15: 0 | BR15: 0 | BS15: 0 | BT15: 0 | BU15: 0 | BV15: 0 | BW15: =IF($C15=0,0,IF(BW$5<INT($G15),0,IF(BW$5>INT($H15),0,IF(BW$5<2000,$E15,$E15-($F15*(BW$5-IF($G15<2001,2000,$G15))))))) -> 0 | BX15: 0 | BY15: 0 | BZ15: 0 | CA15: 0 | CB15: 0 | CC15: 0 | CD15: 0 | CE15: 0 | CF15: 0 | CG15: 0 | CH15: 0 | CI15: 0 | CJ15: 0 | CK15: 0 | CL15: 0 | CM15: 0 | CN15: 0 | CO15: 0 | CP15: 0 | CQ15: 0 | CR15: 0 | CS15: 0 | CT15: 0 | CU15: 0 | CV15: 0 | CW15: 0 | CX15: 0 | CY15: 0 | CZ15: 0 | DA15: 0 | DB15: 0 | DC15: =IF($C15=0,0,IF(DC$5<INT($G15),0,IF(DC$5>INT($H15),0,IF(DC$5<2000,$E15,$E15-($F15*(DC$5-IF($G15<2001,2000,$G15))))))) -> 0 | DD15: 0 | DE15: 0 | DF15: 0 | DG15: 0 | DH15: 0 | DI15: 0 | DJ15: 0 | DK15: 0 | DL15: 0 | DM15: 0 | DN15: 0 | DO15: 0 | DP15: 0 | DQ15: 0 | DR15: 0 | DS15: D9
B16: コンクリート管 (m) | G16: =IF($C16=0,"-",管種別導入布設年度!B16) -> - | H16: =IF($C16=0,"-",管種別導入布設年度!C16) -> - | I16: 0 | J16: 0 | K16: =IF($C16=0,0,IF(K$5<INT($G16),0, IF(K$5>INT($H16),0,$J16))) -> 0 | L16: 0 | M16: 0 | N16: 0 | O16: 0 | P16: 0 | Q16: 0 | R16: 0 | S16: 0 | T16: 0 | U16: =IF($C16=0,0,IF(U$5<INT($G16),0, IF(U$5>INT($H16),0,$J16))) -> 0 | V16: 0 | W16: 0 | X16: 0 | Y16: 0 | Z16: 0 | AA16: 0 | AB16: 0 | AC16: 0 | AD16: 0 | AE16: =IF($C16=0,0,IF(AE$5<INT($G16),0, IF(AE$5>INT($H16),0,$J16))) -> 0 | AF16: 0 | AG16: 0 | AH16: 0 | AI16: 0 | AJ16: 0 | AK16: 0 | AL16: 0 | AM16: 0 | AN16: 0 | AO16: =IF($C16=0,0,IF(AO$5<INT($G16),0, IF(AO$5>INT($H16),0,$J16))) -> 0 | AP16: 0 | AQ16: 0 | AR16: 0 | AS16: 0 | AT16: 0 | AU16: 0 | AV16: 0 | AW16: 0 | AX16: 0 | AY16: =IF($C16=0,0,IF(AY$5<INT($G16),0, IF(AY$5>INT($H16),0,$J16))) -> 0 | AZ16: 0 | BA16: 0 | BB16: 0 | BC16: 0 | BD16: 0 | BE16: 0 | BF16: 0 | BG16: 0 | BH16: 0 | BI16: =IF($C16=0,0,IF(BI$5<INT($G16),0, IF(BI$5>INT($H16),0,$J16))) -> 0 | BJ16: 0 | BK16: 0 | BL16: 0 | BM16: 0 | BN16: 0 | BO16: 0 | BP16: 0 | BQ16: 0 | BR16: 0 | BS16: =IF($C16=0,0,IF(BS$5<INT($G16),0, IF(BS$5>INT($H16),0,$J16))) -> 0 | BT16: 0 | BU16: 0 | BV16: 0 | BW16: 0 | BX16: 0 | BY16: 0 | BZ16: 0 | CA16: 0 | CB16: 0 | CC16: =IF($C16=0,0,IF(CC$5<INT($G16),0, IF(CC$5>INT($H16),0,$J16))) -> 0 | CD16: 0 | CE16: 0 | CF16: 0 | CG16: 0 | CH16: 0 | CI16: 0 | CJ16: 0 | CK16: 0 | CL16: 0 | CM16: =IF($C16=0,0,IF(CM$5<INT($G16),0, IF(CM$5>INT($H16),0,$J16))) -> 0 | CN16: 0 | CO16: 0 | CP16: 0 | CQ16: 0 | CR16: 0 | CS16: 0 | CT16: 0 | CU16: 0 | CV16: 0 | CW16: =IF($C16=0,0,IF(CW$5<INT($G16),0, IF(CW$5>INT($H16),0,$J16))) -> 0 | CX16: 0 | CY16: 0 | CZ16: 0 | DA16: 0 | DB16: 0 | DC16: 0 | DD16: 0 | DE16: 0 | DF16: 0 | DG16: =IF($C16=0,0,IF(DG$5<INT($G16),0, IF(DG$5>INT($H16),0,$J16))) -> 0 | DH16: 0 | DI16: 0 | DJ16: 0 | DK16: 0 | DL16: 0 | DM16: 0 | DN16: 0 | DO16: 0 | DP16: 0 | DQ16: 0 | DR16: 0 | DS16: E1
B17: 鉛管 (m) | G17: =IF($C17=0,"-",管種別導入布設年度!B17) -> - | H17: =IF($C17=0,"-",管種別導入布設年度!C17) -> - | I17: 0 | J17: 0 | K17: 0 | L17: 0 | M17: 0 | N17: 0 | O17: 0 | P17: 0 | Q17: 0 | R17: 0 | S17: 0 | T17: 0 | U17: 0 | V17: 0 | W17: 0 | X17: 0 | Y17: 0 | Z17: 0 | AA17: 0 | AB17: 0 | AC17: 0 | AD17: 0 | AE17: 0 | AF17: 0 | AG17: 0 | AH17: 0 | AI17: 0 | AJ17: 0 | AK17: 0 | AL17: 0 | AM17: 0 | AN17: 0 | AO17: 0 | AP17: 0 | AQ17: 0 | AR17: 0 | AS17: 0 | AT17: 0 | AU17: 0 | AV17: 0 | AW17: 0 | AX17: 0 | AY17: 0 | AZ17: 0 | BA17: 0 | BB17: 0 | BC17: 0 | BD17: 0 | BE17: 0 | BF17: 0 | BG17: 0 | BH17: 0 | BI17: 0 | BJ17: 0 | BK17: 0 | BL17: 0 | BM17: 0 | BN17: 0 | BO17: 0 | BP17: 0 | BQ17: 0 | BR17: 0 | BS17: 0 | BT17: 0 | BU17: 0 | BV17: 0 | BW17: 0 | BX17: 0 | BY17: 0 | BZ17: 0 | CA17: 0 | CB17: 0 | CC17: 0 | CD17: 0 | CE17: 0 | CF17: 0 | CG17: 0 | CH17: 0 | CI17: 0 | CJ17: 0 | CK17: 0 | CL17: 0 | CM17: 0 | CN17: 0 | CO17: 0 | CP17: 0 | CQ17: 0 | CR17: 0 | CS17: 0 | CT17: 0 | CU17: 0 | CV17: 0 | CW17: 0 | CX17: 0 | CY17: 0 | CZ17: 0 | DA17: 0 | DB17: 0 | DC17: 0 | DD17: 0 | DE17: 0 | DF17: 0 | DG17: 0 | DH17: 0 | DI17: 0 | DJ17: 0 | DK17: 0 | DL17: 0 | DM17: 0 | DN17: 0 | DO17: 0 | DP17: 0 | DQ17: 0 | DR17: 0 | DS17: F1
B18: ポリエチレン管 （高密度、熱融着継手を有する） （m） | G18: =IF($C18=0,"-",管種別導入布設年度!B18) -> - | H18: =IF($C18=0,"-",管種別導入布設年度!C18) -> - | I18: 0 | J18: 0 | K18: 0 | L18: 0 | M18: 0 | N18: 0 | O18: 0 | P18: 0 | Q18: 0 | R18: 0 | S18: 0 | T18: 0 | U18: 0 | V18: 0 | W18: 0 | X18: 0 | Y18: 0 | Z18: 0 | AA18: 0 | AB18: 0 | AC18: 0 | AD18: 0 | AE18: 0 | AF18: 0 | AG18: 0 | AH18: 0 | AI18: 0 | AJ18: 0 | AK18: 0 | AL18: 0 | AM18: 0 | AN18: 0 | AO18: 0 | AP18: 0 | AQ18: 0 | AR18: 0 | AS18: 0 | AT18: 0 | AU18: 0 | AV18: 0 | AW18: 0 | AX18: 0 | AY18: 0 | AZ18: 0 | BA18: 0 | BB18: 0 | BC18: 0 | BD18: 0 | BE18: 0 | BF18: 0 | BG18: 0 | BH18: 0 | BI18: 0 | BJ18: 0 | BK18: 0 | BL18: 0 | BM18: 0 | BN18: 0 | BO18: 0 | BP18: 0 | BQ18: 0 | BR18: 0 | BS18: 0 | BT18: 0 | BU18: 0 | BV18: 0 | BW18: 0 | BX18: 0 | BY18: 0 | BZ18: 0 | CA18: 0 | CB18: 0 | CC18: 0 | CD18: 0 | CE18: 0 | CF18: 0 | CG18: 0 | CH18: 0 | CI18: 0 | CJ18: 0 | CK18: 0 | CL18: 0 | CM18: 0 | CN18: 0 | CO18: 0 | CP18: 0 | CQ18: 0 | CR18: 0 | CS18: 0 | CT18: 0 | CU18: 0 | CV18: 0 | CW18: 0 | CX18: 0 | CY18: 0 | CZ18: 0 | DA18: 0 | DB18: 0 | DC18: 0 | DD18: 0 | DE18: 0 | DF18: 0 | DG18: 0 | DH18: 0 | DI18: 0 | DJ18: 0 | DK18: 0 | DL18: 0 | DM18: 0 | DN18: 0 | DO18: 0 | DP18: 0 | DQ18: 0 | DR18: 0 | DS18: G1
B19: ポリエチレン管 （上記以外・不明なものを含む） （m） | G19: =IF($C19=0,"-",管種別導入布設年度!B19) -> - | H19: =IF($C19=0,"-",管種別導入布設年度!C19) -> - | I19: 0 | J19: 0 | K19: 0 | L19: 0 | M19: 0 | N19: 0 | O19: 0 | P19: 0 | Q19: 0 | R19: 0 | S19: 0 | T19: 0 | U19: 0 | V19: 0 | W19: 0 | X19: 0 | Y19: 0 | Z19: 0 | AA19: 0 | AB19: 0 | AC19: 0 | AD19: 0 | AE19: 0 | AF19: 0 | AG19: 0 | AH19: 0 | AI19: 0 | AJ19: 0 | AK19: 0 | AL19: 0 | AM19: 0 | AN19: 0 | AO19: 0 | AP19: 0 | AQ19: 0 | AR19: 0 | AS19: 0 | AT19: 0 | AU19: 0 | AV19: 0 | AW19: 0 | AX19: 0 | AY19: 0 | AZ19: 0 | BA19: 0 | BB19: 0 | BC19: 0 | BD19: 0 | BE19: 0 | BF19: 0 | BG19: 0 | BH19: 0 | BI19: 0 | BJ19: 0 | BK19: 0 | BL19: 0 | BM19: 0 | BN19: 0 | BO19: 0 | BP19: 0 | BQ19: 0 | BR19: 0 | BS19: 0 | BT19: 0 | BU19: 0 | BV19: 0 | BW19: 0 | BX19: 0 | BY19: 0 | BZ19: 0 | CA19: 0 | CB19: 0 | CC19: 0 | CD19: 0 | CE19: 0 | CF19: 0 | CG19: 0 | CH19: 0 | CI19: 0 | CJ19: 0 | CK19: 0 | CL19: 0 | CM19: 0 | CN19: 0 | CO19: 0 | CP19: 0 | CQ19: 0 | CR19: 0 | CS19: 0 | CT19: 0 | CU19: 0 | CV19: 0 | CW19: 0 | CX19: 0 | CY19: 0 | CZ19: 0 | DA19: 0 | DB19: 0 | DC19: 0 | DD19: 0 | DE19: 0 | DF19: 0 | DG19: 0 | DH19: 0 | DI19: 0 | DJ19: 0 | DK19: 0 | DL19: 0 | DM19: 0 | DN19: 0 | DO19: 0 | DP19: 0 | DQ19: 0 | DR19: 0 | DS19: G9
B20: ステンレス管 耐震型継手を有する (m) | C20: 210 | D20: 20790 | G20: =IF($C20=0,"-",管種別導入布設年度!B20) -> 1985 | H20: =IF($C20=0,"-",管種別導入布設年度!C20) -> 1989 | I20: 5 | J20: 42 | K20: 0 | L20: 0 | M20: 0 | N20: 0 | O20: 0 | P20: 0 | Q20: 0 | R20: 0 | S20: 0 | T20: 0 | U20: 0 | V20: 0 | W20: 0 | X20: 0 | Y20: 0 | Z20: 42 | AA20: 42 | AB20: 42 | AC20: 42 | AD20: 42 | AE20: 0 | AF20: 0 | AG20: 0 | AH20: 0 | AI20: 0 | AJ20: 0 | AK20: 0 | AL20: 0 | AM20: 0 | AN20: 0 | AO20: 0 | AP20: 0 | AQ20: 0 | AR20: 0 | AS20: 0 | AT20: 0 | AU20: 0 | AV20: 0 | AW20: 0 | AX20: 0 | AY20: 0 | AZ20: 0 | BA20: 0 | BB20: 0 | BC20: 0 | BD20: 0 | BE20: 0 | BF20: 0 | BG20: 0 | BH20: 0 | BI20: 0 | BJ20: 0 | BK20: 0 | BL20: 0 | BM20: 0 | BN20: 0 | BO20: 0 | BP20: 0 | BQ20: 0 | BR20: 0 | BS20: 0 | BT20: 0 | BU20: 0 | BV20: 0 | BW20: 0 | BX20: 0 | BY20: 0 | BZ20: 0 | CA20: 0 | CB20: 0 | CC20: 0 | CD20: 0 | CE20: 0 | CF20: 0 | CG20: 0 | CH20: 0 | CI20: 0 | CJ20: 0 | CK20: 0 | CL20: 0 | CM20: 0 | CN20: 0 | CO20: 0 | CP20: 0 | CQ20: 0 | CR20: 0 | CS20: 0 | CT20: 0 | CU20: 0 | CV20: 0 | CW20: 0 | CX20: 0 | CY20: 0 | CZ20: 0 | DA20: 0 | DB20: 0 | DC20: 0 | DD20: 0 | DE20: 0 | DF20: 0 | DG20: 0 | DH20: 0 | DI20: 0 | DJ20: 0 | DK20: 0 | DL20: 0 | DM20: 0 | DN20: 0 | DO20: 0 | DP20: 0 | DQ20: 0 | DR20: 210 | DS20: H1
B21: ステンレス管 (上記以外・不明なものを含む） (m) | G21: =IF($C21=0,"-",管種別導入布設年度!B21) -> - | H21: =IF($C21=0,"-",管種別導入布設年度!C21) -> - | I21: 0 | J21: 0 | K21: 0 | L21: 0 | M21: 0 | N21: 0 | O21: 0 | P21: 0 | Q21: 0 | R21: 0 | S21: 0 | T21: 0 | U21: 0 | V21: 0 | W21: 0 | X21: 0 | Y21: 0 | Z21: 0 | AA21: 0 | AB21: 0 | AC21: 0 | AD21: 0 | AE21: 0 | AF21: 0 | AG21: 0 | AH21: 0 | AI21: 0 | AJ21: 0 | AK21: 0 | AL21: 0 | AM21: 0 | AN21: 0 | AO21: 0 | AP21: 0 | AQ21: 0 | AR21: 0 | AS21: 0 | AT21: 0 | AU21: 0 | AV21: 0 | AW21: 0 | AX21: 0 | AY21: 0 | AZ21: 0 | BA21: 0 | BB21: 0 | BC21: 0 | BD21: 0 | BE21: 0 | BF21: 0 | BG21: 0 | BH21: 0 | BI21: 0 | BJ21: 0 | BK21: 0 | BL21: 0 | BM21: 0 | BN21: 0 | BO21: 0 | BP21: 0 | BQ21: 0 | BR21: 0 | BS21: 0 | BT21: 0 | BU21: 0 | BV21: 0 | BW21: 0 | BX21: 0 | BY21: 0 | BZ21: 0 | CA21: 0 | CB21: 0 | CC21: 0 | CD21: 0 | CE21: 0 | CF21: 0 | CG21: 0 | CH21: 0 | CI21: 0 | CJ21: 0 | CK21: 0 | CL21: 0 | CM21: 0 | CN21: 0 | CO21: 0 | CP21: 0 | CQ21: 0 | CR21: 0 | CS21: 0 | CT21: 0 | CU21: 0 | CV21: 0 | CW21: 0 | CX21: 0 | CY21: 0 | CZ21: 0 | DA21: 0 | DB21: 0 | DC21: 0 | DD21: 0 | DE21: 0 | DF21: 0 | DG21: 0 | DH21: 0 | DI21: 0 | DJ21: 0 | DK21: 0 | DL21: 0 | DM21: 0 | DN21: 0 | DO21: 0 | DP21: 0 | DQ21: 0 | DR21: 0 | DS21: H9
B22: その他 （管種が不明のものを含む） (m) | G22: =IF($C22=0,"-",管種別導入布設年度!B22) -> - | H22: =IF($C22=0,"-",管種別導入布設年度!C22) -> - | I22: 0 | J22: 0 | K22: 0 | L22: 0 | M22: 0 | N22: 0 | O22: 0 | P22: 0 | Q22: 0 | R22: 0 | S22: 0 | T22: 0 | U22: 0 | V22: 0 | W22: 0 | X22: 0 | Y22: 0 | Z22: 0 | AA22: 0 | AB22: 0 | AC22: 0 | AD22: 0 | AE22: 0 | AF22: 0 | AG22: 0 | AH22: 0 | AI22: 0 | AJ22: 0 | AK22: 0 | AL22: 0 | AM22: 0 | AN22: 0 | AO22: 0 | AP22: 0 | AQ22: 0 | AR22: 0 | AS22: 0 | AT22: 0 | AU22: 0 | AV22: 0 | AW22: 0 | AX22: 0 | AY22: 0 | AZ22: 0 | BA22: 0 | BB22: 0 | BC22: 0 | BD22: 0 | BE22: 0 | BF22: 0 | BG22: 0 | BH22: 0 | BI22: 0 | BJ22: 0 | BK22: 0 | BL22: 0 | BM22: 0 | BN22: 0 | BO22: 0 | BP22: 0 | BQ22: 0 | BR22: 0 | BS22: 0 | BT22: 0 | BU22: 0 | BV22: 0 | BW22: 0 | BX22: 0 | BY22: 0 | BZ22: 0 | CA22: 0 | CB22: 0 | CC22: 0 | CD22: 0 | CE22: 0 | CF22: 0 | CG22: 0 | CH22: 0 | CI22: 0 | CJ22: 0 | CK22: 0 | CL22: 0 | CM22: 0 | CN22: 0 | CO22: 0 | CP22: 0 | CQ22: 0 | CR22: 0 | CS22: 0 | CT22: 0 | CU22: 0 | CV22: 0 | CW22: 0 | CX22: 0 | CY22: 0 | CZ22: 0 | DA22: 0 | DB22: 0 | DC22: 0 | DD22: 0 | DE22: 0 | DF22: 0 | DG22: 0 | DH22: 0 | DI22: 0 | DJ22: 0 | DK22: 0 | DL22: 0 | DM22: 0 | DN22: 0 | DO22: 0 | DP22: 0 | DQ22: 0 | DR22: 0 | DS22: Z9
A23: 送水管 | B23: 鋳鉄管 (ダクタイル鋳鉄管は含まない) (m) | C23: 36 | D23: 3700 | G23: =IF($C23=0,"-",管種別導入布設年度!B6) -> 1970 | H23: =IF($C23=0,"-",管種別導入布設年度!C6) -> 1975 | I23: 6 | J23: 6 | K23: 6 | L23: 6 | M23: 6 | N23: 6 | O23: 6 | P23: 6 | Q23: 0 | R23: 0 | S23: 0 | T23: 0 | U23: 0 | V23: 0 | W23: 0 | X23: 0 | Y23: 0 | Z23: 0 | AA23: 0 | AB23: 0 | AC23: 0 | AD23: 0 | AE23: 0 | AF23: 0 | AG23: 0 | AH23: 0 | AI23: 0 | AJ23: 0 | AK23: 0 | AL23: 0 | AM23: 0 | AN23: 0 | AO23: 0 | AP23: 0 | AQ23: 0 | AR23: 0 | AS23: 0 | AT23: 0 | AU23: 0 | AV23: 0 | AW23: 0 | AX23: 0 | AY23: 0 | AZ23: 0 | BA23: 0 | BB23: 0 | BC23: 0 | BD23: 0 | BE23: 0 | BF23: 0 | BG23: 0 | BH23: 0 | BI23: 0 | BJ23: 0 | BK23: 0 | BL23: 0 | BM23: 0 | BN23: 0 | BO23: 0 | BP23: 0 | BQ23: 0 | BR23: 0 | BS23: 0 | BT23: 0 | BU23: 0 | BV23: 0 | BW23: 0 | BX23: 0 | BY23: 0 | BZ23: 0 | CA23: 0 | CB23: 0 | CC23: 0 | CD23: 0 | CE23: 0 | CF23: 0 | CG23: 0 | CH23: 0 | CI23: 0 | CJ23: 0 | CK23: 0 | CL23: 0 | CM23: 0 | CN23: 0 | CO23: 0 | CP23: 0 | CQ23: 0 | CR23: 0 | CS23: 0 | CT23: 0 | CU23: 0 | CV23: 0 | CW23: 0 | CX23: 0 | CY23: 0 | CZ23: 0 | DA23: 0 | DB23: 0 | DC23: 0 | DD23: 0 | DE23: 0 | DF23: 0 | DG23: 0 | DH23: 0 | DI23: 0 | DJ23: 0 | DK23: 0 | DL23: 0 | DM23: 0 | DN23: 0 | DO23: 0 | DP23: 0 | DQ23: 0 | DR23: 36 | DS23: A1 | DT23: 送水管
B24: ダクタイル鋳鉄管 耐震型継手を有する (m) | C24: 160 | D24: 17000 | G24: =IF($C24=0,"-",管種別導入布設年度!B7) -> 1982 | H24: =IF($C24=0,"-",管種別導入布設年度!C7) -> 1985 | I24: 4 | J24: 40 | K24: 0 | L24: 0 | M24: 0 | N24: 0 | O24: 0 | P24: 0 | Q24: 0 | R24: 0 | S24: 0 | T24: 0 | U24: 0 | V24: 0 | W24: 40 | X24: 40 | Y24: 40 | Z24: 40 | AA24: 0 | AB24: 0 | AC24: 0 | AD24: 0 | AE24: 0 | AF24: 0 | AG24: 0 | AH24: 0 | AI24: 0 | AJ24: 0 | AK24: 0 | AL24: 0 | AM24: 0 | AN24: 0 | AO24: 0 | AP24: 0 | AQ24: 0 | AR24: 0 | AS24: 0 | AT24: 0 | AU24: 0 | AV24: 0 | AW24: 0 | AX24: 0 | AY24: 0 | AZ24: 0 | BA24: 0 | BB24: 0 | BC24: 0 | BD24: 0 | BE24: 0 | BF24: 0 | BG24: 0 | BH24: 0 | BI24: 0 | BJ24: 0 | BK24: 0 | BL24: 0 | BM24: 0 | BN24: 0 | BO24: 0 | BP24: 0 | BQ24: 0 | BR24: 0 | BS24: 0 | BT24: 0 | BU24: 0 | BV24: 0 | BW24: 0 | BX24: 0 | BY24: 0 | BZ24: 0 | CA24: 0 | CB24: 0 | CC24: 0 | CD24: 0 | CE24: 0 | CF24: 0 | CG24: 0 | CH24: 0 | CI24: 0 | CJ24: 0 | CK24: 0 | CL24: 0 | CM24: 0 | CN24: 0 | CO24: 0 | CP24: 0 | CQ24: 0 | CR24: 0 | CS24: 0 | CT24: 0 | CU24: 0 | CV24: 0 | CW24: 0 | CX24: 0 | CY24: 0 | CZ24: 0 | DA24: 0 | DB24: 0 | DC24: 0 | DD24: 0 | DE24: 0 | DF24: 0 | DG24: 0 | DH24: 0 | DI24: 0 | DJ24: 0 | DK24: 0 | DL24: 0 | DM24: 0 | DN24: 0 | DO24: 0 | DP24: 0 | DQ24: 0 | DR24: 160 | DS24: A2
B25: ダクタイル鋳鉄管 Ｋ形継手等を有するもののうち良い地盤に布設されている (m) | G25: =IF($C25=0,"-",管種別導入布設年度!B8) -> - | H25: =IF($C25=0,"-",管種別導入布設年度!C8) -> - | I25: 0 | J25: 0 | K25: 0 | L25: 0 | M25: 0 | N25: 0 | O25: 0 | P25: 0 | Q25: 0 | R25: 0 | S25: 0 | T25: 0 | U25: 0 | V25: 0 | W25: 0 | X25: 0 | Y25: 0 | Z25: 0 | AA25: 0 | AB25: 0 | AC25: 0 | AD25: 0 | AE25: 0 | AF25: 0 | AG25: 0 | AH25: 0 | AI25: 0 | AJ25: 0 | AK25: 0 | AL25: 0 | AM25: 0 | AN25: 0 | AO25: 0 | AP25: 0 | AQ25: 0 | AR25: 0 | AS25: 0 | AT25: 0 | AU25: 0 | AV25: 0 | AW25: 0 | AX25: 0 | AY25: 0 | AZ25: 0 | BA25: 0 | BB25: 0 | BC25: 0 | BD25: 0 | BE25: 0 | BF25: 0 | BG25: 0 | BH25: 0 | BI25: 0 | BJ25: 0 | BK25: 0 | BL25: 0 | BM25: 0 | BN25: 0 | BO25: 0 | BP25: 0 | BQ25: 0 | BR25: 0 | BS25: 0 | BT25: 0 | BU25: 0 | BV25: 0 | BW25: 0 | BX25: 0 | BY25: 0 | BZ25: 0 | CA25: 0 | CB25: 0 | CC25: 0 | CD25: 0 | CE25: 0 | CF25: 0 | CG25: 0 | CH25: 0 | CI25: 0 | CJ25: 0 | CK25: 0 | CL25: 0 | CM25: 0 | CN25: 0 | CO25: 0 | CP25: 0 | CQ25: 0 | CR25: 0 | CS25: 0 | CT25: 0 | CU25: 0 | CV25: 0 | CW25: 0 | CX25: 0 | CY25: 0 | CZ25: 0 | DA25: 0 | DB25: 0 | DC25: 0 | DD25: 0 | DE25: 0 | DF25: 0 | DG25: 0 | DH25: 0 | DI25: 0 | DJ25: 0 | DK25: 0 | DL25: 0 | DM25: 0 | DN25: 0 | DO25: 0 | DP25: 0 | DQ25: 0 | DR25: 0 | DS25: A3
B26: ダクタイル鋳鉄管 (上記以外・不明なものを含む) (m) | E26: =IF(H26<2000,C26/(1999-G26+1),IF(G26<2000,C26/((1999-G26+1)+(H26+2-2000)/2),2*C26/(H26+2-G26))) ->  | F26: =IF($H26<2000,0,E26/(H26+IF(G26<2000,1-2000,1-G26))) ->  | G26: =IF($C26=0,"-",管種別導入布設年度!B9) -> - | H26: =IF($C26=0,"-",管種別導入布設年度!C9) -> - | I26: 0 | J26: 0 | K26: =IF($C26=0,0,IF(K$5<INT($G26),0,IF(K$5>INT($H26),0,IF(K$5<2000,$E26,$E26-($F26*(K$5-IF($G26<2001,2000,$G26))))))) -> 0 | L26: 0 | M26: 0 | N26: 0 | O26: 0 | P26: 0 | Q26: 0 | R26: 0 | S26: 0 | T26: 0 | U26: 0 | V26: 0 | W26: 0 | X26: 0 | Y26: 0 | Z26: 0 | AA26: 0 | AB26: 0 | AC26: 0 | AD26: 0 | AE26: 0 | AF26: 0 | AG26: 0 | AH26: 0 | AI26: 0 | AJ26: 0 | AK26: 0 | AL26: 0 | AM26: 0 | AN26: 0 | AO26: 0 | AP26: 0 | AQ26: =IF($C26=0,0,IF(AQ$5<INT($G26),0,IF(AQ$5>INT($H26),0,IF(AQ$5<2000,$E26,$E26-($F26*(AQ$5-IF($G26<2001,2000,$G26))))))) -> 0 | AR26: 0 | AS26: 0 | AT26: 0 | AU26: 0 | AV26: 0 | AW26: 0 | AX26: 0 | AY26: 0 | AZ26: 0 | BA26: 0 | BB26: 0 | BC26: 0 | BD26: 0 | BE26: 0 | BF26: 0 | BG26: 0 | BH26: 0 | BI26: 0 | BJ26: 0 | BK26: 0 | BL26: 0 | BM26: 0 | BN26: 0 | BO26: 0 | BP26: 0 | BQ26: 0 | BR26: 0 | BS26: 0 | BT26: 0 | BU26: 0 | BV26: 0 | BW26: =IF($C26=0,0,IF(BW$5<INT($G26),0,IF(BW$5>INT($H26),0,IF(BW$5<2000,$E26,$E26-($F26*(BW$5-IF($G26<2001,2000,$G26))))))) -> 0 | BX26: 0 | BY26: 0 | BZ26: 0 | CA26: 0 | CB26: 0 | CC26: 0 | CD26: 0 | CE26: 0 | CF26: 0 | CG26: 0 | CH26: 0 | CI26: 0 | CJ26: 0 | CK26: 0 | CL26: 0 | CM26: 0 | CN26: 0 | CO26: 0 | CP26: 0 | CQ26: 0 | CR26: 0 | CS26: 0 | CT26: 0 | CU26: 0 | CV26: 0 | CW26: 0 | CX26: 0 | CY26: 0 | CZ26: 0 | DA26: 0 | DB26: 0 | DC26: =IF($C26=0,0,IF(DC$5<INT($G26),0,IF(DC$5>INT($H26),0,IF(DC$5<2000,$E26,$E26-($F26*(DC$5-IF($G26<2001,2000,$G26))))))) -> 0 | DD26: 0 | DE26: 0 | DF26: 0 | DG26: 0 | DH26: 0 | DI26: 0 | DJ26: 0 | DK26: 0 | DL26: 0 | DM26: 0 | DN26: 0 | DO26: 0 | DP26: 0 | DQ26: 0 | DR26: 0 | DS26: A9
B27: 鋼管 （溶接継手を有する） （m） | G27: =IF($C27=0,"-",管種別導入布設年度!B10) -> - | H27: =IF($C27=0,"-",管種別導入布設年度!C10) -> - | I27: 0 | J27: 0 | K27: =IF($C27=0,0,IF(K$5<INT($G27),0, IF(K$5>INT($H27),0,$J27))) -> 0 | L27: 0 | M27: 0 | N27: 0 | O27: 0 | P27: 0 | Q27: 0 | R27: 0 | S27: 0 | T27: 0 | U27: =IF($C27=0,0,IF(U$5<INT($G27),0, IF(U$5>INT($H27),0,$J27))) -> 0 | V27: 0 | W27: 0 | X27: 0 | Y27: 0 | Z27: 0 | AA27: 0 | AB27: 0 | AC27: 0 | AD27: 0 | AE27: =IF($C27=0,0,IF(AE$5<INT($G27),0, IF(AE$5>INT($H27),0,$J27))) -> 0 | AF27: 0 | AG27: 0 | AH27: 0 | AI27: 0 | AJ27: 0 | AK27: 0 | AL27: 0 | AM27: 0 | AN27: 0 | AO27: =IF($C27=0,0,IF(AO$5<INT($G27),0, IF(AO$5>INT($H27),0,$J27))) -> 0 | AP27: 0 | AQ27: 0 | AR27: 0 | AS27: 0 | AT27: 0 | AU27: 0 | AV27: 0 | AW27: 0 | AX27: 0 | AY27: =IF($C27=0,0,IF(AY$5<INT($G27),0, IF(AY$5>INT($H27),0,$J27))) -> 0 | AZ27: 0 | BA27: 0 | BB27: 0 | BC27: 0 | BD27: 0 | BE27: 0 | BF27: 0 | BG27: 0 | BH27: 0 | BI27: =IF($C27=0,0,IF(BI$5<INT($G27),0, IF(BI$5>INT($H27),0,$J27))) -> 0 | BJ27: 0 | BK27: 0 | BL27: 0 | BM27: 0 | BN27: 0 | BO27: 0 | BP27: 0 | BQ27: 0 | BR27: 0 | BS27: =IF($C27=0,0,IF(BS$5<INT($G27),0, IF(BS$5>INT($H27),0,$J27))) -> 0 | BT27: 0 | BU27: 0 | BV27: 0 | BW27: 0 | BX27: 0 | BY27: 0 | BZ27: 0 | CA27: 0 | CB27: 0 | CC27: =IF($C27=0,0,IF(CC$5<INT($G27),0, IF(CC$5>INT($H27),0,$J27))) -> 0 | CD27: 0 | CE27: 0 | CF27: 0 | CG27: 0 | CH27: 0 | CI27: 0 | CJ27: 0 | CK27: 0 | CL27: 0 | CM27: =IF($C27=0,0,IF(CM$5<INT($G27),0, IF(CM$5>INT($H27),0,$J27))) -> 0 | CN27: 0 | CO27: 0 | CP27: 0 | CQ27: 0 | CR27: 0 | CS27: 0 | CT27: 0 | CU27: 0 | CV27: 0 | CW27: =IF($C27=0,0,IF(CW$5<INT($G27),0, IF(CW$5>INT($H27),0,$J27))) -> 0 | CX27: 0 | CY27: 0 | CZ27: 0 | DA27: 0 | DB27: 0 | DC27: 0 | DD27: 0 | DE27: 0 | DF27: 0 | DG27: =IF($C27=0,0,IF(DG$5<INT($G27),0, IF(DG$5>INT($H27),0,$J27))) -> 0 | DH27: 0 | DI27: 0 | DJ27: 0 | DK27: 0 | DL27: 0 | DM27: 0 | DN27: 0 | DO27: 0 | DP27: 0 | DQ27: 0 | DR27: 0 | DS27: B1
B28: 鋼管 （上記以外・不明なものを含む） （m） | G28: =IF($C28=0,"-",管種別導入布設年度!B11) -> - | H28: =IF($C28=0,"-",管種別導入布設年度!C11) -> - | I28: 0 | J28: 0 | K28: 0 | L28: 0 | M28: 0 | N28: 0 | O28: 0 | P28: 0 | Q28: 0 | R28: 0 | S28: 0 | T28: 0 | U28: 0 | V28: 0 | W28: 0 | X28: 0 | Y28: 0 | Z28: 0 | AA28: 0 | AB28: 0 | AC28: 0 | AD28: 0 | AE28: 0 | AF28: 0 | AG28: 0 | AH28: 0 | AI28: 0 | AJ28: 0 | AK28: 0 | AL28: 0 | AM28: 0 | AN28: 0 | AO28: 0 | AP28: 0 | AQ28: 0 | AR28: 0 | AS28: 0 | AT28: 0 | AU28: 0 | AV28: 0 | AW28: 0 | AX28: 0 | AY28: 0 | AZ28: 0 | BA28: 0 | BB28: 0 | BC28: 0 | BD28: 0 | BE28: 0 | BF28: 0 | BG28: 0 | BH28: 0 | BI28: 0 | BJ28: 0 | BK28: 0 | BL28: 0 | BM28: 0 | BN28: 0 | BO28: 0 | BP28: 0 | BQ28: 0 | BR28: 0 | BS28: 0 | BT28: 0 | BU28: 0 | BV28: 0 | BW28: 0 | BX28: 0 | BY28: 0 | BZ28: 0 | CA28: 0 | CB28: 0 | CC28: 0 | CD28: 0 | CE28: 0 | CF28: 0 | CG28: 0 | CH28: 0 | CI28: 0 | CJ28: 0 | CK28: 0 | CL28: 0 | CM28: 0 | CN28: 0 | CO28: 0 | CP28: 0 | CQ28: 0 | CR28: 0 | CS28: 0 | CT28: 0 | CU28: 0 | CV28: 0 | CW28: 0 | CX28: 0 | CY28: 0 | CZ28: 0 | DA28: 0 | DB28: 0 | DC28: 0 | DD28: 0 | DE28: 0 | DF28: 0 | DG28: 0 | DH28: 0 | DI28: 0 | DJ28: 0 | DK28: 0 | DL28: 0 | DM28: 0 | DN28: 0 | DO28: 0 | DP28: 0 | DQ28: 0 | DR28: 0 | DS28: B9
B29: 石綿セメント管 (m) | G29: =IF($C29=0,"-",管種別導入布設年度!B12) -> - | H29: =IF($C29=0,"-",管種別導入布設年度!C12) -> - | I29: 0 | J29: 0 | K29: 0 | L29: 0 | M29: 0 | N29: 0 | O29: 0 | P29: 0 | Q29: 0 | R29: 0 | S29: 0 | T29: 0 | U29: 0 | V29: 0 | W29: 0 | X29: 0 | Y29: 0 | Z29: 0 | AA29: 0 | AB29: 0 | AC29: 0 | AD29: 0 | AE29: 0 | AF29: 0 | AG29: 0 | AH29: 0 | AI29: 0 | AJ29: 0 | AK29: 0 | AL29: 0 | AM29: 0 | AN29: 0 | AO29: 0 | AP29: 0 | AQ29: 0 | AR29: 0 | AS29: 0 | AT29: 0 | AU29: 0 | AV29: 0 | AW29: 0 | AX29: 0 | AY29: 0 | AZ29: 0 | BA29: 0 | BB29: 0 | BC29: 0 | BD29: 0 | BE29: 0 | BF29: 0 | BG29: 0 | BH29: 0 | BI29: 0 | BJ29: 0 | BK29: 0 | BL29: 0 | BM29: 0 | BN29: 0 | BO29: 0 | BP29: 0 | BQ29: 0 | BR29: 0 | BS29: 0 | BT29: 0 | BU29: 0 | BV29: 0 | BW29: 0 | BX29: 0 | BY29: 0 | BZ29: 0 | CA29: 0 | CB29: 0 | CC29: 0 | CD29: 0 | CE29: 0 | CF29: 0 | CG29: 0 | CH29: 0 | CI29: 0 | CJ29: 0 | CK29: 0 | CL29: 0 | CM29: 0 | CN29: 0 | CO29: 0 | CP29: 0 | CQ29: 0 | CR29: 0 | CS29: 0 | CT29: 0 | CU29: 0 | CV29: 0 | CW29: 0 | CX29: 0 | CY29: 0 | CZ29: 0 | DA29: 0 | DB29: 0 | DC29: 0 | DD29: 0 | DE29: 0 | DF29: 0 | DG29: 0 | DH29: 0 | DI29: 0 | DJ29: 0 | DK29: 0 | DL29: 0 | DM29: 0 | DN29: 0 | DO29: 0 | DP29: 0 | DQ29: 0 | DR29: 0 | DS29: C1
B30: 硬質塩化ビニル管 （ＲＲロング継手等を有する） (m) | G30: =IF($C30=0,"-",管種別導入布設年度!B13) -> - | H30: =IF($C30=0,"-",管種別導入布設年度!C13) -> - | I30: 0 | J30: 0 | K30: 0 | L30: 0 | M30: 0 | N30: 0 | O30: 0 | P30: 0 | Q30: 0 | R30: 0 | S30: 0 | T30: 0 | U30: 0 | V30: 0 | W30: 0 | X30: 0 | Y30: 0 | Z30: 0 | AA30: 0 | AB30: 0 | AC30: 0 | AD30: 0 | AE30: 0 | AF30: 0 | AG30: 0 | AH30: 0 | AI30: 0 | AJ30: 0 | AK30: 0 | AL30: 0 | AM30: 0 | AN30: 0 | AO30: 0 | AP30: 0 | AQ30: 0 | AR30: 0 | AS30: 0 | AT30: 0 | AU30: 0 | AV30: 0 | AW30: 0 | AX30: 0 | AY30: 0 | AZ30: 0 | BA30: 0 | BB30: 0 | BC30: 0 | BD30: 0 | BE30: 0 | BF30: 0 | BG30: 0 | BH30: 0 | BI30: 0 | BJ30: 0 | BK30: 0 | BL30: 0 | BM30: 0 | BN30: 0 | BO30: 0 | BP30: 0 | BQ30: 0 | BR30: 0 | BS30: 0 | BT30: 0 | BU30: 0 | BV30: 0 | BW30: 0 | BX30: 0 | BY30: 0 | BZ30: 0 | CA30: 0 | CB30: 0 | CC30: 0 | CD30: 0 | CE30: 0 | CF30: 0 | CG30: 0 | CH30: 0 | CI30: 0 | CJ30: 0 | CK30: 0 | CL30: 0 | CM30: 0 | CN30: 0 | CO30: 0 | CP30: 0 | CQ30: 0 | CR30: 0 | CS30: 0 | CT30: 0 | CU30: 0 | CV30: 0 | CW30: 0 | CX30: 0 | CY30: 0 | CZ30: 0 | DA30: 0 | DB30: 0 | DC30: 0 | DD30: 0 | DE30: 0 | DF30: 0 | DG30: 0 | DH30: 0 | DI30: 0 | DJ30: 0 | DK30: 0 | DL30: 0 | DM30: 0 | DN30: 0 | DO30: 0 | DP30: 0 | DQ30: 0 | DR30: 0 | DS30: D1
B31: 硬質塩化ビニル管 （ＲＲ継手等を有する） (m) | G31: =IF($C31=0,"-",管種別導入布設年度!B14) -> - | H31: =IF($C31=0,"-",管種別導入布設年度!C14) -> - | I31: 0 | J31: 0 | K31: 0 | L31: 0 | M31: 0 | N31: 0 | O31: 0 | P31: 0 | Q31: 0 | R31: 0 | S31: 0 | T31: 0 | U31: 0 | V31: 0 | W31: 0 | X31: 0 | Y31: 0 | Z31: 0 | AA31: 0 | AB31: 0 | AC31: 0 | AD31: 0 | AE31: 0 | AF31: 0 | AG31: 0 | AH31: 0 | AI31: 0 | AJ31: 0 | AK31: 0 | AL31: 0 | AM31: 0 | AN31: 0 | AO31: 0 | AP31: 0 | AQ31: 0 | AR31: 0 | AS31: 0 | AT31: 0 | AU31: 0 | AV31: 0 | AW31: 0 | AX31: 0 | AY31: 0 | AZ31: 0 | BA31: 0 | BB31: 0 | BC31: 0 | BD31: 0 | BE31: 0 | BF31: 0 | BG31: 0 | BH31: 0 | BI31: 0 | BJ31: 0 | BK31: 0 | BL31: 0 | BM31: 0 | BN31: 0 | BO31: 0 | BP31: 0 | BQ31: 0 | BR31: 0 | BS31: 0 | BT31: 0 | BU31: 0 | BV31: 0 | BW31: 0 | BX31: 0 | BY31: 0 | BZ31: 0 | CA31: 0 | CB31: 0 | CC31: 0 | CD31: 0 | CE31: 0 | CF31: 0 | CG31: 0 | CH31: 0 | CI31: 0 | CJ31: 0 | CK31: 0 | CL31: 0 | CM31: 0 | CN31: 0 | CO31: 0 | CP31: 0 | CQ31: 0 | CR31: 0 | CS31: 0 | CT31: 0 | CU31: 0 | CV31: 0 | CW31: 0 | CX31: 0 | CY31: 0 | CZ31: 0 | DA31: 0 | DB31: 0 | DC31: 0 | DD31: 0 | DE31: 0 | DF31: 0 | DG31: 0 | DH31: 0 | DI31: 0 | DJ31: 0 | DK31: 0 | DL31: 0 | DM31: 0 | DN31: 0 | DO31: 0 | DP31: 0 | DQ31: 0 | DR31: 0 | DS31: D2
B32: 硬質塩化ビニル管 （上記以外・不明なものを含む） (m) | E32: =IF(H32<2000,C32/(1999-G32+1),IF(G32<2000,C32/((1999-G32+1)+(H32+2-2000)/2),2*C32/(H32+2-G32))) ->  | F32: =IF($H32<2000,0,E32/(H32+IF(G32<2000,1-2000,1-G32))) ->  | G32: =IF($C32=0,"-",管種別導入布設年度!B15) -> - | H32: =IF($C32=0,"-",管種別導入布設年度!C15) -> - | I32: 0 | J32: 0 | K32: =IF($C32=0,0,IF(K$5<INT($G32),0,IF(K$5>INT($H32),0,IF(K$5<2000,$E32,$E32-($F32*(K$5-IF($G32<2001,2000,$G32))))))) -> 0 | L32: 0 | M32: 0 | N32: 0 | O32: 0 | P32: 0 | Q32: 0 | R32: 0 | S32: 0 | T32: 0 | U32: 0 | V32: 0 | W32: 0 | X32: 0 | Y32: 0 | Z32: 0 | AA32: 0 | AB32: 0 | AC32: 0 | AD32: 0 | AE32: 0 | AF32: 0 | AG32: 0 | AH32: 0 | AI32: 0 | AJ32: 0 | AK32: 0 | AL32: 0 | AM32: 0 | AN32: 0 | AO32: 0 | AP32: 0 | AQ32: =IF($C32=0,0,IF(AQ$5<INT($G32),0,IF(AQ$5>INT($H32),0,IF(AQ$5<2000,$E32,$E32-($F32*(AQ$5-IF($G32<2001,2000,$G32))))))) -> 0 | AR32: 0 | AS32: 0 | AT32: 0 | AU32: 0 | AV32: 0 | AW32: 0 | AX32: 0 | AY32: 0 | AZ32: 0 | BA32: 0 | BB32: 0 | BC32: 0 | BD32: 0 | BE32: 0 | BF32: 0 | BG32: 0 | BH32: 0 | BI32: 0 | BJ32: 0 | BK32: 0 | BL32: 0 | BM32: 0 | BN32: 0 | BO32: 0 | BP32: 0 | BQ32: 0 | BR32: 0 | BS32: 0 | BT32: 0 | BU32: 0 | BV32: 0 | BW32: =IF($C32=0,0,IF(BW$5<INT($G32),0,IF(BW$5>INT($H32),0,IF(BW$5<2000,$E32,$E32-($F32*(BW$5-IF($G32<2001,2000,$G32))))))) -> 0 | BX32: 0 | BY32: 0 | BZ32: 0 | CA32: 0 | CB32: 0 | CC32: 0 | CD32: 0 | CE32: 0 | CF32: 0 | CG32: 0 | CH32: 0 | CI32: 0 | CJ32: 0 | CK32: 0 | CL32: 0 | CM32: 0 | CN32: 0 | CO32: 0 | CP32: 0 | CQ32: 0 | CR32: 0 | CS32: 0 | CT32: 0 | CU32: 0 | CV32: 0 | CW32: 0 | CX32: 0 | CY32: 0 | CZ32: 0 | DA32: 0 | DB32: 0 | DC32: =IF($C32=0,0,IF(DC$5<INT($G32),0,IF(DC$5>INT($H32),0,IF(DC$5<2000,$E32,$E32-($F32*(DC$5-IF($G32<2001,2000,$G32))))))) -> 0 | DD32: 0 | DE32: 0 | DF32: 0 | DG32: 0 | DH32: 0 | DI32: 0 | DJ32: 0 | DK32: 0 | DL32: 0 | DM32: 0 | DN32: 0 | DO32: 0 | DP32: 0 | DQ32: 0 | DR32: 0 | DS32: D9
B33: コンクリート管 (m) | G33: =IF($C33=0,"-",管種別導入布設年度!B16) -> - | H33: =IF($C33=0,"-",管種別導入布設年度!C16) -> - | I33: 0 | J33: 0 | K33: =IF($C33=0,0,IF(K$5<INT($G33),0, IF(K$5>INT($H33),0,$J33))) -> 0 | L33: 0 | M33: 0 | N33: 0 | O33: 0 | P33: 0 | Q33: 0 | R33: 0 | S33: 0 | T33: 0 | U33: =IF($C33=0,0,IF(U$5<INT($G33),0, IF(U$5>INT($H33),0,$J33))) -> 0 | V33: 0 | W33: 0 | X33: 0 | Y33: 0 | Z33: 0 | AA33: 0 | AB33: 0 | AC33: 0 | AD33: 0 | AE33: =IF($C33=0,0,IF(AE$5<INT($G33),0, IF(AE$5>INT($H33),0,$J33))) -> 0 | AF33: 0 | AG33: 0 | AH33: 0 | AI33: 0 | AJ33: 0 | AK33: 0 | AL33: 0 | AM33: 0 | AN33: 0 | AO33: =IF($C33=0,0,IF(AO$5<INT($G33),0, IF(AO$5>INT($H33),0,$J33))) -> 0 | AP33: 0 | AQ33: 0 | AR33: 0 | AS33: 0 | AT33: 0 | AU33: 0 | AV33: 0 | AW33: 0 | AX33: 0 | AY33: =IF($C33=0,0,IF(AY$5<INT($G33),0, IF(AY$5>INT($H33),0,$J33))) -> 0 | AZ33: 0 | BA33: 0 | BB33: 0 | BC33: 0 | BD33: 0 | BE33: 0 | BF33: 0 | BG33: 0 | BH33: 0 | BI33: =IF($C33=0,0,IF(BI$5<INT($G33),0, IF(BI$5>INT($H33),0,$J33))) -> 0 | BJ33: 0 | BK33: 0 | BL33: 0 | BM33: 0 | BN33: 0 | BO33: 0 | BP33: 0 | BQ33: 0 | BR33: 0 | BS33: =IF($C33=0,0,IF(BS$5<INT($G33),0, IF(BS$5>INT($H33),0,$J33))) -> 0 | BT33: 0 | BU33: 0 | BV33: 0 | BW33: 0 | BX33: 0 | BY33: 0 | BZ33: 0 | CA33: 0 | CB33: 0 | CC33: =IF($C33=0,0,IF(CC$5<INT($G33),0, IF(CC$5>INT($H33),0,$J33))) -> 0 | CD33: 0 | CE33: 0 | CF33: 0 | CG33: 0 | CH33: 0 | CI33: 0 | CJ33: 0 | CK33: 0 | CL33: 0 | CM33: =IF($C33=0,0,IF(CM$5<INT($G33),0, IF(CM$5>INT($H33),0,$J33))) -> 0 | CN33: 0 | CO33: 0 | CP33: 0 | CQ33: 0 | CR33: 0 | CS33: 0 | CT33: 0 | CU33: 0 | CV33: 0 | CW33: =IF($C33=0,0,IF(CW$5<INT($G33),0, IF(CW$5>INT($H33),0,$J33))) -> 0 | CX33: 0 | CY33: 0 | CZ33: 0 | DA33: 0 | DB33: 0 | DC33: 0 | DD33: 0 | DE33: 0 | DF33: 0 | DG33: =IF($C33=0,0,IF(DG$5<INT($G33),0, IF(DG$5>INT($H33),0,$J33))) -> 0 | DH33: 0 | DI33: 0 | DJ33: 0 | DK33: 0 | DL33: 0 | DM33: 0 | DN33: 0 | DO33: 0 | DP33: 0 | DQ33: 0 | DR33: 0 | DS33: E1
B34: 鉛管 (m) | G34: =IF($C34=0,"-",管種別導入布設年度!B17) -> - | H34: =IF($C34=0,"-",管種別導入布設年度!C17) -> - | I34: 0 | J34: 0 | K34: 0 | L34: 0 | M34: 0 | N34: 0 | O34: 0 | P34: 0 | Q34: 0 | R34: 0 | S34: 0 | T34: 0 | U34: 0 | V34: 0 | W34: 0 | X34: 0 | Y34: 0 | Z34: 0 | AA34: 0 | AB34: 0 | AC34: 0 | AD34: 0 | AE34: 0 | AF34: 0 | AG34: 0 | AH34: 0 | AI34: 0 | AJ34: 0 | AK34: 0 | AL34: 0 | AM34: 0 | AN34: 0 | AO34: 0 | AP34: 0 | AQ34: 0 | AR34: 0 | AS34: 0 | AT34: 0 | AU34: 0 | AV34: 0 | AW34: 0 | AX34: 0 | AY34: 0 | AZ34: 0 | BA34: 0 | BB34: 0 | BC34: 0 | BD34: 0 | BE34: 0 | BF34: 0 | BG34: 0 | BH34: 0 | BI34: 0 | BJ34: 0 | BK34: 0 | BL34: 0 | BM34: 0 | BN34: 0 | BO34: 0 | BP34: 0 | BQ34: 0 | BR34: 0 | BS34: 0 | BT34: 0 | BU34: 0 | BV34: 0 | BW34: 0 | BX34: 0 | BY34: 0 | BZ34: 0 | CA34: 0 | CB34: 0 | CC34: 0 | CD34: 0 | CE34: 0 | CF34: 0 | CG34: 0 | CH34: 0 | CI34: 0 | CJ34: 0 | CK34: 0 | CL34: 0 | CM34: 0 | CN34: 0 | CO34: 0 | CP34: 0 | CQ34: 0 | CR34: 0 | CS34: 0 | CT34: 0 | CU34: 0 | CV34: 0 | CW34: 0 | CX34: 0 | CY34: 0 | CZ34: 0 | DA34: 0 | DB34: 0 | DC34: 0 | DD34: 0 | DE34: 0 | DF34: 0 | DG34: 0 | DH34: 0 | DI34: 0 | DJ34: 0 | DK34: 0 | DL34: 0 | DM34: 0 | DN34: 0 | DO34: 0 | DP34: 0 | DQ34: 0 | DR34: 0 | DS34: F1
B35: ポリエチレン管 （高密度、熱融着継手を有する） （m） | G35: =IF($C35=0,"-",管種別導入布設年度!B18) -> - | H35: =IF($C35=0,"-",管種別導入布設年度!C18) -> - | I35: 0 | J35: 0 | K35: 0 | L35: 0 | M35: 0 | N35: 0 | O35: 0 | P35: 0 | Q35: 0 | R35: 0 | S35: 0 | T35: 0 | U35: 0 | V35: 0 | W35: 0 | X35: 0 | Y35: 0 | Z35: 0 | AA35: 0 | AB35: 0 | AC35: 0 | AD35: 0 | AE35: 0 | AF35: 0 | AG35: 0 | AH35: 0 | AI35: 0 | AJ35: 0 | AK35: 0 | AL35: 0 | AM35: 0 | AN35: 0 | AO35: 0 | AP35: 0 | AQ35: 0 | AR35: 0 | AS35: 0 | AT35: 0 | AU35: 0 | AV35: 0 | AW35: 0 | AX35: 0 | AY35: 0 | AZ35: 0 | BA35: 0 | BB35: 0 | BC35: 0 | BD35: 0 | BE35: 0 | BF35: 0 | BG35: 0 | BH35: 0 | BI35: 0 | BJ35: 0 | BK35: 0 | BL35: 0 | BM35: 0 | BN35: 0 | BO35: 0 | BP35: 0 | BQ35: 0 | BR35: 0 | BS35: 0 | BT35: 0 | BU35: 0 | BV35: 0 | BW35: 0 | BX35: 0 | BY35: 0 | BZ35: 0 | CA35: 0 | CB35: 0 | CC35: 0 | CD35: 0 | CE35: 0 | CF35: 0 | CG35: 0 | CH35: 0 | CI35: 0 | CJ35: 0 | CK35: 0 | CL35: 0 | CM35: 0 | CN35: 0 | CO35: 0 | CP35: 0 | CQ35: 0 | CR35: 0 | CS35: 0 | CT35: 0 | CU35: 0 | CV35: 0 | CW35: 0 | CX35: 0 | CY35: 0 | CZ35: 0 | DA35: 0 | DB35: 0 | DC35: 0 | DD35: 0 | DE35: 0 | DF35: 0 | DG35: 0 | DH35: 0 | DI35: 0 | DJ35: 0 | DK35: 0 | DL35: 0 | DM35: 0 | DN35: 0 | DO35: 0 | DP35: 0 | DQ35: 0 | DR35: 0 | DS35: G1
B36: ポリエチレン管 （上記以外・不明なものを含む） （m） | G36: =IF($C36=0,"-",管種別導入布設年度!B19) -> - | H36: =IF($C36=0,"-",管種別導入布設年度!C19) -> - | I36: 0 | J36: 0 | K36: 0 | L36: 0 | M36: 0 | N36: 0 | O36: 0 | P36: 0 | Q36: 0 | R36: 0 | S36: 0 | T36: 0 | U36: 0 | V36: 0 | W36: 0 | X36: 0 | Y36: 0 | Z36: 0 | AA36: 0 | AB36: 0 | AC36: 0 | AD36: 0 | AE36: 0 | AF36: 0 | AG36: 0 | AH36: 0 | AI36: 0 | AJ36: 0 | AK36: 0 | AL36: 0 | AM36: 0 | AN36: 0 | AO36: 0 | AP36: 0 | AQ36: 0 | AR36: 0 | AS36: 0 | AT36: 0 | AU36: 0 | AV36: 0 | AW36: 0 | AX36: 0 | AY36: 0 | AZ36: 0 | BA36: 0 | BB36: 0 | BC36: 0 | BD36: 0 | BE36: 0 | BF36: 0 | BG36: 0 | BH36: 0 | BI36: 0 | BJ36: 0 | BK36: 0 | BL36: 0 | BM36: 0 | BN36: 0 | BO36: 0 | BP36: 0 | BQ36: 0 | BR36: 0 | BS36: 0 | BT36: 0 | BU36: 0 | BV36: 0 | BW36: 0 | BX36: 0 | BY36: 0 | BZ36: 0 | CA36: 0 | CB36: 0 | CC36: 0 | CD36: 0 | CE36: 0 | CF36: 0 | CG36: 0 | CH36: 0 | CI36: 0 | CJ36: 0 | CK36: 0 | CL36: 0 | CM36: 0 | CN36: 0 | CO36: 0 | CP36: 0 | CQ36: 0 | CR36: 0 | CS36: 0 | CT36: 0 | CU36: 0 | CV36: 0 | CW36: 0 | CX36: 0 | CY36: 0 | CZ36: 0 | DA36: 0 | DB36: 0 | DC36: 0 | DD36: 0 | DE36: 0 | DF36: 0 | DG36: 0 | DH36: 0 | DI36: 0 | DJ36: 0 | DK36: 0 | DL36: 0 | DM36: 0 | DN36: 0 | DO36: 0 | DP36: 0 | DQ36: 0 | DR36: 0 | DS36: G9
B37: ステンレス管 耐震型継手を有する (m) | C37: 200 | D37: 19800 | G37: =IF($C37=0,"-",管種別導入布設年度!B20) -> 1985 | H37: =IF($C37=0,"-",管種別導入布設年度!C20) -> 1989 | I37: 5 | J37: 40 | K37: 0 | L37: 0 | M37: 0 | N37: 0 | O37: 0 | P37: 0 | Q37: 0 | R37: 0 | S37: 0 | T37: 0 | U37: 0 | V37: 0 | W37: 0 | X37: 0 | Y37: 0 | Z37: 40 | AA37: 40 | AB37: 40 | AC37: 40 | AD37: 40 | AE37: 0 | AF37: 0 | AG37: 0 | AH37: 0 | AI37: 0 | AJ37: 0 | AK37: 0 | AL37: 0 | AM37: 0 | AN37: 0 | AO37: 0 | AP37: 0 | AQ37: 0 | AR37: 0 | AS37: 0 | AT37: 0 | AU37: 0 | AV37: 0 | AW37: 0 | AX37: 0 | AY37: 0 | AZ37: 0 | BA37: 0 | BB37: 0 | BC37: 0 | BD37: 0 | BE37: 0 | BF37: 0 | BG37: 0 | BH37: 0 | BI37: 0 | BJ37: 0 | BK37: 0 | BL37: 0 | BM37: 0 | BN37: 0 | BO37: 0 | BP37: 0 | BQ37: 0 | BR37: 0 | BS37: 0 | BT37: 0 | BU37: 0 | BV37: 0 | BW37: 0 | BX37: 0 | BY37: 0 | BZ37: 0 | CA37: 0 | CB37: 0 | CC37: 0 | CD37: 0 | CE37: 0 | CF37: 0 | CG37: 0 | CH37: 0 | CI37: 0 | CJ37: 0 | CK37: 0 | CL37: 0 | CM37: 0 | CN37: 0 | CO37: 0 | CP37: 0 | CQ37: 0 | CR37: 0 | CS37: 0 | CT37: 0 | CU37: 0 | CV37: 0 | CW37: 0 | CX37: 0 | CY37: 0 | CZ37: 0 | DA37: 0 | DB37: 0 | DC37: 0 | DD37: 0 | DE37: 0 | DF37: 0 | DG37: 0 | DH37: 0 | DI37: 0 | DJ37: 0 | DK37: 0 | DL37: 0 | DM37: 0 | DN37: 0 | DO37: 0 | DP37: 0 | DQ37: 0 | DR37: 200 | DS37: H1
B38: ステンレス管 (上記以外・不明なものを含む） (m) | G38: =IF($C38=0,"-",管種別導入布設年度!B21) -> - | H38: =IF($C38=0,"-",管種別導入布設年度!C21) -> - | I38: =IF(C38=0,0,H38-G38+1) -> 0 | J38: =IF(C38=0,0,ROUND(C38/I38,1)) -> 0 | K38: 0 | L38: 0 | M38: 0 | N38: 0 | O38: 0 | P38: 0 | Q38: 0 | R38: 0 | S38: 0 | T38: 0 | U38: 0 | V38: 0 | W38: 0 | X38: 0 | Y38: 0 | Z38: 0 | AA38: 0 | AB38: 0 | AC38: 0 | AD38: 0 | AE38: 0 | AF38: 0 | AG38: 0 | AH38: 0 | AI38: 0 | AJ38: 0 | AK38: 0 | AL38: 0 | AM38: 0 | AN38: 0 | AO38: 0 | AP38: 0 | AQ38: 0 | AR38: 0 | AS38: 0 | AT38: 0 | AU38: 0 | AV38: 0 | AW38: 0 | AX38: 0 | AY38: 0 | AZ38: 0 | BA38: 0 | BB38: 0 | BC38: 0 | BD38: 0 | BE38: 0 | BF38: 0 | BG38: 0 | BH38: 0 | BI38: 0 | BJ38: 0 | BK38: 0 | BL38: 0 | BM38: 0 | BN38: 0 | BO38: 0 | BP38: 0 | BQ38: 0 | BR38: 0 | BS38: 0 | BT38: 0 | BU38: 0 | BV38: 0 | BW38: 0 | BX38: 0 | BY38: 0 | BZ38: 0 | CA38: 0 | CB38: 0 | CC38: 0 | CD38: 0 | CE38: 0 | CF38: 0 | CG38: 0 | CH38: 0 | CI38: 0 | CJ38: 0 | CK38: 0 | CL38: 0 | CM38: 0 | CN38: 0 | CO38: 0 | CP38: 0 | CQ38: 0 | CR38: 0 | CS38: 0 | CT38: 0 | CU38: 0 | CV38: 0 | CW38: 0 | CX38: 0 | CY38: 0 | CZ38: 0 | DA38: 0 | DB38: 0 | DC38: 0 | DD38: 0 | DE38: 0 | DF38: 0 | DG38: 0 | DH38: 0 | DI38: 0 | DJ38: 0 | DK38: 0 | DL38: 0 | DM38: 0 | DN38: 0 | DO38: 0 | DP38: 0 | DQ38: 0 | DR38: =SUM(K38:DQ38) -> 0 | DS38: H9
B39: その他 (管種が不明なものを含む) (m) | G39: =IF($C39=0,"-",管種別導入布設年度!B22) -> - | H39: =IF($C39=0,"-",管種別導入布設年度!C22) -> - | I39: 0 | J39: 0 | K39: 0 | L39: 0 | M39: 0 | N39: 0 | O39: 0 | P39: 0 | Q39: 0 | R39: 0 | S39: 0 | T39: 0 | U39: 0 | V39: 0 | W39: 0 | X39: 0 | Y39: 0 | Z39: 0 | AA39: 0 | AB39: 0 | AC39: 0 | AD39: 0 | AE39: 0 | AF39: 0 | AG39: 0 | AH39: 0 | AI39: 0 | AJ39: 0 | AK39: 0 | AL39: 0 | AM39: 0 | AN39: 0 | AO39: 0 | AP39: 0 | AQ39: 0 | AR39: 0 | AS39: 0 | AT39: 0 | AU39: 0 | AV39: 0 | AW39: 0 | AX39: 0 | AY39: 0 | AZ39: 0 | BA39: 0 | BB39: 0 | BC39: 0 | BD39: 0 | BE39: 0 | BF39: 0 | BG39: 0 | BH39: 0 | BI39: 0 | BJ39: 0 | BK39: 0 | BL39: 0 | BM39: 0 | BN39: 0 | BO39: 0 | BP39: 0 | BQ39: 0 | BR39: 0 | BS39: 0 | BT39: 0 | BU39: 0 | BV39: 0 | BW39: 0 | BX39: 0 | BY39: 0 | BZ39: 0 | CA39: 0 | CB39: 0 | CC39: 0 | CD39: 0 | CE39: 0 | CF39: 0 | CG39: 0 | CH39: 0 | CI39: 0 | CJ39: 0 | CK39: 0 | CL39: 0 | CM39: 0 | CN39: 0 | CO39: 0 | CP39: 0 | CQ39: 0 | CR39: 0 | CS39: 0 | CT39: 0 | CU39: 0 | CV39: 0 | CW39: 0 | CX39: 0 | CY39: 0 | CZ39: 0 | DA39: 0 | DB39: 0 | DC39: 0 | DD39: 0 | DE39: 0 | DF39: 0 | DG39: 0 | DH39: 0 | DI39: 0 | DJ39: 0 | DK39: 0 | DL39: 0 | DM39: 0 | DN39: 0 | DO39: 0 | DP39: 0 | DQ39: 0 | DR39: 0 | DS39: Z9
A40: 配水本管 | B40: 鋳鉄管 (ダクタイル鋳鉄管は含まない) (m) | C40: 42 | D40: 3900 | G40: =IF($C40=0,"-",管種別導入布設年度!B6) -> 1970 | H40: =IF($C40=0,"-",管種別導入布設年度!C6) -> 1975 | I40: 6 | J40: 7 | K40: 7 | L40: 7 | M40: 7 | N40: 7 | O40: 7 | P40: 7 | Q40: 0 | R40: 0 | S40: 0 | T40: 0 | U40: 0 | V40: 0 | W40: 0 | X40: 0 | Y40: 0 | Z40: 0 | AA40: 0 | AB40: 0 | AC40: 0 | AD40: 0 | AE40: 0 | AF40: 0 | AG40: 0 | AH40: 0 | AI40: 0 | AJ40: 0 | AK40: 0 | AL40: 0 | AM40: 0 | AN40: 0 | AO40: 0 | AP40: 0 | AQ40: 0 | AR40: 0 | AS40: 0 | AT40: 0 | AU40: 0 | AV40: 0 | AW40: 0 | AX40: 0 | AY40: 0 | AZ40: 0 | BA40: 0 | BB40: 0 | BC40: 0 | BD40: 0 | BE40: 0 | BF40: 0 | BG40: 0 | BH40: 0 | BI40: 0 | BJ40: 0 | BK40: 0 | BL40: 0 | BM40: 0 | BN40: 0 | BO40: 0 | BP40: 0 | BQ40: 0 | BR40: 0 | BS40: 0 | BT40: 0 | BU40: 0 | BV40: 0 | BW40: 0 | BX40: 0 | BY40: 0 | BZ40: 0 | CA40: 0 | CB40: 0 | CC40: 0 | CD40: 0 | CE40: 0 | CF40: 0 | CG40: 0 | CH40: 0 | CI40: 0 | CJ40: 0 | CK40: 0 | CL40: 0 | CM40: 0 | CN40: 0 | CO40: 0 | CP40: 0 | CQ40: 0 | CR40: 0 | CS40: 0 | CT40: 0 | CU40: 0 | CV40: 0 | CW40: 0 | CX40: 0 | CY40: 0 | CZ40: 0 | DA40: 0 | DB40: 0 | DC40: 0 | DD40: 0 | DE40: 0 | DF40: 0 | DG40: 0 | DH40: 0 | DI40: 0 | DJ40: 0 | DK40: 0 | DL40: 0 | DM40: 0 | DN40: 0 | DO40: 0 | DP40: 0 | DQ40: 0 | DR40: 42 | DS40: A1 | DT40: 配水本管
B41: ダクタイル鋳鉄管 耐震型継手を有する (m) | C41: 200 | D41: 19000 | G41: =IF($C41=0,"-",管種別導入布設年度!B7) -> 1982 | H41: =IF($C41=0,"-",管種別導入布設年度!C7) -> 1985 | I41: 4 | J41: 50 | K41: 0 | L41: 0 | M41: 0 | N41: 0 | O41: 0 | P41: 0 | Q41: 0 | R41: 0 | S41: 0 | T41: 0 | U41: 0 | V41: 0 | W41: 50 | X41: 50 | Y41: 50 | Z41: 50 | AA41: 0 | AB41: 0 | AC41: 0 | AD41: 0 | AE41: 0 | AF41: 0 | AG41: 0 | AH41: 0 | AI41: 0 | AJ41: 0 | AK41: 0 | AL41: 0 | AM41: 0 | AN41: 0 | AO41: 0 | AP41: 0 | AQ41: 0 | AR41: 0 | AS41: 0 | AT41: 0 | AU41: 0 | AV41: 0 | AW41: 0 | AX41: 0 | AY41: 0 | AZ41: 0 | BA41: 0 | BB41: 0 | BC41: 0 | BD41: 0 | BE41: 0 | BF41: 0 | BG41: 0 | BH41: 0 | BI41: 0 | BJ41: 0 | BK41: 0 | BL41: 0 | BM41: 0 | BN41: 0 | BO41: 0 | BP41: 0 | BQ41: 0 | BR41: 0 | BS41: 0 | BT41: 0 | BU41: 0 | BV41: 0 | BW41: 0 | BX41: 0 | BY41: 0 | BZ41: 0 | CA41: 0 | CB41: 0 | CC41: 0 | CD41: 0 | CE41: 0 | CF41: 0 | CG41: 0 | CH41: 0 | CI41: 0 | CJ41: 0 | CK41: 0 | CL41: 0 | CM41: 0 | CN41: 0 | CO41: 0 | CP41: 0 | CQ41: 0 | CR41: 0 | CS41: 0 | CT41: 0 | CU41: 0 | CV41: 0 | CW41: 0 | CX41: 0 | CY41: 0 | CZ41: 0 | DA41: 0 | DB41: 0 | DC41: 0 | DD41: 0 | DE41: 0 | DF41: 0 | DG41: 0 | DH41: 0 | DI41: 0 | DJ41: 0 | DK41: 0 | DL41: 0 | DM41: 0 | DN41: 0 | DO41: 0 | DP41: 0 | DQ41: 0 | DR41: 200 | DS41: A2
B42: ダクタイル鋳鉄管 Ｋ形継手等を有するもののうち良い地盤に布設されている (m) | G42: =IF($C42=0,"-",管種別導入布設年度!B8) -> - | H42: =IF($C42=0,"-",管種別導入布設年度!C8) -> - | I42: 0 | J42: 0 | K42: 0 | L42: 0 | M42: 0 | N42: 0 | O42: 0 | P42: 0 | Q42: 0 | R42: 0 | S42: 0 | T42: 0 | U42: 0 | V42: 0 | W42: 0 | X42: 0 | Y42: 0 | Z42: 0 | AA42: 0 | AB42: 0 | AC42: 0 | AD42: 0 | AE42: 0 | AF42: 0 | AG42: 0 | AH42: 0 | AI42: 0 | AJ42: 0 | AK42: 0 | AL42: 0 | AM42: 0 | AN42: 0 | AO42: 0 | AP42: 0 | AQ42: 0 | AR42: 0 | AS42: 0 | AT42: 0 | AU42: 0 | AV42: 0 | AW42: 0 | AX42: 0 | AY42: 0 | AZ42: 0 | BA42: 0 | BB42: 0 | BC42: 0 | BD42: 0 | BE42: 0 | BF42: 0 | BG42: 0 | BH42: 0 | BI42: 0 | BJ42: 0 | BK42: 0 | BL42: 0 | BM42: 0 | BN42: 0 | BO42: 0 | BP42: 0 | BQ42: 0 | BR42: 0 | BS42: 0 | BT42: 0 | BU42: 0 | BV42: 0 | BW42: 0 | BX42: 0 | BY42: 0 | BZ42: 0 | CA42: 0 | CB42: 0 | CC42: 0 | CD42: 0 | CE42: 0 | CF42: 0 | CG42: 0 | CH42: 0 | CI42: 0 | CJ42: 0 | CK42: 0 | CL42: 0 | CM42: 0 | CN42: 0 | CO42: 0 | CP42: 0 | CQ42: 0 | CR42: 0 | CS42: 0 | CT42: 0 | CU42: 0 | CV42: 0 | CW42: 0 | CX42: 0 | CY42: 0 | CZ42: 0 | DA42: 0 | DB42: 0 | DC42: 0 | DD42: 0 | DE42: 0 | DF42: 0 | DG42: 0 | DH42: 0 | DI42: 0 | DJ42: 0 | DK42: 0 | DL42: 0 | DM42: 0 | DN42: 0 | DO42: 0 | DP42: 0 | DQ42: 0 | DR42: 0 | DS42: A3
B43: ダクタイル鋳鉄管 (上記以外・不明なものを含む) (m) | E43: =IF(H43<2000,C43/(1999-G43+1),IF(G43<2000,C43/((1999-G43+1)+(H43+2-2000)/2),2*C43/(H43+2-G43))) ->  | F43: =IF($H43<2000,0,E43/(H43+IF(G43<2000,1-2000,1-G43))) ->  | G43: =IF($C43=0,"-",管種別導入布設年度!B9) -> - | H43: =IF($C43=0,"-",管種別導入布設年度!C9) -> - | I43: 0 | J43: 0 | K43: =IF($C43=0,0,IF(K$5<INT($G43),0,IF(K$5>INT($H43),0,IF(K$5<2000,$E43,$E43-($F43*(K$5-IF($G43<2001,2000,$G43))))))) -> 0 | L43: 0 | M43: 0 | N43: 0 | O43: 0 | P43: 0 | Q43: 0 | R43: 0 | S43: 0 | T43: 0 | U43: 0 | V43: 0 | W43: 0 | X43: 0 | Y43: 0 | Z43: 0 | AA43: 0 | AB43: 0 | AC43: 0 | AD43: 0 | AE43: 0 | AF43: 0 | AG43: 0 | AH43: 0 | AI43: 0 | AJ43: 0 | AK43: 0 | AL43: 0 | AM43: 0 | AN43: 0 | AO43: 0 | AP43: 0 | AQ43: =IF($C43=0,0,IF(AQ$5<INT($G43),0,IF(AQ$5>INT($H43),0,IF(AQ$5<2000,$E43,$E43-($F43*(AQ$5-IF($G43<2001,2000,$G43))))))) -> 0 | AR43: 0 | AS43: 0 | AT43: 0 | AU43: 0 | AV43: 0 | AW43: 0 | AX43: 0 | AY43: 0 | AZ43: 0 | BA43: 0 | BB43: 0 | BC43: 0 | BD43: 0 | BE43: 0 | BF43: 0 | BG43: 0 | BH43: 0 | BI43: 0 | BJ43: 0 | BK43: 0 | BL43: 0 | BM43: 0 | BN43: 0 | BO43: 0 | BP43: 0 | BQ43: 0 | BR43: 0 | BS43: 0 | BT43: 0 | BU43: 0 | BV43: 0 | BW43: =IF($C43=0,0,IF(BW$5<INT($G43),0,IF(BW$5>INT($H43),0,IF(BW$5<2000,$E43,$E43-($F43*(BW$5-IF($G43<2001,2000,$G43))))))) -> 0 | BX43: 0 | BY43: 0 | BZ43: 0 | CA43: 0 | CB43: 0 | CC43: 0 | CD43: 0 | CE43: 0 | CF43: 0 | CG43: 0 | CH43: 0 | CI43: 0 | CJ43: 0 | CK43: 0 | CL43: 0 | CM43: 0 | CN43: 0 | CO43: 0 | CP43: 0 | CQ43: 0 | CR43: 0 | CS43: 0 | CT43: 0 | CU43: 0 | CV43: 0 | CW43: 0 | CX43: 0 | CY43: 0 | CZ43: 0 | DA43: 0 | DB43: 0 | DC43: =IF($C43=0,0,IF(DC$5<INT($G43),0,IF(DC$5>INT($H43),0,IF(DC$5<2000,$E43,$E43-($F43*(DC$5-IF($G43<2001,2000,$G43))))))) -> 0 | DD43: 0 | DE43: 0 | DF43: 0 | DG43: 0 | DH43: 0 | DI43: 0 | DJ43: 0 | DK43: 0 | DL43: 0 | DM43: 0 | DN43: 0 | DO43: 0 | DP43: 0 | DQ43: 0 | DR43: 0 | DS43: A9
B44: 鋼管 （溶接継手を有する） （m） | G44: =IF($C44=0,"-",管種別導入布設年度!B10) -> - | H44: =IF($C44=0,"-",管種別導入布設年度!C10) -> - | I44: 0 | J44: 0 | K44: =IF($C44=0,0,IF(K$5<INT($G44),0, IF(K$5>INT($H44),0,$J44))) -> 0 | L44: 0 | M44: 0 | N44: 0 | O44: 0 | P44: 0 | Q44: 0 | R44: 0 | S44: 0 | T44: 0 | U44: =IF($C44=0,0,IF(U$5<INT($G44),0, IF(U$5>INT($H44),0,$J44))) -> 0 | V44: 0 | W44: 0 | X44: 0 | Y44: 0 | Z44: 0 | AA44: 0 | AB44: 0 | AC44: 0 | AD44: 0 | AE44: =IF($C44=0,0,IF(AE$5<INT($G44),0, IF(AE$5>INT($H44),0,$J44))) -> 0 | AF44: 0 | AG44: 0 | AH44: 0 | AI44: 0 | AJ44: 0 | AK44: 0 | AL44: 0 | AM44: 0 | AN44: 0 | AO44: =IF($C44=0,0,IF(AO$5<INT($G44),0, IF(AO$5>INT($H44),0,$J44))) -> 0 | AP44: 0 | AQ44: 0 | AR44: 0 | AS44: 0 | AT44: 0 | AU44: 0 | AV44: 0 | AW44: 0 | AX44: 0 | AY44: =IF($C44=0,0,IF(AY$5<INT($G44),0, IF(AY$5>INT($H44),0,$J44))) -> 0 | AZ44: 0 | BA44: 0 | BB44: 0 | BC44: 0 | BD44: 0 | BE44: 0 | BF44: 0 | BG44: 0 | BH44: 0 | BI44: =IF($C44=0,0,IF(BI$5<INT($G44),0, IF(BI$5>INT($H44),0,$J44))) -> 0 | BJ44: 0 | BK44: 0 | BL44: 0 | BM44: 0 | BN44: 0 | BO44: 0 | BP44: 0 | BQ44: 0 | BR44: 0 | BS44: =IF($C44=0,0,IF(BS$5<INT($G44),0, IF(BS$5>INT($H44),0,$J44))) -> 0 | BT44: 0 | BU44: 0 | BV44: 0 | BW44: 0 | BX44: 0 | BY44: 0 | BZ44: 0 | CA44: 0 | CB44: 0 | CC44: =IF($C44=0,0,IF(CC$5<INT($G44),0, IF(CC$5>INT($H44),0,$J44))) -> 0 | CD44: 0 | CE44: 0 | CF44: 0 | CG44: 0 | CH44: 0 | CI44: 0 | CJ44: 0 | CK44: 0 | CL44: 0 | CM44: =IF($C44=0,0,IF(CM$5<INT($G44),0, IF(CM$5>INT($H44),0,$J44))) -> 0 | CN44: 0 | CO44: 0 | CP44: 0 | CQ44: 0 | CR44: 0 | CS44: 0 | CT44: 0 | CU44: 0 | CV44: 0 | CW44: =IF($C44=0,0,IF(CW$5<INT($G44),0, IF(CW$5>INT($H44),0,$J44))) -> 0 | CX44: 0 | CY44: 0 | CZ44: 0 | DA44: 0 | DB44: 0 | DC44: 0 | DD44: 0 | DE44: 0 | DF44: 0 | DG44: =IF($C44=0,0,IF(DG$5<INT($G44),0, IF(DG$5>INT($H44),0,$J44))) -> 0 | DH44: 0 | DI44: 0 | DJ44: 0 | DK44: 0 | DL44: 0 | DM44: 0 | DN44: 0 | DO44: 0 | DP44: 0 | DQ44: 0 | DR44: 0 | DS44: B1
B45: 鋼管 （上記以外・不明なものを含む） （m） | G45: =IF($C45=0,"-",管種別導入布設年度!B11) -> - | H45: =IF($C45=0,"-",管種別導入布設年度!C11) -> - | I45: 0 | J45: 0 | K45: 0 | L45: 0 | M45: 0 | N45: 0 | O45: 0 | P45: 0 | Q45: 0 | R45: 0 | S45: 0 | T45: 0 | U45: 0 | V45: 0 | W45: 0 | X45: 0 | Y45: 0 | Z45: 0 | AA45: 0 | AB45: 0 | AC45: 0 | AD45: 0 | AE45: 0 | AF45: 0 | AG45: 0 | AH45: 0 | AI45: 0 | AJ45: 0 | AK45: 0 | AL45: 0 | AM45: 0 | AN45: 0 | AO45: 0 | AP45: 0 | AQ45: 0 | AR45: 0 | AS45: 0 | AT45: 0 | AU45: 0 | AV45: 0 | AW45: 0 | AX45: 0 | AY45: 0 | AZ45: 0 | BA45: 0 | BB45: 0 | BC45: 0 | BD45: 0 | BE45: 0 | BF45: 0 | BG45: 0 | BH45: 0 | BI45: 0 | BJ45: 0 | BK45: 0 | BL45: 0 | BM45: 0 | BN45: 0 | BO45: 0 | BP45: 0 | BQ45: 0 | BR45: 0 | BS45: 0 | BT45: 0 | BU45: 0 | BV45: 0 | BW45: 0 | BX45: 0 | BY45: 0 | BZ45: 0 | CA45: 0 | CB45: 0 | CC45: 0 | CD45: 0 | CE45: 0 | CF45: 0 | CG45: 0 | CH45: 0 | CI45: 0 | CJ45: 0 | CK45: 0 | CL45: 0 | CM45: 0 | CN45: 0 | CO45: 0 | CP45: 0 | CQ45: 0 | CR45: 0 | CS45: 0 | CT45: 0 | CU45: 0 | CV45: 0 | CW45: 0 | CX45: 0 | CY45: 0 | CZ45: 0 | DA45: 0 | DB45: 0 | DC45: 0 | DD45: 0 | DE45: 0 | DF45: 0 | DG45: 0 | DH45: 0 | DI45: 0 | DJ45: 0 | DK45: 0 | DL45: 0 | DM45: 0 | DN45: 0 | DO45: 0 | DP45: 0 | DQ45: 0 | DR45: 0 | DS45: B9
B46: 石綿セメント管 (m) | G46: =IF($C46=0,"-",管種別導入布設年度!B12) -> - | H46: =IF($C46=0,"-",管種別導入布設年度!C12) -> - | I46: 0 | J46: 0 | K46: 0 | L46: 0 | M46: 0 | N46: 0 | O46: 0 | P46: 0 | Q46: 0 | R46: 0 | S46: 0 | T46: 0 | U46: 0 | V46: 0 | W46: 0 | X46: 0 | Y46: 0 | Z46: 0 | AA46: 0 | AB46: 0 | AC46: 0 | AD46: 0 | AE46: 0 | AF46: 0 | AG46: 0 | AH46: 0 | AI46: 0 | AJ46: 0 | AK46: 0 | AL46: 0 | AM46: 0 | AN46: 0 | AO46: 0 | AP46: 0 | AQ46: 0 | AR46: 0 | AS46: 0 | AT46: 0 | AU46: 0 | AV46: 0 | AW46: 0 | AX46: 0 | AY46: 0 | AZ46: 0 | BA46: 0 | BB46: 0 | BC46: 0 | BD46: 0 | BE46: 0 | BF46: 0 | BG46: 0 | BH46: 0 | BI46: 0 | BJ46: 0 | BK46: 0 | BL46: 0 | BM46: 0 | BN46: 0 | BO46: 0 | BP46: 0 | BQ46: 0 | BR46: 0 | BS46: 0 | BT46: 0 | BU46: 0 | BV46: 0 | BW46: 0 | BX46: 0 | BY46: 0 | BZ46: 0 | CA46: 0 | CB46: 0 | CC46: 0 | CD46: 0 | CE46: 0 | CF46: 0 | CG46: 0 | CH46: 0 | CI46: 0 | CJ46: 0 | CK46: 0 | CL46: 0 | CM46: 0 | CN46: 0 | CO46: 0 | CP46: 0 | CQ46: 0 | CR46: 0 | CS46: 0 | CT46: 0 | CU46: 0 | CV46: 0 | CW46: 0 | CX46: 0 | CY46: 0 | CZ46: 0 | DA46: 0 | DB46: 0 | DC46: 0 | DD46: 0 | DE46: 0 | DF46: 0 | DG46: 0 | DH46: 0 | DI46: 0 | DJ46: 0 | DK46: 0 | DL46: 0 | DM46: 0 | DN46: 0 | DO46: 0 | DP46: 0 | DQ46: 0 | DR46: 0 | DS46: C1
B47: 硬質塩化ビニル管 （ＲＲロング継手等を有する） (m) | G47: =IF($C47=0,"-",管種別導入布設年度!B13) -> - | H47: =IF($C47=0,"-",管種別導入布設年度!C13) -> - | I47: 0 | J47: 0 | K47: 0 | L47: 0 | M47: 0 | N47: 0 | O47: 0 | P47: 0 | Q47: 0 | R47: 0 | S47: 0 | T47: 0 | U47: 0 | V47: 0 | W47: 0 | X47: 0 | Y47: 0 | Z47: 0 | AA47: 0 | AB47: 0 | AC47: 0 | AD47: 0 | AE47: 0 | AF47: 0 | AG47: 0 | AH47: 0 | AI47: 0 | AJ47: 0 | AK47: 0 | AL47: 0 | AM47: 0 | AN47: 0 | AO47: 0 | AP47: 0 | AQ47: 0 | AR47: 0 | AS47: 0 | AT47: 0 | AU47: 0 | AV47: 0 | AW47: 0 | AX47: 0 | AY47: 0 | AZ47: 0 | BA47: 0 | BB47: 0 | BC47: 0 | BD47: 0 | BE47: 0 | BF47: 0 | BG47: 0 | BH47: 0 | BI47: 0 | BJ47: 0 | BK47: 0 | BL47: 0 | BM47: 0 | BN47: 0 | BO47: 0 | BP47: 0 | BQ47: 0 | BR47: 0 | BS47: 0 | BT47: 0 | BU47: 0 | BV47: 0 | BW47: 0 | BX47: 0 | BY47: 0 | BZ47: 0 | CA47: 0 | CB47: 0 | CC47: 0 | CD47: 0 | CE47: 0 | CF47: 0 | CG47: 0 | CH47: 0 | CI47: 0 | CJ47: 0 | CK47: 0 | CL47: 0 | CM47: 0 | CN47: 0 | CO47: 0 | CP47: 0 | CQ47: 0 | CR47: 0 | CS47: 0 | CT47: 0 | CU47: 0 | CV47: 0 | CW47: 0 | CX47: 0 | CY47: 0 | CZ47: 0 | DA47: 0 | DB47: 0 | DC47: 0 | DD47: 0 | DE47: 0 | DF47: 0 | DG47: 0 | DH47: 0 | DI47: 0 | DJ47: 0 | DK47: 0 | DL47: 0 | DM47: 0 | DN47: 0 | DO47: 0 | DP47: 0 | DQ47: 0 | DR47: 0 | DS47: D1
B48: 硬質塩化ビニル管 （ＲＲ継手等を有する） (m) | G48: =IF($C48=0,"-",管種別導入布設年度!B14) -> - | H48: =IF($C48=0,"-",管種別導入布設年度!C14) -> - | I48: 0 | J48: 0 | K48: 0 | L48: 0 | M48: 0 | N48: 0 | O48: 0 | P48: 0 | Q48: 0 | R48: 0 | S48: 0 | T48: 0 | U48: 0 | V48: 0 | W48: 0 | X48: 0 | Y48: 0 | Z48: 0 | AA48: 0 | AB48: 0 | AC48: 0 | AD48: 0 | AE48: 0 | AF48: 0 | AG48: 0 | AH48: 0 | AI48: 0 | AJ48: 0 | AK48: 0 | AL48: 0 | AM48: 0 | AN48: 0 | AO48: 0 | AP48: 0 | AQ48: 0 | AR48: 0 | AS48: 0 | AT48: 0 | AU48: 0 | AV48: 0 | AW48: 0 | AX48: 0 | AY48: 0 | AZ48: 0 | BA48: 0 | BB48: 0 | BC48: 0 | BD48: 0 | BE48: 0 | BF48: 0 | BG48: 0 | BH48: 0 | BI48: 0 | BJ48: 0 | BK48: 0 | BL48: 0 | BM48: 0 | BN48: 0 | BO48: 0 | BP48: 0 | BQ48: 0 | BR48: 0 | BS48: 0 | BT48: 0 | BU48: 0 | BV48: 0 | BW48: 0 | BX48: 0 | BY48: 0 | BZ48: 0 | CA48: 0 | CB48: 0 | CC48: 0 | CD48: 0 | CE48: 0 | CF48: 0 | CG48: 0 | CH48: 0 | CI48: 0 | CJ48: 0 | CK48: 0 | CL48: 0 | CM48: 0 | CN48: 0 | CO48: 0 | CP48: 0 | CQ48: 0 | CR48: 0 | CS48: 0 | CT48: 0 | CU48: 0 | CV48: 0 | CW48: 0 | CX48: 0 | CY48: 0 | CZ48: 0 | DA48: 0 | DB48: 0 | DC48: 0 | DD48: 0 | DE48: 0 | DF48: 0 | DG48: 0 | DH48: 0 | DI48: 0 | DJ48: 0 | DK48: 0 | DL48: 0 | DM48: 0 | DN48: 0 | DO48: 0 | DP48: 0 | DQ48: 0 | DR48: 0 | DS48: D2
B49: 硬質塩化ビニル管 （上記以外・不明なものを含む） (m) | E49: =IF(H49<2000,C49/(1999-G49+1),IF(G49<2000,C49/((1999-G49+1)+(H49+2-2000)/2),2*C49/(H49+2-G49))) ->  | F49: =IF($H49<2000,0,E49/(H49+IF(G49<2000,1-2000,1-G49))) ->  | G49: =IF($C49=0,"-",管種別導入布設年度!B15) -> - | H49: =IF($C49=0,"-",管種別導入布設年度!C15) -> - | I49: 0 | J49: 0 | K49: =IF($C49=0,0,IF(K$5<INT($G49),0,IF(K$5>INT($H49),0,IF(K$5<2000,$E49,$E49-($F49*(K$5-IF($G49<2001,2000,$G49))))))) -> 0 | L49: 0 | M49: 0 | N49: 0 | O49: 0 | P49: 0 | Q49: 0 | R49: 0 | S49: 0 | T49: 0 | U49: 0 | V49: 0 | W49: 0 | X49: 0 | Y49: 0 | Z49: 0 | AA49: 0 | AB49: 0 | AC49: 0 | AD49: 0 | AE49: 0 | AF49: 0 | AG49: 0 | AH49: 0 | AI49: 0 | AJ49: 0 | AK49: 0 | AL49: 0 | AM49: 0 | AN49: 0 | AO49: 0 | AP49: 0 | AQ49: =IF($C49=0,0,IF(AQ$5<INT($G49),0,IF(AQ$5>INT($H49),0,IF(AQ$5<2000,$E49,$E49-($F49*(AQ$5-IF($G49<2001,2000,$G49))))))) -> 0 | AR49: 0 | AS49: 0 | AT49: 0 | AU49: 0 | AV49: 0 | AW49: 0 | AX49: 0 | AY49: 0 | AZ49: 0 | BA49: 0 | BB49: 0 | BC49: 0 | BD49: 0 | BE49: 0 | BF49: 0 | BG49: 0 | BH49: 0 | BI49: 0 | BJ49: 0 | BK49: 0 | BL49: 0 | BM49: 0 | BN49: 0 | BO49: 0 | BP49: 0 | BQ49: 0 | BR49: 0 | BS49: 0 | BT49: 0 | BU49: 0 | BV49: 0 | BW49: =IF($C49=0,0,IF(BW$5<INT($G49),0,IF(BW$5>INT($H49),0,IF(BW$5<2000,$E49,$E49-($F49*(BW$5-IF($G49<2001,2000,$G49))))))) -> 0 | BX49: 0 | BY49: 0 | BZ49: 0 | CA49: 0 | CB49: 0 | CC49: 0 | CD49: 0 | CE49: 0 | CF49: 0 | CG49: 0 | CH49: 0 | CI49: 0 | CJ49: 0 | CK49: 0 | CL49: 0 | CM49: 0 | CN49: 0 | CO49: 0 | CP49: 0 | CQ49: 0 | CR49: 0 | CS49: 0 | CT49: 0 | CU49: 0 | CV49: 0 | CW49: 0 | CX49: 0 | CY49: 0 | CZ49: 0 | DA49: 0 | DB49: 0 | DC49: =IF($C49=0,0,IF(DC$5<INT($G49),0,IF(DC$5>INT($H49),0,IF(DC$5<2000,$E49,$E49-($F49*(DC$5-IF($G49<2001,2000,$G49))))))) -> 0 | DD49: 0 | DE49: 0 | DF49: 0 | DG49: 0 | DH49: 0 | DI49: 0 | DJ49: 0 | DK49: 0 | DL49: 0 | DM49: 0 | DN49: 0 | DO49: 0 | DP49: 0 | DQ49: 0 | DR49: 0 | DS49: D9
B50: コンクリート管 (m) | G50: =IF($C50=0,"-",管種別導入布設年度!B16) -> - | H50: =IF($C50=0,"-",管種別導入布設年度!C16) -> - | I50: 0 | J50: 0 | K50: =IF($C50=0,0,IF(K$5<INT($G50),0, IF(K$5>INT($H50),0,$J50))) -> 0 | L50: 0 | M50: 0 | N50: 0 | O50: 0 | P50: 0 | Q50: 0 | R50: 0 | S50: 0 | T50: 0 | U50: =IF($C50=0,0,IF(U$5<INT($G50),0, IF(U$5>INT($H50),0,$J50))) -> 0 | V50: 0 | W50: 0 | X50: 0 | Y50: 0 | Z50: 0 | AA50: 0 | AB50: 0 | AC50: 0 | AD50: 0 | AE50: =IF($C50=0,0,IF(AE$5<INT($G50),0, IF(AE$5>INT($H50),0,$J50))) -> 0 | AF50: 0 | AG50: 0 | AH50: 0 | AI50: 0 | AJ50: 0 | AK50: 0 | AL50: 0 | AM50: 0 | AN50: 0 | AO50: =IF($C50=0,0,IF(AO$5<INT($G50),0, IF(AO$5>INT($H50),0,$J50))) -> 0 | AP50: 0 | AQ50: 0 | AR50: 0 | AS50: 0 | AT50: 0 | AU50: 0 | AV50: 0 | AW50: 0 | AX50: 0 | AY50: =IF($C50=0,0,IF(AY$5<INT($G50),0, IF(AY$5>INT($H50),0,$J50))) -> 0 | AZ50: 0 | BA50: 0 | BB50: 0 | BC50: 0 | BD50: 0 | BE50: 0 | BF50: 0 | BG50: 0 | BH50: 0 | BI50: =IF($C50=0,0,IF(BI$5<INT($G50),0, IF(BI$5>INT($H50),0,$J50))) -> 0 | BJ50: 0 | BK50: 0 | BL50: 0 | BM50: 0 | BN50: 0 | BO50: 0 | BP50: 0 | BQ50: 0 | BR50: 0 | BS50: =IF($C50=0,0,IF(BS$5<INT($G50),0, IF(BS$5>INT($H50),0,$J50))) -> 0 | BT50: 0 | BU50: 0 | BV50: 0 | BW50: 0 | BX50: 0 | BY50: 0 | BZ50: 0 | CA50: 0 | CB50: 0 | CC50: =IF($C50=0,0,IF(CC$5<INT($G50),0, IF(CC$5>INT($H50),0,$J50))) -> 0 | CD50: 0 | CE50: 0 | CF50: 0 | CG50: 0 | CH50: 0 | CI50: 0 | CJ50: 0 | CK50: 0 | CL50: 0 | CM50: =IF($C50=0,0,IF(CM$5<INT($G50),0, IF(CM$5>INT($H50),0,$J50))) -> 0 | CN50: 0 | CO50: 0 | CP50: 0 | CQ50: 0 | CR50: 0 | CS50: 0 | CT50: 0 | CU50: 0 | CV50: 0 | CW50: =IF($C50=0,0,IF(CW$5<INT($G50),0, IF(CW$5>INT($H50),0,$J50))) -> 0 | CX50: 0 | CY50: 0 | CZ50: 0 | DA50: 0 | DB50: 0 | DC50: 0 | DD50: 0 | DE50: 0 | DF50: 0 | DG50: =IF($C50=0,0,IF(DG$5<INT($G50),0, IF(DG$5>INT($H50),0,$J50))) -> 0 | DH50: 0 | DI50: 0 | DJ50: 0 | DK50: 0 | DL50: 0 | DM50: 0 | DN50: 0 | DO50: 0 | DP50: 0 | DQ50: 0 | DR50: 0 | DS50: E1
B51: 鉛管 (m) | G51: =IF($C51=0,"-",管種別導入布設年度!B17) -> - | H51: =IF($C51=0,"-",管種別導入布設年度!C17) -> - | I51: 0 | J51: 0 | K51: 0 | L51: 0 | M51: 0 | N51: 0 | O51: 0 | P51: 0 | Q51: 0 | R51: 0 | S51: 0 | T51: 0 | U51: 0 | V51: 0 | W51: 0 | X51: 0 | Y51: 0 | Z51: 0 | AA51: 0 | AB51: 0 | AC51: 0 | AD51: 0 | AE51: 0 | AF51: 0 | AG51: 0 | AH51: 0 | AI51: 0 | AJ51: 0 | AK51: 0 | AL51: 0 | AM51: 0 | AN51: 0 | AO51: 0 | AP51: 0 | AQ51: 0 | AR51: 0 | AS51: 0 | AT51: 0 | AU51: 0 | AV51: 0 | AW51: 0 | AX51: 0 | AY51: 0 | AZ51: 0 | BA51: 0 | BB51: 0 | BC51: 0 | BD51: 0 | BE51: 0 | BF51: 0 | BG51: 0 | BH51: 0 | BI51: 0 | BJ51: 0 | BK51: 0 | BL51: 0 | BM51: 0 | BN51: 0 | BO51: 0 | BP51: 0 | BQ51: 0 | BR51: 0 | BS51: 0 | BT51: 0 | BU51: 0 | BV51: 0 | BW51: 0 | BX51: 0 | BY51: 0 | BZ51: 0 | CA51: 0 | CB51: 0 | CC51: 0 | CD51: 0 | CE51: 0 | CF51: 0 | CG51: 0 | CH51: 0 | CI51: 0 | CJ51: 0 | CK51: 0 | CL51: 0 | CM51: 0 | CN51: 0 | CO51: 0 | CP51: 0 | CQ51: 0 | CR51: 0 | CS51: 0 | CT51: 0 | CU51: 0 | CV51: 0 | CW51: 0 | CX51: 0 | CY51: 0 | CZ51: 0 | DA51: 0 | DB51: 0 | DC51: 0 | DD51: 0 | DE51: 0 | DF51: 0 | DG51: 0 | DH51: 0 | DI51: 0 | DJ51: 0 | DK51: 0 | DL51: 0 | DM51: 0 | DN51: 0 | DO51: 0 | DP51: 0 | DQ51: 0 | DR51: 0 | DS51: F1
B52: ポリエチレン管 （高密度、熱融着継手を有する） （m） | G52: =IF($C52=0,"-",管種別導入布設年度!B18) -> - | H52: =IF($C52=0,"-",管種別導入布設年度!C18) -> - | I52: 0 | J52: 0 | K52: 0 | L52: 0 | M52: 0 | N52: 0 | O52: 0 | P52: 0 | Q52: 0 | R52: 0 | S52: 0 | T52: 0 | U52: 0 | V52: 0 | W52: 0 | X52: 0 | Y52: 0 | Z52: 0 | AA52: 0 | AB52: 0 | AC52: 0 | AD52: 0 | AE52: 0 | AF52: 0 | AG52: 0 | AH52: 0 | AI52: 0 | AJ52: 0 | AK52: 0 | AL52: 0 | AM52: 0 | AN52: 0 | AO52: 0 | AP52: 0 | AQ52: 0 | AR52: 0 | AS52: 0 | AT52: 0 | AU52: 0 | AV52: 0 | AW52: 0 | AX52: 0 | AY52: 0 | AZ52: 0 | BA52: 0 | BB52: 0 | BC52: 0 | BD52: 0 | BE52: 0 | BF52: 0 | BG52: 0 | BH52: 0 | BI52: 0 | BJ52: 0 | BK52: 0 | BL52: 0 | BM52: 0 | BN52: 0 | BO52: 0 | BP52: 0 | BQ52: 0 | BR52: 0 | BS52: 0 | BT52: 0 | BU52: 0 | BV52: 0 | BW52: 0 | BX52: 0 | BY52: 0 | BZ52: 0 | CA52: 0 | CB52: 0 | CC52: 0 | CD52: 0 | CE52: 0 | CF52: 0 | CG52: 0 | CH52: 0 | CI52: 0 | CJ52: 0 | CK52: 0 | CL52: 0 | CM52: 0 | CN52: 0 | CO52: 0 | CP52: 0 | CQ52: 0 | CR52: 0 | CS52: 0 | CT52: 0 | CU52: 0 | CV52: 0 | CW52: 0 | CX52: 0 | CY52: 0 | CZ52: 0 | DA52: 0 | DB52: 0 | DC52: 0 | DD52: 0 | DE52: 0 | DF52: 0 | DG52: 0 | DH52: 0 | DI52: 0 | DJ52: 0 | DK52: 0 | DL52: 0 | DM52: 0 | DN52: 0 | DO52: 0 | DP52: 0 | DQ52: 0 | DR52: 0 | DS52: G1
B53: ポリエチレン管 （上記以外・不明なものを含む） （m） | G53: =IF($C53=0,"-",管種別導入布設年度!B19) -> - | H53: =IF($C53=0,"-",管種別導入布設年度!C19) -> - | I53: 0 | J53: 0 | K53: 0 | L53: 0 | M53: 0 | N53: 0 | O53: 0 | P53: 0 | Q53: 0 | R53: 0 | S53: 0 | T53: 0 | U53: 0 | V53: 0 | W53: 0 | X53: 0 | Y53: 0 | Z53: 0 | AA53: 0 | AB53: 0 | AC53: 0 | AD53: 0 | AE53: 0 | AF53: 0 | AG53: 0 | AH53: 0 | AI53: 0 | AJ53: 0 | AK53: 0 | AL53: 0 | AM53: 0 | AN53: 0 | AO53: 0 | AP53: 0 | AQ53: 0 | AR53: 0 | AS53: 0 | AT53: 0 | AU53: 0 | AV53: 0 | AW53: 0 | AX53: 0 | AY53: 0 | AZ53: 0 | BA53: 0 | BB53: 0 | BC53: 0 | BD53: 0 | BE53: 0 | BF53: 0 | BG53: 0 | BH53: 0 | BI53: 0 | BJ53: 0 | BK53: 0 | BL53: 0 | BM53: 0 | BN53: 0 | BO53: 0 | BP53: 0 | BQ53: 0 | BR53: 0 | BS53: 0 | BT53: 0 | BU53: 0 | BV53: 0 | BW53: 0 | BX53: 0 | BY53: 0 | BZ53: 0 | CA53: 0 | CB53: 0 | CC53: 0 | CD53: 0 | CE53: 0 | CF53: 0 | CG53: 0 | CH53: 0 | CI53: 0 | CJ53: 0 | CK53: 0 | CL53: 0 | CM53: 0 | CN53: 0 | CO53: 0 | CP53: 0 | CQ53: 0 | CR53: 0 | CS53: 0 | CT53: 0 | CU53: 0 | CV53: 0 | CW53: 0 | CX53: 0 | CY53: 0 | CZ53: 0 | DA53: 0 | DB53: 0 | DC53: 0 | DD53: 0 | DE53: 0 | DF53: 0 | DG53: 0 | DH53: 0 | DI53: 0 | DJ53: 0 | DK53: 0 | DL53: 0 | DM53: 0 | DN53: 0 | DO53: 0 | DP53: 0 | DQ53: 0 | DR53: 0 | DS53: G9
B54: ステンレス管 耐震型継手を有する (m) | C54: 190 | D54: 18810 | G54: =IF($C54=0,"-",管種別導入布設年度!B20) -> 1985 | H54: =IF($C54=0,"-",管種別導入布設年度!C20) -> 1989 | I54: 5 | J54: 38 | K54: 0 | L54: 0 | M54: 0 | N54: 0 | O54: 0 | P54: 0 | Q54: 0 | R54: 0 | S54: 0 | T54: 0 | U54: 0 | V54: 0 | W54: 0 | X54: 0 | Y54: 0 | Z54: 38 | AA54: 38 | AB54: 38 | AC54: 38 | AD54: 38 | AE54: 0 | AF54: 0 | AG54: 0 | AH54: 0 | AI54: 0 | AJ54: 0 | AK54: 0 | AL54: 0 | AM54: 0 | AN54: 0 | AO54: 0 | AP54: 0 | AQ54: 0 | AR54: 0 | AS54: 0 | AT54: 0 | AU54: 0 | AV54: 0 | AW54: 0 | AX54: 0 | AY54: 0 | AZ54: 0 | BA54: 0 | BB54: 0 | BC54: 0 | BD54: 0 | BE54: 0 | BF54: 0 | BG54: 0 | BH54: 0 | BI54: 0 | BJ54: 0 | BK54: 0 | BL54: 0 | BM54: 0 | BN54: 0 | BO54: 0 | BP54: 0 | BQ54: 0 | BR54: 0 | BS54: 0 | BT54: 0 | BU54: 0 | BV54: 0 | BW54: 0 | BX54: 0 | BY54: 0 | BZ54: 0 | CA54: 0 | CB54: 0 | CC54: 0 | CD54: 0 | CE54: 0 | CF54: 0 | CG54: 0 | CH54: 0 | CI54: 0 | CJ54: 0 | CK54: 0 | CL54: 0 | CM54: 0 | CN54: 0 | CO54: 0 | CP54: 0 | CQ54: 0 | CR54: 0 | CS54: 0 | CT54: 0 | CU54: 0 | CV54: 0 | CW54: 0 | CX54: 0 | CY54: 0 | CZ54: 0 | DA54: 0 | DB54: 0 | DC54: 0 | DD54: 0 | DE54: 0 | DF54: 0 | DG54: 0 | DH54: 0 | DI54: 0 | DJ54: 0 | DK54: 0 | DL54: 0 | DM54: 0 | DN54: 0 | DO54: 0 | DP54: 0 | DQ54: 0 | DR54: 190 | DS54: H1
B55: ステンレス管 (上記以外・不明なものを含む） (m) | G55: =IF($C55=0,"-",管種別導入布設年度!B21) -> - | H55: =IF($C55=0,"-",管種別導入布設年度!C21) -> - | I55: 0 | J55: 0 | K55: 0 | L55: 0 | M55: 0 | N55: 0 | O55: 0 | P55: 0 | Q55: 0 | R55: 0 | S55: 0 | T55: 0 | U55: 0 | V55: 0 | W55: 0 | X55: 0 | Y55: 0 | Z55: 0 | AA55: 0 | AB55: 0 | AC55: 0 | AD55: 0 | AE55: 0 | AF55: 0 | AG55: 0 | AH55: 0 | AI55: 0 | AJ55: 0 | AK55: 0 | AL55: 0 | AM55: 0 | AN55: 0 | AO55: 0 | AP55: 0 | AQ55: 0 | AR55: 0 | AS55: 0 | AT55: 0 | AU55: 0 | AV55: 0 | AW55: 0 | AX55: 0 | AY55: 0 | AZ55: 0 | BA55: 0 | BB55: 0 | BC55: 0 | BD55: 0 | BE55: 0 | BF55: 0 | BG55: 0 | BH55: 0 | BI55: 0 | BJ55: 0 | BK55: 0 | BL55: 0 | BM55: 0 | BN55: 0 | BO55: 0 | BP55: 0 | BQ55: 0 | BR55: 0 | BS55: 0 | BT55: 0 | BU55: 0 | BV55: 0 | BW55: 0 | BX55: 0 | BY55: 0 | BZ55: 0 | CA55: 0 | CB55: 0 | CC55: 0 | CD55: 0 | CE55: 0 | CF55: 0 | CG55: 0 | CH55: 0 | CI55: 0 | CJ55: 0 | CK55: 0 | CL55: 0 | CM55: 0 | CN55: 0 | CO55: 0 | CP55: 0 | CQ55: 0 | CR55: 0 | CS55: 0 | CT55: 0 | CU55: 0 | CV55: 0 | CW55: 0 | CX55: 0 | CY55: 0 | CZ55: 0 | DA55: 0 | DB55: 0 | DC55: 0 | DD55: 0 | DE55: 0 | DF55: 0 | DG55: 0 | DH55: 0 | DI55: 0 | DJ55: 0 | DK55: 0 | DL55: 0 | DM55: 0 | DN55: 0 | DO55: 0 | DP55: 0 | DQ55: 0 | DR55: 0 | DS55: H9
B56: その他 (管種が不明を含む) (m) | G56: =IF($C56=0,"-",管種別導入布設年度!B22) -> - | H56: =IF($C56=0,"-",管種別導入布設年度!C22) -> - | I56: 0 | J56: 0 | K56: 0 | L56: 0 | M56: 0 | N56: 0 | O56: 0 | P56: 0 | Q56: 0 | R56: 0 | S56: 0 | T56: 0 | U56: 0 | V56: 0 | W56: 0 | X56: 0 | Y56: 0 | Z56: 0 | AA56: 0 | AB56: 0 | AC56: 0 | AD56: 0 | AE56: 0 | AF56: 0 | AG56: 0 | AH56: 0 | AI56: 0 | AJ56: 0 | AK56: 0 | AL56: 0 | AM56: 0 | AN56: 0 | AO56: 0 | AP56: 0 | AQ56: 0 | AR56: 0 | AS56: 0 | AT56: 0 | AU56: 0 | AV56: 0 | AW56: 0 | AX56: 0 | AY56: 0 | AZ56: 0 | BA56: 0 | BB56: 0 | BC56: 0 | BD56: 0 | BE56: 0 | BF56: 0 | BG56: 0 | BH56: 0 | BI56: 0 | BJ56: 0 | BK56: 0 | BL56: 0 | BM56: 0 | BN56: 0 | BO56: 0 | BP56: 0 | BQ56: 0 | BR56: 0 | BS56: 0 | BT56: 0 | BU56: 0 | BV56: 0 | BW56: 0 | BX56: 0 | BY56: 0 | BZ56: 0 | CA56: 0 | CB56: 0 | CC56: 0 | CD56: 0 | CE56: 0 | CF56: 0 | CG56: 0 | CH56: 0 | CI56: 0 | CJ56: 0 | CK56: 0 | CL56: 0 | CM56: 0 | CN56: 0 | CO56: 0 | CP56: 0 | CQ56: 0 | CR56: 0 | CS56: 0 | CT56: 0 | CU56: 0 | CV56: 0 | CW56: 0 | CX56: 0 | CY56: 0 | CZ56: 0 | DA56: 0 | DB56: 0 | DC56: 0 | DD56: 0 | DE56: 0 | DF56: 0 | DG56: 0 | DH56: 0 | DI56: 0 | DJ56: 0 | DK56: 0 | DL56: 0 | DM56: 0 | DN56: 0 | DO56: 0 | DP56: 0 | DQ56: 0 | DR56: 0 | DS56: Z9
A57: 配水支管 | B57: 配水支管 鋳鉄管 (ダクタイル鋳鉄管は含まない)(m) | C57: 60 | D57: 4100 | G57: =IF($C57=0,"-",管種別導入布設年度!B6) -> 1970 | H57: =IF($C57=0,"-",管種別導入布設年度!C6) -> 1975 | I57: 6 | J57: 10 | K57: 10 | L57: 10 | M57: 10 | N57: 10 | O57: 10 | P57: 10 | Q57: 0 | R57: 0 | S57: 0 | T57: 0 | U57: 0 | V57: 0 | W57: 0 | X57: 0 | Y57: 0 | Z57: 0 | AA57: 0 | AB57: 0 | AC57: 0 | AD57: 0 | AE57: 0 | AF57: 0 | AG57: 0 | AH57: 0 | AI57: 0 | AJ57: 0 | AK57: 0 | AL57: 0 | AM57: 0 | AN57: 0 | AO57: 0 | AP57: 0 | AQ57: 0 | AR57: 0 | AS57: 0 | AT57: 0 | AU57: 0 | AV57: 0 | AW57: 0 | AX57: 0 | AY57: 0 | AZ57: 0 | BA57: 0 | BB57: 0 | BC57: 0 | BD57: 0 | BE57: 0 | BF57: 0 | BG57: 0 | BH57: 0 | BI57: 0 | BJ57: 0 | BK57: 0 | BL57: 0 | BM57: 0 | BN57: 0 | BO57: 0 | BP57: 0 | BQ57: 0 | BR57: 0 | BS57: 0 | BT57: 0 | BU57: 0 | BV57: 0 | BW57: 0 | BX57: 0 | BY57: 0 | BZ57: 0 | CA57: 0 | CB57: 0 | CC57: 0 | CD57: 0 | CE57: 0 | CF57: 0 | CG57: 0 | CH57: 0 | CI57: 0 | CJ57: 0 | CK57: 0 | CL57: 0 | CM57: 0 | CN57: 0 | CO57: 0 | CP57: 0 | CQ57: 0 | CR57: 0 | CS57: 0 | CT57: 0 | CU57: 0 | CV57: 0 | CW57: 0 | CX57: 0 | CY57: 0 | CZ57: 0 | DA57: 0 | DB57: 0 | DC57: 0 | DD57: 0 | DE57: 0 | DF57: 0 | DG57: 0 | DH57: 0 | DI57: 0 | DJ57: 0 | DK57: 0 | DL57: 0 | DM57: 0 | DN57: 0 | DO57: 0 | DP57: 0 | DQ57: 0 | DR57: 60 | DS57: A1 | DT57: 配水支管
B58: ダクタイル鋳鉄管 耐震型継手を有する(m) | C58: 240 | D58: 21000 | G58: =IF($C58=0,"-",管種別導入布設年度!B7) -> 1982 | H58: =IF($C58=0,"-",管種別導入布設年度!C7) -> 1985 | I58: 4 | J58: 60 | K58: 0 | L58: 0 | M58: 0 | N58: 0 | O58: 0 | P58: 0 | Q58: 0 | R58: 0 | S58: 0 | T58: 0 | U58: 0 | V58: 0 | W58: 60 | X58: 60 | Y58: 60 | Z58: 60 | AA58: 0 | AB58: 0 | AC58: 0 | AD58: 0 | AE58: 0 | AF58: 0 | AG58: 0 | AH58: 0 | AI58: 0 | AJ58: 0 | AK58: 0 | AL58: 0 | AM58: 0 | AN58: 0 | AO58: 0 | AP58: 0 | AQ58: 0 | AR58: 0 | AS58: 0 | AT58: 0 | AU58: 0 | AV58: 0 | AW58: 0 | AX58: 0 | AY58: 0 | AZ58: 0 | BA58: 0 | BB58: 0 | BC58: 0 | BD58: 0 | BE58: 0 | BF58: 0 | BG58: 0 | BH58: 0 | BI58: 0 | BJ58: 0 | BK58: 0 | BL58: 0 | BM58: 0 | BN58: 0 | BO58: 0 | BP58: 0 | BQ58: 0 | BR58: 0 | BS58: 0 | BT58: 0 | BU58: 0 | BV58: 0 | BW58: 0 | BX58: 0 | BY58: 0 | BZ58: 0 | CA58: 0 | CB58: 0 | CC58: 0 | CD58: 0 | CE58: 0 | CF58: 0 | CG58: 0 | CH58: 0 | CI58: 0 | CJ58: 0 | CK58: 0 | CL58: 0 | CM58: 0 | CN58: 0 | CO58: 0 | CP58: 0 | CQ58: 0 | CR58: 0 | CS58: 0 | CT58: 0 | CU58: 0 | CV58: 0 | CW58: 0 | CX58: 0 | CY58: 0 | CZ58: 0 | DA58: 0 | DB58: 0 | DC58: 0 | DD58: 0 | DE58: 0 | DF58: 0 | DG58: 0 | DH58: 0 | DI58: 0 | DJ58: 0 | DK58: 0 | DL58: 0 | DM58: 0 | DN58: 0 | DO58: 0 | DP58: 0 | DQ58: 0 | DR58: 240 | DS58: A2
B59: ダクタイル鋳鉄管 Ｋ形継手等を有するもののうち良い地盤に布設されている(m) | G59: =IF($C59=0,"-",管種別導入布設年度!B8) -> - | H59: =IF($C59=0,"-",管種別導入布設年度!C8) -> - | I59: 0 | J59: 0 | K59: 0 | L59: 0 | M59: 0 | N59: 0 | O59: 0 | P59: 0 | Q59: 0 | R59: 0 | S59: 0 | T59: 0 | U59: 0 | V59: 0 | W59: 0 | X59: 0 | Y59: 0 | Z59: 0 | AA59: 0 | AB59: 0 | AC59: 0 | AD59: 0 | AE59: 0 | AF59: 0 | AG59: 0 | AH59: 0 | AI59: 0 | AJ59: 0 | AK59: 0 | AL59: 0 | AM59: 0 | AN59: 0 | AO59: 0 | AP59: 0 | AQ59: 0 | AR59: 0 | AS59: 0 | AT59: 0 | AU59: 0 | AV59: 0 | AW59: 0 | AX59: 0 | AY59: 0 | AZ59: 0 | BA59: 0 | BB59: 0 | BC59: 0 | BD59: 0 | BE59: 0 | BF59: 0 | BG59: 0 | BH59: 0 | BI59: 0 | BJ59: 0 | BK59: 0 | BL59: 0 | BM59: 0 | BN59: 0 | BO59: 0 | BP59: 0 | BQ59: 0 | BR59: 0 | BS59: 0 | BT59: 0 | BU59: 0 | BV59: 0 | BW59: 0 | BX59: 0 | BY59: 0 | BZ59: 0 | CA59: 0 | CB59: 0 | CC59: 0 | CD59: 0 | CE59: 0 | CF59: 0 | CG59: 0 | CH59: 0 | CI59: 0 | CJ59: 0 | CK59: 0 | CL59: 0 | CM59: 0 | CN59: 0 | CO59: 0 | CP59: 0 | CQ59: 0 | CR59: 0 | CS59: 0 | CT59: 0 | CU59: 0 | CV59: 0 | CW59: 0 | CX59: 0 | CY59: 0 | CZ59: 0 | DA59: 0 | DB59: 0 | DC59: 0 | DD59: 0 | DE59: 0 | DF59: 0 | DG59: 0 | DH59: 0 | DI59: 0 | DJ59: 0 | DK59: 0 | DL59: 0 | DM59: 0 | DN59: 0 | DO59: 0 | DP59: 0 | DQ59: 0 | DR59: 0 | DS59: A3
B60: ダクタイル鋳鉄管 (上記以外・不明なものを含む)(m) | E60: =IF(H60<2000,C60/(1999-G60+1),IF(G60<2000,C60/((1999-G60+1)+(H60+2-2000)/2),2*C60/(H60+2-G60))) ->  | F60: =IF($H60<2000,0,E60/(H60+IF(G60<2000,1-2000,1-G60))) ->  | G60: =IF($C60=0,"-",管種別導入布設年度!B9) -> - | H60: =IF($C60=0,"-",管種別導入布設年度!C9) -> - | I60: 0 | J60: 0 | K60: =IF($C60=0,0,IF(K$5<INT($G60),0,IF(K$5>INT($H60),0,IF(K$5<2000,$E60,$E60-($F60*(K$5-IF($G60<2001,2000,$G60))))))) -> 0 | L60: 0 | M60: 0 | N60: 0 | O60: 0 | P60: 0 | Q60: 0 | R60: 0 | S60: 0 | T60: 0 | U60: 0 | V60: 0 | W60: 0 | X60: 0 | Y60: 0 | Z60: 0 | AA60: 0 | AB60: 0 | AC60: 0 | AD60: 0 | AE60: 0 | AF60: 0 | AG60: 0 | AH60: 0 | AI60: 0 | AJ60: 0 | AK60: 0 | AL60: 0 | AM60: 0 | AN60: 0 | AO60: 0 | AP60: 0 | AQ60: =IF($C60=0,0,IF(AQ$5<INT($G60),0,IF(AQ$5>INT($H60),0,IF(AQ$5<2000,$E60,$E60-($F60*(AQ$5-IF($G60<2001,2000,$G60))))))) -> 0 | AR60: 0 | AS60: 0 | AT60: 0 | AU60: 0 | AV60: 0 | AW60: 0 | AX60: 0 | AY60: 0 | AZ60: 0 | BA60: 0 | BB60: 0 | BC60: 0 | BD60: 0 | BE60: 0 | BF60: 0 | BG60: 0 | BH60: 0 | BI60: 0 | BJ60: 0 | BK60: 0 | BL60: 0 | BM60: 0 | BN60: 0 | BO60: 0 | BP60: 0 | BQ60: 0 | BR60: 0 | BS60: 0 | BT60: 0 | BU60: 0 | BV60: 0 | BW60: =IF($C60=0,0,IF(BW$5<INT($G60),0,IF(BW$5>INT($H60),0,IF(BW$5<2000,$E60,$E60-($F60*(BW$5-IF($G60<2001,2000,$G60))))))) -> 0 | BX60: 0 | BY60: 0 | BZ60: 0 | CA60: 0 | CB60: 0 | CC60: 0 | CD60: 0 | CE60: 0 | CF60: 0 | CG60: 0 | CH60: 0 | CI60: 0 | CJ60: 0 | CK60: 0 | CL60: 0 | CM60: 0 | CN60: 0 | CO60: 0 | CP60: 0 | CQ60: 0 | CR60: 0 | CS60: 0 | CT60: 0 | CU60: 0 | CV60: 0 | CW60: 0 | CX60: 0 | CY60: 0 | CZ60: 0 | DA60: 0 | DB60: 0 | DC60: =IF($C60=0,0,IF(DC$5<INT($G60),0,IF(DC$5>INT($H60),0,IF(DC$5<2000,$E60,$E60-($F60*(DC$5-IF($G60<2001,2000,$G60))))))) -> 0 | DD60: 0 | DE60: 0 | DF60: 0 | DG60: 0 | DH60: 0 | DI60: 0 | DJ60: 0 | DK60: 0 | DL60: 0 | DM60: 0 | DN60: 0 | DO60: 0 | DP60: 0 | DQ60: 0 | DR60: 0 | DS60: A9
B61: 鋼管 （溶接継手を有する） （m） | G61: =IF($C61=0,"-",管種別導入布設年度!B10) -> - | H61: =IF($C61=0,"-",管種別導入布設年度!C10) -> - | I61: 0 | J61: 0 | K61: =IF($C61=0,0,IF(K$5<INT($G61),0, IF(K$5>INT($H61),0,$J61))) -> 0 | L61: 0 | M61: 0 | N61: 0 | O61: 0 | P61: 0 | Q61: 0 | R61: 0 | S61: 0 | T61: 0 | U61: =IF($C61=0,0,IF(U$5<INT($G61),0, IF(U$5>INT($H61),0,$J61))) -> 0 | V61: 0 | W61: 0 | X61: 0 | Y61: 0 | Z61: 0 | AA61: 0 | AB61: 0 | AC61: 0 | AD61: 0 | AE61: =IF($C61=0,0,IF(AE$5<INT($G61),0, IF(AE$5>INT($H61),0,$J61))) -> 0 | AF61: 0 | AG61: 0 | AH61: 0 | AI61: 0 | AJ61: 0 | AK61: 0 | AL61: 0 | AM61: 0 | AN61: 0 | AO61: =IF($C61=0,0,IF(AO$5<INT($G61),0, IF(AO$5>INT($H61),0,$J61))) -> 0 | AP61: 0 | AQ61: 0 | AR61: 0 | AS61: 0 | AT61: 0 | AU61: 0 | AV61: 0 | AW61: 0 | AX61: 0 | AY61: =IF($C61=0,0,IF(AY$5<INT($G61),0, IF(AY$5>INT($H61),0,$J61))) -> 0 | AZ61: 0 | BA61: 0 | BB61: 0 | BC61: 0 | BD61: 0 | BE61: 0 | BF61: 0 | BG61: 0 | BH61: 0 | BI61: =IF($C61=0,0,IF(BI$5<INT($G61),0, IF(BI$5>INT($H61),0,$J61))) -> 0 | BJ61: 0 | BK61: 0 | BL61: 0 | BM61: 0 | BN61: 0 | BO61: 0 | BP61: 0 | BQ61: 0 | BR61: 0 | BS61: =IF($C61=0,0,IF(BS$5<INT($G61),0, IF(BS$5>INT($H61),0,$J61))) -> 0 | BT61: 0 | BU61: 0 | BV61: 0 | BW61: 0 | BX61: 0 | BY61: 0 | BZ61: 0 | CA61: 0 | CB61: 0 | CC61: =IF($C61=0,0,IF(CC$5<INT($G61),0, IF(CC$5>INT($H61),0,$J61))) -> 0 | CD61: 0 | CE61: 0 | CF61: 0 | CG61: 0 | CH61: 0 | CI61: 0 | CJ61: 0 | CK61: 0 | CL61: 0 | CM61: =IF($C61=0,0,IF(CM$5<INT($G61),0, IF(CM$5>INT($H61),0,$J61))) -> 0 | CN61: 0 | CO61: 0 | CP61: 0 | CQ61: 0 | CR61: 0 | CS61: 0 | CT61: 0 | CU61: 0 | CV61: 0 | CW61: =IF($C61=0,0,IF(CW$5<INT($G61),0, IF(CW$5>INT($H61),0,$J61))) -> 0 | CX61: 0 | CY61: 0 | CZ61: 0 | DA61: 0 | DB61: 0 | DC61: 0 | DD61: 0 | DE61: 0 | DF61: 0 | DG61: =IF($C61=0,0,IF(DG$5<INT($G61),0, IF(DG$5>INT($H61),0,$J61))) -> 0 | DH61: 0 | DI61: 0 | DJ61: 0 | DK61: 0 | DL61: 0 | DM61: 0 | DN61: 0 | DO61: 0 | DP61: 0 | DQ61: 0 | DR61: 0 | DS61: B1
B62: 鋼管 （上記以外・不明なものを含む） （m） | G62: =IF($C62=0,"-",管種別導入布設年度!B11) -> - | H62: =IF($C62=0,"-",管種別導入布設年度!C11) -> - | I62: 0 | J62: 0 | K62: 0 | L62: 0 | M62: 0 | N62: 0 | O62: 0 | P62: 0 | Q62: 0 | R62: 0 | S62: 0 | T62: 0 | U62: 0 | V62: 0 | W62: 0 | X62: 0 | Y62: 0 | Z62: 0 | AA62: 0 | AB62: 0 | AC62: 0 | AD62: 0 | AE62: 0 | AF62: 0 | AG62: 0 | AH62: 0 | AI62: 0 | AJ62: 0 | AK62: 0 | AL62: 0 | AM62: 0 | AN62: 0 | AO62: 0 | AP62: 0 | AQ62: 0 | AR62: 0 | AS62: 0 | AT62: 0 | AU62: 0 | AV62: 0 | AW62: 0 | AX62: 0 | AY62: 0 | AZ62: 0 | BA62: 0 | BB62: 0 | BC62: 0 | BD62: 0 | BE62: 0 | BF62: 0 | BG62: 0 | BH62: 0 | BI62: 0 | BJ62: 0 | BK62: 0 | BL62: 0 | BM62: 0 | BN62: 0 | BO62: 0 | BP62: 0 | BQ62: 0 | BR62: 0 | BS62: 0 | BT62: 0 | BU62: 0 | BV62: 0 | BW62: 0 | BX62: 0 | BY62: 0 | BZ62: 0 | CA62: 0 | CB62: 0 | CC62: 0 | CD62: 0 | CE62: 0 | CF62: 0 | CG62: 0 | CH62: 0 | CI62: 0 | CJ62: 0 | CK62: 0 | CL62: 0 | CM62: 0 | CN62: 0 | CO62: 0 | CP62: 0 | CQ62: 0 | CR62: 0 | CS62: 0 | CT62: 0 | CU62: 0 | CV62: 0 | CW62: 0 | CX62: 0 | CY62: 0 | CZ62: 0 | DA62: 0 | DB62: 0 | DC62: 0 | DD62: 0 | DE62: 0 | DF62: 0 | DG62: 0 | DH62: 0 | DI62: 0 | DJ62: 0 | DK62: 0 | DL62: 0 | DM62: 0 | DN62: 0 | DO62: 0 | DP62: 0 | DQ62: 0 | DR62: 0 | DS62: B9
B63: 石綿セメント管 (m) | G63: =IF($C63=0,"-",管種別導入布設年度!B12) -> - | H63: =IF($C63=0,"-",管種別導入布設年度!C12) -> - | I63: 0 | J63: 0 | K63: 0 | L63: 0 | M63: 0 | N63: 0 | O63: 0 | P63: 0 | Q63: 0 | R63: 0 | S63: 0 | T63: 0 | U63: 0 | V63: 0 | W63: 0 | X63: 0 | Y63: 0 | Z63: 0 | AA63: 0 | AB63: 0 | AC63: 0 | AD63: 0 | AE63: 0 | AF63: 0 | AG63: 0 | AH63: 0 | AI63: 0 | AJ63: 0 | AK63: 0 | AL63: 0 | AM63: 0 | AN63: 0 | AO63: 0 | AP63: 0 | AQ63: 0 | AR63: 0 | AS63: 0 | AT63: 0 | AU63: 0 | AV63: 0 | AW63: 0 | AX63: 0 | AY63: 0 | AZ63: 0 | BA63: 0 | BB63: 0 | BC63: 0 | BD63: 0 | BE63: 0 | BF63: 0 | BG63: 0 | BH63: 0 | BI63: 0 | BJ63: 0 | BK63: 0 | BL63: 0 | BM63: 0 | BN63: 0 | BO63: 0 | BP63: 0 | BQ63: 0 | BR63: 0 | BS63: 0 | BT63: 0 | BU63: 0 | BV63: 0 | BW63: 0 | BX63: 0 | BY63: 0 | BZ63: 0 | CA63: 0 | CB63: 0 | CC63: 0 | CD63: 0 | CE63: 0 | CF63: 0 | CG63: 0 | CH63: 0 | CI63: 0 | CJ63: 0 | CK63: 0 | CL63: 0 | CM63: 0 | CN63: 0 | CO63: 0 | CP63: 0 | CQ63: 0 | CR63: 0 | CS63: 0 | CT63: 0 | CU63: 0 | CV63: 0 | CW63: 0 | CX63: 0 | CY63: 0 | CZ63: 0 | DA63: 0 | DB63: 0 | DC63: 0 | DD63: 0 | DE63: 0 | DF63: 0 | DG63: 0 | DH63: 0 | DI63: 0 | DJ63: 0 | DK63: 0 | DL63: 0 | DM63: 0 | DN63: 0 | DO63: 0 | DP63: 0 | DQ63: 0 | DR63: 0 | DS63: C1
B64: 硬質塩化ビニル管 （ＲＲロング継手等を有する） (m) | G64: =IF($C64=0,"-",管種別導入布設年度!B13) -> - | H64: =IF($C64=0,"-",管種別導入布設年度!C13) -> - | I64: 0 | J64: 0 | K64: 0 | L64: 0 | M64: 0 | N64: 0 | O64: 0 | P64: 0 | Q64: 0 | R64: 0 | S64: 0 | T64: 0 | U64: 0 | V64: 0 | W64: 0 | X64: 0 | Y64: 0 | Z64: 0 | AA64: 0 | AB64: 0 | AC64: 0 | AD64: 0 | AE64: 0 | AF64: 0 | AG64: 0 | AH64: 0 | AI64: 0 | AJ64: 0 | AK64: 0 | AL64: 0 | AM64: 0 | AN64: 0 | AO64: 0 | AP64: 0 | AQ64: 0 | AR64: 0 | AS64: 0 | AT64: 0 | AU64: 0 | AV64: 0 | AW64: 0 | AX64: 0 | AY64: 0 | AZ64: 0 | BA64: 0 | BB64: 0 | BC64: 0 | BD64: 0 | BE64: 0 | BF64: 0 | BG64: 0 | BH64: 0 | BI64: 0 | BJ64: 0 | BK64: 0 | BL64: 0 | BM64: 0 | BN64: 0 | BO64: 0 | BP64: 0 | BQ64: 0 | BR64: 0 | BS64: 0 | BT64: 0 | BU64: 0 | BV64: 0 | BW64: 0 | BX64: 0 | BY64: 0 | BZ64: 0 | CA64: 0 | CB64: 0 | CC64: 0 | CD64: 0 | CE64: 0 | CF64: 0 | CG64: 0 | CH64: 0 | CI64: 0 | CJ64: 0 | CK64: 0 | CL64: 0 | CM64: 0 | CN64: 0 | CO64: 0 | CP64: 0 | CQ64: 0 | CR64: 0 | CS64: 0 | CT64: 0 | CU64: 0 | CV64: 0 | CW64: 0 | CX64: 0 | CY64: 0 | CZ64: 0 | DA64: 0 | DB64: 0 | DC64: 0 | DD64: 0 | DE64: 0 | DF64: 0 | DG64: 0 | DH64: 0 | DI64: 0 | DJ64: 0 | DK64: 0 | DL64: 0 | DM64: 0 | DN64: 0 | DO64: 0 | DP64: 0 | DQ64: 0 | DR64: 0 | DS64: D1
B65: 硬質塩化ビニル管 （ＲＲ継手等を有する） (m) | G65: =IF($C65=0,"-",管種別導入布設年度!B14) -> - | H65: =IF($C65=0,"-",管種別導入布設年度!C14) -> - | I65: 0 | J65: 0 | K65: 0 | L65: 0 | M65: 0 | N65: 0 | O65: 0 | P65: 0 | Q65: 0 | R65: 0 | S65: 0 | T65: 0 | U65: 0 | V65: 0 | W65: 0 | X65: 0 | Y65: 0 | Z65: 0 | AA65: 0 | AB65: 0 | AC65: 0 | AD65: 0 | AE65: 0 | AF65: 0 | AG65: 0 | AH65: 0 | AI65: 0 | AJ65: 0 | AK65: 0 | AL65: 0 | AM65: 0 | AN65: 0 | AO65: 0 | AP65: 0 | AQ65: 0 | AR65: 0 | AS65: 0 | AT65: 0 | AU65: 0 | AV65: 0 | AW65: 0 | AX65: 0 | AY65: 0 | AZ65: 0 | BA65: 0 | BB65: 0 | BC65: 0 | BD65: 0 | BE65: 0 | BF65: 0 | BG65: 0 | BH65: 0 | BI65: 0 | BJ65: 0 | BK65: 0 | BL65: 0 | BM65: 0 | BN65: 0 | BO65: 0 | BP65: 0 | BQ65: 0 | BR65: 0 | BS65: 0 | BT65: 0 | BU65: 0 | BV65: 0 | BW65: 0 | BX65: 0 | BY65: 0 | BZ65: 0 | CA65: 0 | CB65: 0 | CC65: 0 | CD65: 0 | CE65: 0 | CF65: 0 | CG65: 0 | CH65: 0 | CI65: 0 | CJ65: 0 | CK65: 0 | CL65: 0 | CM65: 0 | CN65: 0 | CO65: 0 | CP65: 0 | CQ65: 0 | CR65: 0 | CS65: 0 | CT65: 0 | CU65: 0 | CV65: 0 | CW65: 0 | CX65: 0 | CY65: 0 | CZ65: 0 | DA65: 0 | DB65: 0 | DC65: 0 | DD65: 0 | DE65: 0 | DF65: 0 | DG65: 0 | DH65: 0 | DI65: 0 | DJ65: 0 | DK65: 0 | DL65: 0 | DM65: 0 | DN65: 0 | DO65: 0 | DP65: 0 | DQ65: 0 | DR65: 0 | DS65: D2
B66: 硬質塩化ビニル管 （上記以外・不明なものを含む） (m) | E66: =IF(H66<2000,C66/(1999-G66+1),IF(G66<2000,C66/((1999-G66+1)+(H66+2-2000)/2),2*C66/(H66+2-G66))) ->  | F66: =IF($H66<2000,0,E66/(H66+IF(G66<2000,1-2000,1-G66))) ->  | G66: =IF($C66=0,"-",管種別導入布設年度!B15) -> - | H66: =IF($C66=0,"-",管種別導入布設年度!C15) -> - | I66: 0 | J66: 0 | K66: =IF($C66=0,0,IF(K$5<INT($G66),0,IF(K$5>INT($H66),0,IF(K$5<2000,$E66,$E66-($F66*(K$5-IF($G66<2001,2000,$G66))))))) -> 0 | L66: 0 | M66: 0 | N66: 0 | O66: 0 | P66: 0 | Q66: 0 | R66: 0 | S66: 0 | T66: 0 | U66: 0 | V66: 0 | W66: 0 | X66: 0 | Y66: 0 | Z66: 0 | AA66: 0 | AB66: 0 | AC66: 0 | AD66: 0 | AE66: 0 | AF66: 0 | AG66: 0 | AH66: 0 | AI66: 0 | AJ66: 0 | AK66: 0 | AL66: 0 | AM66: 0 | AN66: 0 | AO66: 0 | AP66: 0 | AQ66: =IF($C66=0,0,IF(AQ$5<INT($G66),0,IF(AQ$5>INT($H66),0,IF(AQ$5<2000,$E66,$E66-($F66*(AQ$5-IF($G66<2001,2000,$G66))))))) -> 0 | AR66: 0 | AS66: 0 | AT66: 0 | AU66: 0 | AV66: 0 | AW66: 0 | AX66: 0 | AY66: 0 | AZ66: 0 | BA66: 0 | BB66: 0 | BC66: 0 | BD66: 0 | BE66: 0 | BF66: 0 | BG66: 0 | BH66: 0 | BI66: 0 | BJ66: 0 | BK66: 0 | BL66: 0 | BM66: 0 | BN66: 0 | BO66: 0 | BP66: 0 | BQ66: 0 | BR66: 0 | BS66: 0 | BT66: 0 | BU66: 0 | BV66: 0 | BW66: =IF($C66=0,0,IF(BW$5<INT($G66),0,IF(BW$5>INT($H66),0,IF(BW$5<2000,$E66,$E66-($F66*(BW$5-IF($G66<2001,2000,$G66))))))) -> 0 | BX66: 0 | BY66: 0 | BZ66: 0 | CA66: 0 | CB66: 0 | CC66: 0 | CD66: 0 | CE66: 0 | CF66: 0 | CG66: 0 | CH66: 0 | CI66: 0 | CJ66: 0 | CK66: 0 | CL66: 0 | CM66: 0 | CN66: 0 | CO66: 0 | CP66: 0 | CQ66: 0 | CR66: 0 | CS66: 0 | CT66: 0 | CU66: 0 | CV66: 0 | CW66: 0 | CX66: 0 | CY66: 0 | CZ66: 0 | DA66: 0 | DB66: 0 | DC66: =IF($C66=0,0,IF(DC$5<INT($G66),0,IF(DC$5>INT($H66),0,IF(DC$5<2000,$E66,$E66-($F66*(DC$5-IF($G66<2001,2000,$G66))))))) -> 0 | DD66: 0 | DE66: 0 | DF66: 0 | DG66: 0 | DH66: 0 | DI66: 0 | DJ66: 0 | DK66: 0 | DL66: 0 | DM66: 0 | DN66: 0 | DO66: 0 | DP66: 0 | DQ66: 0 | DR66: 0 | DS66: D9
B67: コンクリート管 (m) | G67: =IF($C67=0,"-",管種別導入布設年度!B16) -> - | H67: =IF($C67=0,"-",管種別導入布設年度!C16) -> - | I67: 0 | J67: 0 | K67: =IF($C67=0,0,IF(K$5<INT($G67),0, IF(K$5>INT($H67),0,$J67))) -> 0 | L67: 0 | M67: 0 | N67: 0 | O67: 0 | P67: 0 | Q67: 0 | R67: 0 | S67: 0 | T67: 0 | U67: =IF($C67=0,0,IF(U$5<INT($G67),0, IF(U$5>INT($H67),0,$J67))) -> 0 | V67: 0 | W67: 0 | X67: 0 | Y67: 0 | Z67: 0 | AA67: 0 | AB67: 0 | AC67: 0 | AD67: 0 | AE67: =IF($C67=0,0,IF(AE$5<INT($G67),0, IF(AE$5>INT($H67),0,$J67))) -> 0 | AF67: 0 | AG67: 0 | AH67: 0 | AI67: 0 | AJ67: 0 | AK67: 0 | AL67: 0 | AM67: 0 | AN67: 0 | AO67: =IF($C67=0,0,IF(AO$5<INT($G67),0, IF(AO$5>INT($H67),0,$J67))) -> 0 | AP67: 0 | AQ67: 0 | AR67: 0 | AS67: 0 | AT67: 0 | AU67: 0 | AV67: 0 | AW67: 0 | AX67: 0 | AY67: =IF($C67=0,0,IF(AY$5<INT($G67),0, IF(AY$5>INT($H67),0,$J67))) -> 0 | AZ67: 0 | BA67: 0 | BB67: 0 | BC67: 0 | BD67: 0 | BE67: 0 | BF67: 0 | BG67: 0 | BH67: 0 | BI67: =IF($C67=0,0,IF(BI$5<INT($G67),0, IF(BI$5>INT($H67),0,$J67))) -> 0 | BJ67: 0 | BK67: 0 | BL67: 0 | BM67: 0 | BN67: 0 | BO67: 0 | BP67: 0 | BQ67: 0 | BR67: 0 | BS67: =IF($C67=0,0,IF(BS$5<INT($G67),0, IF(BS$5>INT($H67),0,$J67))) -> 0 | BT67: 0 | BU67: 0 | BV67: 0 | BW67: 0 | BX67: 0 | BY67: 0 | BZ67: 0 | CA67: 0 | CB67: 0 | CC67: =IF($C67=0,0,IF(CC$5<INT($G67),0, IF(CC$5>INT($H67),0,$J67))) -> 0 | CD67: 0 | CE67: 0 | CF67: 0 | CG67: 0 | CH67: 0 | CI67: 0 | CJ67: 0 | CK67: 0 | CL67: 0 | CM67: =IF($C67=0,0,IF(CM$5<INT($G67),0, IF(CM$5>INT($H67),0,$J67))) -> 0 | CN67: 0 | CO67: 0 | CP67: 0 | CQ67: 0 | CR67: 0 | CS67: 0 | CT67: 0 | CU67: 0 | CV67: 0 | CW67: =IF($C67=0,0,IF(CW$5<INT($G67),0, IF(CW$5>INT($H67),0,$J67))) -> 0 | CX67: 0 | CY67: 0 | CZ67: 0 | DA67: 0 | DB67: 0 | DC67: 0 | DD67: 0 | DE67: 0 | DF67: 0 | DG67: =IF($C67=0,0,IF(DG$5<INT($G67),0, IF(DG$5>INT($H67),0,$J67))) -> 0 | DH67: 0 | DI67: 0 | DJ67: 0 | DK67: 0 | DL67: 0 | DM67: 0 | DN67: 0 | DO67: 0 | DP67: 0 | DQ67: 0 | DR67: 0 | DS67: E1
B68: 鉛管 (m) | G68: =IF($C68=0,"-",管種別導入布設年度!B17) -> - | H68: =IF($C68=0,"-",管種別導入布設年度!C17) -> - | I68: 0 | J68: 0 | K68: 0 | L68: 0 | M68: 0 | N68: 0 | O68: 0 | P68: 0 | Q68: 0 | R68: 0 | S68: 0 | T68: 0 | U68: 0 | V68: 0 | W68: 0 | X68: 0 | Y68: 0 | Z68: 0 | AA68: 0 | AB68: 0 | AC68: 0 | AD68: 0 | AE68: 0 | AF68: 0 | AG68: 0 | AH68: 0 | AI68: 0 | AJ68: 0 | AK68: 0 | AL68: 0 | AM68: 0 | AN68: 0 | AO68: 0 | AP68: 0 | AQ68: 0 | AR68: 0 | AS68: 0 | AT68: 0 | AU68: 0 | AV68: 0 | AW68: 0 | AX68: 0 | AY68: 0 | AZ68: 0 | BA68: 0 | BB68: 0 | BC68: 0 | BD68: 0 | BE68: 0 | BF68: 0 | BG68: 0 | BH68: 0 | BI68: 0 | BJ68: 0 | BK68: 0 | BL68: 0 | BM68: 0 | BN68: 0 | BO68: 0 | BP68: 0 | BQ68: 0 | BR68: 0 | BS68: 0 | BT68: 0 | BU68: 0 | BV68: 0 | BW68: 0 | BX68: 0 | BY68: 0 | BZ68: 0 | CA68: 0 | CB68: 0 | CC68: 0 | CD68: 0 | CE68: 0 | CF68: 0 | CG68: 0 | CH68: 0 | CI68: 0 | CJ68: 0 | CK68: 0 | CL68: 0 | CM68: 0 | CN68: 0 | CO68: 0 | CP68: 0 | CQ68: 0 | CR68: 0 | CS68: 0 | CT68: 0 | CU68: 0 | CV68: 0 | CW68: 0 | CX68: 0 | CY68: 0 | CZ68: 0 | DA68: 0 | DB68: 0 | DC68: 0 | DD68: 0 | DE68: 0 | DF68: 0 | DG68: 0 | DH68: 0 | DI68: 0 | DJ68: 0 | DK68: 0 | DL68: 0 | DM68: 0 | DN68: 0 | DO68: 0 | DP68: 0 | DQ68: 0 | DR68: 0 | DS68: F1
B69: ポリエチレン管 （高密度、熱融着継手を有する） （m） | G69: =IF($C69=0,"-",管種別導入布設年度!B18) -> - | H69: =IF($C69=0,"-",管種別導入布設年度!C18) -> - | I69: 0 | J69: 0 | K69: 0 | L69: 0 | M69: 0 | N69: 0 | O69: 0 | P69: 0 | Q69: 0 | R69: 0 | S69: 0 | T69: 0 | U69: 0 | V69: 0 | W69: 0 | X69: 0 | Y69: 0 | Z69: 0 | AA69: 0 | AB69: 0 | AC69: 0 | AD69: 0 | AE69: 0 | AF69: 0 | AG69: 0 | AH69: 0 | AI69: 0 | AJ69: 0 | AK69: 0 | AL69: 0 | AM69: 0 | AN69: 0 | AO69: 0 | AP69: 0 | AQ69: 0 | AR69: 0 | AS69: 0 | AT69: 0 | AU69: 0 | AV69: 0 | AW69: 0 | AX69: 0 | AY69: 0 | AZ69: 0 | BA69: 0 | BB69: 0 | BC69: 0 | BD69: 0 | BE69: 0 | BF69: 0 | BG69: 0 | BH69: 0 | BI69: 0 | BJ69: 0 | BK69: 0 | BL69: 0 | BM69: 0 | BN69: 0 | BO69: 0 | BP69: 0 | BQ69: 0 | BR69: 0 | BS69: 0 | BT69: 0 | BU69: 0 | BV69: 0 | BW69: 0 | BX69: 0 | BY69: 0 | BZ69: 0 | CA69: 0 | CB69: 0 | CC69: 0 | CD69: 0 | CE69: 0 | CF69: 0 | CG69: 0 | CH69: 0 | CI69: 0 | CJ69: 0 | CK69: 0 | CL69: 0 | CM69: 0 | CN69: 0 | CO69: 0 | CP69: 0 | CQ69: 0 | CR69: 0 | CS69: 0 | CT69: 0 | CU69: 0 | CV69: 0 | CW69: 0 | CX69: 0 | CY69: 0 | CZ69: 0 | DA69: 0 | DB69: 0 | DC69: 0 | DD69: 0 | DE69: 0 | DF69: 0 | DG69: 0 | DH69: 0 | DI69: 0 | DJ69: 0 | DK69: 0 | DL69: 0 | DM69: 0 | DN69: 0 | DO69: 0 | DP69: 0 | DQ69: 0 | DR69: 0 | DS69: G1
B70: ポリエチレン管 （上記以外・不明なものを含む） （m） | G70: =IF($C70=0,"-",管種別導入布設年度!B19) -> - | H70: =IF($C70=0,"-",管種別導入布設年度!C19) -> - | I70: =IF(C70=0,0,H70-G70+1) -> 0 | J70: =IF(C70=0,0,ROUND(C70/I70,1)) -> 0 | K70: 0 | L70: 0 | M70: 0 | N70: 0 | O70: 0 | P70: 0 | Q70: 0 | R70: 0 | S70: 0 | T70: 0 | U70: 0 | V70: 0 | W70: 0 | X70: 0 | Y70: 0 | Z70: 0 | AA70: 0 | AB70: 0 | AC70: 0 | AD70: 0 | AE70: 0 | AF70: 0 | AG70: 0 | AH70: 0 | AI70: 0 | AJ70: 0 | AK70: 0 | AL70: 0 | AM70: 0 | AN70: 0 | AO70: 0 | AP70: 0 | AQ70: 0 | AR70: 0 | AS70: 0 | AT70: 0 | AU70: 0 | AV70: 0 | AW70: 0 | AX70: 0 | AY70: 0 | AZ70: 0 | BA70: 0 | BB70: 0 | BC70: 0 | BD70: 0 | BE70: 0 | BF70: 0 | BG70: 0 | BH70: 0 | BI70: 0 | BJ70: 0 | BK70: 0 | BL70: 0 | BM70: 0 | BN70: 0 | BO70: 0 | BP70: 0 | BQ70: 0 | BR70: 0 | BS70: 0 | BT70: 0 | BU70: 0 | BV70: 0 | BW70: 0 | BX70: 0 | BY70: 0 | BZ70: 0 | CA70: 0 | CB70: 0 | CC70: 0 | CD70: 0 | CE70: 0 | CF70: 0 | CG70: 0 | CH70: 0 | CI70: 0 | CJ70: 0 | CK70: 0 | CL70: 0 | CM70: 0 | CN70: 0 | CO70: 0 | CP70: 0 | CQ70: 0 | CR70: 0 | CS70: 0 | CT70: 0 | CU70: 0 | CV70: 0 | CW70: 0 | CX70: 0 | CY70: 0 | CZ70: 0 | DA70: 0 | DB70: 0 | DC70: 0 | DD70: 0 | DE70: 0 | DF70: 0 | DG70: 0 | DH70: 0 | DI70: 0 | DJ70: 0 | DK70: 0 | DL70: 0 | DM70: 0 | DN70: 0 | DO70: 0 | DP70: 0 | DQ70: 0 | DR70: =SUM(K70:DQ70) -> 0 | DS70: G9
B71: ステンレス管 耐震型継手を有する (m) | C71: 180 | D71: 17820 | G71: =IF($C71=0,"-",管種別導入布設年度!B20) -> 1985 | H71: =IF($C71=0,"-",管種別導入布設年度!C20) -> 1989 | I71: =IF(C71=0,0,H71-G71+1) -> 5 | J71: =IF(C71=0,0,ROUND(C71/I71,1)) -> 36 | K71: 0 | L71: 0 | M71: 0 | N71: 0 | O71: 0 | P71: 0 | Q71: 0 | R71: 0 | S71: 0 | T71: 0 | U71: 0 | V71: 0 | W71: 0 | X71: 0 | Y71: 0 | Z71: 36 | AA71: 36 | AB71: 36 | AC71: 36 | AD71: 36 | AE71: 0 | AF71: 0 | AG71: 0 | AH71: 0 | AI71: 0 | AJ71: 0 | AK71: 0 | AL71: 0 | AM71: 0 | AN71: 0 | AO71: 0 | AP71: 0 | AQ71: 0 | AR71: 0 | AS71: 0 | AT71: 0 | AU71: 0 | AV71: 0 | AW71: 0 | AX71: 0 | AY71: 0 | AZ71: 0 | BA71: 0 | BB71: 0 | BC71: 0 | BD71: 0 | BE71: 0 | BF71: 0 | BG71: 0 | BH71: 0 | BI71: 0 | BJ71: 0 | BK71: 0 | BL71: 0 | BM71: 0 | BN71: 0 | BO71: 0 | BP71: 0 | BQ71: 0 | BR71: 0 | BS71: 0 | BT71: 0 | BU71: 0 | BV71: 0 | BW71: 0 | BX71: 0 | BY71: 0 | BZ71: 0 | CA71: 0 | CB71: 0 | CC71: 0 | CD71: 0 | CE71: 0 | CF71: 0 | CG71: 0 | CH71: 0 | CI71: 0 | CJ71: 0 | CK71: 0 | CL71: 0 | CM71: 0 | CN71: 0 | CO71: 0 | CP71: 0 | CQ71: 0 | CR71: 0 | CS71: 0 | CT71: 0 | CU71: 0 | CV71: 0 | CW71: 0 | CX71: 0 | CY71: 0 | CZ71: 0 | DA71: 0 | DB71: 0 | DC71: 0 | DD71: 0 | DE71: 0 | DF71: 0 | DG71: 0 | DH71: 0 | DI71: 0 | DJ71: 0 | DK71: 0 | DL71: 0 | DM71: 0 | DN71: 0 | DO71: 0 | DP71: 0 | DQ71: 0 | DR71: =SUM(K71:DQ71) -> 180 | DS71: H1
B72: ステンレス管 (上記以外・不明なものを含む） (m) | G72: =IF($C72=0,"-",管種別導入布設年度!B21) -> - | H72: =IF($C72=0,"-",管種別導入布設年度!C21) -> - | I72: =IF(C72=0,0,H72-G72+1) -> 0 | J72: =IF(C72=0,0,ROUND(C72/I72,1)) -> 0 | K72: 0 | L72: 0 | M72: 0 | N72: 0 | O72: 0 | P72: 0 | Q72: 0 | R72: 0 | S72: 0 | T72: 0 | U72: 0 | V72: 0 | W72: 0 | X72: 0 | Y72: 0 | Z72: 0 | AA72: 0 | AB72: 0 | AC72: 0 | AD72: 0 | AE72: 0 | AF72: 0 | AG72: 0 | AH72: 0 | AI72: 0 | AJ72: 0 | AK72: 0 | AL72: 0 | AM72: 0 | AN72: 0 | AO72: 0 | AP72: 0 | AQ72: 0 | AR72: 0 | AS72: 0 | AT72: 0 | AU72: 0 | AV72: 0 | AW72: 0 | AX72: 0 | AY72: 0 | AZ72: 0 | BA72: 0 | BB72: 0 | BC72: 0 | BD72: 0 | BE72: 0 | BF72: 0 | BG72: 0 | BH72: 0 | BI72: 0 | BJ72: 0 | BK72: 0 | BL72: 0 | BM72: 0 | BN72: 0 | BO72: 0 | BP72: 0 | BQ72: 0 | BR72: 0 | BS72: 0 | BT72: 0 | BU72: 0 | BV72: 0 | BW72: 0 | BX72: 0 | BY72: 0 | BZ72: 0 | CA72: 0 | CB72: 0 | CC72: 0 | CD72: 0 | CE72: 0 | CF72: 0 | CG72: 0 | CH72: 0 | CI72: 0 | CJ72: 0 | CK72: 0 | CL72: 0 | CM72: 0 | CN72: 0 | CO72: 0 | CP72: 0 | CQ72: 0 | CR72: 0 | CS72: 0 | CT72: 0 | CU72: 0 | CV72: 0 | CW72: 0 | CX72: 0 | CY72: 0 | CZ72: 0 | DA72: 0 | DB72: 0 | DC72: 0 | DD72: 0 | DE72: 0 | DF72: 0 | DG72: 0 | DH72: 0 | DI72: 0 | DJ72: 0 | DK72: 0 | DL72: 0 | DM72: 0 | DN72: 0 | DO72: 0 | DP72: 0 | DQ72: 0 | DR72: =SUM(K72:DQ72) -> 0 | DS72: H9
B73: その他 (管種が不明を含む) (m) | G73: =IF($C73=0,"-",管種別導入布設年度!B22) -> - | H73: =IF($C73=0,"-",管種別導入布設年度!C22) -> - | I73: =IF(C73=0,0,H73-G73+1) -> 0 | J73: =IF(C73=0,0,ROUND(C73/I73,1)) -> 0 | K73: 0 | L73: 0 | M73: 0 | N73: 0 | O73: 0 | P73: 0 | Q73: 0 | R73: 0 | S73: 0 | T73: 0 | U73: 0 | V73: 0 | W73: 0 | X73: 0 | Y73: 0 | Z73: 0 | AA73: 0 | AB73: 0 | AC73: 0 | AD73: 0 | AE73: 0 | AF73: 0 | AG73: 0 | AH73: 0 | AI73: 0 | AJ73: 0 | AK73: 0 | AL73: 0 | AM73: 0 | AN73: 0 | AO73: 0 | AP73: 0 | AQ73: 0 | AR73: 0 | AS73: 0 | AT73: 0 | AU73: 0 | AV73: 0 | AW73: 0 | AX73: 0 | AY73: 0 | AZ73: 0 | BA73: 0 | BB73: 0 | BC73: 0 | BD73: 0 | BE73: 0 | BF73: 0 | BG73: 0 | BH73: 0 | BI73: 0 | BJ73: 0 | BK73: 0 | BL73: 0 | BM73: 0 | BN73: 0 | BO73: 0 | BP73: 0 | BQ73: 0 | BR73: 0 | BS73: 0 | BT73: 0 | BU73: 0 | BV73: 0 | BW73: 0 | BX73: 0 | BY73: 0 | BZ73: 0 | CA73: 0 | CB73: 0 | CC73: 0 | CD73: 0 | CE73: 0 | CF73: 0 | CG73: 0 | CH73: 0 | CI73: 0 | CJ73: 0 | CK73: 0 | CL73: 0 | CM73: 0 | CN73: 0 | CO73: 0 | CP73: 0 | CQ73: 0 | CR73: 0 | CS73: 0 | CT73: 0 | CU73: 0 | CV73: 0 | CW73: 0 | CX73: 0 | CY73: 0 | CZ73: 0 | DA73: 0 | DB73: 0 | DC73: 0 | DD73: 0 | DE73: 0 | DF73: 0 | DG73: 0 | DH73: 0 | DI73: 0 | DJ73: 0 | DK73: 0 | DL73: 0 | DM73: 0 | DN73: 0 | DO73: 0 | DP73: 0 | DQ73: 0 | DR73: =SUM(K73:DQ73) -> 0 | DS73: Z9
A74: 延長合計 | C74: =SUM(C6:C73) -> 1768 | D74: =SUM(D6:D73) -> 164420 | K74: =ROUND(SUM(K6:K73),0) -> 28 | L74: 28 | M74: 28 | N74: 28 | O74: 28 | P74: 28 | Q74: 0 | R74: 0 | S74: 0 | T74: 0 | U74: 0 | V74: 0 | W74: 180 | X74: 180 | Y74: 180 | Z74: 336 | AA74: 156 | AB74: 156 | AC74: 156 | AD74: 156 | AE74: 0 | AF74: 0 | AG74: 0 | AH74: 0 | AI74: 0 | AJ74: 0 | AK74: 0 | AL74: 0 | AM74: 0 | AN74: 0 | AO74: 0 | AP74: 100 | AQ74: =ROUND(SUM(AQ6:AQ73),0) -> 0 | AR74: 0 | AS74: 0 | AT74: 0 | AU74: 0 | AV74: 0 | AW74: 0 | AX74: 0 | AY74: 0 | AZ74: 0 | BA74: 0 | BB74: 0 | BC74: 0 | BD74: 0 | BE74: 0 | BF74: 0 | BG74: 0 | BH74: 0 | BI74: 0 | BJ74: 0 | BK74: 0 | BL74: 0 | BM74: 0 | BN74: 0 | BO74: 0 | BP74: 0 | BQ74: 0 | BR74: 0 | BS74: 0 | BT74: 0 | BU74: 0 | BV74: 0 | BW74: =ROUND(SUM(BW6:BW73),0) -> 0 | BX74: 0 | BY74: 0 | BZ74: 0 | CA74: 0 | CB74: 0 | CC74: 0 | CD74: 0 | CE74: 0 | CF74: 0 | CG74: 0 | CH74: 0 | CI74: 0 | CJ74: 0 | CK74: 0 | CL74: 0 | CM74: 0 | CN74: 0 | CO74: 0 | CP74: 0 | CQ74: 0 | CR74: 0 | CS74: 0 | CT74: 0 | CU74: 0 | CV74: 0 | CW74: 0 | CX74: 0 | CY74: 0 | CZ74: 0 | DA74: 0 | DB74: 0 | DC74: =ROUND(SUM(DC6:DC73),0) -> 0 | DD74: 0 | DE74: 0 | DF74: 0 | DG74: 0 | DH74: 0 | DI74: 0 | DJ74: 0 | DK74: 0 | DL74: 0 | DM74: 0 | DN74: 0 | DO74: 0 | DP74: 0 | DQ74: 0 | DR74: =SUM(K74:DQ74) -> 1768
A75: 導水管延長計 | C75: =SUM(K75:DQ75) -> 460 | D75: =SUM(D6:D22) -> 39290 | K75: =ROUND(SUM(K6:K22),0) -> 5 | L75: 5 | M75: 5 | N75: 5 | O75: 5 | P75: 5 | Q75: 0 | R75: 0 | S75: 0 | T75: 0 | U75: 0 | V75: 0 | W75: 30 | X75: 30 | Y75: 30 | Z75: 72 | AA75: 42 | AB75: 42 | AC75: 42 | AD75: 42 | AE75: 0 | AF75: 0 | AG75: 0 | AH75: 0 | AI75: 0 | AJ75: 0 | AK75: 0 | AL75: 0 | AM75: 0 | AN75: 0 | AO75: 0 | AP75: 100 | AQ75: =ROUND(SUM(AQ6:AQ22),0) -> 0 | AR75: 0 | AS75: 0 | AT75: 0 | AU75: 0 | AV75: 0 | AW75: 0 | AX75: 0 | AY75: 0 | AZ75: 0 | BA75: 0 | BB75: 0 | BC75: 0 | BD75: 0 | BE75: 0 | BF75: 0 | BG75: 0 | BH75: 0 | BI75: 0 | BJ75: 0 | BK75: 0 | BL75: 0 | BM75: 0 | BN75: 0 | BO75: 0 | BP75: 0 | BQ75: 0 | BR75: 0 | BS75: 0 | BT75: 0 | BU75: 0 | BV75: 0 | BW75: =ROUND(SUM(BW6:BW22),0) -> 0 | BX75: 0 | BY75: 0 | BZ75: 0 | CA75: 0 | CB75: 0 | CC75: 0 | CD75: 0 | CE75: 0 | CF75: 0 | CG75: 0 | CH75: 0 | CI75: 0 | CJ75: 0 | CK75: 0 | CL75: 0 | CM75: 0 | CN75: 0 | CO75: 0 | CP75: 0 | CQ75: 0 | CR75: 0 | CS75: 0 | CT75: 0 | CU75: 0 | CV75: 0 | CW75: 0 | CX75: 0 | CY75: 0 | CZ75: 0 | DA75: 0 | DB75: 0 | DC75: =ROUND(SUM(DC6:DC22),0) -> 0 | DD75: 0 | DE75: 0 | DF75: 0 | DG75: 0 | DH75: 0 | DI75: 0 | DJ75: 0 | DK75: 0 | DL75: 0 | DM75: 0 | DN75: 0 | DO75: 0 | DP75: 0 | DQ75: 0
A76: 送水管延長計 | C76: =SUM(K76:DQ76) -> 396 | D76: =SUM(D23:D39) -> 40500 | K76: =ROUND(SUM(K23:K39),0) -> 6 | L76: 6 | M76: 6 | N76: 6 | O76: 6 | P76: 6 | Q76: 0 | R76: 0 | S76: 0 | T76: 0 | U76: 0 | V76: 0 | W76: 40 | X76: 40 | Y76: 40 | Z76: 80 | AA76: 40 | AB76: 40 | AC76: 40 | AD76: 40 | AE76: 0 | AF76: 0 | AG76: 0 | AH76: 0 | AI76: 0 | AJ76: 0 | AK76: 0 | AL76: 0 | AM76: 0 | AN76: 0 | AO76: 0 | AP76: 0 | AQ76: =ROUND(SUM(AQ23:AQ39),0) -> 0 | AR76: 0 | AS76: 0 | AT76: 0 | AU76: 0 | AV76: 0 | AW76: 0 | AX76: 0 | AY76: 0 | AZ76: 0 | BA76: 0 | BB76: 0 | BC76: 0 | BD76: 0 | BE76: 0 | BF76: 0 | BG76: 0 | BH76: 0 | BI76: 0 | BJ76: 0 | BK76: 0 | BL76: 0 | BM76: 0 | BN76: 0 | BO76: 0 | BP76: 0 | BQ76: 0 | BR76: 0 | BS76: 0 | BT76: 0 | BU76: 0 | BV76: 0 | BW76: =ROUND(SUM(BW23:BW39),0) -> 0 | BX76: 0 | BY76: 0 | BZ76: 0 | CA76: 0 | CB76: 0 | CC76: 0 | CD76: 0 | CE76: 0 | CF76: 0 | CG76: 0 | CH76: 0 | CI76: 0 | CJ76: 0 | CK76: 0 | CL76: 0 | CM76: 0 | CN76: 0 | CO76: 0 | CP76: 0 | CQ76: 0 | CR76: 0 | CS76: 0 | CT76: 0 | CU76: 0 | CV76: 0 | CW76: 0 | CX76: 0 | CY76: 0 | CZ76: 0 | DA76: 0 | DB76: 0 | DC76: =ROUND(SUM(DC23:DC39),0) -> 0 | DD76: 0 | DE76: 0 | DF76: 0 | DG76: 0 | DH76: 0 | DI76: 0 | DJ76: 0 | DK76: 0 | DL76: 0 | DM76: 0 | DN76: 0 | DO76: 0 | DP76: 0 | DQ76: 0
A77: 配水本管延長計 | C77: =SUM(K77:DQ77) -> 432 | D77: =SUM(D40:D56) -> 41710 | K77: =ROUND(SUM(K40:K56),0) -> 7 | L77: 7 | M77: 7 | N77: 7 | O77: 7 | P77: 7 | Q77: 0 | R77: 0 | S77: 0 | T77: 0 | U77: 0 | V77: 0 | W77: 50 | X77: 50 | Y77: 50 | Z77: 88 | AA77: 38 | AB77: 38 | AC77: 38 | AD77: 38 | AE77: 0 | AF77: 0 | AG77: 0 | AH77: 0 | AI77: 0 | AJ77: 0 | AK77: 0 | AL77: 0 | AM77: 0 | AN77: 0 | AO77: 0 | AP77: 0 | AQ77: =ROUND(SUM(AQ40:AQ56),0) -> 0 | AR77: 0 | AS77: 0 | AT77: 0 | AU77: 0 | AV77: 0 | AW77: 0 | AX77: 0 | AY77: 0 | AZ77: 0 | BA77: 0 | BB77: 0 | BC77: 0 | BD77: 0 | BE77: 0 | BF77: 0 | BG77: 0 | BH77: 0 | BI77: 0 | BJ77: 0 | BK77: 0 | BL77: 0 | BM77: 0 | BN77: 0 | BO77: 0 | BP77: 0 | BQ77: 0 | BR77: 0 | BS77: 0 | BT77: 0 | BU77: 0 | BV77: 0 | BW77: =ROUND(SUM(BW40:BW56),0) -> 0 | BX77: 0 | BY77: 0 | BZ77: 0 | CA77: 0 | CB77: 0 | CC77: 0 | CD77: 0 | CE77: 0 | CF77: 0 | CG77: 0 | CH77: 0 | CI77: 0 | CJ77: 0 | CK77: 0 | CL77: 0 | CM77: 0 | CN77: 0 | CO77: 0 | CP77: 0 | CQ77: 0 | CR77: 0 | CS77: 0 | CT77: 0 | CU77: 0 | CV77: 0 | CW77: 0 | CX77: 0 | CY77: 0 | CZ77: 0 | DA77: 0 | DB77: 0 | DC77: =ROUND(SUM(DC40:DC56),0) -> 0 | DD77: 0 | DE77: 0 | DF77: 0 | DG77: 0 | DH77: 0 | DI77: 0 | DJ77: 0 | DK77: 0 | DL77: 0 | DM77: 0 | DN77: 0 | DO77: 0 | DP77: 0 | DQ77: 0
A78: 配水支管延長計 | C78: =SUM(K78:DQ78) -> 480 | D78: =SUM(D57:D73) -> 42920 | K78: =ROUND(SUM(K57:K73),0) -> 10 | L78: 10 | M78: 10 | N78: 10 | O78: 10 | P78: 10 | Q78: 0 | R78: 0 | S78: 0 | T78: 0 | U78: 0 | V78: 0 | W78: 60 | X78: 60 | Y78: 60 | Z78: 96 | AA78: 36 | AB78: 36 | AC78: 36 | AD78: 36 | AE78: 0 | AF78: 0 | AG78: 0 | AH78: 0 | AI78: 0 | AJ78: 0 | AK78: 0 | AL78: 0 | AM78: 0 | AN78: 0 | AO78: 0 | AP78: 0 | AQ78: =ROUND(SUM(AQ57:AQ73),0) -> 0 | AR78: 0 | AS78: 0 | AT78: 0 | AU78: 0 | AV78: 0 | AW78: 0 | AX78: 0 | AY78: 0 | AZ78: 0 | BA78: 0 | BB78: 0 | BC78: 0 | BD78: 0 | BE78: 0 | BF78: 0 | BG78: 0 | BH78: 0 | BI78: 0 | BJ78: 0 | BK78: 0 | BL78: 0 | BM78: 0 | BN78: 0 | BO78: 0 | BP78: 0 | BQ78: 0 | BR78: 0 | BS78: 0 | BT78: 0 | BU78: 0 | BV78: 0 | BW78: =ROUND(SUM(BW57:BW73),0) -> 0 | BX78: 0 | BY78: 0 | BZ78: 0 | CA78: 0 | CB78: 0 | CC78: 0 | CD78: 0 | CE78: 0 | CF78: 0 | CG78: 0 | CH78: 0 | CI78: 0 | CJ78: 0 | CK78: 0 | CL78: 0 | CM78: 0 | CN78: 0 | CO78: 0 | CP78: 0 | CQ78: 0 | CR78: 0 | CS78: 0 | CT78: 0 | CU78: 0 | CV78: 0 | CW78: 0 | CX78: 0 | CY78: 0 | CZ78: 0 | DA78: 0 | DB78: 0 | DC78: =ROUND(SUM(DC57:DC73),0) -> 0 | DD78: 0 | DE78: 0 | DF78: 0 | DG78: 0 | DH78: 0 | DI78: 0 | DJ78: 0 | DK78: 0 | DL78: 0 | DM78: 0 | DN78: 0 | DO78: 0 | DP78: 0 | DQ78: 0
C79: ※各年度配分後の合計値は、端数の関係でもとの延長に一致しないことがあります。

Sheet デフレータ
A1: 建築デフレーター（上・工業用水道）
A2: 国土交通省 建設工事費 デフレーター ＵＲＬ
A3: http://www.mlit.go.jp/sogoseisaku/jouhouka/sosei_jouhouka_tk4_000112.html
B4: 西暦 （年度） | C4: 上・工業用水道 | E4: R5年度を100 | I4: 【参考】 デフレーターについて
B5: 1900 | C5: =ROUND($C$56*L15,2) -> 0.02 | D5: =B5 -> 1900 | E5: =ROUND(C5/$C$128*100,3) -> 0.016
B6: 1901 | C6: 0.02 | D6: =D5+1 -> 1901 | E6: 0.016 | I6: 1951年～1984年のデフレーターは国土交通省 建設工事費 「下水道」より設定（AH列5～38行目）
B7: 1902 | C7: 0.02 | D7: =D6+1 -> 1902 | E7: 0.016 | I7: 1985年～最新年度は国土交通省 建設工事費 「上・工業用水道」より設定（初期設定シートのC列より取得）
B8: 1903 | C8: 0.02 | D8: 1903 | E8: 0.016 | I8: （AH列のデフレーターは最新年度を100としてAJ列に補正値を算定（実際に使用する数値（P列））
B9: 1904 | C9: 0.02 | D9: 1904 | E9: 0.016 | I9: 最新年度以降はすべて100とする。（更新費用＝現在価格とする）
B10: 1905 | C10: 0.02 | D10: 1905 | E10: 0.016 | I10: 1950以前のデフレーターは国土交通省の治水経済調査マニュアル（案）P99～100に記載されている治水事業工事費比率
B11: 1906 | C11: 0.02 | D11: 1906 | E11: 0.016 | I11: を基に補正率を算出し、1951年度のデフレーターに補正率を掛けて算出する。
B12: 1907 | C12: 0.03 | D12: 1907 | E12: 0.024
B13: 1908 | C13: 0.03 | D13: 1908 | E13: 0.024 | I13: 明治以降の土木工事費指数（治水事業）
B14: 1909 | C14: 0.03 | D14: 1909 | E14: 0.024 | I14: 年度 | J14: 和暦 | K14: 指数 | L14: 補正率 | N14: 補正率の算出（AO列=AB列）
B15: 1910 | C15: 0.03 | D15: 1910 | E15: 0.024 | I15: 1900 | J15: 33 | K15: 40.3 | L15: =K15/$K$66 -> 0.00168196995 | N15: 各年度の指数/1951年の指数
B16: 1911 | C16: 0.03 | D16: 1911 | E16: 0.024 | I16: =I15+1 -> 1901 | J16: 34 | K16: 40.3 | L16: 0.00168196995 | N16: デフレータの算出（P列：1950年まで）
B17: 1912 | C17: 0.03 | D17: 1912 | E17: 0.024 | I17: =I16+1 -> 1902 | J17: 35 | K17: 40.3 | L17: 0.00168196995 | N17: 1951年のデフレーター*各年度の補正率
B18: 1913 | C18: 0.03 | D18: 1913 | E18: 0.024 | I18: 1903 | J18: 36 | K18: 40.3 | L18: 0.00168196995
B19: 1914 | C19: 0.03 | D19: 1914 | E19: 0.024 | I19: 1904 | J19: 37 | K19: 39.2 | L19: 0.0016360601
B20: 1915 | C20: 0.03 | D20: 1915 | E20: 0.024 | I20: 1905 | J20: 38 | K20: 41.3 | L20: 0.001723706177
B21: 1916 | C21: 0.03 | D21: 1916 | E21: 0.024 | I21: 1906 | J21: 39 | K21: 44.3 | L21: 0.001848914858
B22: 1917 | C22: 0.04 | D22: 1917 | E22: 0.031 | I22: 1907 | J22: 40 | K22: 50 | L22: 0.002086811352
B23: 1918 | C23: 0.05 | D23: 1918 | E23: 0.039 | I23: 1908 | J23: 41 | K23: 53.4 | L23: 0.002228714524
B24: 1919 | C24: 0.08 | D24: 1919 | E24: 0.063 | I24: 1909 | J24: 42 | K24: 52.2 | L24: 0.002178631052
B25: 1920 | C25: 0.1 | D25: 1920 | E25: 0.079 | I25: 1910 | J25: 43 | K25: 52.1 | L25: 0.002174457429
B26: 1921 | C26: 0.09 | D26: 1921 | E26: 0.071 | I26: 1911 | J26: 44 | K26: 55.1 | L26: 0.00229966611
B27: 1922 | C27: 0.09 | D27: 1922 | E27: 0.071 | I27: 1912 | J27: 1 | K27: 58.3 | L27: 0.002433222037
B28: 1923 | C28: 0.09 | D28: 1923 | E28: 0.071 | I28: 1913 | J28: 2 | K28: 58.4 | L28: 0.002437395659
B29: 1924 | C29: 0.09 | D29: 1924 | E29: 0.071 | I29: 1914 | J29: 3 | K29: 58.1 | L29: 0.002424874791
B30: 1925 | C30: 0.08 | D30: 1925 | E30: 0.063 | I30: 1915 | J30: 4 | K30: 55.8 | L30: 0.002328881469
B31: 1926 | C31: 0.08 | D31: 1926 | E31: 0.063 | I31: 1916 | J31: 5 | K31: 58.5 | L31: 0.002441569282
B32: 1927 | C32: 0.08 | D32: 1927 | E32: 0.063 | I32: 1917 | J32: 6 | K32: 71.7 | L32: 0.002992487479
B33: 1928 | C33: 0.08 | D33: 1928 | E33: 0.063 | I33: 1918 | J33: 7 | K33: 97 | L33: 0.004048414023
B34: 1929 | C34: 0.08 | D34: 1929 | E34: 0.063 | I34: 1919 | J34: 8 | K34: 141.5 | L34: 0.005905676127
B35: 1930 | C35: 0.06 | D35: 1930 | E35: 0.047 | I35: 1920 | J35: 9 | K35: 188.6 | L35: 0.007871452421
B36: 1931 | C36: 0.06 | D36: 1931 | E36: 0.047 | I36: 1921 | J36: 10 | K36: 156.7 | L36: 0.006540066778
B37: 1932 | C37: 0.05 | D37: 1932 | E37: 0.039 | I37: 1922 | J37: 11 | K37: 168 | L37: 0.007011686144
B38: 1933 | C38: 0.06 | D38: 1933 | E38: 0.047 | I38: 1923 | J38: 12 | K38: 168.5 | L38: 0.007032554257
B39: 1934 | C39: 0.06 | D39: 1934 | E39: 0.047 | I39: 1924 | J39: 13 | K39: 160.2 | L39: 0.006686143573
B40: 1935 | C40: 0.06 | D40: 1935 | E40: 0.047 | I40: 1925 | J40: 14 | K40: 152.7 | L40: 0.00637312187
B41: 1936 | C41: 0.06 | D41: 1936 | E41: 0.047 | I41: 1926 | J41: 1 | K41: 147.4 | L41: 0.006151919866
B42: 1937 | C42: 0.07 | D42: 1937 | E42: 0.055 | I42: 1927 | J42: 2 | K42: 140.9 | L42: 0.005880634391
B43: 1938 | C43: 0.07 | D43: 1938 | E43: 0.055 | I43: 1928 | J43: 3 | K43: 139.7 | L43: 0.005830550918
B44: 1939 | C44: 0.09 | D44: 1939 | E44: 0.071 | I44: 1929 | J44: 4 | K44: 135.5 | L44: 0.005655258765
B45: 1940 | C45: 0.1 | D45: 1940 | E45: 0.079 | I45: 1930 | J45: 5 | K45: 109.9 | L45: 0.004586811352
B46: 1941 | C46: 0.11 | D46: 1941 | E46: 0.087 | I46: 1931 | J46: 6 | K46: 99.1 | L46: 0.0041360601
B47: 1942 | C47: 0.11 | D47: 1942 | E47: 0.087 | I47: 1932 | J47: 7 | K47: 97.7 | L47: =K47/$K$66 -> 0.004077629382
B48: 1943 | C48: 0.13 | D48: 1943 | E48: 0.102 | I48: 1933 | J48: 8 | K48: 99.4 | L48: 0.004148580968
B49: 1944 | C49: 0.18 | D49: 1944 | E49: 0.142 | I49: 1934 | J49: 9 | K49: 99.4 | L49: 0.004148580968
B50: 1945 | C50: 0.68 | D50: 1945 | E50: 0.535 | I50: 1935 | J50: 10 | K50: 100 | L50: 0.004173622705
B51: 1946 | C51: 1.38 | D51: 1946 | E51: 1.086 | I51: 1936 | J51: 11 | K51: 100.6 | L51: 0.004198664441
B52: 1947 | C52: 3.25 | D52: 1947 | E52: 2.557 | I52: 1937 | J52: 12 | K52: 119.1 | L52: 0.004970784641
B53: 1948 | C53: 0.9 | D53: 1948 | E53: 0.708 | I53: 1938 | J53: 13 | K53: 132.4 | L53: 0.005525876461
B54: 1949 | C54: 3.4 | D54: 1949 | E54: 2.675 | I54: 1939 | J54: 14 | K54: 155.9 | L54: 0.006506677796
B55: 1950 | C55: =ROUND($C$56*L65,2) -> 10.31 | D55: 1950 | E55: 8.112 | I55: 1940 | J55: 15 | K55: 179.4 | L55: 0.007487479132
B56: 1951 | C56: 13.3 | D56: 1951 | E56: 10.464 | I56: 1941 | J56: 16 | K56: 199.4 | L56: 0.008322203673
B57: 1952 | C57: 14.3 | D57: 1952 | E57: 11.251 | I57: 1942 | J57: 17 | K57: 206.9 | L57: 0.008635225376
B58: 1953 | C58: 15.3 | D58: 1953 | E58: 12.038 | I58: 1943 | J58: 18 | K58: 238.5 | L58: 0.00995409015
B59: 1954 | C59: 15.3 | D59: 1954 | E59: 12.038 | I59: 1944 | J59: 19 | K59: 326.9 | L59: 0.01364357262
B60: 1955 | C60: 15.4 | D60: 1955 | E60: 12.116 | I60: 1945 | J60: 20 | K60: 1219 | L60: 0.05087646077
B61: 1956 | C61: 17.1 | D61: 1956 | E61: 13.454 | I61: 1946 | J61: 21 | K61: 2479 | L61: 0.1034641068
B62: 1957 | C62: 18.1 | D62: 1957 | E62: 14.241 | I62: 1947 | J62: 22 | K62: 5860 | L62: 0.2445742905
B63: 1958 | C63: 17.5 | D63: 1958 | E63: 13.769 | I63: 1948 | J63: 23 | K63: 1630 | L63: 0.06803005008
B64: 1959 | C64: 17.9 | D64: 1959 | E64: 14.083 | I64: 1949 | J64: 24 | K64: 6120 | L64: 0.2554257095
B65: 1960 | C65: 19 | D65: 1960 | E65: 14.949 | I65: 1950 | J65: 25 | K65: 18570 | L65: 0.7750417362
B66: 1961 | C66: 21 | D66: 1961 | E66: 16.522 | I66: =I65+1 -> 1951 | J66: 26 | K66: 23960
B67: 1962 | C67: 21.8 | D67: 1962 | E67: 17.152
B68: 1963 | C68: 22.2 | D68: 1963 | E68: 17.467
B69: 1964 | C69: 23 | D69: 1964 | E69: =ROUND(C69/$C$128*100,3) -> 18.096
B70: 1965 | C70: 23.7 | D70: 1965 | E70: 18.647
B71: 1966 | C71: 25.3 | D71: =D70+1 -> 1966 | E71: 19.906
B72: 1967 | C72: 26.7 | D72: 1967 | E72: 21.007
B73: 1968 | C73: 27.5 | D73: 1968 | E73: 21.637
B74: 1969 | C74: 29.5 | D74: 1969 | E74: 23.21
B75: 1970 | C75: 31.7 | D75: 1970 | E75: 24.941
B76: 1971 | C76: 32.4 | D76: 1971 | E76: 25.492
B77: 1972 | C77: 34.3 | D77: 1972 | E77: 26.987
B78: 1973 | C78: 43.8 | D78: 1973 | E78: 34.461
B79: 1974 | C79: 53.1 | D79: 1974 | E79: 41.778
B80: 1975 | C80: 53.7 | D80: 1975 | E80: 42.25
B81: 1976 | C81: 57.6 | D81: 1976 | E81: 45.319
B82: 1977 | C82: 60.5 | D82: 1977 | E82: 47.6
B83: 1978 | C83: 64.6 | D83: 1978 | E83: 50.826
B84: 1979 | C84: 70.2 | D84: 1979 | E84: 55.232
B85: 1980 | C85: 76.5 | D85: 1980 | E85: 60.189
B86: 1981 | C86: 77.4 | D86: 1981 | E86: 60.897
B87: 1982 | C87: 77.6 | D87: 1982 | E87: 61.054
B88: 1983 | C88: 77.5 | D88: 1983 | E88: 60.976
B89: 1984 | C89: 78.8 | D89: 1984 | E89: 61.998
B90: 1985 | C90: 77.7 | D90: 1985 | E90: 61.133
B91: 1986 | C91: 76.8 | D91: 1986 | E91: 60.425
B92: 1987 | C92: 77.3 | D92: 1987 | E92: 60.818
B93: 1988 | C93: 78.7 | D93: 1988 | E93: 61.92
B94: 1989 | C94: 82.4 | D94: 1989 | E94: 64.831
B95: 1990 | C95: 85.3 | D95: 1990 | E95: 67.113
B96: 1991 | C96: 87.6 | D96: 1991 | E96: 68.922
B97: 1992 | C97: 88.6 | D97: 1992 | E97: 69.709
B98: 1993 | C98: 88.4 | D98: 1993 | E98: 69.552
B99: 1994 | C99: 88.6 | D99: 1994 | E99: 69.709
B100: 1995 | C100: 88.8 | D100: 1995 | E100: 69.866
B101: 1996 | C101: 88.5 | D101: 1996 | E101: 69.63
B102: 1997 | C102: 89.4 | D102: 1997 | E102: 70.338
B103: 1998 | C103: 88 | D103: 1998 | E103: 69.237
B104: 1999 | C104: 87 | D104: 1999 | E104: 68.45
B105: 2000 | C105: 87.2 | D105: 2000 | E105: 68.607
B106: 2001 | C106: 85.6 | E106: 67.349
B107: 2002 | C107: 85 | E107: 66.876
B108: 2003 | C108: 86 | E108: 67.663
B109: 2004 | C109: 87.5 | E109: 68.843
B110: 2005 | C110: 89 | E110: 70.024
B111: 2006 | C111: 90.6 | E111: 71.282
B112: 2007 | C112: 93.5 | E112: 73.564
B113: 2008 | C113: 98.8 | E113: 77.734
B114: 2009 | C114: 94 | E114: 73.958
B115: 2010 | C115: 94.1 | E115: 74.036
B116: 2011 | C116: 95.3 | E116: 74.98
B117: 2012 | C117: 94.7 | E117: 74.508
B118: 2013 | C118: 96.6 | E118: 76.003
B119: 2014 | C119: 99.5 | E119: 78.285
B120: 2015 | C120: 100 | E120: 78.678
B121: 2016 | C121: 100.1 | E121: 78.757
B122: 2017 | C122: 102 | E122: 80.252
B123: 2018 | C123: 105.8 | E123: 83.242
B124: 2019 | C124: 108.9 | E124: 85.681
B125: 2020 | C125: 108.9 | E125: 85.681
B126: 2021 | C126: 113.7 | E126: 89.457
B127: 2022 | C127: 122.8 | E127: 96.617
B128: 2023 | C128: 127.1 | E128: =ROUND(C128/$C$128*100,3) -> 100
B129: 2024 | C129: 131.5 | E129: =ROUND(C129/$C$128*100,3) -> 103.462
B130: 2025

Sheet 様式2-2準備用
B1: 様式2-2（準備用）
B2: ●管路の布設年度別延長
B4: ②系統 | C4: ③基本種別１ | D4: ④基本種別２ | E4: ⑤基本種別３ | F4: ⑥施設名 | G4: ⑦布設年度 | H4: ⑧延長(m) | I4: 口径(mm) | J4: 管種 コード | L4: 【集計表】 | M4: ⑧延長(m) | N4: 管種 コード | O4: 改築費 （千円） | P4: 再改築費 （千円） | Q4: ⑧延長(m)
L5: 取・導水管 | M5: =SUMIF(管路布設情報入力!$DT$11:$DT$7805,'様式2-2準備用'!$L5,管路布設情報入力!$E$11:$E$7805) -> 0 | N5: A1 | O5: =SUMIF(管路布設情報入力!$DU$11:$DU$7805,'様式2-2準備用'!$N5,管路布設情報入力!$I$11:$I$7805) -> 0 | P5: =SUMIF(管路布設情報入力!$DU$11:$DU$7805,'様式2-2準備用'!$N5,管路布設情報入力!$J$11:$J$7805) -> 0 | Q5: =SUMIF(管路布設情報入力!$DU$11:$DU$7805,'様式2-2準備用'!$N5,管路布設情報入力!$E$11:$E$7805) -> 0
L6: 送水管 | M6: =SUMIF(管路布設情報入力!$DT$11:$DT$7805,'様式2-2準備用'!$L6,管路布設情報入力!$E$11:$E$7805) -> 0 | N6: A2 | O6: =SUMIF(管路布設情報入力!$DU$11:$DU$7805,'様式2-2準備用'!$N6,管路布設情報入力!$I$11:$I$7805) -> 0 | P6: =SUMIF(管路布設情報入力!$DU$11:$DU$7805,'様式2-2準備用'!$N6,管路布設情報入力!$J$11:$J$7805) -> 0 | Q6: =SUMIF(管路布設情報入力!$DU$11:$DU$7805,'様式2-2準備用'!$N6,管路布設情報入力!$E$11:$E$7805) -> 0
L7: 配水本管 | M7: =SUMIF(管路布設情報入力!$DT$11:$DT$7805,'様式2-2準備用'!$L7,管路布設情報入力!$E$11:$E$7805) -> 0 | N7: A3 | O7: =SUMIF(管路布設情報入力!$DU$11:$DU$7805,'様式2-2準備用'!$N7,管路布設情報入力!$I$11:$I$7805) -> 0 | P7: =SUMIF(管路布設情報入力!$DU$11:$DU$7805,'様式2-2準備用'!$N7,管路布設情報入力!$J$11:$J$7805) -> 0 | Q7: =SUMIF(管路布設情報入力!$DU$11:$DU$7805,'様式2-2準備用'!$N7,管路布設情報入力!$E$11:$E$7805) -> 0
L8: 配水支管 | M8: =SUMIF(管路布設情報入力!$DT$11:$DT$7805,'様式2-2準備用'!$L8,管路布設情報入力!$E$11:$E$7805) -> 0 | N8: A9 | O8: =SUMIF(管路布設情報入力!$DU$11:$DU$7805,'様式2-2準備用'!$N8,管路布設情報入力!$I$11:$I$7805) -> 0 | P8: =SUMIF(管路布設情報入力!$DU$11:$DU$7805,'様式2-2準備用'!$N8,管路布設情報入力!$J$11:$J$7805) -> 0 | Q8: =SUMIF(管路布設情報入力!$DU$11:$DU$7805,'様式2-2準備用'!$N8,管路布設情報入力!$E$11:$E$7805) -> 0
L9: その他１ | M9: =SUMIF(管路布設情報入力!$DT$11:$DT$7805,'様式2-2準備用'!$L9,管路布設情報入力!$E$11:$E$7805) -> 0 | N9: B1 | O9: =SUMIF(管路布設情報入力!$DU$11:$DU$7805,'様式2-2準備用'!$N9,管路布設情報入力!$I$11:$I$7805) -> 0 | P9: =SUMIF(管路布設情報入力!$DU$11:$DU$7805,'様式2-2準備用'!$N9,管路布設情報入力!$J$11:$J$7805) -> 0 | Q9: =SUMIF(管路布設情報入力!$DU$11:$DU$7805,'様式2-2準備用'!$N9,管路布設情報入力!$E$11:$E$7805) -> 0
L10: その他２ | M10: =SUMIF(管路布設情報入力!$DT$11:$DT$7805,'様式2-2準備用'!$L10,管路布設情報入力!$E$11:$E$7805) -> 0 | N10: B9 | O10: =SUMIF(管路布設情報入力!$DU$11:$DU$7805,'様式2-2準備用'!$N10,管路布設情報入力!$I$11:$I$7805) -> 0 | P10: =SUMIF(管路布設情報入力!$DU$11:$DU$7805,'様式2-2準備用'!$N10,管路布設情報入力!$J$11:$J$7805) -> 0 | Q10: =SUMIF(管路布設情報入力!$DU$11:$DU$7805,'様式2-2準備用'!$N10,管路布設情報入力!$E$11:$E$7805) -> 0
L11: その他３ | M11: =SUMIF(管路布設情報入力!$DT$11:$DT$7805,'様式2-2準備用'!$L11,管路布設情報入力!$E$11:$E$7805) -> 0 | N11: C1 | O11: =SUMIF(管路布設情報入力!$DU$11:$DU$7805,'様式2-2準備用'!$N11,管路布設情報入力!$I$11:$I$7805) -> 0 | P11: =SUMIF(管路布設情報入力!$DU$11:$DU$7805,'様式2-2準備用'!$N11,管路布設情報入力!$J$11:$J$7805) -> 0 | Q11: =SUMIF(管路布設情報入力!$DU$11:$DU$7805,'様式2-2準備用'!$N11,管路布設情報入力!$E$11:$E$7805) -> 0
L12: 計 | M12: =SUM(M5:M11) -> 0 | N12: D1 | O12: =SUMIF(管路布設情報入力!$DU$11:$DU$7805,'様式2-2準備用'!$N12,管路布設情報入力!$I$11:$I$7805) -> 0 | P12: =SUMIF(管路布設情報入力!$DU$11:$DU$7805,'様式2-2準備用'!$N12,管路布設情報入力!$J$11:$J$7805) -> 0 | Q12: =SUMIF(管路布設情報入力!$DU$11:$DU$7805,'様式2-2準備用'!$N12,管路布設情報入力!$E$11:$E$7805) -> 0
N13: D2 | O13: =SUMIF(管路布設情報入力!$DU$11:$DU$7805,'様式2-2準備用'!$N13,管路布設情報入力!$I$11:$I$7805) -> 0 | P13: =SUMIF(管路布設情報入力!$DU$11:$DU$7805,'様式2-2準備用'!$N13,管路布設情報入力!$J$11:$J$7805) -> 0 | Q13: =SUMIF(管路布設情報入力!$DU$11:$DU$7805,'様式2-2準備用'!$N13,管路布設情報入力!$E$11:$E$7805) -> 0
L14: ⑤基本種別３ | N14: D9 | O14: =SUMIF(管路布設情報入力!$DU$11:$DU$7805,'様式2-2準備用'!$N14,管路布設情報入力!$I$11:$I$7805) -> 0 | P14: =SUMIF(管路布設情報入力!$DU$11:$DU$7805,'様式2-2準備用'!$N14,管路布設情報入力!$J$11:$J$7805) -> 0 | Q14: =SUMIF(管路布設情報入力!$DU$11:$DU$7805,'様式2-2準備用'!$N14,管路布設情報入力!$E$11:$E$7805) -> 0
L15: 耐震管 | N15: E1 | O15: =SUMIF(管路布設情報入力!$DU$11:$DU$7805,'様式2-2準備用'!$N15,管路布設情報入力!$I$11:$I$7805) -> 0 | P15: =SUMIF(管路布設情報入力!$DU$11:$DU$7805,'様式2-2準備用'!$N15,管路布設情報入力!$J$11:$J$7805) -> 0 | Q15: =SUMIF(管路布設情報入力!$DU$11:$DU$7805,'様式2-2準備用'!$N15,管路布設情報入力!$E$11:$E$7805) -> 0
L16: 非耐震管 | N16: F1 | O16: =SUMIF(管路布設情報入力!$DU$11:$DU$7805,'様式2-2準備用'!$N16,管路布設情報入力!$I$11:$I$7805) -> 0 | P16: =SUMIF(管路布設情報入力!$DU$11:$DU$7805,'様式2-2準備用'!$N16,管路布設情報入力!$J$11:$J$7805) -> 0 | Q16: =SUMIF(管路布設情報入力!$DU$11:$DU$7805,'様式2-2準備用'!$N16,管路布設情報入力!$E$11:$E$7805) -> 0
L17: その他１ | N17: G1 | O17: =SUMIF(管路布設情報入力!$DU$11:$DU$7805,'様式2-2準備用'!$N17,管路布設情報入力!$I$11:$I$7805) -> 0 | P17: =SUMIF(管路布設情報入力!$DU$11:$DU$7805,'様式2-2準備用'!$N17,管路布設情報入力!$J$11:$J$7805) -> 0 | Q17: =SUMIF(管路布設情報入力!$DU$11:$DU$7805,'様式2-2準備用'!$N17,管路布設情報入力!$E$11:$E$7805) -> 0
L18: その他２ | N18: G9 | O18: =SUMIF(管路布設情報入力!$DU$11:$DU$7805,'様式2-2準備用'!$N18,管路布設情報入力!$I$11:$I$7805) -> 0 | P18: =SUMIF(管路布設情報入力!$DU$11:$DU$7805,'様式2-2準備用'!$N18,管路布設情報入力!$J$11:$J$7805) -> 0 | Q18: =SUMIF(管路布設情報入力!$DU$11:$DU$7805,'様式2-2準備用'!$N18,管路布設情報入力!$E$11:$E$7805) -> 0
L19: その他３ | N19: H1 | O19: =SUMIF(管路布設情報入力!$DU$11:$DU$7805,'様式2-2準備用'!$N19,管路布設情報入力!$I$11:$I$7805) -> 0 | P19: =SUMIF(管路布設情報入力!$DU$11:$DU$7805,'様式2-2準備用'!$N19,管路布設情報入力!$J$11:$J$7805) -> 0 | Q19: =SUMIF(管路布設情報入力!$DU$11:$DU$7805,'様式2-2準備用'!$N19,管路布設情報入力!$E$11:$E$7805) -> 0
L20: その他４ | N20: H9 | O20: =SUMIF(管路布設情報入力!$DU$11:$DU$7805,'様式2-2準備用'!$N20,管路布設情報入力!$I$11:$I$7805) -> 0 | P20: =SUMIF(管路布設情報入力!$DU$11:$DU$7805,'様式2-2準備用'!$N20,管路布設情報入力!$J$11:$J$7805) -> 0 | Q20: =SUMIF(管路布設情報入力!$DU$11:$DU$7805,'様式2-2準備用'!$N20,管路布設情報入力!$E$11:$E$7805) -> 0
L21: その他５ | N21: Z9 | O21: =SUMIF(管路布設情報入力!$DU$11:$DU$7805,'様式2-2準備用'!$N21,管路布設情報入力!$I$11:$I$7805) -> 0 | P21: =SUMIF(管路布設情報入力!$DU$11:$DU$7805,'様式2-2準備用'!$N21,管路布設情報入力!$J$11:$J$7805) -> 0 | Q21: =SUMIF(管路布設情報入力!$DU$11:$DU$7805,'様式2-2準備用'!$N21,管路布設情報入力!$E$11:$E$7805) -> 0
N22: 計 | O22: =SUM(O5:O21) -> 0 | P22: =SUM(P5:P21) -> 0 | Q22: =SUM(Q5:Q21) -> 0
B7555: ※行を増やしたい際は、この行の上に挿入するようにしてください｡

Sheet 管路布設情報入力
A1: ●用途・管種別の布設延長
A3: 単価情報 | B3: ←独自単価を用いる場合は事前に設定してください。 | L3: 12 | M3: =L3+1 -> 13 | N3: =M3+1 -> 14 | O3: 15 | P3: 16 | Q3: 17 | R3: 18 | S3: 19 | T3: 20 | U3: 21 | V3: 22 | W3: 23 | X3: 24 | Y3: 25 | Z3: 26 | AA3: 27 | AB3: 28 | AC3: 29 | AD3: 30 | AE3: 31 | AF3: 32 | AG3: 33 | AH3: 34 | AI3: 35 | AJ3: 36 | AK3: 37 | AL3: 38 | AM3: 39 | AN3: 40 | AO3: 41 | AP3: 42 | AQ3: 43 | AR3: 44 | AS3: 45 | AT3: 46 | AU3: 47 | AV3: 48 | AW3: 49 | AX3: 50 | AY3: 51 | AZ3: 52 | BA3: 53 | BB3: 54 | BC3: 55 | BD3: 56 | BE3: 57 | BF3: 58 | BG3: 59 | BH3: 60 | BI3: 61 | BJ3: 62 | BK3: 63 | BL3: 64 | BM3: 65 | BN3: 66 | BO3: 67 | BP3: 68 | BQ3: 69 | BR3: 70 | BS3: 71 | BT3: 72 | BU3: 73 | BV3: 74 | BW3: 75 | BX3: 76 | BY3: 77 | BZ3: =BY3+1 -> 78 | CA3: 79 | CB3: 80 | CC3: 81 | CD3: 82 | CE3: 83 | CF3: 84 | CG3: 85 | CH3: 86 | CI3: 87 | CJ3: 88 | CK3: 89 | CL3: 90 | CM3: 91 | CN3: 92 | CO3: 93 | CP3: 94 | CQ3: 95 | CR3: 96 | CS3: 97 | CT3: 98 | CU3: 99 | CV3: 100 | CW3: 101 | CX3: 102 | CY3: 103 | CZ3: 104 | DA3: 105 | DB3: 106 | DC3: 107 | DD3: 108 | DE3: 109 | DF3: 110 | DG3: 111 | DH3: 112 | DI3: 113 | DJ3: 114 | DK3: 115 | DL3: 116 | DM3: 117 | DN3: 118 | DO3: 119 | DP3: 120 | DQ3: 121 | DR3: 122
A4: 用途 | B4: 水道統計（公益社団法人 日本水道協会）の管種区分 | C4: 口径 (mm) | D4: 施工区分 | E4: 延長 | F4: 布設年度 | G4: 改築 単価 | H4: 再改築 単価 | I4: 改築費 （千円） | J4: 再改築費 （千円） | K4: 布設期間 | L4: 年度別布設延長 | DT4: 施設 | DU4: 管種 コード
E5: （m） | K5: 平均延長 | L5: =$F$3 -> 0 | M5: =L5+1 -> 1 | N5: =M5+1 -> 2 | O5: 3 | P5: 4 | Q5: 5 | R5: 6 | S5: 7 | T5: 8 | U5: 9 | V5: 10 | W5: 11 | X5: 12 | Y5: 13 | Z5: 14 | AA5: 15 | AB5: 16 | AC5: 17 | AD5: 18 | AE5: 19 | AF5: 20 | AG5: 21 | AH5: 22 | AI5: 23 | AJ5: 24 | AK5: 25 | AL5: 26 | AM5: 27 | AN5: 28 | AO5: 29 | AP5: 30 | AQ5: 31 | AR5: 32 | AS5: 33 | AT5: 34 | AU5: 35 | AV5: 36 | AW5: 37 | AX5: 38 | AY5: 39 | AZ5: 40 | BA5: 41 | BB5: 42 | BC5: 43 | BD5: 44 | BE5: 45 | BF5: 46 | BG5: 47 | BH5: 48 | BI5: 49 | BJ5: 50 | BK5: 51 | BL5: 52 | BM5: 53 | BN5: 54 | BO5: 55 | BP5: 56 | BQ5: 57 | BR5: 58 | BS5: 59 | BT5: 60 | BU5: 61 | BV5: 62 | BW5: 63 | BX5: 64 | BY5: 65 | BZ5: =BY5+1 -> 66 | CA5: 67 | CB5: 68 | CC5: 69 | CD5: 70 | CE5: 71 | CF5: 72 | CG5: 73 | CH5: 74 | CI5: 75 | CJ5: 76 | CK5: 77 | CL5: 78 | CM5: 79 | CN5: 80 | CO5: 81 | CP5: 82 | CQ5: 83 | CR5: 84 | CS5: 85 | CT5: 86 | CU5: 87 | CV5: 88 | CW5: 89 | CX5: 90 | CY5: 91 | CZ5: 92 | DA5: 93 | DB5: 94 | DC5: 95 | DD5: 96 | DE5: 97 | DF5: 98 | DG5: 99 | DH5: 100 | DI5: 101 | DJ5: 102 | DK5: 103 | DL5: 104 | DM5: 105 | DN5: 106 | DO5: 107 | DP5: 108 | DQ5: 109 | DR5: 110 | DS5: （合計）
A6: 施設別計 | B6: 取・導水管 | E6: =SUMIF($DT$11:$DT$7805,$B6,E$11:E$7805) -> 0 | I6: =SUMIF($DT$11:$DT$7805,$B6,I$11:I$7805) -> 0 | J6: 0
B7: 送水管 | E7: =SUMIF($DT$11:$DT$7805,$B7,E$11:E$7805) -> 0 | I7: 0 | J7: 0
B8: 配水本管 | E8: 0 | I8: 0 | J8: 0 | DW8: ドロップダウンリスト情報
B9: 配水支管 | E9: 0 | I9: 0 | J9: 0 | DW9: 用途 | DX9: 施設 | DY9: 管種 | DZ9: 管種 コード | EA9: 口径 | EB9: 施工区分
A10: 総合計 | E10: =SUM(E11:E7805) -> 0 | I10: =SUM(I11:I7805) -> 0 | J10: =SUM(J11:J7805) -> 0
G11: =IF($D11="",0,VLOOKUP(($DU11&$C11&$D11),単価情報!$B$66:$C$932,2,FALSE)) -> 0 | H11: =G11 -> 0 | I11: =E11*G11 -> 0 | J11: =E11*H11 -> 0 | K11: =IF(E11=0,0,ROUND(E11/#REF!,1)) -> 0 | L11: =IF(L$5>=$F11,IF(L$5<=#REF!,$K11,0),0) ->  | M11: =IF(M$5>=$F11,IF(M$5<=#REF!,$K11,0),0) ->  | N11: =IF(N$5>=$F11,IF(N$5<=#REF!,$K11,0),0) ->  | O11: =IF(O$5>=$F11,IF(O$5<=#REF!,$K11,0),0) ->  | P11: =IF(P$5>=$F11,IF(P$5<=#REF!,$K11,0),0) ->  | Q11: =IF(Q$5>=$F11,IF(Q$5<=#REF!,$K11,0),0) ->  | R11: =IF(R$5>=$F11,IF(R$5<=#REF!,$K11,0),0) ->  | S11: =IF(S$5>=$F11,IF(S$5<=#REF!,$K11,0),0) ->  | T11: =IF(T$5>=$F11,IF(T$5<=#REF!,$K11,0),0) ->  | U11: =IF(U$5>=$F11,IF(U$5<=#REF!,$K11,0),0) ->  | V11: =IF(V$5>=$F11,IF(V$5<=#REF!,$K11,0),0) ->  | W11: =IF(W$5>=$F11,IF(W$5<=#REF!,$K11,0),0) ->  | X11: =IF(X$5>=$F11,IF(X$5<=#REF!,$K11,0),0) ->  | Y11: =IF(Y$5>=$F11,IF(Y$5<=#REF!,$K11,0),0) ->  | Z11: =IF(Z$5>=$F11,IF(Z$5<=#REF!,$K11,0),0) ->  | AA11: =IF(AA$5>=$F11,IF(AA$5<=#REF!,$K11,0),0) ->  | AB11: =IF(AB$5>=$F11,IF(AB$5<=#REF!,$K11,0),0) ->  | AC11: =IF(AC$5>=$F11,IF(AC$5<=#REF!,$K11,0),0) ->  | AD11: =IF(AD$5>=$F11,IF(AD$5<=#REF!,$K11,0),0) ->  | AE11: =IF(AE$5>=$F11,IF(AE$5<=#REF!,$K11,0),0) ->  | AF11: =IF(AF$5>=$F11,IF(AF$5<=#REF!,$K11,0),0) ->  | AG11: =IF(AG$5>=$F11,IF(AG$5<=#REF!,$K11,0),0) ->  | AH11: =IF(AH$5>=$F11,IF(AH$5<=#REF!,$K11,0),0) ->  | AI11: =IF(AI$5>=$F11,IF(AI$5<=#REF!,$K11,0),0) ->  | AJ11: =IF(AJ$5>=$F11,IF(AJ$5<=#REF!,$K11,0),0) ->  | AK11: =IF(AK$5>=$F11,IF(AK$5<=#REF!,$K11,0),0) ->  | AL11: =IF(AL$5>=$F11,IF(AL$5<=#REF!,$K11,0),0) ->  | AM11: =IF(AM$5>=$F11,IF(AM$5<=#REF!,$K11,0),0) ->  | AN11: =IF(AN$5>=$F11,IF(AN$5<=#REF!,$K11,0),0) ->  | AO11: =IF(AO$5>=$F11,IF(AO$5<=#REF!,$K11,0),0) ->  | AP11: =IF(AP$5>=$F11,IF(AP$5<=#REF!,$K11,0),0) ->  | AQ11: =IF(AQ$5>=$F11,IF(AQ$5<=#REF!,$K11,0),0) ->  | AR11: =IF(AR$5>=$F11,IF(AR$5<=#REF!,$K11,0),0) ->  | AS11: =IF(AS$5>=$F11,IF(AS$5<=#REF!,$K11,0),0) ->  | AT11: =IF(AT$5>=$F11,IF(AT$5<=#REF!,$K11,0),0) ->  | AU11: =IF(AU$5>=$F11,IF(AU$5<=#REF!,$K11,0),0) ->  | AV11: =IF(AV$5>=$F11,IF(AV$5<=#REF!,$K11,0),0) ->  | AW11: =IF(AW$5>=$F11,IF(AW$5<=#REF!,$K11,0),0) ->  | AX11: =IF(AX$5>=$F11,IF(AX$5<=#REF!,$K11,0),0) ->  | AY11: =IF(AY$5>=$F11,IF(AY$5<=#REF!,$K11,0),0) ->  | AZ11: =IF(AZ$5>=$F11,IF(AZ$5<=#REF!,$K11,0),0) ->  | BA11: =IF(BA$5>=$F11,IF(BA$5<=#REF!,$K11,0),0) ->  | BB11: =IF(BB$5>=$F11,IF(BB$5<=#REF!,$K11,0),0) ->  | BC11: =IF(BC$5>=$F11,IF(BC$5<=#REF!,$K11,0),0) ->  | BD11: =IF(BD$5>=$F11,IF(BD$5<=#REF!,$K11,0),0) ->  | BE11: =IF(BE$5>=$F11,IF(BE$5<=#REF!,$K11,0),0) ->  | BF11: =IF(BF$5>=$F11,IF(BF$5<=#REF!,$K11,0),0) ->  | BG11: =IF(BG$5>=$F11,IF(BG$5<=#REF!,$K11,0),0) ->  | BH11: =IF(BH$5>=$F11,IF(BH$5<=#REF!,$K11,0),0) ->  | BI11: =IF(BI$5>=$F11,IF(BI$5<=#REF!,$K11,0),0) ->  | BJ11: =IF(BJ$5>=$F11,IF(BJ$5<=#REF!,$K11,0),0) ->  | BK11: =IF(BK$5>=$F11,IF(BK$5<=#REF!,$K11,0),0) ->  | BL11: =IF(BL$5>=$F11,IF(BL$5<=#REF!,$K11,0),0) ->  | BM11: =IF(BM$5>=$F11,IF(BM$5<=#REF!,$K11,0),0) ->  | BN11: =IF(BN$5>=$F11,IF(BN$5<=#REF!,$K11,0),0) ->  | BO11: =IF(BO$5>=$F11,IF(BO$5<=#REF!,$K11,0),0) ->  | BP11: =IF(BP$5>=$F11,IF(BP$5<=#REF!,$K11,0),0) ->  | BQ11: =IF(BQ$5>=$F11,IF(BQ$5<=#REF!,$K11,0),0) ->  | BR11: =IF(BR$5>=$F11,IF(BR$5<=#REF!,$K11,0),0) ->  | BS11: =IF(BS$5>=$F11,IF(BS$5<=#REF!,$K11,0),0) ->  | BT11: =IF(BT$5>=$F11,IF(BT$5<=#REF!,$K11,0),0) ->  | BU11: =IF(BU$5>=$F11,IF(BU$5<=#REF!,$K11,0),0) ->  | BV11: =IF(BV$5>=$F11,IF(BV$5<=#REF!,$K11,0),0) ->  | BW11: =IF(BW$5>=$F11,IF(BW$5<=#REF!,$K11,0),0) ->  | BX11: =IF(BX$5>=$F11,IF(BX$5<=#REF!,$K11,0),0) ->  | BY11: =IF(BY$5>=$F11,IF(BY$5<=#REF!,$K11,0),0) ->  | BZ11: =IF(BZ$5>=$F11,IF(BZ$5<=#REF!,$K11,0),0) ->  | CA11: =IF(CA$5>=$F11,IF(CA$5<=#REF!,$K11,0),0) ->  | CB11: =IF(CB$5>=$F11,IF(CB$5<=#REF!,$K11,0),0) ->  | CC11: =IF(CC$5>=$F11,IF(CC$5<=#REF!,$K11,0),0) ->  | CD11: =IF(CD$5>=$F11,IF(CD$5<=#REF!,$K11,0),0) ->  | CE11: =IF(CE$5>=$F11,IF(CE$5<=#REF!,$K11,0),0) ->  | CF11: =IF(CF$5>=$F11,IF(CF$5<=#REF!,$K11,0),0) ->  | CG11: =IF(CG$5>=$F11,IF(CG$5<=#REF!,$K11,0),0) ->  | CH11: =IF(CH$5>=$F11,IF(CH$5<=#REF!,$K11,0),0) ->  | CI11: =IF(CI$5>=$F11,IF(CI$5<=#REF!,$K11,0),0) ->  | CJ11: =IF(CJ$5>=$F11,IF(CJ$5<=#REF!,$K11,0),0) ->  | CK11: =IF(CK$5>=$F11,IF(CK$5<=#REF!,$K11,0),0) ->  | CL11: =IF(CL$5>=$F11,IF(CL$5<=#REF!,$K11,0),0) ->  | CM11: =IF(CM$5>=$F11,IF(CM$5<=#REF!,$K11,0),0) ->  | CN11: =IF(CN$5>=$F11,IF(CN$5<=#REF!,$K11,0),0) ->  | CO11: =IF(CO$5>=$F11,IF(CO$5<=#REF!,$K11,0),0) ->  | CP11: =IF(CP$5>=$F11,IF(CP$5<=#REF!,$K11,0),0) ->  | CQ11: =IF(CQ$5>=$F11,IF(CQ$5<=#REF!,$K11,0),0) ->  | CR11: =IF(CR$5>=$F11,IF(CR$5<=#REF!,$K11,0),0) ->  | CS11: =IF(CS$5>=$F11,IF(CS$5<=#REF!,$K11,0),0) ->  | CT11: =IF(CT$5>=$F11,IF(CT$5<=#REF!,$K11,0),0) ->  | CU11: =IF(CU$5>=$F11,IF(CU$5<=#REF!,$K11,0),0) ->  | CV11: =IF(CV$5>=$F11,IF(CV$5<=#REF!,$K11,0),0) ->  | CW11: =IF(CW$5>=$F11,IF(CW$5<=#REF!,$K11,0),0) ->  | CX11: =IF(CX$5>=$F11,IF(CX$5<=#REF!,$K11,0),0) ->  | CY11: =IF(CY$5>=$F11,IF(CY$5<=#REF!,$K11,0),0) ->  | CZ11: =IF(CZ$5>=$F11,IF(CZ$5<=#REF!,$K11,0),0) ->  | DA11: =IF(DA$5>=$F11,IF(DA$5<=#REF!,$K11,0),0) ->  | DB11: =IF(DB$5>=$F11,IF(DB$5<=#REF!,$K11,0),0) ->  | DC11: =IF(DC$5>=$F11,IF(DC$5<=#REF!,$K11,0),0) ->  | DD11: =IF(DD$5>=$F11,IF(DD$5<=#REF!,$K11,0),0) ->  | DE11: =IF(DE$5>=$F11,IF(DE$5<=#REF!,$K11,0),0) ->  | DF11: =IF(DF$5>=$F11,IF(DF$5<=#REF!,$K11,0),0) ->  | DG11: =IF(DG$5>=$F11,IF(DG$5<=#REF!,$K11,0),0) ->  | DH11: =IF(DH$5>=$F11,IF(DH$5<=#REF!,$K11,0),0) ->  | DI11: =IF(DI$5>=$F11,IF(DI$5<=#REF!,$K11,0),0) ->  | DJ11: =IF(DJ$5>=$F11,IF(DJ$5<=#REF!,$K11,0),0) ->  | DK11: =IF(DK$5>=$F11,IF(DK$5<=#REF!,$K11,0),0) ->  | DL11: =IF(DL$5>=$F11,IF(DL$5<=#REF!,$K11,0),0) ->  | DM11: =IF(DM$5>=$F11,IF(DM$5<=#REF!,$K11,0),0) ->  | DN11: =IF(DN$5>=$F11,IF(DN$5<=#REF!,$K11,0),0) ->  | DO11: =IF(DO$5>=$F11,IF(DO$5<=#REF!,$K11,0),0) ->  | DP11: =IF(DP$5>=$F11,IF(DP$5<=#REF!,$K11,0),0) ->  | DQ11: =IF(DQ$5>=$F11,IF(DQ$5<=#REF!,$K11,0),0) ->  | DR11: =IF(DR$5>=$F11,IF(DR$5<=#REF!,$K11,0),0) ->  | DS11: =SUM(L11:DR11) ->  | DT11: =IF($B11="","",VLOOKUP($A11,$DW$11:$DX$18,2,FALSE)) ->  | DU11: =IF($B11="","",VLOOKUP($B11,$DY$11:$DZ$27,2,FALSE)) ->  | DW11: 導水管 | DX11: 取・導水管 | DY11: 鋳鉄管 （ダクタイル鋳鉄管は含まない） (m) | DZ11: A1 | EA11: 50 | EB11: 無舗装、昼間施工
G12: =IF($D12="",0,VLOOKUP(($DU12&$C12&$D12),単価情報!$B$66:$C$932,2,FALSE)) -> 0 | H12: =G12 -> 0 | I12: =E12*G12 -> 0 | J12: 0 | K12: =IF(E12=0,0,ROUND(E12/#REF!,1)) -> 0 | L12: =IF(L$5>=$F12,IF(L$5<=#REF!,$K12,0),0) ->  | M12: =IF(M$5>=$F12,IF(M$5<=#REF!,$K12,0),0) ->  | N12: =IF(N$5>=$F12,IF(N$5<=#REF!,$K12,0),0) ->  | O12: =IF(O$5>=$F12,IF(O$5<=#REF!,$K12,0),0) ->  | P12: =IF(P$5>=$F12,IF(P$5<=#REF!,$K12,0),0) ->  | Q12: =IF(Q$5>=$F12,IF(Q$5<=#REF!,$K12,0),0) ->  | R12: =IF(R$5>=$F12,IF(R$5<=#REF!,$K12,0),0) ->  | S12: =IF(S$5>=$F12,IF(S$5<=#REF!,$K12,0),0) ->  | T12: =IF(T$5>=$F12,IF(T$5<=#REF!,$K12,0),0) ->  | U12: =IF(U$5>=$F12,IF(U$5<=#REF!,$K12,0),0) ->  | V12: =IF(V$5>=$F12,IF(V$5<=#REF!,$K12,0),0) ->  | W12: =IF(W$5>=$F12,IF(W$5<=#REF!,$K12,0),0) ->  | X12: =IF(X$5>=$F12,IF(X$5<=#REF!,$K12,0),0) ->  | Y12: =IF(Y$5>=$F12,IF(Y$5<=#REF!,$K12,0),0) ->  | Z12: =IF(Z$5>=$F12,IF(Z$5<=#REF!,$K12,0),0) ->  | AA12: =IF(AA$5>=$F12,IF(AA$5<=#REF!,$K12,0),0) ->  | AB12: =IF(AB$5>=$F12,IF(AB$5<=#REF!,$K12,0),0) ->  | AC12: =IF(AC$5>=$F12,IF(AC$5<=#REF!,$K12,0),0) ->  | AD12: =IF(AD$5>=$F12,IF(AD$5<=#REF!,$K12,0),0) ->  | AE12: =IF(AE$5>=$F12,IF(AE$5<=#REF!,$K12,0),0) ->  | AF12: =IF(AF$5>=$F12,IF(AF$5<=#REF!,$K12,0),0) ->  | AG12: =IF(AG$5>=$F12,IF(AG$5<=#REF!,$K12,0),0) ->  | AH12: =IF(AH$5>=$F12,IF(AH$5<=#REF!,$K12,0),0) ->  | AI12: =IF(AI$5>=$F12,IF(AI$5<=#REF!,$K12,0),0) ->  | AJ12: =IF(AJ$5>=$F12,IF(AJ$5<=#REF!,$K12,0),0) ->  | AK12: =IF(AK$5>=$F12,IF(AK$5<=#REF!,$K12,0),0) ->  | AL12: =IF(AL$5>=$F12,IF(AL$5<=#REF!,$K12,0),0) ->  | AM12: =IF(AM$5>=$F12,IF(AM$5<=#REF!,$K12,0),0) ->  | AN12: =IF(AN$5>=$F12,IF(AN$5<=#REF!,$K12,0),0) ->  | AO12: =IF(AO$5>=$F12,IF(AO$5<=#REF!,$K12,0),0) ->  | AP12: =IF(AP$5>=$F12,IF(AP$5<=#REF!,$K12,0),0) ->  | AQ12: =IF(AQ$5>=$F12,IF(AQ$5<=#REF!,$K12,0),0) ->  | AR12: =IF(AR$5>=$F12,IF(AR$5<=#REF!,$K12,0),0) ->  | AS12: =IF(AS$5>=$F12,IF(AS$5<=#REF!,$K12,0),0) ->  | AT12: =IF(AT$5>=$F12,IF(AT$5<=#REF!,$K12,0),0) ->  | AU12: =IF(AU$5>=$F12,IF(AU$5<=#REF!,$K12,0),0) ->  | AV12: =IF(AV$5>=$F12,IF(AV$5<=#REF!,$K12,0),0) ->  | AW12: =IF(AW$5>=$F12,IF(AW$5<=#REF!,$K12,0),0) ->  | AX12: =IF(AX$5>=$F12,IF(AX$5<=#REF!,$K12,0),0) ->  | AY12: =IF(AY$5>=$F12,IF(AY$5<=#REF!,$K12,0),0) ->  | AZ12: =IF(AZ$5>=$F12,IF(AZ$5<=#REF!,$K12,0),0) ->  | BA12: =IF(BA$5>=$F12,IF(BA$5<=#REF!,$K12,0),0) ->  | BB12: =IF(BB$5>=$F12,IF(BB$5<=#REF!,$K12,0),0) ->  | BC12: =IF(BC$5>=$F12,IF(BC$5<=#REF!,$K12,0),0) ->  | BD12: =IF(BD$5>=$F12,IF(BD$5<=#REF!,$K12,0),0) ->  | BE12: =IF(BE$5>=$F12,IF(BE$5<=#REF!,$K12,0),0) ->  | BF12: =IF(BF$5>=$F12,IF(BF$5<=#REF!,$K12,0),0) ->  | BG12: =IF(BG$5>=$F12,IF(BG$5<=#REF!,$K12,0),0) ->  | BH12: =IF(BH$5>=$F12,IF(BH$5<=#REF!,$K12,0),0) ->  | BI12: =IF(BI$5>=$F12,IF(BI$5<=#REF!,$K12,0),0) ->  | BJ12: =IF(BJ$5>=$F12,IF(BJ$5<=#REF!,$K12,0),0) ->  | BK12: =IF(BK$5>=$F12,IF(BK$5<=#REF!,$K12,0),0) ->  | BL12: =IF(BL$5>=$F12,IF(BL$5<=#REF!,$K12,0),0) ->  | BM12: =IF(BM$5>=$F12,IF(BM$5<=#REF!,$K12,0),0) ->  | BN12: =IF(BN$5>=$F12,IF(BN$5<=#REF!,$K12,0),0) ->  | BO12: =IF(BO$5>=$F12,IF(BO$5<=#REF!,$K12,0),0) ->  | BP12: =IF(BP$5>=$F12,IF(BP$5<=#REF!,$K12,0),0) ->  | BQ12: =IF(BQ$5>=$F12,IF(BQ$5<=#REF!,$K12,0),0) ->  | BR12: =IF(BR$5>=$F12,IF(BR$5<=#REF!,$K12,0),0) ->  | BS12: =IF(BS$5>=$F12,IF(BS$5<=#REF!,$K12,0),0) ->  | BT12: =IF(BT$5>=$F12,IF(BT$5<=#REF!,$K12,0),0) ->  | BU12: =IF(BU$5>=$F12,IF(BU$5<=#REF!,$K12,0),0) ->  | BV12: =IF(BV$5>=$F12,IF(BV$5<=#REF!,$K12,0),0) ->  | BW12: =IF(BW$5>=$F12,IF(BW$5<=#REF!,$K12,0),0) ->  | BX12: =IF(BX$5>=$F12,IF(BX$5<=#REF!,$K12,0),0) ->  | BY12: =IF(BY$5>=$F12,IF(BY$5<=#REF!,$K12,0),0) ->  | BZ12: =IF(BZ$5>=$F12,IF(BZ$5<=#REF!,$K12,0),0) ->  | CA12: =IF(CA$5>=$F12,IF(CA$5<=#REF!,$K12,0),0) ->  | CB12: =IF(CB$5>=$F12,IF(CB$5<=#REF!,$K12,0),0) ->  | CC12: =IF(CC$5>=$F12,IF(CC$5<=#REF!,$K12,0),0) ->  | CD12: =IF(CD$5>=$F12,IF(CD$5<=#REF!,$K12,0),0) ->  | CE12: =IF(CE$5>=$F12,IF(CE$5<=#REF!,$K12,0),0) ->  | CF12: =IF(CF$5>=$F12,IF(CF$5<=#REF!,$K12,0),0) ->  | CG12: =IF(CG$5>=$F12,IF(CG$5<=#REF!,$K12,0),0) ->  | CH12: =IF(CH$5>=$F12,IF(CH$5<=#REF!,$K12,0),0) ->  | CI12: =IF(CI$5>=$F12,IF(CI$5<=#REF!,$K12,0),0) ->  | CJ12: =IF(CJ$5>=$F12,IF(CJ$5<=#REF!,$K12,0),0) ->  | CK12: =IF(CK$5>=$F12,IF(CK$5<=#REF!,$K12,0),0) ->  | CL12: =IF(CL$5>=$F12,IF(CL$5<=#REF!,$K12,0),0) ->  | CM12: =IF(CM$5>=$F12,IF(CM$5<=#REF!,$K12,0),0) ->  | CN12: =IF(CN$5>=$F12,IF(CN$5<=#REF!,$K12,0),0) ->  | CO12: =IF(CO$5>=$F12,IF(CO$5<=#REF!,$K12,0),0) ->  | CP12: =IF(CP$5>=$F12,IF(CP$5<=#REF!,$K12,0),0) ->  | CQ12: =IF(CQ$5>=$F12,IF(CQ$5<=#REF!,$K12,0),0) ->  | CR12: =IF(CR$5>=$F12,IF(CR$5<=#REF!,$K12,0),0) ->  | CS12: =IF(CS$5>=$F12,IF(CS$5<=#REF!,$K12,0),0) ->  | CT12: =IF(CT$5>=$F12,IF(CT$5<=#REF!,$K12,0),0) ->  | CU12: =IF(CU$5>=$F12,IF(CU$5<=#REF!,$K12,0),0) ->  | CV12: =IF(CV$5>=$F12,IF(CV$5<=#REF!,$K12,0),0) ->  | CW12: =IF(CW$5>=$F12,IF(CW$5<=#REF!,$K12,0),0) ->  | CX12: =IF(CX$5>=$F12,IF(CX$5<=#REF!,$K12,0),0) ->  | CY12: =IF(CY$5>=$F12,IF(CY$5<=#REF!,$K12,0),0) ->  | CZ12: =IF(CZ$5>=$F12,IF(CZ$5<=#REF!,$K12,0),0) ->  | DA12: =IF(DA$5>=$F12,IF(DA$5<=#REF!,$K12,0),0) ->  | DB12: =IF(DB$5>=$F12,IF(DB$5<=#REF!,$K12,0),0) ->  | DC12: =IF(DC$5>=$F12,IF(DC$5<=#REF!,$K12,0),0) ->  | DD12: =IF(DD$5>=$F12,IF(DD$5<=#REF!,$K12,0),0) ->  | DE12: =IF(DE$5>=$F12,IF(DE$5<=#REF!,$K12,0),0) ->  | DF12: =IF(DF$5>=$F12,IF(DF$5<=#REF!,$K12,0),0) ->  | DG12: =IF(DG$5>=$F12,IF(DG$5<=#REF!,$K12,0),0) ->  | DH12: =IF(DH$5>=$F12,IF(DH$5<=#REF!,$K12,0),0) ->  | DI12: =IF(DI$5>=$F12,IF(DI$5<=#REF!,$K12,0),0) ->  | DJ12: =IF(DJ$5>=$F12,IF(DJ$5<=#REF!,$K12,0),0) ->  | DK12: =IF(DK$5>=$F12,IF(DK$5<=#REF!,$K12,0),0) ->  | DL12: =IF(DL$5>=$F12,IF(DL$5<=#REF!,$K12,0),0) ->  | DM12: =IF(DM$5>=$F12,IF(DM$5<=#REF!,$K12,0),0) ->  | DN12: =IF(DN$5>=$F12,IF(DN$5<=#REF!,$K12,0),0) ->  | DO12: =IF(DO$5>=$F12,IF(DO$5<=#REF!,$K12,0),0) ->  | DP12: =IF(DP$5>=$F12,IF(DP$5<=#REF!,$K12,0),0) ->  | DQ12: =IF(DQ$5>=$F12,IF(DQ$5<=#REF!,$K12,0),0) ->  | DR12: =IF(DR$5>=$F12,IF(DR$5<=#REF!,$K12,0),0) ->  | DW12: 送水管 | DX12: 送水管 | DY12: ダクタイル鋳鉄管 耐震型継手を有する (m) | DZ12: A2 | EA12: 75 | EB12: 歩道、昼間施工
G13: =IF($D13="",0,VLOOKUP(($DU13&$C13&$D13),単価情報!$B$66:$C$932,2,FALSE)) -> 0 | H13: =G13 -> 0 | I13: 0 | J13: 0 | K13: =IF(E13=0,0,ROUND(E13/#REF!,1)) -> 0 | L13: =IF(L$5>=$F13,IF(L$5<=#REF!,$K13,0),0) ->  | M13: =IF(M$5>=$F13,IF(M$5<=#REF!,$K13,0),0) ->  | N13: =IF(N$5>=$F13,IF(N$5<=#REF!,$K13,0),0) ->  | O13: =IF(O$5>=$F13,IF(O$5<=#REF!,$K13,0),0) ->  | P13: =IF(P$5>=$F13,IF(P$5<=#REF!,$K13,0),0) ->  | Q13: =IF(Q$5>=$F13,IF(Q$5<=#REF!,$K13,0),0) ->  | R13: =IF(R$5>=$F13,IF(R$5<=#REF!,$K13,0),0) ->  | S13: =IF(S$5>=$F13,IF(S$5<=#REF!,$K13,0),0) ->  | T13: =IF(T$5>=$F13,IF(T$5<=#REF!,$K13,0),0) ->  | U13: =IF(U$5>=$F13,IF(U$5<=#REF!,$K13,0),0) ->  | V13: =IF(V$5>=$F13,IF(V$5<=#REF!,$K13,0),0) ->  | W13: =IF(W$5>=$F13,IF(W$5<=#REF!,$K13,0),0) ->  | X13: =IF(X$5>=$F13,IF(X$5<=#REF!,$K13,0),0) ->  | Y13: =IF(Y$5>=$F13,IF(Y$5<=#REF!,$K13,0),0) ->  | Z13: =IF(Z$5>=$F13,IF(Z$5<=#REF!,$K13,0),0) ->  | AA13: =IF(AA$5>=$F13,IF(AA$5<=#REF!,$K13,0),0) ->  | AB13: =IF(AB$5>=$F13,IF(AB$5<=#REF!,$K13,0),0) ->  | AC13: =IF(AC$5>=$F13,IF(AC$5<=#REF!,$K13,0),0) ->  | AD13: =IF(AD$5>=$F13,IF(AD$5<=#REF!,$K13,0),0) ->  | AE13: =IF(AE$5>=$F13,IF(AE$5<=#REF!,$K13,0),0) ->  | AF13: =IF(AF$5>=$F13,IF(AF$5<=#REF!,$K13,0),0) ->  | AG13: =IF(AG$5>=$F13,IF(AG$5<=#REF!,$K13,0),0) ->  | AH13: =IF(AH$5>=$F13,IF(AH$5<=#REF!,$K13,0),0) ->  | AI13: =IF(AI$5>=$F13,IF(AI$5<=#REF!,$K13,0),0) ->  | AJ13: =IF(AJ$5>=$F13,IF(AJ$5<=#REF!,$K13,0),0) ->  | AK13: =IF(AK$5>=$F13,IF(AK$5<=#REF!,$K13,0),0) ->  | AL13: =IF(AL$5>=$F13,IF(AL$5<=#REF!,$K13,0),0) ->  | AM13: =IF(AM$5>=$F13,IF(AM$5<=#REF!,$K13,0),0) ->  | AN13: =IF(AN$5>=$F13,IF(AN$5<=#REF!,$K13,0),0) ->  | AO13: =IF(AO$5>=$F13,IF(AO$5<=#REF!,$K13,0),0) ->  | AP13: =IF(AP$5>=$F13,IF(AP$5<=#REF!,$K13,0),0) ->  | AQ13: =IF(AQ$5>=$F13,IF(AQ$5<=#REF!,$K13,0),0) ->  | AR13: =IF(AR$5>=$F13,IF(AR$5<=#REF!,$K13,0),0) ->  | AS13: =IF(AS$5>=$F13,IF(AS$5<=#REF!,$K13,0),0) ->  | AT13: =IF(AT$5>=$F13,IF(AT$5<=#REF!,$K13,0),0) ->  | AU13: =IF(AU$5>=$F13,IF(AU$5<=#REF!,$K13,0),0) ->  | AV13: =IF(AV$5>=$F13,IF(AV$5<=#REF!,$K13,0),0) ->  | AW13: =IF(AW$5>=$F13,IF(AW$5<=#REF!,$K13,0),0) ->  | AX13: =IF(AX$5>=$F13,IF(AX$5<=#REF!,$K13,0),0) ->  | AY13: =IF(AY$5>=$F13,IF(AY$5<=#REF!,$K13,0),0) ->  | AZ13: =IF(AZ$5>=$F13,IF(AZ$5<=#REF!,$K13,0),0) ->  | BA13: =IF(BA$5>=$F13,IF(BA$5<=#REF!,$K13,0),0) ->  | BB13: =IF(BB$5>=$F13,IF(BB$5<=#REF!,$K13,0),0) ->  | BC13: =IF(BC$5>=$F13,IF(BC$5<=#REF!,$K13,0),0) ->  | BD13: =IF(BD$5>=$F13,IF(BD$5<=#REF!,$K13,0),0) ->  | BE13: =IF(BE$5>=$F13,IF(BE$5<=#REF!,$K13,0),0) ->  | BF13: =IF(BF$5>=$F13,IF(BF$5<=#REF!,$K13,0),0) ->  | BG13: =IF(BG$5>=$F13,IF(BG$5<=#REF!,$K13,0),0) ->  | BH13: =IF(BH$5>=$F13,IF(BH$5<=#REF!,$K13,0),0) ->  | BI13: =IF(BI$5>=$F13,IF(BI$5<=#REF!,$K13,0),0) ->  | BJ13: =IF(BJ$5>=$F13,IF(BJ$5<=#REF!,$K13,0),0) ->  | BK13: =IF(BK$5>=$F13,IF(BK$5<=#REF!,$K13,0),0) ->  | BL13: =IF(BL$5>=$F13,IF(BL$5<=#REF!,$K13,0),0) ->  | BM13: =IF(BM$5>=$F13,IF(BM$5<=#REF!,$K13,0),0) ->  | BN13: =IF(BN$5>=$F13,IF(BN$5<=#REF!,$K13,0),0) ->  | BO13: =IF(BO$5>=$F13,IF(BO$5<=#REF!,$K13,0),0) ->  | BP13: =IF(BP$5>=$F13,IF(BP$5<=#REF!,$K13,0),0) ->  | BQ13: =IF(BQ$5>=$F13,IF(BQ$5<=#REF!,$K13,0),0) ->  | BR13: =IF(BR$5>=$F13,IF(BR$5<=#REF!,$K13,0),0) ->  | BS13: =IF(BS$5>=$F13,IF(BS$5<=#REF!,$K13,0),0) ->  | BT13: =IF(BT$5>=$F13,IF(BT$5<=#REF!,$K13,0),0) ->  | BU13: =IF(BU$5>=$F13,IF(BU$5<=#REF!,$K13,0),0) ->  | BV13: =IF(BV$5>=$F13,IF(BV$5<=#REF!,$K13,0),0) ->  | BW13: =IF(BW$5>=$F13,IF(BW$5<=#REF!,$K13,0),0) ->  | BX13: =IF(BX$5>=$F13,IF(BX$5<=#REF!,$K13,0),0) ->  | BY13: =IF(BY$5>=$F13,IF(BY$5<=#REF!,$K13,0),0) ->  | BZ13: =IF(BZ$5>=$F13,IF(BZ$5<=#REF!,$K13,0),0) ->  | CA13: =IF(CA$5>=$F13,IF(CA$5<=#REF!,$K13,0),0) ->  | CB13: =IF(CB$5>=$F13,IF(CB$5<=#REF!,$K13,0),0) ->  | CC13: =IF(CC$5>=$F13,IF(CC$5<=#REF!,$K13,0),0) ->  | CD13: =IF(CD$5>=$F13,IF(CD$5<=#REF!,$K13,0),0) ->  | CE13: =IF(CE$5>=$F13,IF(CE$5<=#REF!,$K13,0),0) ->  | CF13: =IF(CF$5>=$F13,IF(CF$5<=#REF!,$K13,0),0) ->  | CG13: =IF(CG$5>=$F13,IF(CG$5<=#REF!,$K13,0),0) ->  | CH13: =IF(CH$5>=$F13,IF(CH$5<=#REF!,$K13,0),0) ->  | CI13: =IF(CI$5>=$F13,IF(CI$5<=#REF!,$K13,0),0) ->  | CJ13: =IF(CJ$5>=$F13,IF(CJ$5<=#REF!,$K13,0),0) ->  | CK13: =IF(CK$5>=$F13,IF(CK$5<=#REF!,$K13,0),0) ->  | CL13: =IF(CL$5>=$F13,IF(CL$5<=#REF!,$K13,0),0) ->  | CM13: =IF(CM$5>=$F13,IF(CM$5<=#REF!,$K13,0),0) ->  | CN13: =IF(CN$5>=$F13,IF(CN$5<=#REF!,$K13,0),0) ->  | CO13: =IF(CO$5>=$F13,IF(CO$5<=#REF!,$K13,0),0) ->  | CP13: =IF(CP$5>=$F13,IF(CP$5<=#REF!,$K13,0),0) ->  | CQ13: =IF(CQ$5>=$F13,IF(CQ$5<=#REF!,$K13,0),0) ->  | CR13: =IF(CR$5>=$F13,IF(CR$5<=#REF!,$K13,0),0) ->  | CS13: =IF(CS$5>=$F13,IF(CS$5<=#REF!,$K13,0),0) ->  | CT13: =IF(CT$5>=$F13,IF(CT$5<=#REF!,$K13,0),0) ->  | CU13: =IF(CU$5>=$F13,IF(CU$5<=#REF!,$K13,0),0) ->  | CV13: =IF(CV$5>=$F13,IF(CV$5<=#REF!,$K13,0),0) ->  | CW13: =IF(CW$5>=$F13,IF(CW$5<=#REF!,$K13,0),0) ->  | CX13: =IF(CX$5>=$F13,IF(CX$5<=#REF!,$K13,0),0) ->  | CY13: =IF(CY$5>=$F13,IF(CY$5<=#REF!,$K13,0),0) ->  | CZ13: =IF(CZ$5>=$F13,IF(CZ$5<=#REF!,$K13,0),0) ->  | DA13: =IF(DA$5>=$F13,IF(DA$5<=#REF!,$K13,0),0) ->  | DB13: =IF(DB$5>=$F13,IF(DB$5<=#REF!,$K13,0),0) ->  | DC13: =IF(DC$5>=$F13,IF(DC$5<=#REF!,$K13,0),0) ->  | DD13: =IF(DD$5>=$F13,IF(DD$5<=#REF!,$K13,0),0) ->  | DE13: =IF(DE$5>=$F13,IF(DE$5<=#REF!,$K13,0),0) ->  | DF13: =IF(DF$5>=$F13,IF(DF$5<=#REF!,$K13,0),0) ->  | DG13: =IF(DG$5>=$F13,IF(DG$5<=#REF!,$K13,0),0) ->  | DH13: =IF(DH$5>=$F13,IF(DH$5<=#REF!,$K13,0),0) ->  | DI13: =IF(DI$5>=$F13,IF(DI$5<=#REF!,$K13,0),0) ->  | DJ13: =IF(DJ$5>=$F13,IF(DJ$5<=#REF!,$K13,0),0) ->  | DK13: =IF(DK$5>=$F13,IF(DK$5<=#REF!,$K13,0),0) ->  | DL13: =IF(DL$5>=$F13,IF(DL$5<=#REF!,$K13,0),0) ->  | DM13: =IF(DM$5>=$F13,IF(DM$5<=#REF!,$K13,0),0) ->  | DN13: =IF(DN$5>=$F13,IF(DN$5<=#REF!,$K13,0),0) ->  | DO13: =IF(DO$5>=$F13,IF(DO$5<=#REF!,$K13,0),0) ->  | DP13: =IF(DP$5>=$F13,IF(DP$5<=#REF!,$K13,0),0) ->  | DQ13: =IF(DQ$5>=$F13,IF(DQ$5<=#REF!,$K13,0),0) ->  | DR13: =IF(DR$5>=$F13,IF(DR$5<=#REF!,$K13,0),0) ->  | DW13: 配水本管 | DX13: 配水本管 | DY13: ダクタイル鋳鉄管 Ｋ形継手等を有するもののうち良い地盤に布設されている (m) | DZ13: A3 | EA13: 100 | EB13: 車道、昼間施工
G14: =IF($D14="",0,VLOOKUP(($DU14&$C14&$D14),単価情報!$B$66:$C$932,2,FALSE)) -> 0 | H14: 0 | I14: 0 | J14: 0 | K14: =IF(E14=0,0,ROUND(E14/#REF!,1)) -> 0 | L14: =IF(L$5>=$F14,IF(L$5<=#REF!,$K14,0),0) ->  | M14: =IF(M$5>=$F14,IF(M$5<=#REF!,$K14,0),0) ->  | N14: =IF(N$5>=$F14,IF(N$5<=#REF!,$K14,0),0) ->  | O14: =IF(O$5>=$F14,IF(O$5<=#REF!,$K14,0),0) ->  | P14: =IF(P$5>=$F14,IF(P$5<=#REF!,$K14,0),0) ->  | Q14: =IF(Q$5>=$F14,IF(Q$5<=#REF!,$K14,0),0) ->  | R14: =IF(R$5>=$F14,IF(R$5<=#REF!,$K14,0),0) ->  | S14: =IF(S$5>=$F14,IF(S$5<=#REF!,$K14,0),0) ->  | T14: =IF(T$5>=$F14,IF(T$5<=#REF!,$K14,0),0) ->  | U14: =IF(U$5>=$F14,IF(U$5<=#REF!,$K14,0),0) ->  | V14: =IF(V$5>=$F14,IF(V$5<=#REF!,$K14,0),0) ->  | W14: =IF(W$5>=$F14,IF(W$5<=#REF!,$K14,0),0) ->  | X14: =IF(X$5>=$F14,IF(X$5<=#REF!,$K14,0),0) ->  | Y14: =IF(Y$5>=$F14,IF(Y$5<=#REF!,$K14,0),0) ->  | Z14: =IF(Z$5>=$F14,IF(Z$5<=#REF!,$K14,0),0) ->  | AA14: =IF(AA$5>=$F14,IF(AA$5<=#REF!,$K14,0),0) ->  | AB14: =IF(AB$5>=$F14,IF(AB$5<=#REF!,$K14,0),0) ->  | AC14: =IF(AC$5>=$F14,IF(AC$5<=#REF!,$K14,0),0) ->  | AD14: =IF(AD$5>=$F14,IF(AD$5<=#REF!,$K14,0),0) ->  | AE14: =IF(AE$5>=$F14,IF(AE$5<=#REF!,$K14,0),0) ->  | AF14: =IF(AF$5>=$F14,IF(AF$5<=#REF!,$K14,0),0) ->  | AG14: =IF(AG$5>=$F14,IF(AG$5<=#REF!,$K14,0),0) ->  | AH14: =IF(AH$5>=$F14,IF(AH$5<=#REF!,$K14,0),0) ->  | AI14: =IF(AI$5>=$F14,IF(AI$5<=#REF!,$K14,0),0) ->  | AJ14: =IF(AJ$5>=$F14,IF(AJ$5<=#REF!,$K14,0),0) ->  | AK14: =IF(AK$5>=$F14,IF(AK$5<=#REF!,$K14,0),0) ->  | AL14: =IF(AL$5>=$F14,IF(AL$5<=#REF!,$K14,0),0) ->  | AM14: =IF(AM$5>=$F14,IF(AM$5<=#REF!,$K14,0),0) ->  | AN14: =IF(AN$5>=$F14,IF(AN$5<=#REF!,$K14,0),0) ->  | AO14: =IF(AO$5>=$F14,IF(AO$5<=#REF!,$K14,0),0) ->  | AP14: =IF(AP$5>=$F14,IF(AP$5<=#REF!,$K14,0),0) ->  | AQ14: =IF(AQ$5>=$F14,IF(AQ$5<=#REF!,$K14,0),0) ->  | AR14: =IF(AR$5>=$F14,IF(AR$5<=#REF!,$K14,0),0) ->  | AS14: =IF(AS$5>=$F14,IF(AS$5<=#REF!,$K14,0),0) ->  | AT14: =IF(AT$5>=$F14,IF(AT$5<=#REF!,$K14,0),0) ->  | AU14: =IF(AU$5>=$F14,IF(AU$5<=#REF!,$K14,0),0) ->  | AV14: =IF(AV$5>=$F14,IF(AV$5<=#REF!,$K14,0),0) ->  | AW14: =IF(AW$5>=$F14,IF(AW$5<=#REF!,$K14,0),0) ->  | AX14: =IF(AX$5>=$F14,IF(AX$5<=#REF!,$K14,0),0) ->  | AY14: =IF(AY$5>=$F14,IF(AY$5<=#REF!,$K14,0),0) ->  | AZ14: =IF(AZ$5>=$F14,IF(AZ$5<=#REF!,$K14,0),0) ->  | BA14: =IF(BA$5>=$F14,IF(BA$5<=#REF!,$K14,0),0) ->  | BB14: =IF(BB$5>=$F14,IF(BB$5<=#REF!,$K14,0),0) ->  | BC14: =IF(BC$5>=$F14,IF(BC$5<=#REF!,$K14,0),0) ->  | BD14: =IF(BD$5>=$F14,IF(BD$5<=#REF!,$K14,0),0) ->  | BE14: =IF(BE$5>=$F14,IF(BE$5<=#REF!,$K14,0),0) ->  | BF14: =IF(BF$5>=$F14,IF(BF$5<=#REF!,$K14,0),0) ->  | BG14: =IF(BG$5>=$F14,IF(BG$5<=#REF!,$K14,0),0) ->  | BH14: =IF(BH$5>=$F14,IF(BH$5<=#REF!,$K14,0),0) ->  | BI14: =IF(BI$5>=$F14,IF(BI$5<=#REF!,$K14,0),0) ->  | BJ14: =IF(BJ$5>=$F14,IF(BJ$5<=#REF!,$K14,0),0) ->  | BK14: =IF(BK$5>=$F14,IF(BK$5<=#REF!,$K14,0),0) ->  | BL14: =IF(BL$5>=$F14,IF(BL$5<=#REF!,$K14,0),0) ->  | BM14: =IF(BM$5>=$F14,IF(BM$5<=#REF!,$K14,0),0) ->  | BN14: =IF(BN$5>=$F14,IF(BN$5<=#REF!,$K14,0),0) ->  | BO14: =IF(BO$5>=$F14,IF(BO$5<=#REF!,$K14,0),0) ->  | BP14: =IF(BP$5>=$F14,IF(BP$5<=#REF!,$K14,0),0) ->  | BQ14: =IF(BQ$5>=$F14,IF(BQ$5<=#REF!,$K14,0),0) ->  | BR14: =IF(BR$5>=$F14,IF(BR$5<=#REF!,$K14,0),0) ->  | BS14: =IF(BS$5>=$F14,IF(BS$5<=#REF!,$K14,0),0) ->  | BT14: =IF(BT$5>=$F14,IF(BT$5<=#REF!,$K14,0),0) ->  | BU14: =IF(BU$5>=$F14,IF(BU$5<=#REF!,$K14,0),0) ->  | BV14: =IF(BV$5>=$F14,IF(BV$5<=#REF!,$K14,0),0) ->  | BW14: =IF(BW$5>=$F14,IF(BW$5<=#REF!,$K14,0),0) ->  | BX14: =IF(BX$5>=$F14,IF(BX$5<=#REF!,$K14,0),0) ->  | BY14: =IF(BY$5>=$F14,IF(BY$5<=#REF!,$K14,0),0) ->  | BZ14: =IF(BZ$5>=$F14,IF(BZ$5<=#REF!,$K14,0),0) ->  | CA14: =IF(CA$5>=$F14,IF(CA$5<=#REF!,$K14,0),0) ->  | CB14: =IF(CB$5>=$F14,IF(CB$5<=#REF!,$K14,0),0) ->  | CC14: =IF(CC$5>=$F14,IF(CC$5<=#REF!,$K14,0),0) ->  | CD14: =IF(CD$5>=$F14,IF(CD$5<=#REF!,$K14,0),0) ->  | CE14: =IF(CE$5>=$F14,IF(CE$5<=#REF!,$K14,0),0) ->  | CF14: =IF(CF$5>=$F14,IF(CF$5<=#REF!,$K14,0),0) ->  | CG14: =IF(CG$5>=$F14,IF(CG$5<=#REF!,$K14,0),0) ->  | CH14: =IF(CH$5>=$F14,IF(CH$5<=#REF!,$K14,0),0) ->  | CI14: =IF(CI$5>=$F14,IF(CI$5<=#REF!,$K14,0),0) ->  | CJ14: =IF(CJ$5>=$F14,IF(CJ$5<=#REF!,$K14,0),0) ->  | CK14: =IF(CK$5>=$F14,IF(CK$5<=#REF!,$K14,0),0) ->  | CL14: =IF(CL$5>=$F14,IF(CL$5<=#REF!,$K14,0),0) ->  | CM14: =IF(CM$5>=$F14,IF(CM$5<=#REF!,$K14,0),0) ->  | CN14: =IF(CN$5>=$F14,IF(CN$5<=#REF!,$K14,0),0) ->  | CO14: =IF(CO$5>=$F14,IF(CO$5<=#REF!,$K14,0),0) ->  | CP14: =IF(CP$5>=$F14,IF(CP$5<=#REF!,$K14,0),0) ->  | CQ14: =IF(CQ$5>=$F14,IF(CQ$5<=#REF!,$K14,0),0) ->  | CR14: =IF(CR$5>=$F14,IF(CR$5<=#REF!,$K14,0),0) ->  | CS14: =IF(CS$5>=$F14,IF(CS$5<=#REF!,$K14,0),0) ->  | CT14: =IF(CT$5>=$F14,IF(CT$5<=#REF!,$K14,0),0) ->  | CU14: =IF(CU$5>=$F14,IF(CU$5<=#REF!,$K14,0),0) ->  | CV14: =IF(CV$5>=$F14,IF(CV$5<=#REF!,$K14,0),0) ->  | CW14: =IF(CW$5>=$F14,IF(CW$5<=#REF!,$K14,0),0) ->  | CX14: =IF(CX$5>=$F14,IF(CX$5<=#REF!,$K14,0),0) ->  | CY14: =IF(CY$5>=$F14,IF(CY$5<=#REF!,$K14,0),0) ->  | CZ14: =IF(CZ$5>=$F14,IF(CZ$5<=#REF!,$K14,0),0) ->  | DA14: =IF(DA$5>=$F14,IF(DA$5<=#REF!,$K14,0),0) ->  | DB14: =IF(DB$5>=$F14,IF(DB$5<=#REF!,$K14,0),0) ->  | DC14: =IF(DC$5>=$F14,IF(DC$5<=#REF!,$K14,0),0) ->  | DD14: =IF(DD$5>=$F14,IF(DD$5<=#REF!,$K14,0),0) ->  | DE14: =IF(DE$5>=$F14,IF(DE$5<=#REF!,$K14,0),0) ->  | DF14: =IF(DF$5>=$F14,IF(DF$5<=#REF!,$K14,0),0) ->  | DG14: =IF(DG$5>=$F14,IF(DG$5<=#REF!,$K14,0),0) ->  | DH14: =IF(DH$5>=$F14,IF(DH$5<=#REF!,$K14,0),0) ->  | DI14: =IF(DI$5>=$F14,IF(DI$5<=#REF!,$K14,0),0) ->  | DJ14: =IF(DJ$5>=$F14,IF(DJ$5<=#REF!,$K14,0),0) ->  | DK14: =IF(DK$5>=$F14,IF(DK$5<=#REF!,$K14,0),0) ->  | DL14: =IF(DL$5>=$F14,IF(DL$5<=#REF!,$K14,0),0) ->  | DM14: =IF(DM$5>=$F14,IF(DM$5<=#REF!,$K14,0),0) ->  | DN14: =IF(DN$5>=$F14,IF(DN$5<=#REF!,$K14,0),0) ->  | DO14: =IF(DO$5>=$F14,IF(DO$5<=#REF!,$K14,0),0) ->  | DP14: =IF(DP$5>=$F14,IF(DP$5<=#REF!,$K14,0),0) ->  | DQ14: =IF(DQ$5>=$F14,IF(DQ$5<=#REF!,$K14,0),0) ->  | DR14: =IF(DR$5>=$F14,IF(DR$5<=#REF!,$K14,0),0) ->  | DW14: 配水支管 | DX14: 配水支管 | DY14: ダクタイル鋳鉄管 (上記以外・不明なものを含む） (m) | DZ14: A9 | EA14: 125 | EB14: 車道、夜間施工
G15: =IF($D15="",0,VLOOKUP(($DU15&$C15&$D15),単価情報!$B$66:$C$932,2,FALSE)) -> 0 | H15: 0 | I15: 0 | J15: 0 | K15: =IF(E15=0,0,ROUND(E15/#REF!,1)) -> 0 | L15: =IF(L$5>=$F15,IF(L$5<=#REF!,$K15,0),0) ->  | M15: =IF(M$5>=$F15,IF(M$5<=#REF!,$K15,0),0) ->  | N15: =IF(N$5>=$F15,IF(N$5<=#REF!,$K15,0),0) ->  | O15: =IF(O$5>=$F15,IF(O$5<=#REF!,$K15,0),0) ->  | P15: =IF(P$5>=$F15,IF(P$5<=#REF!,$K15,0),0) ->  | Q15: =IF(Q$5>=$F15,IF(Q$5<=#REF!,$K15,0),0) ->  | R15: =IF(R$5>=$F15,IF(R$5<=#REF!,$K15,0),0) ->  | S15: =IF(S$5>=$F15,IF(S$5<=#REF!,$K15,0),0) ->  | T15: =IF(T$5>=$F15,IF(T$5<=#REF!,$K15,0),0) ->  | U15: =IF(U$5>=$F15,IF(U$5<=#REF!,$K15,0),0) ->  | V15: =IF(V$5>=$F15,IF(V$5<=#REF!,$K15,0),0) ->  | W15: =IF(W$5>=$F15,IF(W$5<=#REF!,$K15,0),0) ->  | X15: =IF(X$5>=$F15,IF(X$5<=#REF!,$K15,0),0) ->  | Y15: =IF(Y$5>=$F15,IF(Y$5<=#REF!,$K15,0),0) ->  | Z15: =IF(Z$5>=$F15,IF(Z$5<=#REF!,$K15,0),0) ->  | AA15: =IF(AA$5>=$F15,IF(AA$5<=#REF!,$K15,0),0) ->  | AB15: =IF(AB$5>=$F15,IF(AB$5<=#REF!,$K15,0),0) ->  | AC15: =IF(AC$5>=$F15,IF(AC$5<=#REF!,$K15,0),0) ->  | AD15: =IF(AD$5>=$F15,IF(AD$5<=#REF!,$K15,0),0) ->  | AE15: =IF(AE$5>=$F15,IF(AE$5<=#REF!,$K15,0),0) ->  | AF15: =IF(AF$5>=$F15,IF(AF$5<=#REF!,$K15,0),0) ->  | AG15: =IF(AG$5>=$F15,IF(AG$5<=#REF!,$K15,0),0) ->  | AH15: =IF(AH$5>=$F15,IF(AH$5<=#REF!,$K15,0),0) ->  | AI15: =IF(AI$5>=$F15,IF(AI$5<=#REF!,$K15,0),0) ->  | AJ15: =IF(AJ$5>=$F15,IF(AJ$5<=#REF!,$K15,0),0) ->  | AK15: =IF(AK$5>=$F15,IF(AK$5<=#REF!,$K15,0),0) ->  | AL15: =IF(AL$5>=$F15,IF(AL$5<=#REF!,$K15,0),0) ->  | AM15: =IF(AM$5>=$F15,IF(AM$5<=#REF!,$K15,0),0) ->  | AN15: =IF(AN$5>=$F15,IF(AN$5<=#REF!,$K15,0),0) ->  | AO15: =IF(AO$5>=$F15,IF(AO$5<=#REF!,$K15,0),0) ->  | AP15: =IF(AP$5>=$F15,IF(AP$5<=#REF!,$K15,0),0) ->  | AQ15: =IF(AQ$5>=$F15,IF(AQ$5<=#REF!,$K15,0),0) ->  | AR15: =IF(AR$5>=$F15,IF(AR$5<=#REF!,$K15,0),0) ->  | AS15: =IF(AS$5>=$F15,IF(AS$5<=#REF!,$K15,0),0) ->  | AT15: =IF(AT$5>=$F15,IF(AT$5<=#REF!,$K15,0),0) ->  | AU15: =IF(AU$5>=$F15,IF(AU$5<=#REF!,$K15,0),0) ->  | AV15: =IF(AV$5>=$F15,IF(AV$5<=#REF!,$K15,0),0) ->  | AW15: =IF(AW$5>=$F15,IF(AW$5<=#REF!,$K15,0),0) ->  | AX15: =IF(AX$5>=$F15,IF(AX$5<=#REF!,$K15,0),0) ->  | AY15: =IF(AY$5>=$F15,IF(AY$5<=#REF!,$K15,0),0) ->  | AZ15: =IF(AZ$5>=$F15,IF(AZ$5<=#REF!,$K15,0),0) ->  | BA15: =IF(BA$5>=$F15,IF(BA$5<=#REF!,$K15,0),0) ->  | BB15: =IF(BB$5>=$F15,IF(BB$5<=#REF!,$K15,0),0) ->  | BC15: =IF(BC$5>=$F15,IF(BC$5<=#REF!,$K15,0),0) ->  | BD15: =IF(BD$5>=$F15,IF(BD$5<=#REF!,$K15,0),0) ->  | BE15: =IF(BE$5>=$F15,IF(BE$5<=#REF!,$K15,0),0) ->  | BF15: =IF(BF$5>=$F15,IF(BF$5<=#REF!,$K15,0),0) ->  | BG15: =IF(BG$5>=$F15,IF(BG$5<=#REF!,$K15,0),0) ->  | BH15: =IF(BH$5>=$F15,IF(BH$5<=#REF!,$K15,0),0) ->  | BI15: =IF(BI$5>=$F15,IF(BI$5<=#REF!,$K15,0),0) ->  | BJ15: =IF(BJ$5>=$F15,IF(BJ$5<=#REF!,$K15,0),0) ->  | BK15: =IF(BK$5>=$F15,IF(BK$5<=#REF!,$K15,0),0) ->  | BL15: =IF(BL$5>=$F15,IF(BL$5<=#REF!,$K15,0),0) ->  | BM15: =IF(BM$5>=$F15,IF(BM$5<=#REF!,$K15,0),0) ->  | BN15: =IF(BN$5>=$F15,IF(BN$5<=#REF!,$K15,0),0) ->  | BO15: =IF(BO$5>=$F15,IF(BO$5<=#REF!,$K15,0),0) ->  | BP15: =IF(BP$5>=$F15,IF(BP$5<=#REF!,$K15,0),0) ->  | BQ15: =IF(BQ$5>=$F15,IF(BQ$5<=#REF!,$K15,0),0) ->  | BR15: =IF(BR$5>=$F15,IF(BR$5<=#REF!,$K15,0),0) ->  | BS15: =IF(BS$5>=$F15,IF(BS$5<=#REF!,$K15,0),0) ->  | BT15: =IF(BT$5>=$F15,IF(BT$5<=#REF!,$K15,0),0) ->  | BU15: =IF(BU$5>=$F15,IF(BU$5<=#REF!,$K15,0),0) ->  | BV15: =IF(BV$5>=$F15,IF(BV$5<=#REF!,$K15,0),0) ->  | BW15: =IF(BW$5>=$F15,IF(BW$5<=#REF!,$K15,0),0) ->  | BX15: =IF(BX$5>=$F15,IF(BX$5<=#REF!,$K15,0),0) ->  | BY15: =IF(BY$5>=$F15,IF(BY$5<=#REF!,$K15,0),0) ->  | BZ15: =IF(BZ$5>=$F15,IF(BZ$5<=#REF!,$K15,0),0) ->  | CA15: =IF(CA$5>=$F15,IF(CA$5<=#REF!,$K15,0),0) ->  | CB15: =IF(CB$5>=$F15,IF(CB$5<=#REF!,$K15,0),0) ->  | CC15: =IF(CC$5>=$F15,IF(CC$5<=#REF!,$K15,0),0) ->  | CD15: =IF(CD$5>=$F15,IF(CD$5<=#REF!,$K15,0),0) ->  | CE15: =IF(CE$5>=$F15,IF(CE$5<=#REF!,$K15,0),0) ->  | CF15: =IF(CF$5>=$F15,IF(CF$5<=#REF!,$K15,0),0) ->  | CG15: =IF(CG$5>=$F15,IF(CG$5<=#REF!,$K15,0),0) ->  | CH15: =IF(CH$5>=$F15,IF(CH$5<=#REF!,$K15,0),0) ->  | CI15: =IF(CI$5>=$F15,IF(CI$5<=#REF!,$K15,0),0) ->  | CJ15: =IF(CJ$5>=$F15,IF(CJ$5<=#REF!,$K15,0),0) ->  | CK15: =IF(CK$5>=$F15,IF(CK$5<=#REF!,$K15,0),0) ->  | CL15: =IF(CL$5>=$F15,IF(CL$5<=#REF!,$K15,0),0) ->  | CM15: =IF(CM$5>=$F15,IF(CM$5<=#REF!,$K15,0),0) ->  | CN15: =IF(CN$5>=$F15,IF(CN$5<=#REF!,$K15,0),0) ->  | CO15: =IF(CO$5>=$F15,IF(CO$5<=#REF!,$K15,0),0) ->  | CP15: =IF(CP$5>=$F15,IF(CP$5<=#REF!,$K15,0),0) ->  | CQ15: =IF(CQ$5>=$F15,IF(CQ$5<=#REF!,$K15,0),0) ->  | CR15: =IF(CR$5>=$F15,IF(CR$5<=#REF!,$K15,0),0) ->  | CS15: =IF(CS$5>=$F15,IF(CS$5<=#REF!,$K15,0),0) ->  | CT15: =IF(CT$5>=$F15,IF(CT$5<=#REF!,$K15,0),0) ->  | CU15: =IF(CU$5>=$F15,IF(CU$5<=#REF!,$K15,0),0) ->  | CV15: =IF(CV$5>=$F15,IF(CV$5<=#REF!,$K15,0),0) ->  | CW15: =IF(CW$5>=$F15,IF(CW$5<=#REF!,$K15,0),0) ->  | CX15: =IF(CX$5>=$F15,IF(CX$5<=#REF!,$K15,0),0) ->  | CY15: =IF(CY$5>=$F15,IF(CY$5<=#REF!,$K15,0),0) ->  | CZ15: =IF(CZ$5>=$F15,IF(CZ$5<=#REF!,$K15,0),0) ->  | DA15: =IF(DA$5>=$F15,IF(DA$5<=#REF!,$K15,0),0) ->  | DB15: =IF(DB$5>=$F15,IF(DB$5<=#REF!,$K15,0),0) ->  | DC15: =IF(DC$5>=$F15,IF(DC$5<=#REF!,$K15,0),0) ->  | DD15: =IF(DD$5>=$F15,IF(DD$5<=#REF!,$K15,0),0) ->  | DE15: =IF(DE$5>=$F15,IF(DE$5<=#REF!,$K15,0),0) ->  | DF15: =IF(DF$5>=$F15,IF(DF$5<=#REF!,$K15,0),0) ->  | DG15: =IF(DG$5>=$F15,IF(DG$5<=#REF!,$K15,0),0) ->  | DH15: =IF(DH$5>=$F15,IF(DH$5<=#REF!,$K15,0),0) ->  | DI15: =IF(DI$5>=$F15,IF(DI$5<=#REF!,$K15,0),0) ->  | DJ15: =IF(DJ$5>=$F15,IF(DJ$5<=#REF!,$K15,0),0) ->  | DK15: =IF(DK$5>=$F15,IF(DK$5<=#REF!,$K15,0),0) ->  | DL15: =IF(DL$5>=$F15,IF(DL$5<=#REF!,$K15,0),0) ->  | DM15: =IF(DM$5>=$F15,IF(DM$5<=#REF!,$K15,0),0) ->  | DN15: =IF(DN$5>=$F15,IF(DN$5<=#REF!,$K15,0),0) ->  | DO15: =IF(DO$5>=$F15,IF(DO$5<=#REF!,$K15,0),0) ->  | DP15: =IF(DP$5>=$F15,IF(DP$5<=#REF!,$K15,0),0) ->  | DQ15: =IF(DQ$5>=$F15,IF(DQ$5<=#REF!,$K15,0),0) ->  | DR15: =IF(DR$5>=$F15,IF(DR$5<=#REF!,$K15,0),0) ->  | DW15: その他１ | DX15: その他１ | DY15: 鋼管 （溶接継手を有する） （m） | DZ15: B1 | EA15: 150
G16: =IF($D16="",0,VLOOKUP(($DU16&$C16&$D16),単価情報!$B$66:$C$932,2,FALSE)) -> 0 | H16: 0 | I16: 0 | J16: 0 | K16: =IF(E16=0,0,ROUND(E16/#REF!,1)) -> 0 | L16: =IF(L$5>=$F16,IF(L$5<=#REF!,$K16,0),0) ->  | M16: =IF(M$5>=$F16,IF(M$5<=#REF!,$K16,0),0) ->  | N16: =IF(N$5>=$F16,IF(N$5<=#REF!,$K16,0),0) ->  | O16: =IF(O$5>=$F16,IF(O$5<=#REF!,$K16,0),0) ->  | P16: =IF(P$5>=$F16,IF(P$5<=#REF!,$K16,0),0) ->  | Q16: =IF(Q$5>=$F16,IF(Q$5<=#REF!,$K16,0),0) ->  | R16: =IF(R$5>=$F16,IF(R$5<=#REF!,$K16,0),0) ->  | S16: =IF(S$5>=$F16,IF(S$5<=#REF!,$K16,0),0) ->  | T16: =IF(T$5>=$F16,IF(T$5<=#REF!,$K16,0),0) ->  | U16: =IF(U$5>=$F16,IF(U$5<=#REF!,$K16,0),0) ->  | V16: =IF(V$5>=$F16,IF(V$5<=#REF!,$K16,0),0) ->  | W16: =IF(W$5>=$F16,IF(W$5<=#REF!,$K16,0),0) ->  | X16: =IF(X$5>=$F16,IF(X$5<=#REF!,$K16,0),0) ->  | Y16: =IF(Y$5>=$F16,IF(Y$5<=#REF!,$K16,0),0) ->  | Z16: =IF(Z$5>=$F16,IF(Z$5<=#REF!,$K16,0),0) ->  | AA16: =IF(AA$5>=$F16,IF(AA$5<=#REF!,$K16,0),0) ->  | AB16: =IF(AB$5>=$F16,IF(AB$5<=#REF!,$K16,0),0) ->  | AC16: =IF(AC$5>=$F16,IF(AC$5<=#REF!,$K16,0),0) ->  | AD16: =IF(AD$5>=$F16,IF(AD$5<=#REF!,$K16,0),0) ->  | AE16: =IF(AE$5>=$F16,IF(AE$5<=#REF!,$K16,0),0) ->  | AF16: =IF(AF$5>=$F16,IF(AF$5<=#REF!,$K16,0),0) ->  | AG16: =IF(AG$5>=$F16,IF(AG$5<=#REF!,$K16,0),0) ->  | AH16: =IF(AH$5>=$F16,IF(AH$5<=#REF!,$K16,0),0) ->  | AI16: =IF(AI$5>=$F16,IF(AI$5<=#REF!,$K16,0),0) ->  | AJ16: =IF(AJ$5>=$F16,IF(AJ$5<=#REF!,$K16,0),0) ->  | AK16: =IF(AK$5>=$F16,IF(AK$5<=#REF!,$K16,0),0) ->  | AL16: =IF(AL$5>=$F16,IF(AL$5<=#REF!,$K16,0),0) ->  | AM16: =IF(AM$5>=$F16,IF(AM$5<=#REF!,$K16,0),0) ->  | AN16: =IF(AN$5>=$F16,IF(AN$5<=#REF!,$K16,0),0) ->  | AO16: =IF(AO$5>=$F16,IF(AO$5<=#REF!,$K16,0),0) ->  | AP16: =IF(AP$5>=$F16,IF(AP$5<=#REF!,$K16,0),0) ->  | AQ16: =IF(AQ$5>=$F16,IF(AQ$5<=#REF!,$K16,0),0) ->  | AR16: =IF(AR$5>=$F16,IF(AR$5<=#REF!,$K16,0),0) ->  | AS16: =IF(AS$5>=$F16,IF(AS$5<=#REF!,$K16,0),0) ->  | AT16: =IF(AT$5>=$F16,IF(AT$5<=#REF!,$K16,0),0) ->  | AU16: =IF(AU$5>=$F16,IF(AU$5<=#REF!,$K16,0),0) ->  | AV16: =IF(AV$5>=$F16,IF(AV$5<=#REF!,$K16,0),0) ->  | AW16: =IF(AW$5>=$F16,IF(AW$5<=#REF!,$K16,0),0) ->  | AX16: =IF(AX$5>=$F16,IF(AX$5<=#REF!,$K16,0),0) ->  | AY16: =IF(AY$5>=$F16,IF(AY$5<=#REF!,$K16,0),0) ->  | AZ16: =IF(AZ$5>=$F16,IF(AZ$5<=#REF!,$K16,0),0) ->  | BA16: =IF(BA$5>=$F16,IF(BA$5<=#REF!,$K16,0),0) ->  | BB16: =IF(BB$5>=$F16,IF(BB$5<=#REF!,$K16,0),0) ->  | BC16: =IF(BC$5>=$F16,IF(BC$5<=#REF!,$K16,0),0) ->  | BD16: =IF(BD$5>=$F16,IF(BD$5<=#REF!,$K16,0),0) ->  | BE16: =IF(BE$5>=$F16,IF(BE$5<=#REF!,$K16,0),0) ->  | BF16: =IF(BF$5>=$F16,IF(BF$5<=#REF!,$K16,0),0) ->  | BG16: =IF(BG$5>=$F16,IF(BG$5<=#REF!,$K16,0),0) ->  | BH16: =IF(BH$5>=$F16,IF(BH$5<=#REF!,$K16,0),0) ->  | BI16: =IF(BI$5>=$F16,IF(BI$5<=#REF!,$K16,0),0) ->  | BJ16: =IF(BJ$5>=$F16,IF(BJ$5<=#REF!,$K16,0),0) ->  | BK16: =IF(BK$5>=$F16,IF(BK$5<=#REF!,$K16,0),0) ->  | BL16: =IF(BL$5>=$F16,IF(BL$5<=#REF!,$K16,0),0) ->  | BM16: =IF(BM$5>=$F16,IF(BM$5<=#REF!,$K16,0),0) ->  | BN16: =IF(BN$5>=$F16,IF(BN$5<=#REF!,$K16,0),0) ->  | BO16: =IF(BO$5>=$F16,IF(BO$5<=#REF!,$K16,0),0) ->  | BP16: =IF(BP$5>=$F16,IF(BP$5<=#REF!,$K16,0),0) ->  | BQ16: =IF(BQ$5>=$F16,IF(BQ$5<=#REF!,$K16,0),0) ->  | BR16: =IF(BR$5>=$F16,IF(BR$5<=#REF!,$K16,0),0) ->  | BS16: =IF(BS$5>=$F16,IF(BS$5<=#REF!,$K16,0),0) ->  | BT16: =IF(BT$5>=$F16,IF(BT$5<=#REF!,$K16,0),0) ->  | BU16: =IF(BU$5>=$F16,IF(BU$5<=#REF!,$K16,0),0) ->  | BV16: =IF(BV$5>=$F16,IF(BV$5<=#REF!,$K16,0),0) ->  | BW16: =IF(BW$5>=$F16,IF(BW$5<=#REF!,$K16,0),0) ->  | BX16: =IF(BX$5>=$F16,IF(BX$5<=#REF!,$K16,0),0) ->  | BY16: =IF(BY$5>=$F16,IF(BY$5<=#REF!,$K16,0),0) ->  | BZ16: =IF(BZ$5>=$F16,IF(BZ$5<=#REF!,$K16,0),0) ->  | CA16: =IF(CA$5>=$F16,IF(CA$5<=#REF!,$K16,0),0) ->  | CB16: =IF(CB$5>=$F16,IF(CB$5<=#REF!,$K16,0),0) ->  | CC16: =IF(CC$5>=$F16,IF(CC$5<=#REF!,$K16,0),0) ->  | CD16: =IF(CD$5>=$F16,IF(CD$5<=#REF!,$K16,0),0) ->  | CE16: =IF(CE$5>=$F16,IF(CE$5<=#REF!,$K16,0),0) ->  | CF16: =IF(CF$5>=$F16,IF(CF$5<=#REF!,$K16,0),0) ->  | CG16: =IF(CG$5>=$F16,IF(CG$5<=#REF!,$K16,0),0) ->  | CH16: =IF(CH$5>=$F16,IF(CH$5<=#REF!,$K16,0),0) ->  | CI16: =IF(CI$5>=$F16,IF(CI$5<=#REF!,$K16,0),0) ->  | CJ16: =IF(CJ$5>=$F16,IF(CJ$5<=#REF!,$K16,0),0) ->  | CK16: =IF(CK$5>=$F16,IF(CK$5<=#REF!,$K16,0),0) ->  | CL16: =IF(CL$5>=$F16,IF(CL$5<=#REF!,$K16,0),0) ->  | CM16: =IF(CM$5>=$F16,IF(CM$5<=#REF!,$K16,0),0) ->  | CN16: =IF(CN$5>=$F16,IF(CN$5<=#REF!,$K16,0),0) ->  | CO16: =IF(CO$5>=$F16,IF(CO$5<=#REF!,$K16,0),0) ->  | CP16: =IF(CP$5>=$F16,IF(CP$5<=#REF!,$K16,0),0) ->  | CQ16: =IF(CQ$5>=$F16,IF(CQ$5<=#REF!,$K16,0),0) ->  | CR16: =IF(CR$5>=$F16,IF(CR$5<=#REF!,$K16,0),0) ->  | CS16: =IF(CS$5>=$F16,IF(CS$5<=#REF!,$K16,0),0) ->  | CT16: =IF(CT$5>=$F16,IF(CT$5<=#REF!,$K16,0),0) ->  | CU16: =IF(CU$5>=$F16,IF(CU$5<=#REF!,$K16,0),0) ->  | CV16: =IF(CV$5>=$F16,IF(CV$5<=#REF!,$K16,0),0) ->  | CW16: =IF(CW$5>=$F16,IF(CW$5<=#REF!,$K16,0),0) ->  | CX16: =IF(CX$5>=$F16,IF(CX$5<=#REF!,$K16,0),0) ->  | CY16: =IF(CY$5>=$F16,IF(CY$5<=#REF!,$K16,0),0) ->  | CZ16: =IF(CZ$5>=$F16,IF(CZ$5<=#REF!,$K16,0),0) ->  | DA16: =IF(DA$5>=$F16,IF(DA$5<=#REF!,$K16,0),0) ->  | DB16: =IF(DB$5>=$F16,IF(DB$5<=#REF!,$K16,0),0) ->  | DC16: =IF(DC$5>=$F16,IF(DC$5<=#REF!,$K16,0),0) ->  | DD16: =IF(DD$5>=$F16,IF(DD$5<=#REF!,$K16,0),0) ->  | DE16: =IF(DE$5>=$F16,IF(DE$5<=#REF!,$K16,0),0) ->  | DF16: =IF(DF$5>=$F16,IF(DF$5<=#REF!,$K16,0),0) ->  | DG16: =IF(DG$5>=$F16,IF(DG$5<=#REF!,$K16,0),0) ->  | DH16: =IF(DH$5>=$F16,IF(DH$5<=#REF!,$K16,0),0) ->  | DI16: =IF(DI$5>=$F16,IF(DI$5<=#REF!,$K16,0),0) ->  | DJ16: =IF(DJ$5>=$F16,IF(DJ$5<=#REF!,$K16,0),0) ->  | DK16: =IF(DK$5>=$F16,IF(DK$5<=#REF!,$K16,0),0) ->  | DL16: =IF(DL$5>=$F16,IF(DL$5<=#REF!,$K16,0),0) ->  | DM16: =IF(DM$5>=$F16,IF(DM$5<=#REF!,$K16,0),0) ->  | DN16: =IF(DN$5>=$F16,IF(DN$5<=#REF!,$K16,0),0) ->  | DO16: =IF(DO$5>=$F16,IF(DO$5<=#REF!,$K16,0),0) ->  | DP16: =IF(DP$5>=$F16,IF(DP$5<=#REF!,$K16,0),0) ->  | DQ16: =IF(DQ$5>=$F16,IF(DQ$5<=#REF!,$K16,0),0) ->  | DR16: =IF(DR$5>=$F16,IF(DR$5<=#REF!,$K16,0),0) ->  | DW16: その他２ | DX16: その他２ | DY16: 鋼管 （上記以外・不明なものを含む） (m) | DZ16: B9 | EA16: 200
G17: =IF($D17="",0,VLOOKUP(($DU17&$C17&$D17),単価情報!$B$66:$C$932,2,FALSE)) -> 0 | H17: 0 | I17: 0 | J17: 0 | K17: =IF(E17=0,0,ROUND(E17/#REF!,1)) -> 0 | L17: =IF(L$5>=$F17,IF(L$5<=#REF!,$K17,0),0) ->  | M17: =IF(M$5>=$F17,IF(M$5<=#REF!,$K17,0),0) ->  | N17: =IF(N$5>=$F17,IF(N$5<=#REF!,$K17,0),0) ->  | O17: =IF(O$5>=$F17,IF(O$5<=#REF!,$K17,0),0) ->  | P17: =IF(P$5>=$F17,IF(P$5<=#REF!,$K17,0),0) ->  | Q17: =IF(Q$5>=$F17,IF(Q$5<=#REF!,$K17,0),0) ->  | R17: =IF(R$5>=$F17,IF(R$5<=#REF!,$K17,0),0) ->  | S17: =IF(S$5>=$F17,IF(S$5<=#REF!,$K17,0),0) ->  | T17: =IF(T$5>=$F17,IF(T$5<=#REF!,$K17,0),0) ->  | U17: =IF(U$5>=$F17,IF(U$5<=#REF!,$K17,0),0) ->  | V17: =IF(V$5>=$F17,IF(V$5<=#REF!,$K17,0),0) ->  | W17: =IF(W$5>=$F17,IF(W$5<=#REF!,$K17,0),0) ->  | X17: =IF(X$5>=$F17,IF(X$5<=#REF!,$K17,0),0) ->  | Y17: =IF(Y$5>=$F17,IF(Y$5<=#REF!,$K17,0),0) ->  | Z17: =IF(Z$5>=$F17,IF(Z$5<=#REF!,$K17,0),0) ->  | AA17: =IF(AA$5>=$F17,IF(AA$5<=#REF!,$K17,0),0) ->  | AB17: =IF(AB$5>=$F17,IF(AB$5<=#REF!,$K17,0),0) ->  | AC17: =IF(AC$5>=$F17,IF(AC$5<=#REF!,$K17,0),0) ->  | AD17: =IF(AD$5>=$F17,IF(AD$5<=#REF!,$K17,0),0) ->  | AE17: =IF(AE$5>=$F17,IF(AE$5<=#REF!,$K17,0),0) ->  | AF17: =IF(AF$5>=$F17,IF(AF$5<=#REF!,$K17,0),0) ->  | AG17: =IF(AG$5>=$F17,IF(AG$5<=#REF!,$K17,0),0) ->  | AH17: =IF(AH$5>=$F17,IF(AH$5<=#REF!,$K17,0),0) ->  | AI17: =IF(AI$5>=$F17,IF(AI$5<=#REF!,$K17,0),0) ->  | AJ17: =IF(AJ$5>=$F17,IF(AJ$5<=#REF!,$K17,0),0) ->  | AK17: =IF(AK$5>=$F17,IF(AK$5<=#REF!,$K17,0),0) ->  | AL17: =IF(AL$5>=$F17,IF(AL$5<=#REF!,$K17,0),0) ->  | AM17: =IF(AM$5>=$F17,IF(AM$5<=#REF!,$K17,0),0) ->  | AN17: =IF(AN$5>=$F17,IF(AN$5<=#REF!,$K17,0),0) ->  | AO17: =IF(AO$5>=$F17,IF(AO$5<=#REF!,$K17,0),0) ->  | AP17: =IF(AP$5>=$F17,IF(AP$5<=#REF!,$K17,0),0) ->  | AQ17: =IF(AQ$5>=$F17,IF(AQ$5<=#REF!,$K17,0),0) ->  | AR17: =IF(AR$5>=$F17,IF(AR$5<=#REF!,$K17,0),0) ->  | AS17: =IF(AS$5>=$F17,IF(AS$5<=#REF!,$K17,0),0) ->  | AT17: =IF(AT$5>=$F17,IF(AT$5<=#REF!,$K17,0),0) ->  | AU17: =IF(AU$5>=$F17,IF(AU$5<=#REF!,$K17,0),0) ->  | AV17: =IF(AV$5>=$F17,IF(AV$5<=#REF!,$K17,0),0) ->  | AW17: =IF(AW$5>=$F17,IF(AW$5<=#REF!,$K17,0),0) ->  | AX17: =IF(AX$5>=$F17,IF(AX$5<=#REF!,$K17,0),0) ->  | AY17: =IF(AY$5>=$F17,IF(AY$5<=#REF!,$K17,0),0) ->  | AZ17: =IF(AZ$5>=$F17,IF(AZ$5<=#REF!,$K17,0),0) ->  | BA17: =IF(BA$5>=$F17,IF(BA$5<=#REF!,$K17,0),0) ->  | BB17: =IF(BB$5>=$F17,IF(BB$5<=#REF!,$K17,0),0) ->  | BC17: =IF(BC$5>=$F17,IF(BC$5<=#REF!,$K17,0),0) ->  | BD17: =IF(BD$5>=$F17,IF(BD$5<=#REF!,$K17,0),0) ->  | BE17: =IF(BE$5>=$F17,IF(BE$5<=#REF!,$K17,0),0) ->  | BF17: =IF(BF$5>=$F17,IF(BF$5<=#REF!,$K17,0),0) ->  | BG17: =IF(BG$5>=$F17,IF(BG$5<=#REF!,$K17,0),0) ->  | BH17: =IF(BH$5>=$F17,IF(BH$5<=#REF!,$K17,0),0) ->  | BI17: =IF(BI$5>=$F17,IF(BI$5<=#REF!,$K17,0),0) ->  | BJ17: =IF(BJ$5>=$F17,IF(BJ$5<=#REF!,$K17,0),0) ->  | BK17: =IF(BK$5>=$F17,IF(BK$5<=#REF!,$K17,0),0) ->  | BL17: =IF(BL$5>=$F17,IF(BL$5<=#REF!,$K17,0),0) ->  | BM17: =IF(BM$5>=$F17,IF(BM$5<=#REF!,$K17,0),0) ->  | BN17: =IF(BN$5>=$F17,IF(BN$5<=#REF!,$K17,0),0) ->  | BO17: =IF(BO$5>=$F17,IF(BO$5<=#REF!,$K17,0),0) ->  | BP17: =IF(BP$5>=$F17,IF(BP$5<=#REF!,$K17,0),0) ->  | BQ17: =IF(BQ$5>=$F17,IF(BQ$5<=#REF!,$K17,0),0) ->  | BR17: =IF(BR$5>=$F17,IF(BR$5<=#REF!,$K17,0),0) ->  | BS17: =IF(BS$5>=$F17,IF(BS$5<=#REF!,$K17,0),0) ->  | BT17: =IF(BT$5>=$F17,IF(BT$5<=#REF!,$K17,0),0) ->  | BU17: =IF(BU$5>=$F17,IF(BU$5<=#REF!,$K17,0),0) ->  | BV17: =IF(BV$5>=$F17,IF(BV$5<=#REF!,$K17,0),0) ->  | BW17: =IF(BW$5>=$F17,IF(BW$5<=#REF!,$K17,0),0) ->  | BX17: =IF(BX$5>=$F17,IF(BX$5<=#REF!,$K17,0),0) ->  | BY17: =IF(BY$5>=$F17,IF(BY$5<=#REF!,$K17,0),0) ->  | BZ17: =IF(BZ$5>=$F17,IF(BZ$5<=#REF!,$K17,0),0) ->  | CA17: =IF(CA$5>=$F17,IF(CA$5<=#REF!,$K17,0),0) ->  | CB17: =IF(CB$5>=$F17,IF(CB$5<=#REF!,$K17,0),0) ->  | CC17: =IF(CC$5>=$F17,IF(CC$5<=#REF!,$K17,0),0) ->  | CD17: =IF(CD$5>=$F17,IF(CD$5<=#REF!,$K17,0),0) ->  | CE17: =IF(CE$5>=$F17,IF(CE$5<=#REF!,$K17,0),0) ->  | CF17: =IF(CF$5>=$F17,IF(CF$5<=#REF!,$K17,0),0) ->  | CG17: =IF(CG$5>=$F17,IF(CG$5<=#REF!,$K17,0),0) ->  | CH17: =IF(CH$5>=$F17,IF(CH$5<=#REF!,$K17,0),0) ->  | CI17: =IF(CI$5>=$F17,IF(CI$5<=#REF!,$K17,0),0) ->  | CJ17: =IF(CJ$5>=$F17,IF(CJ$5<=#REF!,$K17,0),0) ->  | CK17: =IF(CK$5>=$F17,IF(CK$5<=#REF!,$K17,0),0) ->  | CL17: =IF(CL$5>=$F17,IF(CL$5<=#REF!,$K17,0),0) ->  | CM17: =IF(CM$5>=$F17,IF(CM$5<=#REF!,$K17,0),0) ->  | CN17: =IF(CN$5>=$F17,IF(CN$5<=#REF!,$K17,0),0) ->  | CO17: =IF(CO$5>=$F17,IF(CO$5<=#REF!,$K17,0),0) ->  | CP17: =IF(CP$5>=$F17,IF(CP$5<=#REF!,$K17,0),0) ->  | CQ17: =IF(CQ$5>=$F17,IF(CQ$5<=#REF!,$K17,0),0) ->  | CR17: =IF(CR$5>=$F17,IF(CR$5<=#REF!,$K17,0),0) ->  | CS17: =IF(CS$5>=$F17,IF(CS$5<=#REF!,$K17,0),0) ->  | CT17: =IF(CT$5>=$F17,IF(CT$5<=#REF!,$K17,0),0) ->  | CU17: =IF(CU$5>=$F17,IF(CU$5<=#REF!,$K17,0),0) ->  | CV17: =IF(CV$5>=$F17,IF(CV$5<=#REF!,$K17,0),0) ->  | CW17: =IF(CW$5>=$F17,IF(CW$5<=#REF!,$K17,0),0) ->  | CX17: =IF(CX$5>=$F17,IF(CX$5<=#REF!,$K17,0),0) ->  | CY17: =IF(CY$5>=$F17,IF(CY$5<=#REF!,$K17,0),0) ->  | CZ17: =IF(CZ$5>=$F17,IF(CZ$5<=#REF!,$K17,0),0) ->  | DA17: =IF(DA$5>=$F17,IF(DA$5<=#REF!,$K17,0),0) ->  | DB17: =IF(DB$5>=$F17,IF(DB$5<=#REF!,$K17,0),0) ->  | DC17: =IF(DC$5>=$F17,IF(DC$5<=#REF!,$K17,0),0) ->  | DD17: =IF(DD$5>=$F17,IF(DD$5<=#REF!,$K17,0),0) ->  | DE17: =IF(DE$5>=$F17,IF(DE$5<=#REF!,$K17,0),0) ->  | DF17: =IF(DF$5>=$F17,IF(DF$5<=#REF!,$K17,0),0) ->  | DG17: =IF(DG$5>=$F17,IF(DG$5<=#REF!,$K17,0),0) ->  | DH17: =IF(DH$5>=$F17,IF(DH$5<=#REF!,$K17,0),0) ->  | DI17: =IF(DI$5>=$F17,IF(DI$5<=#REF!,$K17,0),0) ->  | DJ17: =IF(DJ$5>=$F17,IF(DJ$5<=#REF!,$K17,0),0) ->  | DK17: =IF(DK$5>=$F17,IF(DK$5<=#REF!,$K17,0),0) ->  | DL17: =IF(DL$5>=$F17,IF(DL$5<=#REF!,$K17,0),0) ->  | DM17: =IF(DM$5>=$F17,IF(DM$5<=#REF!,$K17,0),0) ->  | DN17: =IF(DN$5>=$F17,IF(DN$5<=#REF!,$K17,0),0) ->  | DO17: =IF(DO$5>=$F17,IF(DO$5<=#REF!,$K17,0),0) ->  | DP17: =IF(DP$5>=$F17,IF(DP$5<=#REF!,$K17,0),0) ->  | DQ17: =IF(DQ$5>=$F17,IF(DQ$5<=#REF!,$K17,0),0) ->  | DR17: =IF(DR$5>=$F17,IF(DR$5<=#REF!,$K17,0),0) ->  | DW17: その他３ | DX17: その他３ | DY17: 石綿セメント管 (m) | DZ17: C1 | EA17: 250
G18: =IF($D18="",0,VLOOKUP(($DU18&$C18&$D18),単価情報!$B$66:$C$932,2,FALSE)) -> 0 | H18: 0 | I18: 0 | J18: 0 | K18: =IF(E18=0,0,ROUND(E18/#REF!,1)) -> 0 | L18: =IF(L$5>=$F18,IF(L$5<=#REF!,$K18,0),0) ->  | M18: =IF(M$5>=$F18,IF(M$5<=#REF!,$K18,0),0) ->  | N18: =IF(N$5>=$F18,IF(N$5<=#REF!,$K18,0),0) ->  | O18: =IF(O$5>=$F18,IF(O$5<=#REF!,$K18,0),0) ->  | P18: =IF(P$5>=$F18,IF(P$5<=#REF!,$K18,0),0) ->  | Q18: =IF(Q$5>=$F18,IF(Q$5<=#REF!,$K18,0),0) ->  | R18: =IF(R$5>=$F18,IF(R$5<=#REF!,$K18,0),0) ->  | S18: =IF(S$5>=$F18,IF(S$5<=#REF!,$K18,0),0) ->  | T18: =IF(T$5>=$F18,IF(T$5<=#REF!,$K18,0),0) ->  | U18: =IF(U$5>=$F18,IF(U$5<=#REF!,$K18,0),0) ->  | V18: =IF(V$5>=$F18,IF(V$5<=#REF!,$K18,0),0) ->  | W18: =IF(W$5>=$F18,IF(W$5<=#REF!,$K18,0),0) ->  | X18: =IF(X$5>=$F18,IF(X$5<=#REF!,$K18,0),0) ->  | Y18: =IF(Y$5>=$F18,IF(Y$5<=#REF!,$K18,0),0) ->  | Z18: =IF(Z$5>=$F18,IF(Z$5<=#REF!,$K18,0),0) ->  | AA18: =IF(AA$5>=$F18,IF(AA$5<=#REF!,$K18,0),0) ->  | AB18: =IF(AB$5>=$F18,IF(AB$5<=#REF!,$K18,0),0) ->  | AC18: =IF(AC$5>=$F18,IF(AC$5<=#REF!,$K18,0),0) ->  | AD18: =IF(AD$5>=$F18,IF(AD$5<=#REF!,$K18,0),0) ->  | AE18: =IF(AE$5>=$F18,IF(AE$5<=#REF!,$K18,0),0) ->  | AF18: =IF(AF$5>=$F18,IF(AF$5<=#REF!,$K18,0),0) ->  | AG18: =IF(AG$5>=$F18,IF(AG$5<=#REF!,$K18,0),0) ->  | AH18: =IF(AH$5>=$F18,IF(AH$5<=#REF!,$K18,0),0) ->  | AI18: =IF(AI$5>=$F18,IF(AI$5<=#REF!,$K18,0),0) ->  | AJ18: =IF(AJ$5>=$F18,IF(AJ$5<=#REF!,$K18,0),0) ->  | AK18: =IF(AK$5>=$F18,IF(AK$5<=#REF!,$K18,0),0) ->  | AL18: =IF(AL$5>=$F18,IF(AL$5<=#REF!,$K18,0),0) ->  | AM18: =IF(AM$5>=$F18,IF(AM$5<=#REF!,$K18,0),0) ->  | AN18: =IF(AN$5>=$F18,IF(AN$5<=#REF!,$K18,0),0) ->  | AO18: =IF(AO$5>=$F18,IF(AO$5<=#REF!,$K18,0),0) ->  | AP18: =IF(AP$5>=$F18,IF(AP$5<=#REF!,$K18,0),0) ->  | AQ18: =IF(AQ$5>=$F18,IF(AQ$5<=#REF!,$K18,0),0) ->  | AR18: =IF(AR$5>=$F18,IF(AR$5<=#REF!,$K18,0),0) ->  | AS18: =IF(AS$5>=$F18,IF(AS$5<=#REF!,$K18,0),0) ->  | AT18: =IF(AT$5>=$F18,IF(AT$5<=#REF!,$K18,0),0) ->  | AU18: =IF(AU$5>=$F18,IF(AU$5<=#REF!,$K18,0),0) ->  | AV18: =IF(AV$5>=$F18,IF(AV$5<=#REF!,$K18,0),0) ->  | AW18: =IF(AW$5>=$F18,IF(AW$5<=#REF!,$K18,0),0) ->  | AX18: =IF(AX$5>=$F18,IF(AX$5<=#REF!,$K18,0),0) ->  | AY18: =IF(AY$5>=$F18,IF(AY$5<=#REF!,$K18,0),0) ->  | AZ18: =IF(AZ$5>=$F18,IF(AZ$5<=#REF!,$K18,0),0) ->  | BA18: =IF(BA$5>=$F18,IF(BA$5<=#REF!,$K18,0),0) ->  | BB18: =IF(BB$5>=$F18,IF(BB$5<=#REF!,$K18,0),0) ->  | BC18: =IF(BC$5>=$F18,IF(BC$5<=#REF!,$K18,0),0) ->  | BD18: =IF(BD$5>=$F18,IF(BD$5<=#REF!,$K18,0),0) ->  | BE18: =IF(BE$5>=$F18,IF(BE$5<=#REF!,$K18,0),0) ->  | BF18: =IF(BF$5>=$F18,IF(BF$5<=#REF!,$K18,0),0) ->  | BG18: =IF(BG$5>=$F18,IF(BG$5<=#REF!,$K18,0),0) ->  | BH18: =IF(BH$5>=$F18,IF(BH$5<=#REF!,$K18,0),0) ->  | BI18: =IF(BI$5>=$F18,IF(BI$5<=#REF!,$K18,0),0) ->  | BJ18: =IF(BJ$5>=$F18,IF(BJ$5<=#REF!,$K18,0),0) ->  | BK18: =IF(BK$5>=$F18,IF(BK$5<=#REF!,$K18,0),0) ->  | BL18: =IF(BL$5>=$F18,IF(BL$5<=#REF!,$K18,0),0) ->  | BM18: =IF(BM$5>=$F18,IF(BM$5<=#REF!,$K18,0),0) ->  | BN18: =IF(BN$5>=$F18,IF(BN$5<=#REF!,$K18,0),0) ->  | BO18: =IF(BO$5>=$F18,IF(BO$5<=#REF!,$K18,0),0) ->  | BP18: =IF(BP$5>=$F18,IF(BP$5<=#REF!,$K18,0),0) ->  | BQ18: =IF(BQ$5>=$F18,IF(BQ$5<=#REF!,$K18,0),0) ->  | BR18: =IF(BR$5>=$F18,IF(BR$5<=#REF!,$K18,0),0) ->  | BS18: =IF(BS$5>=$F18,IF(BS$5<=#REF!,$K18,0),0) ->  | BT18: =IF(BT$5>=$F18,IF(BT$5<=#REF!,$K18,0),0) ->  | BU18: =IF(BU$5>=$F18,IF(BU$5<=#REF!,$K18,0),0) ->  | BV18: =IF(BV$5>=$F18,IF(BV$5<=#REF!,$K18,0),0) ->  | BW18: =IF(BW$5>=$F18,IF(BW$5<=#REF!,$K18,0),0) ->  | BX18: =IF(BX$5>=$F18,IF(BX$5<=#REF!,$K18,0),0) ->  | BY18: =IF(BY$5>=$F18,IF(BY$5<=#REF!,$K18,0),0) ->  | BZ18: =IF(BZ$5>=$F18,IF(BZ$5<=#REF!,$K18,0),0) ->  | CA18: =IF(CA$5>=$F18,IF(CA$5<=#REF!,$K18,0),0) ->  | CB18: =IF(CB$5>=$F18,IF(CB$5<=#REF!,$K18,0),0) ->  | CC18: =IF(CC$5>=$F18,IF(CC$5<=#REF!,$K18,0),0) ->  | CD18: =IF(CD$5>=$F18,IF(CD$5<=#REF!,$K18,0),0) ->  | CE18: =IF(CE$5>=$F18,IF(CE$5<=#REF!,$K18,0),0) ->  | CF18: =IF(CF$5>=$F18,IF(CF$5<=#REF!,$K18,0),0) ->  | CG18: =IF(CG$5>=$F18,IF(CG$5<=#REF!,$K18,0),0) ->  | CH18: =IF(CH$5>=$F18,IF(CH$5<=#REF!,$K18,0),0) ->  | CI18: =IF(CI$5>=$F18,IF(CI$5<=#REF!,$K18,0),0) ->  | CJ18: =IF(CJ$5>=$F18,IF(CJ$5<=#REF!,$K18,0),0) ->  | CK18: =IF(CK$5>=$F18,IF(CK$5<=#REF!,$K18,0),0) ->  | CL18: =IF(CL$5>=$F18,IF(CL$5<=#REF!,$K18,0),0) ->  | CM18: =IF(CM$5>=$F18,IF(CM$5<=#REF!,$K18,0),0) ->  | CN18: =IF(CN$5>=$F18,IF(CN$5<=#REF!,$K18,0),0) ->  | CO18: =IF(CO$5>=$F18,IF(CO$5<=#REF!,$K18,0),0) ->  | CP18: =IF(CP$5>=$F18,IF(CP$5<=#REF!,$K18,0),0) ->  | CQ18: =IF(CQ$5>=$F18,IF(CQ$5<=#REF!,$K18,0),0) ->  | CR18: =IF(CR$5>=$F18,IF(CR$5<=#REF!,$K18,0),0) ->  | CS18: =IF(CS$5>=$F18,IF(CS$5<=#REF!,$K18,0),0) ->  | CT18: =IF(CT$5>=$F18,IF(CT$5<=#REF!,$K18,0),0) ->  | CU18: =IF(CU$5>=$F18,IF(CU$5<=#REF!,$K18,0),0) ->  | CV18: =IF(CV$5>=$F18,IF(CV$5<=#REF!,$K18,0),0) ->  | CW18: =IF(CW$5>=$F18,IF(CW$5<=#REF!,$K18,0),0) ->  | CX18: =IF(CX$5>=$F18,IF(CX$5<=#REF!,$K18,0),0) ->  | CY18: =IF(CY$5>=$F18,IF(CY$5<=#REF!,$K18,0),0) ->  | CZ18: =IF(CZ$5>=$F18,IF(CZ$5<=#REF!,$K18,0),0) ->  | DA18: =IF(DA$5>=$F18,IF(DA$5<=#REF!,$K18,0),0) ->  | DB18: =IF(DB$5>=$F18,IF(DB$5<=#REF!,$K18,0),0) ->  | DC18: =IF(DC$5>=$F18,IF(DC$5<=#REF!,$K18,0),0) ->  | DD18: =IF(DD$5>=$F18,IF(DD$5<=#REF!,$K18,0),0) ->  | DE18: =IF(DE$5>=$F18,IF(DE$5<=#REF!,$K18,0),0) ->  | DF18: =IF(DF$5>=$F18,IF(DF$5<=#REF!,$K18,0),0) ->  | DG18: =IF(DG$5>=$F18,IF(DG$5<=#REF!,$K18,0),0) ->  | DH18: =IF(DH$5>=$F18,IF(DH$5<=#REF!,$K18,0),0) ->  | DI18: =IF(DI$5>=$F18,IF(DI$5<=#REF!,$K18,0),0) ->  | DJ18: =IF(DJ$5>=$F18,IF(DJ$5<=#REF!,$K18,0),0) ->  | DK18: =IF(DK$5>=$F18,IF(DK$5<=#REF!,$K18,0),0) ->  | DL18: =IF(DL$5>=$F18,IF(DL$5<=#REF!,$K18,0),0) ->  | DM18: =IF(DM$5>=$F18,IF(DM$5<=#REF!,$K18,0),0) ->  | DN18: =IF(DN$5>=$F18,IF(DN$5<=#REF!,$K18,0),0) ->  | DO18: =IF(DO$5>=$F18,IF(DO$5<=#REF!,$K18,0),0) ->  | DP18: =IF(DP$5>=$F18,IF(DP$5<=#REF!,$K18,0),0) ->  | DQ18: =IF(DQ$5>=$F18,IF(DQ$5<=#REF!,$K18,0),0) ->  | DR18: =IF(DR$5>=$F18,IF(DR$5<=#REF!,$K18,0),0) ->  | DY18: 硬質塩化ビニル管 （ＲＲロング継手等を有する） (m) | DZ18: D1 | EA18: 300
G19: =IF($D19="",0,VLOOKUP(($DU19&$C19&$D19),単価情報!$B$66:$C$932,2,FALSE)) -> 0 | H19: 0 | I19: 0 | J19: 0 | K19: =IF(E19=0,0,ROUND(E19/#REF!,1)) -> 0 | L19: =IF(L$5>=$F19,IF(L$5<=#REF!,$K19,0),0) ->  | M19: =IF(M$5>=$F19,IF(M$5<=#REF!,$K19,0),0) ->  | N19: =IF(N$5>=$F19,IF(N$5<=#REF!,$K19,0),0) ->  | O19: =IF(O$5>=$F19,IF(O$5<=#REF!,$K19,0),0) ->  | P19: =IF(P$5>=$F19,IF(P$5<=#REF!,$K19,0),0) ->  | Q19: =IF(Q$5>=$F19,IF(Q$5<=#REF!,$K19,0),0) ->  | R19: =IF(R$5>=$F19,IF(R$5<=#REF!,$K19,0),0) ->  | S19: =IF(S$5>=$F19,IF(S$5<=#REF!,$K19,0),0) ->  | T19: =IF(T$5>=$F19,IF(T$5<=#REF!,$K19,0),0) ->  | U19: =IF(U$5>=$F19,IF(U$5<=#REF!,$K19,0),0) ->  | V19: =IF(V$5>=$F19,IF(V$5<=#REF!,$K19,0),0) ->  | W19: =IF(W$5>=$F19,IF(W$5<=#REF!,$K19,0),0) ->  | X19: =IF(X$5>=$F19,IF(X$5<=#REF!,$K19,0),0) ->  | Y19: =IF(Y$5>=$F19,IF(Y$5<=#REF!,$K19,0),0) ->  | Z19: =IF(Z$5>=$F19,IF(Z$5<=#REF!,$K19,0),0) ->  | AA19: =IF(AA$5>=$F19,IF(AA$5<=#REF!,$K19,0),0) ->  | AB19: =IF(AB$5>=$F19,IF(AB$5<=#REF!,$K19,0),0) ->  | AC19: =IF(AC$5>=$F19,IF(AC$5<=#REF!,$K19,0),0) ->  | AD19: =IF(AD$5>=$F19,IF(AD$5<=#REF!,$K19,0),0) ->  | AE19: =IF(AE$5>=$F19,IF(AE$5<=#REF!,$K19,0),0) ->  | AF19: =IF(AF$5>=$F19,IF(AF$5<=#REF!,$K19,0),0) ->  | AG19: =IF(AG$5>=$F19,IF(AG$5<=#REF!,$K19,0),0) ->  | AH19: =IF(AH$5>=$F19,IF(AH$5<=#REF!,$K19,0),0) ->  | AI19: =IF(AI$5>=$F19,IF(AI$5<=#REF!,$K19,0),0) ->  | AJ19: =IF(AJ$5>=$F19,IF(AJ$5<=#REF!,$K19,0),0) ->  | AK19: =IF(AK$5>=$F19,IF(AK$5<=#REF!,$K19,0),0) ->  | AL19: =IF(AL$5>=$F19,IF(AL$5<=#REF!,$K19,0),0) ->  | AM19: =IF(AM$5>=$F19,IF(AM$5<=#REF!,$K19,0),0) ->  | AN19: =IF(AN$5>=$F19,IF(AN$5<=#REF!,$K19,0),0) ->  | AO19: =IF(AO$5>=$F19,IF(AO$5<=#REF!,$K19,0),0) ->  | AP19: =IF(AP$5>=$F19,IF(AP$5<=#REF!,$K19,0),0) ->  | AQ19: =IF(AQ$5>=$F19,IF(AQ$5<=#REF!,$K19,0),0) ->  | AR19: =IF(AR$5>=$F19,IF(AR$5<=#REF!,$K19,0),0) ->  | AS19: =IF(AS$5>=$F19,IF(AS$5<=#REF!,$K19,0),0) ->  | AT19: =IF(AT$5>=$F19,IF(AT$5<=#REF!,$K19,0),0) ->  | AU19: =IF(AU$5>=$F19,IF(AU$5<=#REF!,$K19,0),0) ->  | AV19: =IF(AV$5>=$F19,IF(AV$5<=#REF!,$K19,0),0) ->  | AW19: =IF(AW$5>=$F19,IF(AW$5<=#REF!,$K19,0),0) ->  | AX19: =IF(AX$5>=$F19,IF(AX$5<=#REF!,$K19,0),0) ->  | AY19: =IF(AY$5>=$F19,IF(AY$5<=#REF!,$K19,0),0) ->  | AZ19: =IF(AZ$5>=$F19,IF(AZ$5<=#REF!,$K19,0),0) ->  | BA19: =IF(BA$5>=$F19,IF(BA$5<=#REF!,$K19,0),0) ->  | BB19: =IF(BB$5>=$F19,IF(BB$5<=#REF!,$K19,0),0) ->  | BC19: =IF(BC$5>=$F19,IF(BC$5<=#REF!,$K19,0),0) ->  | BD19: =IF(BD$5>=$F19,IF(BD$5<=#REF!,$K19,0),0) ->  | BE19: =IF(BE$5>=$F19,IF(BE$5<=#REF!,$K19,0),0) ->  | BF19: =IF(BF$5>=$F19,IF(BF$5<=#REF!,$K19,0),0) ->  | BG19: =IF(BG$5>=$F19,IF(BG$5<=#REF!,$K19,0),0) ->  | BH19: =IF(BH$5>=$F19,IF(BH$5<=#REF!,$K19,0),0) ->  | BI19: =IF(BI$5>=$F19,IF(BI$5<=#REF!,$K19,0),0) ->  | BJ19: =IF(BJ$5>=$F19,IF(BJ$5<=#REF!,$K19,0),0) ->  | BK19: =IF(BK$5>=$F19,IF(BK$5<=#REF!,$K19,0),0) ->  | BL19: =IF(BL$5>=$F19,IF(BL$5<=#REF!,$K19,0),0) ->  | BM19: =IF(BM$5>=$F19,IF(BM$5<=#REF!,$K19,0),0) ->  | BN19: =IF(BN$5>=$F19,IF(BN$5<=#REF!,$K19,0),0) ->  | BO19: =IF(BO$5>=$F19,IF(BO$5<=#REF!,$K19,0),0) ->  | BP19: =IF(BP$5>=$F19,IF(BP$5<=#REF!,$K19,0),0) ->  | BQ19: =IF(BQ$5>=$F19,IF(BQ$5<=#REF!,$K19,0),0) ->  | BR19: =IF(BR$5>=$F19,IF(BR$5<=#REF!,$K19,0),0) ->  | BS19: =IF(BS$5>=$F19,IF(BS$5<=#REF!,$K19,0),0) ->  | BT19: =IF(BT$5>=$F19,IF(BT$5<=#REF!,$K19,0),0) ->  | BU19: =IF(BU$5>=$F19,IF(BU$5<=#REF!,$K19,0),0) ->  | BV19: =IF(BV$5>=$F19,IF(BV$5<=#REF!,$K19,0),0) ->  | BW19: =IF(BW$5>=$F19,IF(BW$5<=#REF!,$K19,0),0) ->  | BX19: =IF(BX$5>=$F19,IF(BX$5<=#REF!,$K19,0),0) ->  | BY19: =IF(BY$5>=$F19,IF(BY$5<=#REF!,$K19,0),0) ->  | BZ19: =IF(BZ$5>=$F19,IF(BZ$5<=#REF!,$K19,0),0) ->  | CA19: =IF(CA$5>=$F19,IF(CA$5<=#REF!,$K19,0),0) ->  | CB19: =IF(CB$5>=$F19,IF(CB$5<=#REF!,$K19,0),0) ->  | CC19: =IF(CC$5>=$F19,IF(CC$5<=#REF!,$K19,0),0) ->  | CD19: =IF(CD$5>=$F19,IF(CD$5<=#REF!,$K19,0),0) ->  | CE19: =IF(CE$5>=$F19,IF(CE$5<=#REF!,$K19,0),0) ->  | CF19: =IF(CF$5>=$F19,IF(CF$5<=#REF!,$K19,0),0) ->  | CG19: =IF(CG$5>=$F19,IF(CG$5<=#REF!,$K19,0),0) ->  | CH19: =IF(CH$5>=$F19,IF(CH$5<=#REF!,$K19,0),0) ->  | CI19: =IF(CI$5>=$F19,IF(CI$5<=#REF!,$K19,0),0) ->  | CJ19: =IF(CJ$5>=$F19,IF(CJ$5<=#REF!,$K19,0),0) ->  | CK19: =IF(CK$5>=$F19,IF(CK$5<=#REF!,$K19,0),0) ->  | CL19: =IF(CL$5>=$F19,IF(CL$5<=#REF!,$K19,0),0) ->  | CM19: =IF(CM$5>=$F19,IF(CM$5<=#REF!,$K19,0),0) ->  | CN19: =IF(CN$5>=$F19,IF(CN$5<=#REF!,$K19,0),0) ->  | CO19: =IF(CO$5>=$F19,IF(CO$5<=#REF!,$K19,0),0) ->  | CP19: =IF(CP$5>=$F19,IF(CP$5<=#REF!,$K19,0),0) ->  | CQ19: =IF(CQ$5>=$F19,IF(CQ$5<=#REF!,$K19,0),0) ->  | CR19: =IF(CR$5>=$F19,IF(CR$5<=#REF!,$K19,0),0) ->  | CS19: =IF(CS$5>=$F19,IF(CS$5<=#REF!,$K19,0),0) ->  | CT19: =IF(CT$5>=$F19,IF(CT$5<=#REF!,$K19,0),0) ->  | CU19: =IF(CU$5>=$F19,IF(CU$5<=#REF!,$K19,0),0) ->  | CV19: =IF(CV$5>=$F19,IF(CV$5<=#REF!,$K19,0),0) ->  | CW19: =IF(CW$5>=$F19,IF(CW$5<=#REF!,$K19,0),0) ->  | CX19: =IF(CX$5>=$F19,IF(CX$5<=#REF!,$K19,0),0) ->  | CY19: =IF(CY$5>=$F19,IF(CY$5<=#REF!,$K19,0),0) ->  | CZ19: =IF(CZ$5>=$F19,IF(CZ$5<=#REF!,$K19,0),0) ->  | DA19: =IF(DA$5>=$F19,IF(DA$5<=#REF!,$K19,0),0) ->  | DB19: =IF(DB$5>=$F19,IF(DB$5<=#REF!,$K19,0),0) ->  | DC19: =IF(DC$5>=$F19,IF(DC$5<=#REF!,$K19,0),0) ->  | DD19: =IF(DD$5>=$F19,IF(DD$5<=#REF!,$K19,0),0) ->  | DE19: =IF(DE$5>=$F19,IF(DE$5<=#REF!,$K19,0),0) ->  | DF19: =IF(DF$5>=$F19,IF(DF$5<=#REF!,$K19,0),0) ->  | DG19: =IF(DG$5>=$F19,IF(DG$5<=#REF!,$K19,0),0) ->  | DH19: =IF(DH$5>=$F19,IF(DH$5<=#REF!,$K19,0),0) ->  | DI19: =IF(DI$5>=$F19,IF(DI$5<=#REF!,$K19,0),0) ->  | DJ19: =IF(DJ$5>=$F19,IF(DJ$5<=#REF!,$K19,0),0) ->  | DK19: =IF(DK$5>=$F19,IF(DK$5<=#REF!,$K19,0),0) ->  | DL19: =IF(DL$5>=$F19,IF(DL$5<=#REF!,$K19,0),0) ->  | DM19: =IF(DM$5>=$F19,IF(DM$5<=#REF!,$K19,0),0) ->  | DN19: =IF(DN$5>=$F19,IF(DN$5<=#REF!,$K19,0),0) ->  | DO19: =IF(DO$5>=$F19,IF(DO$5<=#REF!,$K19,0),0) ->  | DP19: =IF(DP$5>=$F19,IF(DP$5<=#REF!,$K19,0),0) ->  | DQ19: =IF(DQ$5>=$F19,IF(DQ$5<=#REF!,$K19,0),0) ->  | DR19: =IF(DR$5>=$F19,IF(DR$5<=#REF!,$K19,0),0) ->  | DY19: 硬質塩化ビニル管 （ＲＲ継手等を有する） (m) | DZ19: D2 | EA19: 350
G20: =IF($D20="",0,VLOOKUP(($DU20&$C20&$D20),単価情報!$B$66:$C$932,2,FALSE)) -> 0 | H20: 0 | I20: 0 | J20: 0 | K20: =IF(E20=0,0,ROUND(E20/#REF!,1)) -> 0 | L20: =IF(L$5>=$F20,IF(L$5<=#REF!,$K20,0),0) ->  | M20: =IF(M$5>=$F20,IF(M$5<=#REF!,$K20,0),0) ->  | N20: =IF(N$5>=$F20,IF(N$5<=#REF!,$K20,0),0) ->  | O20: =IF(O$5>=$F20,IF(O$5<=#REF!,$K20,0),0) ->  | P20: =IF(P$5>=$F20,IF(P$5<=#REF!,$K20,0),0) ->  | Q20: =IF(Q$5>=$F20,IF(Q$5<=#REF!,$K20,0),0) ->  | R20: =IF(R$5>=$F20,IF(R$5<=#REF!,$K20,0),0) ->  | S20: =IF(S$5>=$F20,IF(S$5<=#REF!,$K20,0),0) ->  | T20: =IF(T$5>=$F20,IF(T$5<=#REF!,$K20,0),0) ->  | U20: =IF(U$5>=$F20,IF(U$5<=#REF!,$K20,0),0) ->  | V20: =IF(V$5>=$F20,IF(V$5<=#REF!,$K20,0),0) ->  | W20: =IF(W$5>=$F20,IF(W$5<=#REF!,$K20,0),0) ->  | X20: =IF(X$5>=$F20,IF(X$5<=#REF!,$K20,0),0) ->  | Y20: =IF(Y$5>=$F20,IF(Y$5<=#REF!,$K20,0),0) ->  | Z20: =IF(Z$5>=$F20,IF(Z$5<=#REF!,$K20,0),0) ->  | AA20: =IF(AA$5>=$F20,IF(AA$5<=#REF!,$K20,0),0) ->  | AB20: =IF(AB$5>=$F20,IF(AB$5<=#REF!,$K20,0),0) ->  | AC20: =IF(AC$5>=$F20,IF(AC$5<=#REF!,$K20,0),0) ->  | AD20: =IF(AD$5>=$F20,IF(AD$5<=#REF!,$K20,0),0) ->  | AE20: =IF(AE$5>=$F20,IF(AE$5<=#REF!,$K20,0),0) ->  | AF20: =IF(AF$5>=$F20,IF(AF$5<=#REF!,$K20,0),0) ->  | AG20: =IF(AG$5>=$F20,IF(AG$5<=#REF!,$K20,0),0) ->  | AH20: =IF(AH$5>=$F20,IF(AH$5<=#REF!,$K20,0),0) ->  | AI20: =IF(AI$5>=$F20,IF(AI$5<=#REF!,$K20,0),0) ->  | AJ20: =IF(AJ$5>=$F20,IF(AJ$5<=#REF!,$K20,0),0) ->  | AK20: =IF(AK$5>=$F20,IF(AK$5<=#REF!,$K20,0),0) ->  | AL20: =IF(AL$5>=$F20,IF(AL$5<=#REF!,$K20,0),0) ->  | AM20: =IF(AM$5>=$F20,IF(AM$5<=#REF!,$K20,0),0) ->  | AN20: =IF(AN$5>=$F20,IF(AN$5<=#REF!,$K20,0),0) ->  | AO20: =IF(AO$5>=$F20,IF(AO$5<=#REF!,$K20,0),0) ->  | AP20: =IF(AP$5>=$F20,IF(AP$5<=#REF!,$K20,0),0) ->  | AQ20: =IF(AQ$5>=$F20,IF(AQ$5<=#REF!,$K20,0),0) ->  | AR20: =IF(AR$5>=$F20,IF(AR$5<=#REF!,$K20,0),0) ->  | AS20: =IF(AS$5>=$F20,IF(AS$5<=#REF!,$K20,0),0) ->  | AT20: =IF(AT$5>=$F20,IF(AT$5<=#REF!,$K20,0),0) ->  | AU20: =IF(AU$5>=$F20,IF(AU$5<=#REF!,$K20,0),0) ->  | AV20: =IF(AV$5>=$F20,IF(AV$5<=#REF!,$K20,0),0) ->  | AW20: =IF(AW$5>=$F20,IF(AW$5<=#REF!,$K20,0),0) ->  | AX20: =IF(AX$5>=$F20,IF(AX$5<=#REF!,$K20,0),0) ->  | AY20: =IF(AY$5>=$F20,IF(AY$5<=#REF!,$K20,0),0) ->  | AZ20: =IF(AZ$5>=$F20,IF(AZ$5<=#REF!,$K20,0),0) ->  | BA20: =IF(BA$5>=$F20,IF(BA$5<=#REF!,$K20,0),0) ->  | BB20: =IF(BB$5>=$F20,IF(BB$5<=#REF!,$K20,0),0) ->  | BC20: =IF(BC$5>=$F20,IF(BC$5<=#REF!,$K20,0),0) ->  | BD20: =IF(BD$5>=$F20,IF(BD$5<=#REF!,$K20,0),0) ->  | BE20: =IF(BE$5>=$F20,IF(BE$5<=#REF!,$K20,0),0) ->  | BF20: =IF(BF$5>=$F20,IF(BF$5<=#REF!,$K20,0),0) ->  | BG20: =IF(BG$5>=$F20,IF(BG$5<=#REF!,$K20,0),0) ->  | BH20: =IF(BH$5>=$F20,IF(BH$5<=#REF!,$K20,0),0) ->  | BI20: =IF(BI$5>=$F20,IF(BI$5<=#REF!,$K20,0),0) ->  | BJ20: =IF(BJ$5>=$F20,IF(BJ$5<=#REF!,$K20,0),0) ->  | BK20: =IF(BK$5>=$F20,IF(BK$5<=#REF!,$K20,0),0) ->  | BL20: =IF(BL$5>=$F20,IF(BL$5<=#REF!,$K20,0),0) ->  | BM20: =IF(BM$5>=$F20,IF(BM$5<=#REF!,$K20,0),0) ->  | BN20: =IF(BN$5>=$F20,IF(BN$5<=#REF!,$K20,0),0) ->  | BO20: =IF(BO$5>=$F20,IF(BO$5<=#REF!,$K20,0),0) ->  | BP20: =IF(BP$5>=$F20,IF(BP$5<=#REF!,$K20,0),0) ->  | BQ20: =IF(BQ$5>=$F20,IF(BQ$5<=#REF!,$K20,0),0) ->  | BR20: =IF(BR$5>=$F20,IF(BR$5<=#REF!,$K20,0),0) ->  | BS20: =IF(BS$5>=$F20,IF(BS$5<=#REF!,$K20,0),0) ->  | BT20: =IF(BT$5>=$F20,IF(BT$5<=#REF!,$K20,0),0) ->  | BU20: =IF(BU$5>=$F20,IF(BU$5<=#REF!,$K20,0),0) ->  | BV20: =IF(BV$5>=$F20,IF(BV$5<=#REF!,$K20,0),0) ->  | BW20: =IF(BW$5>=$F20,IF(BW$5<=#REF!,$K20,0),0) ->  | BX20: =IF(BX$5>=$F20,IF(BX$5<=#REF!,$K20,0),0) ->  | BY20: =IF(BY$5>=$F20,IF(BY$5<=#REF!,$K20,0),0) ->  | BZ20: =IF(BZ$5>=$F20,IF(BZ$5<=#REF!,$K20,0),0) ->  | CA20: =IF(CA$5>=$F20,IF(CA$5<=#REF!,$K20,0),0) ->  | CB20: =IF(CB$5>=$F20,IF(CB$5<=#REF!,$K20,0),0) ->  | CC20: =IF(CC$5>=$F20,IF(CC$5<=#REF!,$K20,0),0) ->  | CD20: =IF(CD$5>=$F20,IF(CD$5<=#REF!,$K20,0),0) ->  | CE20: =IF(CE$5>=$F20,IF(CE$5<=#REF!,$K20,0),0) ->  | CF20: =IF(CF$5>=$F20,IF(CF$5<=#REF!,$K20,0),0) ->  | CG20: =IF(CG$5>=$F20,IF(CG$5<=#REF!,$K20,0),0) ->  | CH20: =IF(CH$5>=$F20,IF(CH$5<=#REF!,$K20,0),0) ->  | CI20: =IF(CI$5>=$F20,IF(CI$5<=#REF!,$K20,0),0) ->  | CJ20: =IF(CJ$5>=$F20,IF(CJ$5<=#REF!,$K20,0),0) ->  | CK20: =IF(CK$5>=$F20,IF(CK$5<=#REF!,$K20,0),0) ->  | CL20: =IF(CL$5>=$F20,IF(CL$5<=#REF!,$K20,0),0) ->  | CM20: =IF(CM$5>=$F20,IF(CM$5<=#REF!,$K20,0),0) ->  | CN20: =IF(CN$5>=$F20,IF(CN$5<=#REF!,$K20,0),0) ->  | CO20: =IF(CO$5>=$F20,IF(CO$5<=#REF!,$K20,0),0) ->  | CP20: =IF(CP$5>=$F20,IF(CP$5<=#REF!,$K20,0),0) ->  | CQ20: =IF(CQ$5>=$F20,IF(CQ$5<=#REF!,$K20,0),0) ->  | CR20: =IF(CR$5>=$F20,IF(CR$5<=#REF!,$K20,0),0) ->  | CS20: =IF(CS$5>=$F20,IF(CS$5<=#REF!,$K20,0),0) ->  | CT20: =IF(CT$5>=$F20,IF(CT$5<=#REF!,$K20,0),0) ->  | CU20: =IF(CU$5>=$F20,IF(CU$5<=#REF!,$K20,0),0) ->  | CV20: =IF(CV$5>=$F20,IF(CV$5<=#REF!,$K20,0),0) ->  | CW20: =IF(CW$5>=$F20,IF(CW$5<=#REF!,$K20,0),0) ->  | CX20: =IF(CX$5>=$F20,IF(CX$5<=#REF!,$K20,0),0) ->  | CY20: =IF(CY$5>=$F20,IF(CY$5<=#REF!,$K20,0),0) ->  | CZ20: =IF(CZ$5>=$F20,IF(CZ$5<=#REF!,$K20,0),0) ->  | DA20: =IF(DA$5>=$F20,IF(DA$5<=#REF!,$K20,0),0) ->  | DB20: =IF(DB$5>=$F20,IF(DB$5<=#REF!,$K20,0),0) ->  | DC20: =IF(DC$5>=$F20,IF(DC$5<=#REF!,$K20,0),0) ->  | DD20: =IF(DD$5>=$F20,IF(DD$5<=#REF!,$K20,0),0) ->  | DE20: =IF(DE$5>=$F20,IF(DE$5<=#REF!,$K20,0),0) ->  | DF20: =IF(DF$5>=$F20,IF(DF$5<=#REF!,$K20,0),0) ->  | DG20: =IF(DG$5>=$F20,IF(DG$5<=#REF!,$K20,0),0) ->  | DH20: =IF(DH$5>=$F20,IF(DH$5<=#REF!,$K20,0),0) ->  | DI20: =IF(DI$5>=$F20,IF(DI$5<=#REF!,$K20,0),0) ->  | DJ20: =IF(DJ$5>=$F20,IF(DJ$5<=#REF!,$K20,0),0) ->  | DK20: =IF(DK$5>=$F20,IF(DK$5<=#REF!,$K20,0),0) ->  | DL20: =IF(DL$5>=$F20,IF(DL$5<=#REF!,$K20,0),0) ->  | DM20: =IF(DM$5>=$F20,IF(DM$5<=#REF!,$K20,0),0) ->  | DN20: =IF(DN$5>=$F20,IF(DN$5<=#REF!,$K20,0),0) ->  | DO20: =IF(DO$5>=$F20,IF(DO$5<=#REF!,$K20,0),0) ->  | DP20: =IF(DP$5>=$F20,IF(DP$5<=#REF!,$K20,0),0) ->  | DQ20: =IF(DQ$5>=$F20,IF(DQ$5<=#REF!,$K20,0),0) ->  | DR20: =IF(DR$5>=$F20,IF(DR$5<=#REF!,$K20,0),0) ->  | DY20: 硬質塩化ビニル管 （上記以外・不明なものを含む） (m) | DZ20: D9 | EA20: 400
G21: =IF($D21="",0,VLOOKUP(($DU21&$C21&$D21),単価情報!$B$66:$C$932,2,FALSE)) -> 0 | H21: 0 | I21: 0 | J21: 0 | K21: =IF(E21=0,0,ROUND(E21/#REF!,1)) -> 0 | L21: =IF(L$5>=$F21,IF(L$5<=#REF!,$K21,0),0) ->  | M21: =IF(M$5>=$F21,IF(M$5<=#REF!,$K21,0),0) ->  | N21: =IF(N$5>=$F21,IF(N$5<=#REF!,$K21,0),0) ->  | O21: =IF(O$5>=$F21,IF(O$5<=#REF!,$K21,0),0) ->  | P21: =IF(P$5>=$F21,IF(P$5<=#REF!,$K21,0),0) ->  | Q21: =IF(Q$5>=$F21,IF(Q$5<=#REF!,$K21,0),0) ->  | R21: =IF(R$5>=$F21,IF(R$5<=#REF!,$K21,0),0) ->  | S21: =IF(S$5>=$F21,IF(S$5<=#REF!,$K21,0),0) ->  | T21: =IF(T$5>=$F21,IF(T$5<=#REF!,$K21,0),0) ->  | U21: =IF(U$5>=$F21,IF(U$5<=#REF!,$K21,0),0) ->  | V21: =IF(V$5>=$F21,IF(V$5<=#REF!,$K21,0),0) ->  | W21: =IF(W$5>=$F21,IF(W$5<=#REF!,$K21,0),0) ->  | X21: =IF(X$5>=$F21,IF(X$5<=#REF!,$K21,0),0) ->  | Y21: =IF(Y$5>=$F21,IF(Y$5<=#REF!,$K21,0),0) ->  | Z21: =IF(Z$5>=$F21,IF(Z$5<=#REF!,$K21,0),0) ->  | AA21: =IF(AA$5>=$F21,IF(AA$5<=#REF!,$K21,0),0) ->  | AB21: =IF(AB$5>=$F21,IF(AB$5<=#REF!,$K21,0),0) ->  | AC21: =IF(AC$5>=$F21,IF(AC$5<=#REF!,$K21,0),0) ->  | AD21: =IF(AD$5>=$F21,IF(AD$5<=#REF!,$K21,0),0) ->  | AE21: =IF(AE$5>=$F21,IF(AE$5<=#REF!,$K21,0),0) ->  | AF21: =IF(AF$5>=$F21,IF(AF$5<=#REF!,$K21,0),0) ->  | AG21: =IF(AG$5>=$F21,IF(AG$5<=#REF!,$K21,0),0) ->  | AH21: =IF(AH$5>=$F21,IF(AH$5<=#REF!,$K21,0),0) ->  | AI21: =IF(AI$5>=$F21,IF(AI$5<=#REF!,$K21,0),0) ->  | AJ21: =IF(AJ$5>=$F21,IF(AJ$5<=#REF!,$K21,0),0) ->  | AK21: =IF(AK$5>=$F21,IF(AK$5<=#REF!,$K21,0),0) ->  | AL21: =IF(AL$5>=$F21,IF(AL$5<=#REF!,$K21,0),0) ->  | AM21: =IF(AM$5>=$F21,IF(AM$5<=#REF!,$K21,0),0) ->  | AN21: =IF(AN$5>=$F21,IF(AN$5<=#REF!,$K21,0),0) ->  | AO21: =IF(AO$5>=$F21,IF(AO$5<=#REF!,$K21,0),0) ->  | AP21: =IF(AP$5>=$F21,IF(AP$5<=#REF!,$K21,0),0) ->  | AQ21: =IF(AQ$5>=$F21,IF(AQ$5<=#REF!,$K21,0),0) ->  | AR21: =IF(AR$5>=$F21,IF(AR$5<=#REF!,$K21,0),0) ->  | AS21: =IF(AS$5>=$F21,IF(AS$5<=#REF!,$K21,0),0) ->  | AT21: =IF(AT$5>=$F21,IF(AT$5<=#REF!,$K21,0),0) ->  | AU21: =IF(AU$5>=$F21,IF(AU$5<=#REF!,$K21,0),0) ->  | AV21: =IF(AV$5>=$F21,IF(AV$5<=#REF!,$K21,0),0) ->  | AW21: =IF(AW$5>=$F21,IF(AW$5<=#REF!,$K21,0),0) ->  | AX21: =IF(AX$5>=$F21,IF(AX$5<=#REF!,$K21,0),0) ->  | AY21: =IF(AY$5>=$F21,IF(AY$5<=#REF!,$K21,0),0) ->  | AZ21: =IF(AZ$5>=$F21,IF(AZ$5<=#REF!,$K21,0),0) ->  | BA21: =IF(BA$5>=$F21,IF(BA$5<=#REF!,$K21,0),0) ->  | BB21: =IF(BB$5>=$F21,IF(BB$5<=#REF!,$K21,0),0) ->  | BC21: =IF(BC$5>=$F21,IF(BC$5<=#REF!,$K21,0),0) ->  | BD21: =IF(BD$5>=$F21,IF(BD$5<=#REF!,$K21,0),0) ->  | BE21: =IF(BE$5>=$F21,IF(BE$5<=#REF!,$K21,0),0) ->  | BF21: =IF(BF$5>=$F21,IF(BF$5<=#REF!,$K21,0),0) ->  | BG21: =IF(BG$5>=$F21,IF(BG$5<=#REF!,$K21,0),0) ->  | BH21: =IF(BH$5>=$F21,IF(BH$5<=#REF!,$K21,0),0) ->  | BI21: =IF(BI$5>=$F21,IF(BI$5<=#REF!,$K21,0),0) ->  | BJ21: =IF(BJ$5>=$F21,IF(BJ$5<=#REF!,$K21,0),0) ->  | BK21: =IF(BK$5>=$F21,IF(BK$5<=#REF!,$K21,0),0) ->  | BL21: =IF(BL$5>=$F21,IF(BL$5<=#REF!,$K21,0),0) ->  | BM21: =IF(BM$5>=$F21,IF(BM$5<=#REF!,$K21,0),0) ->  | BN21: =IF(BN$5>=$F21,IF(BN$5<=#REF!,$K21,0),0) ->  | BO21: =IF(BO$5>=$F21,IF(BO$5<=#REF!,$K21,0),0) ->  | BP21: =IF(BP$5>=$F21,IF(BP$5<=#REF!,$K21,0),0) ->  | BQ21: =IF(BQ$5>=$F21,IF(BQ$5<=#REF!,$K21,0),0) ->  | BR21: =IF(BR$5>=$F21,IF(BR$5<=#REF!,$K21,0),0) ->  | BS21: =IF(BS$5>=$F21,IF(BS$5<=#REF!,$K21,0),0) ->  | BT21: =IF(BT$5>=$F21,IF(BT$5<=#REF!,$K21,0),0) ->  | BU21: =IF(BU$5>=$F21,IF(BU$5<=#REF!,$K21,0),0) ->  | BV21: =IF(BV$5>=$F21,IF(BV$5<=#REF!,$K21,0),0) ->  | BW21: =IF(BW$5>=$F21,IF(BW$5<=#REF!,$K21,0),0) ->  | BX21: =IF(BX$5>=$F21,IF(BX$5<=#REF!,$K21,0),0) ->  | BY21: =IF(BY$5>=$F21,IF(BY$5<=#REF!,$K21,0),0) ->  | BZ21: =IF(BZ$5>=$F21,IF(BZ$5<=#REF!,$K21,0),0) ->  | CA21: =IF(CA$5>=$F21,IF(CA$5<=#REF!,$K21,0),0) ->  | CB21: =IF(CB$5>=$F21,IF(CB$5<=#REF!,$K21,0),0) ->  | CC21: =IF(CC$5>=$F21,IF(CC$5<=#REF!,$K21,0),0) ->  | CD21: =IF(CD$5>=$F21,IF(CD$5<=#REF!,$K21,0),0) ->  | CE21: =IF(CE$5>=$F21,IF(CE$5<=#REF!,$K21,0),0) ->  | CF21: =IF(CF$5>=$F21,IF(CF$5<=#REF!,$K21,0),0) ->  | CG21: =IF(CG$5>=$F21,IF(CG$5<=#REF!,$K21,0),0) ->  | CH21: =IF(CH$5>=$F21,IF(CH$5<=#REF!,$K21,0),0) ->  | CI21: =IF(CI$5>=$F21,IF(CI$5<=#REF!,$K21,0),0) ->  | CJ21: =IF(CJ$5>=$F21,IF(CJ$5<=#REF!,$K21,0),0) ->  | CK21: =IF(CK$5>=$F21,IF(CK$5<=#REF!,$K21,0),0) ->  | CL21: =IF(CL$5>=$F21,IF(CL$5<=#REF!,$K21,0),0) ->  | CM21: =IF(CM$5>=$F21,IF(CM$5<=#REF!,$K21,0),0) ->  | CN21: =IF(CN$5>=$F21,IF(CN$5<=#REF!,$K21,0),0) ->  | CO21: =IF(CO$5>=$F21,IF(CO$5<=#REF!,$K21,0),0) ->  | CP21: =IF(CP$5>=$F21,IF(CP$5<=#REF!,$K21,0),0) ->  | CQ21: =IF(CQ$5>=$F21,IF(CQ$5<=#REF!,$K21,0),0) ->  | CR21: =IF(CR$5>=$F21,IF(CR$5<=#REF!,$K21,0),0) ->  | CS21: =IF(CS$5>=$F21,IF(CS$5<=#REF!,$K21,0),0) ->  | CT21: =IF(CT$5>=$F21,IF(CT$5<=#REF!,$K21,0),0) ->  | CU21: =IF(CU$5>=$F21,IF(CU$5<=#REF!,$K21,0),0) ->  | CV21: =IF(CV$5>=$F21,IF(CV$5<=#REF!,$K21,0),0) ->  | CW21: =IF(CW$5>=$F21,IF(CW$5<=#REF!,$K21,0),0) ->  | CX21: =IF(CX$5>=$F21,IF(CX$5<=#REF!,$K21,0),0) ->  | CY21: =IF(CY$5>=$F21,IF(CY$5<=#REF!,$K21,0),0) ->  | CZ21: =IF(CZ$5>=$F21,IF(CZ$5<=#REF!,$K21,0),0) ->  | DA21: =IF(DA$5>=$F21,IF(DA$5<=#REF!,$K21,0),0) ->  | DB21: =IF(DB$5>=$F21,IF(DB$5<=#REF!,$K21,0),0) ->  | DC21: =IF(DC$5>=$F21,IF(DC$5<=#REF!,$K21,0),0) ->  | DD21: =IF(DD$5>=$F21,IF(DD$5<=#REF!,$K21,0),0) ->  | DE21: =IF(DE$5>=$F21,IF(DE$5<=#REF!,$K21,0),0) ->  | DF21: =IF(DF$5>=$F21,IF(DF$5<=#REF!,$K21,0),0) ->  | DG21: =IF(DG$5>=$F21,IF(DG$5<=#REF!,$K21,0),0) ->  | DH21: =IF(DH$5>=$F21,IF(DH$5<=#REF!,$K21,0),0) ->  | DI21: =IF(DI$5>=$F21,IF(DI$5<=#REF!,$K21,0),0) ->  | DJ21: =IF(DJ$5>=$F21,IF(DJ$5<=#REF!,$K21,0),0) ->  | DK21: =IF(DK$5>=$F21,IF(DK$5<=#REF!,$K21,0),0) ->  | DL21: =IF(DL$5>=$F21,IF(DL$5<=#REF!,$K21,0),0) ->  | DM21: =IF(DM$5>=$F21,IF(DM$5<=#REF!,$K21,0),0) ->  | DN21: =IF(DN$5>=$F21,IF(DN$5<=#REF!,$K21,0),0) ->  | DO21: =IF(DO$5>=$F21,IF(DO$5<=#REF!,$K21,0),0) ->  | DP21: =IF(DP$5>=$F21,IF(DP$5<=#REF!,$K21,0),0) ->  | DQ21: =IF(DQ$5>=$F21,IF(DQ$5<=#REF!,$K21,0),0) ->  | DR21: =IF(DR$5>=$F21,IF(DR$5<=#REF!,$K21,0),0) ->  | DY21: コンクリート管 (m) | DZ21: E1 | EA21: 450
G22: =IF($D22="",0,VLOOKUP(($DU22&$C22&$D22),単価情報!$B$66:$C$932,2,FALSE)) -> 0 | H22: 0 | I22: 0 | J22: 0 | K22: =IF(E22=0,0,ROUND(E22/#REF!,1)) -> 0 | L22: =IF(L$5>=$F22,IF(L$5<=#REF!,$K22,0),0) ->  | M22: =IF(M$5>=$F22,IF(M$5<=#REF!,$K22,0),0) ->  | N22: =IF(N$5>=$F22,IF(N$5<=#REF!,$K22,0),0) ->  | O22: =IF(O$5>=$F22,IF(O$5<=#REF!,$K22,0),0) ->  | P22: =IF(P$5>=$F22,IF(P$5<=#REF!,$K22,0),0) ->  | Q22: =IF(Q$5>=$F22,IF(Q$5<=#REF!,$K22,0),0) ->  | R22: =IF(R$5>=$F22,IF(R$5<=#REF!,$K22,0),0) ->  | S22: =IF(S$5>=$F22,IF(S$5<=#REF!,$K22,0),0) ->  | T22: =IF(T$5>=$F22,IF(T$5<=#REF!,$K22,0),0) ->  | U22: =IF(U$5>=$F22,IF(U$5<=#REF!,$K22,0),0) ->  | V22: =IF(V$5>=$F22,IF(V$5<=#REF!,$K22,0),0) ->  | W22: =IF(W$5>=$F22,IF(W$5<=#REF!,$K22,0),0) ->  | X22: =IF(X$5>=$F22,IF(X$5<=#REF!,$K22,0),0) ->  | Y22: =IF(Y$5>=$F22,IF(Y$5<=#REF!,$K22,0),0) ->  | Z22: =IF(Z$5>=$F22,IF(Z$5<=#REF!,$K22,0),0) ->  | AA22: =IF(AA$5>=$F22,IF(AA$5<=#REF!,$K22,0),0) ->  | AB22: =IF(AB$5>=$F22,IF(AB$5<=#REF!,$K22,0),0) ->  | AC22: =IF(AC$5>=$F22,IF(AC$5<=#REF!,$K22,0),0) ->  | AD22: =IF(AD$5>=$F22,IF(AD$5<=#REF!,$K22,0),0) ->  | AE22: =IF(AE$5>=$F22,IF(AE$5<=#REF!,$K22,0),0) ->  | AF22: =IF(AF$5>=$F22,IF(AF$5<=#REF!,$K22,0),0) ->  | AG22: =IF(AG$5>=$F22,IF(AG$5<=#REF!,$K22,0),0) ->  | AH22: =IF(AH$5>=$F22,IF(AH$5<=#REF!,$K22,0),0) ->  | AI22: =IF(AI$5>=$F22,IF(AI$5<=#REF!,$K22,0),0) ->  | AJ22: =IF(AJ$5>=$F22,IF(AJ$5<=#REF!,$K22,0),0) ->  | AK22: =IF(AK$5>=$F22,IF(AK$5<=#REF!,$K22,0),0) ->  | AL22: =IF(AL$5>=$F22,IF(AL$5<=#REF!,$K22,0),0) ->  | AM22: =IF(AM$5>=$F22,IF(AM$5<=#REF!,$K22,0),0) ->  | AN22: =IF(AN$5>=$F22,IF(AN$5<=#REF!,$K22,0),0) ->  | AO22: =IF(AO$5>=$F22,IF(AO$5<=#REF!,$K22,0),0) ->  | AP22: =IF(AP$5>=$F22,IF(AP$5<=#REF!,$K22,0),0) ->  | AQ22: =IF(AQ$5>=$F22,IF(AQ$5<=#REF!,$K22,0),0) ->  | AR22: =IF(AR$5>=$F22,IF(AR$5<=#REF!,$K22,0),0) ->  | AS22: =IF(AS$5>=$F22,IF(AS$5<=#REF!,$K22,0),0) ->  | AT22: =IF(AT$5>=$F22,IF(AT$5<=#REF!,$K22,0),0) ->  | AU22: =IF(AU$5>=$F22,IF(AU$5<=#REF!,$K22,0),0) ->  | AV22: =IF(AV$5>=$F22,IF(AV$5<=#REF!,$K22,0),0) ->  | AW22: =IF(AW$5>=$F22,IF(AW$5<=#REF!,$K22,0),0) ->  | AX22: =IF(AX$5>=$F22,IF(AX$5<=#REF!,$K22,0),0) ->  | AY22: =IF(AY$5>=$F22,IF(AY$5<=#REF!,$K22,0),0) ->  | AZ22: =IF(AZ$5>=$F22,IF(AZ$5<=#REF!,$K22,0),0) ->  | BA22: =IF(BA$5>=$F22,IF(BA$5<=#REF!,$K22,0),0) ->  | BB22: =IF(BB$5>=$F22,IF(BB$5<=#REF!,$K22,0),0) ->  | BC22: =IF(BC$5>=$F22,IF(BC$5<=#REF!,$K22,0),0) ->  | BD22: =IF(BD$5>=$F22,IF(BD$5<=#REF!,$K22,0),0) ->  | BE22: =IF(BE$5>=$F22,IF(BE$5<=#REF!,$K22,0),0) ->  | BF22: =IF(BF$5>=$F22,IF(BF$5<=#REF!,$K22,0),0) ->  | BG22: =IF(BG$5>=$F22,IF(BG$5<=#REF!,$K22,0),0) ->  | BH22: =IF(BH$5>=$F22,IF(BH$5<=#REF!,$K22,0),0) ->  | BI22: =IF(BI$5>=$F22,IF(BI$5<=#REF!,$K22,0),0) ->  | BJ22: =IF(BJ$5>=$F22,IF(BJ$5<=#REF!,$K22,0),0) ->  | BK22: =IF(BK$5>=$F22,IF(BK$5<=#REF!,$K22,0),0) ->  | BL22: =IF(BL$5>=$F22,IF(BL$5<=#REF!,$K22,0),0) ->  | BM22: =IF(BM$5>=$F22,IF(BM$5<=#REF!,$K22,0),0) ->  | BN22: =IF(BN$5>=$F22,IF(BN$5<=#REF!,$K22,0),0) ->  | BO22: =IF(BO$5>=$F22,IF(BO$5<=#REF!,$K22,0),0) ->  | BP22: =IF(BP$5>=$F22,IF(BP$5<=#REF!,$K22,0),0) ->  | BQ22: =IF(BQ$5>=$F22,IF(BQ$5<=#REF!,$K22,0),0) ->  | BR22: =IF(BR$5>=$F22,IF(BR$5<=#REF!,$K22,0),0) ->  | BS22: =IF(BS$5>=$F22,IF(BS$5<=#REF!,$K22,0),0) ->  | BT22: =IF(BT$5>=$F22,IF(BT$5<=#REF!,$K22,0),0) ->  | BU22: =IF(BU$5>=$F22,IF(BU$5<=#REF!,$K22,0),0) ->  | BV22: =IF(BV$5>=$F22,IF(BV$5<=#REF!,$K22,0),0) ->  | BW22: =IF(BW$5>=$F22,IF(BW$5<=#REF!,$K22,0),0) ->  | BX22: =IF(BX$5>=$F22,IF(BX$5<=#REF!,$K22,0),0) ->  | BY22: =IF(BY$5>=$F22,IF(BY$5<=#REF!,$K22,0),0) ->  | BZ22: =IF(BZ$5>=$F22,IF(BZ$5<=#REF!,$K22,0),0) ->  | CA22: =IF(CA$5>=$F22,IF(CA$5<=#REF!,$K22,0),0) ->  | CB22: =IF(CB$5>=$F22,IF(CB$5<=#REF!,$K22,0),0) ->  | CC22: =IF(CC$5>=$F22,IF(CC$5<=#REF!,$K22,0),0) ->  | CD22: =IF(CD$5>=$F22,IF(CD$5<=#REF!,$K22,0),0) ->  | CE22: =IF(CE$5>=$F22,IF(CE$5<=#REF!,$K22,0),0) ->  | CF22: =IF(CF$5>=$F22,IF(CF$5<=#REF!,$K22,0),0) ->  | CG22: =IF(CG$5>=$F22,IF(CG$5<=#REF!,$K22,0),0) ->  | CH22: =IF(CH$5>=$F22,IF(CH$5<=#REF!,$K22,0),0) ->  | CI22: =IF(CI$5>=$F22,IF(CI$5<=#REF!,$K22,0),0) ->  | CJ22: =IF(CJ$5>=$F22,IF(CJ$5<=#REF!,$K22,0),0) ->  | CK22: =IF(CK$5>=$F22,IF(CK$5<=#REF!,$K22,0),0) ->  | CL22: =IF(CL$5>=$F22,IF(CL$5<=#REF!,$K22,0),0) ->  | CM22: =IF(CM$5>=$F22,IF(CM$5<=#REF!,$K22,0),0) ->  | CN22: =IF(CN$5>=$F22,IF(CN$5<=#REF!,$K22,0),0) ->  | CO22: =IF(CO$5>=$F22,IF(CO$5<=#REF!,$K22,0),0) ->  | CP22: =IF(CP$5>=$F22,IF(CP$5<=#REF!,$K22,0),0) ->  | CQ22: =IF(CQ$5>=$F22,IF(CQ$5<=#REF!,$K22,0),0) ->  | CR22: =IF(CR$5>=$F22,IF(CR$5<=#REF!,$K22,0),0) ->  | CS22: =IF(CS$5>=$F22,IF(CS$5<=#REF!,$K22,0),0) ->  | CT22: =IF(CT$5>=$F22,IF(CT$5<=#REF!,$K22,0),0) ->  | CU22: =IF(CU$5>=$F22,IF(CU$5<=#REF!,$K22,0),0) ->  | CV22: =IF(CV$5>=$F22,IF(CV$5<=#REF!,$K22,0),0) ->  | CW22: =IF(CW$5>=$F22,IF(CW$5<=#REF!,$K22,0),0) ->  | CX22: =IF(CX$5>=$F22,IF(CX$5<=#REF!,$K22,0),0) ->  | CY22: =IF(CY$5>=$F22,IF(CY$5<=#REF!,$K22,0),0) ->  | CZ22: =IF(CZ$5>=$F22,IF(CZ$5<=#REF!,$K22,0),0) ->  | DA22: =IF(DA$5>=$F22,IF(DA$5<=#REF!,$K22,0),0) ->  | DB22: =IF(DB$5>=$F22,IF(DB$5<=#REF!,$K22,0),0) ->  | DC22: =IF(DC$5>=$F22,IF(DC$5<=#REF!,$K22,0),0) ->  | DD22: =IF(DD$5>=$F22,IF(DD$5<=#REF!,$K22,0),0) ->  | DE22: =IF(DE$5>=$F22,IF(DE$5<=#REF!,$K22,0),0) ->  | DF22: =IF(DF$5>=$F22,IF(DF$5<=#REF!,$K22,0),0) ->  | DG22: =IF(DG$5>=$F22,IF(DG$5<=#REF!,$K22,0),0) ->  | DH22: =IF(DH$5>=$F22,IF(DH$5<=#REF!,$K22,0),0) ->  | DI22: =IF(DI$5>=$F22,IF(DI$5<=#REF!,$K22,0),0) ->  | DJ22: =IF(DJ$5>=$F22,IF(DJ$5<=#REF!,$K22,0),0) ->  | DK22: =IF(DK$5>=$F22,IF(DK$5<=#REF!,$K22,0),0) ->  | DL22: =IF(DL$5>=$F22,IF(DL$5<=#REF!,$K22,0),0) ->  | DM22: =IF(DM$5>=$F22,IF(DM$5<=#REF!,$K22,0),0) ->  | DN22: =IF(DN$5>=$F22,IF(DN$5<=#REF!,$K22,0),0) ->  | DO22: =IF(DO$5>=$F22,IF(DO$5<=#REF!,$K22,0),0) ->  | DP22: =IF(DP$5>=$F22,IF(DP$5<=#REF!,$K22,0),0) ->  | DQ22: =IF(DQ$5>=$F22,IF(DQ$5<=#REF!,$K22,0),0) ->  | DR22: =IF(DR$5>=$F22,IF(DR$5<=#REF!,$K22,0),0) ->  | DY22: 鉛管 (m) | DZ22: F1 | EA22: 500
G23: =IF($D23="",0,VLOOKUP(($DU23&$C23&$D23),単価情報!$B$66:$C$932,2,FALSE)) -> 0 | H23: 0 | I23: 0 | J23: 0 | K23: =IF(E23=0,0,ROUND(E23/#REF!,1)) -> 0 | L23: =IF(L$5>=$F23,IF(L$5<=#REF!,$K23,0),0) ->  | M23: =IF(M$5>=$F23,IF(M$5<=#REF!,$K23,0),0) ->  | N23: =IF(N$5>=$F23,IF(N$5<=#REF!,$K23,0),0) ->  | O23: =IF(O$5>=$F23,IF(O$5<=#REF!,$K23,0),0) ->  | P23: =IF(P$5>=$F23,IF(P$5<=#REF!,$K23,0),0) ->  | Q23: =IF(Q$5>=$F23,IF(Q$5<=#REF!,$K23,0),0) ->  | R23: =IF(R$5>=$F23,IF(R$5<=#REF!,$K23,0),0) ->  | S23: =IF(S$5>=$F23,IF(S$5<=#REF!,$K23,0),0) ->  | T23: =IF(T$5>=$F23,IF(T$5<=#REF!,$K23,0),0) ->  | U23: =IF(U$5>=$F23,IF(U$5<=#REF!,$K23,0),0) ->  | V23: =IF(V$5>=$F23,IF(V$5<=#REF!,$K23,0),0) ->  | W23: =IF(W$5>=$F23,IF(W$5<=#REF!,$K23,0),0) ->  | X23: =IF(X$5>=$F23,IF(X$5<=#REF!,$K23,0),0) ->  | Y23: =IF(Y$5>=$F23,IF(Y$5<=#REF!,$K23,0),0) ->  | Z23: =IF(Z$5>=$F23,IF(Z$5<=#REF!,$K23,0),0) ->  | AA23: =IF(AA$5>=$F23,IF(AA$5<=#REF!,$K23,0),0) ->  | AB23: =IF(AB$5>=$F23,IF(AB$5<=#REF!,$K23,0),0) ->  | AC23: =IF(AC$5>=$F23,IF(AC$5<=#REF!,$K23,0),0) ->  | AD23: =IF(AD$5>=$F23,IF(AD$5<=#REF!,$K23,0),0) ->  | AE23: =IF(AE$5>=$F23,IF(AE$5<=#REF!,$K23,0),0) ->  | AF23: =IF(AF$5>=$F23,IF(AF$5<=#REF!,$K23,0),0) ->  | AG23: =IF(AG$5>=$F23,IF(AG$5<=#REF!,$K23,0),0) ->  | AH23: =IF(AH$5>=$F23,IF(AH$5<=#REF!,$K23,0),0) ->  | AI23: =IF(AI$5>=$F23,IF(AI$5<=#REF!,$K23,0),0) ->  | AJ23: =IF(AJ$5>=$F23,IF(AJ$5<=#REF!,$K23,0),0) ->  | AK23: =IF(AK$5>=$F23,IF(AK$5<=#REF!,$K23,0),0) ->  | AL23: =IF(AL$5>=$F23,IF(AL$5<=#REF!,$K23,0),0) ->  | AM23: =IF(AM$5>=$F23,IF(AM$5<=#REF!,$K23,0),0) ->  | AN23: =IF(AN$5>=$F23,IF(AN$5<=#REF!,$K23,0),0) ->  | AO23: =IF(AO$5>=$F23,IF(AO$5<=#REF!,$K23,0),0) ->  | AP23: =IF(AP$5>=$F23,IF(AP$5<=#REF!,$K23,0),0) ->  | AQ23: =IF(AQ$5>=$F23,IF(AQ$5<=#REF!,$K23,0),0) ->  | AR23: =IF(AR$5>=$F23,IF(AR$5<=#REF!,$K23,0),0) ->  | AS23: =IF(AS$5>=$F23,IF(AS$5<=#REF!,$K23,0),0) ->  | AT23: =IF(AT$5>=$F23,IF(AT$5<=#REF!,$K23,0),0) ->  | AU23: =IF(AU$5>=$F23,IF(AU$5<=#REF!,$K23,0),0) ->  | AV23: =IF(AV$5>=$F23,IF(AV$5<=#REF!,$K23,0),0) ->  | AW23: =IF(AW$5>=$F23,IF(AW$5<=#REF!,$K23,0),0) ->  | AX23: =IF(AX$5>=$F23,IF(AX$5<=#REF!,$K23,0),0) ->  | AY23: =IF(AY$5>=$F23,IF(AY$5<=#REF!,$K23,0),0) ->  | AZ23: =IF(AZ$5>=$F23,IF(AZ$5<=#REF!,$K23,0),0) ->  | BA23: =IF(BA$5>=$F23,IF(BA$5<=#REF!,$K23,0),0) ->  | BB23: =IF(BB$5>=$F23,IF(BB$5<=#REF!,$K23,0),0) ->  | BC23: =IF(BC$5>=$F23,IF(BC$5<=#REF!,$K23,0),0) ->  | BD23: =IF(BD$5>=$F23,IF(BD$5<=#REF!,$K23,0),0) ->  | BE23: =IF(BE$5>=$F23,IF(BE$5<=#REF!,$K23,0),0) ->  | BF23: =IF(BF$5>=$F23,IF(BF$5<=#REF!,$K23,0),0) ->  | BG23: =IF(BG$5>=$F23,IF(BG$5<=#REF!,$K23,0),0) ->  | BH23: =IF(BH$5>=$F23,IF(BH$5<=#REF!,$K23,0),0) ->  | BI23: =IF(BI$5>=$F23,IF(BI$5<=#REF!,$K23,0),0) ->  | BJ23: =IF(BJ$5>=$F23,IF(BJ$5<=#REF!,$K23,0),0) ->  | BK23: =IF(BK$5>=$F23,IF(BK$5<=#REF!,$K23,0),0) ->  | BL23: =IF(BL$5>=$F23,IF(BL$5<=#REF!,$K23,0),0) ->  | BM23: =IF(BM$5>=$F23,IF(BM$5<=#REF!,$K23,0),0) ->  | BN23: =IF(BN$5>=$F23,IF(BN$5<=#REF!,$K23,0),0) ->  | BO23: =IF(BO$5>=$F23,IF(BO$5<=#REF!,$K23,0),0) ->  | BP23: =IF(BP$5>=$F23,IF(BP$5<=#REF!,$K23,0),0) ->  | BQ23: =IF(BQ$5>=$F23,IF(BQ$5<=#REF!,$K23,0),0) ->  | BR23: =IF(BR$5>=$F23,IF(BR$5<=#REF!,$K23,0),0) ->  | BS23: =IF(BS$5>=$F23,IF(BS$5<=#REF!,$K23,0),0) ->  | BT23: =IF(BT$5>=$F23,IF(BT$5<=#REF!,$K23,0),0) ->  | BU23: =IF(BU$5>=$F23,IF(BU$5<=#REF!,$K23,0),0) ->  | BV23: =IF(BV$5>=$F23,IF(BV$5<=#REF!,$K23,0),0) ->  | BW23: =IF(BW$5>=$F23,IF(BW$5<=#REF!,$K23,0),0) ->  | BX23: =IF(BX$5>=$F23,IF(BX$5<=#REF!,$K23,0),0) ->  | BY23: =IF(BY$5>=$F23,IF(BY$5<=#REF!,$K23,0),0) ->  | BZ23: =IF(BZ$5>=$F23,IF(BZ$5<=#REF!,$K23,0),0) ->  | CA23: =IF(CA$5>=$F23,IF(CA$5<=#REF!,$K23,0),0) ->  | CB23: =IF(CB$5>=$F23,IF(CB$5<=#REF!,$K23,0),0) ->  | CC23: =IF(CC$5>=$F23,IF(CC$5<=#REF!,$K23,0),0) ->  | CD23: =IF(CD$5>=$F23,IF(CD$5<=#REF!,$K23,0),0) ->  | CE23: =IF(CE$5>=$F23,IF(CE$5<=#REF!,$K23,0),0) ->  | CF23: =IF(CF$5>=$F23,IF(CF$5<=#REF!,$K23,0),0) ->  | CG23: =IF(CG$5>=$F23,IF(CG$5<=#REF!,$K23,0),0) ->  | CH23: =IF(CH$5>=$F23,IF(CH$5<=#REF!,$K23,0),0) ->  | CI23: =IF(CI$5>=$F23,IF(CI$5<=#REF!,$K23,0),0) ->  | CJ23: =IF(CJ$5>=$F23,IF(CJ$5<=#REF!,$K23,0),0) ->  | CK23: =IF(CK$5>=$F23,IF(CK$5<=#REF!,$K23,0),0) ->  | CL23: =IF(CL$5>=$F23,IF(CL$5<=#REF!,$K23,0),0) ->  | CM23: =IF(CM$5>=$F23,IF(CM$5<=#REF!,$K23,0),0) ->  | CN23: =IF(CN$5>=$F23,IF(CN$5<=#REF!,$K23,0),0) ->  | CO23: =IF(CO$5>=$F23,IF(CO$5<=#REF!,$K23,0),0) ->  | CP23: =IF(CP$5>=$F23,IF(CP$5<=#REF!,$K23,0),0) ->  | CQ23: =IF(CQ$5>=$F23,IF(CQ$5<=#REF!,$K23,0),0) ->  | CR23: =IF(CR$5>=$F23,IF(CR$5<=#REF!,$K23,0),0) ->  | CS23: =IF(CS$5>=$F23,IF(CS$5<=#REF!,$K23,0),0) ->  | CT23: =IF(CT$5>=$F23,IF(CT$5<=#REF!,$K23,0),0) ->  | CU23: =IF(CU$5>=$F23,IF(CU$5<=#REF!,$K23,0),0) ->  | CV23: =IF(CV$5>=$F23,IF(CV$5<=#REF!,$K23,0),0) ->  | CW23: =IF(CW$5>=$F23,IF(CW$5<=#REF!,$K23,0),0) ->  | CX23: =IF(CX$5>=$F23,IF(CX$5<=#REF!,$K23,0),0) ->  | CY23: =IF(CY$5>=$F23,IF(CY$5<=#REF!,$K23,0),0) ->  | CZ23: =IF(CZ$5>=$F23,IF(CZ$5<=#REF!,$K23,0),0) ->  | DA23: =IF(DA$5>=$F23,IF(DA$5<=#REF!,$K23,0),0) ->  | DB23: =IF(DB$5>=$F23,IF(DB$5<=#REF!,$K23,0),0) ->  | DC23: =IF(DC$5>=$F23,IF(DC$5<=#REF!,$K23,0),0) ->  | DD23: =IF(DD$5>=$F23,IF(DD$5<=#REF!,$K23,0),0) ->  | DE23: =IF(DE$5>=$F23,IF(DE$5<=#REF!,$K23,0),0) ->  | DF23: =IF(DF$5>=$F23,IF(DF$5<=#REF!,$K23,0),0) ->  | DG23: =IF(DG$5>=$F23,IF(DG$5<=#REF!,$K23,0),0) ->  | DH23: =IF(DH$5>=$F23,IF(DH$5<=#REF!,$K23,0),0) ->  | DI23: =IF(DI$5>=$F23,IF(DI$5<=#REF!,$K23,0),0) ->  | DJ23: =IF(DJ$5>=$F23,IF(DJ$5<=#REF!,$K23,0),0) ->  | DK23: =IF(DK$5>=$F23,IF(DK$5<=#REF!,$K23,0),0) ->  | DL23: =IF(DL$5>=$F23,IF(DL$5<=#REF!,$K23,0),0) ->  | DM23: =IF(DM$5>=$F23,IF(DM$5<=#REF!,$K23,0),0) ->  | DN23: =IF(DN$5>=$F23,IF(DN$5<=#REF!,$K23,0),0) ->  | DO23: =IF(DO$5>=$F23,IF(DO$5<=#REF!,$K23,0),0) ->  | DP23: =IF(DP$5>=$F23,IF(DP$5<=#REF!,$K23,0),0) ->  | DQ23: =IF(DQ$5>=$F23,IF(DQ$5<=#REF!,$K23,0),0) ->  | DR23: =IF(DR$5>=$F23,IF(DR$5<=#REF!,$K23,0),0) ->  | DY23: ポリエチレン管 （高密度、熱融着継手を有する） （m） | DZ23: G1 | EA23: 600
G24: =IF($D24="",0,VLOOKUP(($DU24&$C24&$D24),単価情報!$B$66:$C$932,2,FALSE)) -> 0 | H24: 0 | I24: 0 | J24: 0 | K24: =IF(E24=0,0,ROUND(E24/#REF!,1)) -> 0 | L24: =IF(L$5>=$F24,IF(L$5<=#REF!,$K24,0),0) ->  | M24: =IF(M$5>=$F24,IF(M$5<=#REF!,$K24,0),0) ->  | N24: =IF(N$5>=$F24,IF(N$5<=#REF!,$K24,0),0) ->  | O24: =IF(O$5>=$F24,IF(O$5<=#REF!,$K24,0),0) ->  | P24: =IF(P$5>=$F24,IF(P$5<=#REF!,$K24,0),0) ->  | Q24: =IF(Q$5>=$F24,IF(Q$5<=#REF!,$K24,0),0) ->  | R24: =IF(R$5>=$F24,IF(R$5<=#REF!,$K24,0),0) ->  | S24: =IF(S$5>=$F24,IF(S$5<=#REF!,$K24,0),0) ->  | T24: =IF(T$5>=$F24,IF(T$5<=#REF!,$K24,0),0) ->  | U24: =IF(U$5>=$F24,IF(U$5<=#REF!,$K24,0),0) ->  | V24: =IF(V$5>=$F24,IF(V$5<=#REF!,$K24,0),0) ->  | W24: =IF(W$5>=$F24,IF(W$5<=#REF!,$K24,0),0) ->  | X24: =IF(X$5>=$F24,IF(X$5<=#REF!,$K24,0),0) ->  | Y24: =IF(Y$5>=$F24,IF(Y$5<=#REF!,$K24,0),0) ->  | Z24: =IF(Z$5>=$F24,IF(Z$5<=#REF!,$K24,0),0) ->  | AA24: =IF(AA$5>=$F24,IF(AA$5<=#REF!,$K24,0),0) ->  | AB24: =IF(AB$5>=$F24,IF(AB$5<=#REF!,$K24,0),0) ->  | AC24: =IF(AC$5>=$F24,IF(AC$5<=#REF!,$K24,0),0) ->  | AD24: =IF(AD$5>=$F24,IF(AD$5<=#REF!,$K24,0),0) ->  | AE24: =IF(AE$5>=$F24,IF(AE$5<=#REF!,$K24,0),0) ->  | AF24: =IF(AF$5>=$F24,IF(AF$5<=#REF!,$K24,0),0) ->  | AG24: =IF(AG$5>=$F24,IF(AG$5<=#REF!,$K24,0),0) ->  | AH24: =IF(AH$5>=$F24,IF(AH$5<=#REF!,$K24,0),0) ->  | AI24: =IF(AI$5>=$F24,IF(AI$5<=#REF!,$K24,0),0) ->  | AJ24: =IF(AJ$5>=$F24,IF(AJ$5<=#REF!,$K24,0),0) ->  | AK24: =IF(AK$5>=$F24,IF(AK$5<=#REF!,$K24,0),0) ->  | AL24: =IF(AL$5>=$F24,IF(AL$5<=#REF!,$K24,0),0) ->  | AM24: =IF(AM$5>=$F24,IF(AM$5<=#REF!,$K24,0),0) ->  | AN24: =IF(AN$5>=$F24,IF(AN$5<=#REF!,$K24,0),0) ->  | AO24: =IF(AO$5>=$F24,IF(AO$5<=#REF!,$K24,0),0) ->  | AP24: =IF(AP$5>=$F24,IF(AP$5<=#REF!,$K24,0),0) ->  | AQ24: =IF(AQ$5>=$F24,IF(AQ$5<=#REF!,$K24,0),0) ->  | AR24: =IF(AR$5>=$F24,IF(AR$5<=#REF!,$K24,0),0) ->  | AS24: =IF(AS$5>=$F24,IF(AS$5<=#REF!,$K24,0),0) ->  | AT24: =IF(AT$5>=$F24,IF(AT$5<=#REF!,$K24,0),0) ->  | AU24: =IF(AU$5>=$F24,IF(AU$5<=#REF!,$K24,0),0) ->  | AV24: =IF(AV$5>=$F24,IF(AV$5<=#REF!,$K24,0),0) ->  | AW24: =IF(AW$5>=$F24,IF(AW$5<=#REF!,$K24,0),0) ->  | AX24: =IF(AX$5>=$F24,IF(AX$5<=#REF!,$K24,0),0) ->  | AY24: =IF(AY$5>=$F24,IF(AY$5<=#REF!,$K24,0),0) ->  | AZ24: =IF(AZ$5>=$F24,IF(AZ$5<=#REF!,$K24,0),0) ->  | BA24: =IF(BA$5>=$F24,IF(BA$5<=#REF!,$K24,0),0) ->  | BB24: =IF(BB$5>=$F24,IF(BB$5<=#REF!,$K24,0),0) ->  | BC24: =IF(BC$5>=$F24,IF(BC$5<=#REF!,$K24,0),0) ->  | BD24: =IF(BD$5>=$F24,IF(BD$5<=#REF!,$K24,0),0) ->  | BE24: =IF(BE$5>=$F24,IF(BE$5<=#REF!,$K24,0),0) ->  | BF24: =IF(BF$5>=$F24,IF(BF$5<=#REF!,$K24,0),0) ->  | BG24: =IF(BG$5>=$F24,IF(BG$5<=#REF!,$K24,0),0) ->  | BH24: =IF(BH$5>=$F24,IF(BH$5<=#REF!,$K24,0),0) ->  | BI24: =IF(BI$5>=$F24,IF(BI$5<=#REF!,$K24,0),0) ->  | BJ24: =IF(BJ$5>=$F24,IF(BJ$5<=#REF!,$K24,0),0) ->  | BK24: =IF(BK$5>=$F24,IF(BK$5<=#REF!,$K24,0),0) ->  | BL24: =IF(BL$5>=$F24,IF(BL$5<=#REF!,$K24,0),0) ->  | BM24: =IF(BM$5>=$F24,IF(BM$5<=#REF!,$K24,0),0) ->  | BN24: =IF(BN$5>=$F24,IF(BN$5<=#REF!,$K24,0),0) ->  | BO24: =IF(BO$5>=$F24,IF(BO$5<=#REF!,$K24,0),0) ->  | BP24: =IF(BP$5>=$F24,IF(BP$5<=#REF!,$K24,0),0) ->  | BQ24: =IF(BQ$5>=$F24,IF(BQ$5<=#REF!,$K24,0),0) ->  | BR24: =IF(BR$5>=$F24,IF(BR$5<=#REF!,$K24,0),0) ->  | BS24: =IF(BS$5>=$F24,IF(BS$5<=#REF!,$K24,0),0) ->  | BT24: =IF(BT$5>=$F24,IF(BT$5<=#REF!,$K24,0),0) ->  | BU24: =IF(BU$5>=$F24,IF(BU$5<=#REF!,$K24,0),0) ->  | BV24: =IF(BV$5>=$F24,IF(BV$5<=#REF!,$K24,0),0) ->  | BW24: =IF(BW$5>=$F24,IF(BW$5<=#REF!,$K24,0),0) ->  | BX24: =IF(BX$5>=$F24,IF(BX$5<=#REF!,$K24,0),0) ->  | BY24: =IF(BY$5>=$F24,IF(BY$5<=#REF!,$K24,0),0) ->  | BZ24: =IF(BZ$5>=$F24,IF(BZ$5<=#REF!,$K24,0),0) ->  | CA24: =IF(CA$5>=$F24,IF(CA$5<=#REF!,$K24,0),0) ->  | CB24: =IF(CB$5>=$F24,IF(CB$5<=#REF!,$K24,0),0) ->  | CC24: =IF(CC$5>=$F24,IF(CC$5<=#REF!,$K24,0),0) ->  | CD24: =IF(CD$5>=$F24,IF(CD$5<=#REF!,$K24,0),0) ->  | CE24: =IF(CE$5>=$F24,IF(CE$5<=#REF!,$K24,0),0) ->  | CF24: =IF(CF$5>=$F24,IF(CF$5<=#REF!,$K24,0),0) ->  | CG24: =IF(CG$5>=$F24,IF(CG$5<=#REF!,$K24,0),0) ->  | CH24: =IF(CH$5>=$F24,IF(CH$5<=#REF!,$K24,0),0) ->  | CI24: =IF(CI$5>=$F24,IF(CI$5<=#REF!,$K24,0),0) ->  | CJ24: =IF(CJ$5>=$F24,IF(CJ$5<=#REF!,$K24,0),0) ->  | CK24: =IF(CK$5>=$F24,IF(CK$5<=#REF!,$K24,0),0) ->  | CL24: =IF(CL$5>=$F24,IF(CL$5<=#REF!,$K24,0),0) ->  | CM24: =IF(CM$5>=$F24,IF(CM$5<=#REF!,$K24,0),0) ->  | CN24: =IF(CN$5>=$F24,IF(CN$5<=#REF!,$K24,0),0) ->  | CO24: =IF(CO$5>=$F24,IF(CO$5<=#REF!,$K24,0),0) ->  | CP24: =IF(CP$5>=$F24,IF(CP$5<=#REF!,$K24,0),0) ->  | CQ24: =IF(CQ$5>=$F24,IF(CQ$5<=#REF!,$K24,0),0) ->  | CR24: =IF(CR$5>=$F24,IF(CR$5<=#REF!,$K24,0),0) ->  | CS24: =IF(CS$5>=$F24,IF(CS$5<=#REF!,$K24,0),0) ->  | CT24: =IF(CT$5>=$F24,IF(CT$5<=#REF!,$K24,0),0) ->  | CU24: =IF(CU$5>=$F24,IF(CU$5<=#REF!,$K24,0),0) ->  | CV24: =IF(CV$5>=$F24,IF(CV$5<=#REF!,$K24,0),0) ->  | CW24: =IF(CW$5>=$F24,IF(CW$5<=#REF!,$K24,0),0) ->  | CX24: =IF(CX$5>=$F24,IF(CX$5<=#REF!,$K24,0),0) ->  | CY24: =IF(CY$5>=$F24,IF(CY$5<=#REF!,$K24,0),0) ->  | CZ24: =IF(CZ$5>=$F24,IF(CZ$5<=#REF!,$K24,0),0) ->  | DA24: =IF(DA$5>=$F24,IF(DA$5<=#REF!,$K24,0),0) ->  | DB24: =IF(DB$5>=$F24,IF(DB$5<=#REF!,$K24,0),0) ->  | DC24: =IF(DC$5>=$F24,IF(DC$5<=#REF!,$K24,0),0) ->  | DD24: =IF(DD$5>=$F24,IF(DD$5<=#REF!,$K24,0),0) ->  | DE24: =IF(DE$5>=$F24,IF(DE$5<=#REF!,$K24,0),0) ->  | DF24: =IF(DF$5>=$F24,IF(DF$5<=#REF!,$K24,0),0) ->  | DG24: =IF(DG$5>=$F24,IF(DG$5<=#REF!,$K24,0),0) ->  | DH24: =IF(DH$5>=$F24,IF(DH$5<=#REF!,$K24,0),0) ->  | DI24: =IF(DI$5>=$F24,IF(DI$5<=#REF!,$K24,0),0) ->  | DJ24: =IF(DJ$5>=$F24,IF(DJ$5<=#REF!,$K24,0),0) ->  | DK24: =IF(DK$5>=$F24,IF(DK$5<=#REF!,$K24,0),0) ->  | DL24: =IF(DL$5>=$F24,IF(DL$5<=#REF!,$K24,0),0) ->  | DM24: =IF(DM$5>=$F24,IF(DM$5<=#REF!,$K24,0),0) ->  | DN24: =IF(DN$5>=$F24,IF(DN$5<=#REF!,$K24,0),0) ->  | DO24: =IF(DO$5>=$F24,IF(DO$5<=#REF!,$K24,0),0) ->  | DP24: =IF(DP$5>=$F24,IF(DP$5<=#REF!,$K24,0),0) ->  | DQ24: =IF(DQ$5>=$F24,IF(DQ$5<=#REF!,$K24,0),0) ->  | DR24: =IF(DR$5>=$F24,IF(DR$5<=#REF!,$K24,0),0) ->  | DY24: ポリエチレン管 （上記以外・不明なものを含む） （m） | DZ24: G1 | EA24: 700
G25: =IF($D25="",0,VLOOKUP(($DU25&$C25&$D25),単価情報!$B$66:$C$932,2,FALSE)) -> 0 | H25: 0 | I25: 0 | J25: 0 | K25: =IF(E25=0,0,ROUND(E25/#REF!,1)) -> 0 | L25: =IF(L$5>=$F25,IF(L$5<=#REF!,$K25,0),0) ->  | M25: =IF(M$5>=$F25,IF(M$5<=#REF!,$K25,0),0) ->  | N25: =IF(N$5>=$F25,IF(N$5<=#REF!,$K25,0),0) ->  | O25: =IF(O$5>=$F25,IF(O$5<=#REF!,$K25,0),0) ->  | P25: =IF(P$5>=$F25,IF(P$5<=#REF!,$K25,0),0) ->  | Q25: =IF(Q$5>=$F25,IF(Q$5<=#REF!,$K25,0),0) ->  | R25: =IF(R$5>=$F25,IF(R$5<=#REF!,$K25,0),0) ->  | S25: =IF(S$5>=$F25,IF(S$5<=#REF!,$K25,0),0) ->  | T25: =IF(T$5>=$F25,IF(T$5<=#REF!,$K25,0),0) ->  | U25: =IF(U$5>=$F25,IF(U$5<=#REF!,$K25,0),0) ->  | V25: =IF(V$5>=$F25,IF(V$5<=#REF!,$K25,0),0) ->  | W25: =IF(W$5>=$F25,IF(W$5<=#REF!,$K25,0),0) ->  | X25: =IF(X$5>=$F25,IF(X$5<=#REF!,$K25,0),0) ->  | Y25: =IF(Y$5>=$F25,IF(Y$5<=#REF!,$K25,0),0) ->  | Z25: =IF(Z$5>=$F25,IF(Z$5<=#REF!,$K25,0),0) ->  | AA25: =IF(AA$5>=$F25,IF(AA$5<=#REF!,$K25,0),0) ->  | AB25: =IF(AB$5>=$F25,IF(AB$5<=#REF!,$K25,0),0) ->  | AC25: =IF(AC$5>=$F25,IF(AC$5<=#REF!,$K25,0),0) ->  | AD25: =IF(AD$5>=$F25,IF(AD$5<=#REF!,$K25,0),0) ->  | AE25: =IF(AE$5>=$F25,IF(AE$5<=#REF!,$K25,0),0) ->  | AF25: =IF(AF$5>=$F25,IF(AF$5<=#REF!,$K25,0),0) ->  | AG25: =IF(AG$5>=$F25,IF(AG$5<=#REF!,$K25,0),0) ->  | AH25: =IF(AH$5>=$F25,IF(AH$5<=#REF!,$K25,0),0) ->  | AI25: =IF(AI$5>=$F25,IF(AI$5<=#REF!,$K25,0),0) ->  | AJ25: =IF(AJ$5>=$F25,IF(AJ$5<=#REF!,$K25,0),0) ->  | AK25: =IF(AK$5>=$F25,IF(AK$5<=#REF!,$K25,0),0) ->  | AL25: =IF(AL$5>=$F25,IF(AL$5<=#REF!,$K25,0),0) ->  | AM25: =IF(AM$5>=$F25,IF(AM$5<=#REF!,$K25,0),0) ->  | AN25: =IF(AN$5>=$F25,IF(AN$5<=#REF!,$K25,0),0) ->  | AO25: =IF(AO$5>=$F25,IF(AO$5<=#REF!,$K25,0),0) ->  | AP25: =IF(AP$5>=$F25,IF(AP$5<=#REF!,$K25,0),0) ->  | AQ25: =IF(AQ$5>=$F25,IF(AQ$5<=#REF!,$K25,0),0) ->  | AR25: =IF(AR$5>=$F25,IF(AR$5<=#REF!,$K25,0),0) ->  | AS25: =IF(AS$5>=$F25,IF(AS$5<=#REF!,$K25,0),0) ->  | AT25: =IF(AT$5>=$F25,IF(AT$5<=#REF!,$K25,0),0) ->  | AU25: =IF(AU$5>=$F25,IF(AU$5<=#REF!,$K25,0),0) ->  | AV25: =IF(AV$5>=$F25,IF(AV$5<=#REF!,$K25,0),0) ->  | AW25: =IF(AW$5>=$F25,IF(AW$5<=#REF!,$K25,0),0) ->  | AX25: =IF(AX$5>=$F25,IF(AX$5<=#REF!,$K25,0),0) ->  | AY25: =IF(AY$5>=$F25,IF(AY$5<=#REF!,$K25,0),0) ->  | AZ25: =IF(AZ$5>=$F25,IF(AZ$5<=#REF!,$K25,0),0) ->  | BA25: =IF(BA$5>=$F25,IF(BA$5<=#REF!,$K25,0),0) ->  | BB25: =IF(BB$5>=$F25,IF(BB$5<=#REF!,$K25,0),0) ->  | BC25: =IF(BC$5>=$F25,IF(BC$5<=#REF!,$K25,0),0) ->  | BD25: =IF(BD$5>=$F25,IF(BD$5<=#REF!,$K25,0),0) ->  | BE25: =IF(BE$5>=$F25,IF(BE$5<=#REF!,$K25,0),0) ->  | BF25: =IF(BF$5>=$F25,IF(BF$5<=#REF!,$K25,0),0) ->  | BG25: =IF(BG$5>=$F25,IF(BG$5<=#REF!,$K25,0),0) ->  | BH25: =IF(BH$5>=$F25,IF(BH$5<=#REF!,$K25,0),0) ->  | BI25: =IF(BI$5>=$F25,IF(BI$5<=#REF!,$K25,0),0) ->  | BJ25: =IF(BJ$5>=$F25,IF(BJ$5<=#REF!,$K25,0),0) ->  | BK25: =IF(BK$5>=$F25,IF(BK$5<=#REF!,$K25,0),0) ->  | BL25: =IF(BL$5>=$F25,IF(BL$5<=#REF!,$K25,0),0) ->  | BM25: =IF(BM$5>=$F25,IF(BM$5<=#REF!,$K25,0),0) ->  | BN25: =IF(BN$5>=$F25,IF(BN$5<=#REF!,$K25,0),0) ->  | BO25: =IF(BO$5>=$F25,IF(BO$5<=#REF!,$K25,0),0) ->  | BP25: =IF(BP$5>=$F25,IF(BP$5<=#REF!,$K25,0),0) ->  | BQ25: =IF(BQ$5>=$F25,IF(BQ$5<=#REF!,$K25,0),0) ->  | BR25: =IF(BR$5>=$F25,IF(BR$5<=#REF!,$K25,0),0) ->  | BS25: =IF(BS$5>=$F25,IF(BS$5<=#REF!,$K25,0),0) ->  | BT25: =IF(BT$5>=$F25,IF(BT$5<=#REF!,$K25,0),0) ->  | BU25: =IF(BU$5>=$F25,IF(BU$5<=#REF!,$K25,0),0) ->  | BV25: =IF(BV$5>=$F25,IF(BV$5<=#REF!,$K25,0),0) ->  | BW25: =IF(BW$5>=$F25,IF(BW$5<=#REF!,$K25,0),0) ->  | BX25: =IF(BX$5>=$F25,IF(BX$5<=#REF!,$K25,0),0) ->  | BY25: =IF(BY$5>=$F25,IF(BY$5<=#REF!,$K25,0),0) ->  | BZ25: =IF(BZ$5>=$F25,IF(BZ$5<=#REF!,$K25,0),0) ->  | CA25: =IF(CA$5>=$F25,IF(CA$5<=#REF!,$K25,0),0) ->  | CB25: =IF(CB$5>=$F25,IF(CB$5<=#REF!,$K25,0),0) ->  | CC25: =IF(CC$5>=$F25,IF(CC$5<=#REF!,$K25,0),0) ->  | CD25: =IF(CD$5>=$F25,IF(CD$5<=#REF!,$K25,0),0) ->  | CE25: =IF(CE$5>=$F25,IF(CE$5<=#REF!,$K25,0),0) ->  | CF25: =IF(CF$5>=$F25,IF(CF$5<=#REF!,$K25,0),0) ->  | CG25: =IF(CG$5>=$F25,IF(CG$5<=#REF!,$K25,0),0) ->  | CH25: =IF(CH$5>=$F25,IF(CH$5<=#REF!,$K25,0),0) ->  | CI25: =IF(CI$5>=$F25,IF(CI$5<=#REF!,$K25,0),0) ->  | CJ25: =IF(CJ$5>=$F25,IF(CJ$5<=#REF!,$K25,0),0) ->  | CK25: =IF(CK$5>=$F25,IF(CK$5<=#REF!,$K25,0),0) ->  | CL25: =IF(CL$5>=$F25,IF(CL$5<=#REF!,$K25,0),0) ->  | CM25: =IF(CM$5>=$F25,IF(CM$5<=#REF!,$K25,0),0) ->  | CN25: =IF(CN$5>=$F25,IF(CN$5<=#REF!,$K25,0),0) ->  | CO25: =IF(CO$5>=$F25,IF(CO$5<=#REF!,$K25,0),0) ->  | CP25: =IF(CP$5>=$F25,IF(CP$5<=#REF!,$K25,0),0) ->  | CQ25: =IF(CQ$5>=$F25,IF(CQ$5<=#REF!,$K25,0),0) ->  | CR25: =IF(CR$5>=$F25,IF(CR$5<=#REF!,$K25,0),0) ->  | CS25: =IF(CS$5>=$F25,IF(CS$5<=#REF!,$K25,0),0) ->  | CT25: =IF(CT$5>=$F25,IF(CT$5<=#REF!,$K25,0),0) ->  | CU25: =IF(CU$5>=$F25,IF(CU$5<=#REF!,$K25,0),0) ->  | CV25: =IF(CV$5>=$F25,IF(CV$5<=#REF!,$K25,0),0) ->  | CW25: =IF(CW$5>=$F25,IF(CW$5<=#REF!,$K25,0),0) ->  | CX25: =IF(CX$5>=$F25,IF(CX$5<=#REF!,$K25,0),0) ->  | CY25: =IF(CY$5>=$F25,IF(CY$5<=#REF!,$K25,0),0) ->  | CZ25: =IF(CZ$5>=$F25,IF(CZ$5<=#REF!,$K25,0),0) ->  | DA25: =IF(DA$5>=$F25,IF(DA$5<=#REF!,$K25,0),0) ->  | DB25: =IF(DB$5>=$F25,IF(DB$5<=#REF!,$K25,0),0) ->  | DC25: =IF(DC$5>=$F25,IF(DC$5<=#REF!,$K25,0),0) ->  | DD25: =IF(DD$5>=$F25,IF(DD$5<=#REF!,$K25,0),0) ->  | DE25: =IF(DE$5>=$F25,IF(DE$5<=#REF!,$K25,0),0) ->  | DF25: =IF(DF$5>=$F25,IF(DF$5<=#REF!,$K25,0),0) ->  | DG25: =IF(DG$5>=$F25,IF(DG$5<=#REF!,$K25,0),0) ->  | DH25: =IF(DH$5>=$F25,IF(DH$5<=#REF!,$K25,0),0) ->  | DI25: =IF(DI$5>=$F25,IF(DI$5<=#REF!,$K25,0),0) ->  | DJ25: =IF(DJ$5>=$F25,IF(DJ$5<=#REF!,$K25,0),0) ->  | DK25: =IF(DK$5>=$F25,IF(DK$5<=#REF!,$K25,0),0) ->  | DL25: =IF(DL$5>=$F25,IF(DL$5<=#REF!,$K25,0),0) ->  | DM25: =IF(DM$5>=$F25,IF(DM$5<=#REF!,$K25,0),0) ->  | DN25: =IF(DN$5>=$F25,IF(DN$5<=#REF!,$K25,0),0) ->  | DO25: =IF(DO$5>=$F25,IF(DO$5<=#REF!,$K25,0),0) ->  | DP25: =IF(DP$5>=$F25,IF(DP$5<=#REF!,$K25,0),0) ->  | DQ25: =IF(DQ$5>=$F25,IF(DQ$5<=#REF!,$K25,0),0) ->  | DR25: =IF(DR$5>=$F25,IF(DR$5<=#REF!,$K25,0),0) ->  | DY25: ステンレス管 耐震型継手を有する (m) | DZ25: H1 | EA25: 800
G26: =IF($D26="",0,VLOOKUP(($DU26&$C26&$D26),単価情報!$B$66:$C$932,2,FALSE)) -> 0 | H26: 0 | I26: 0 | J26: 0 | K26: =IF(E26=0,0,ROUND(E26/#REF!,1)) -> 0 | L26: =IF(L$5>=$F26,IF(L$5<=#REF!,$K26,0),0) ->  | M26: =IF(M$5>=$F26,IF(M$5<=#REF!,$K26,0),0) ->  | N26: =IF(N$5>=$F26,IF(N$5<=#REF!,$K26,0),0) ->  | O26: =IF(O$5>=$F26,IF(O$5<=#REF!,$K26,0),0) ->  | P26: =IF(P$5>=$F26,IF(P$5<=#REF!,$K26,0),0) ->  | Q26: =IF(Q$5>=$F26,IF(Q$5<=#REF!,$K26,0),0) ->  | R26: =IF(R$5>=$F26,IF(R$5<=#REF!,$K26,0),0) ->  | S26: =IF(S$5>=$F26,IF(S$5<=#REF!,$K26,0),0) ->  | T26: =IF(T$5>=$F26,IF(T$5<=#REF!,$K26,0),0) ->  | U26: =IF(U$5>=$F26,IF(U$5<=#REF!,$K26,0),0) ->  | V26: =IF(V$5>=$F26,IF(V$5<=#REF!,$K26,0),0) ->  | W26: =IF(W$5>=$F26,IF(W$5<=#REF!,$K26,0),0) ->  | X26: =IF(X$5>=$F26,IF(X$5<=#REF!,$K26,0),0) ->  | Y26: =IF(Y$5>=$F26,IF(Y$5<=#REF!,$K26,0),0) ->  | Z26: =IF(Z$5>=$F26,IF(Z$5<=#REF!,$K26,0),0) ->  | AA26: =IF(AA$5>=$F26,IF(AA$5<=#REF!,$K26,0),0) ->  | AB26: =IF(AB$5>=$F26,IF(AB$5<=#REF!,$K26,0),0) ->  | AC26: =IF(AC$5>=$F26,IF(AC$5<=#REF!,$K26,0),0) ->  | AD26: =IF(AD$5>=$F26,IF(AD$5<=#REF!,$K26,0),0) ->  | AE26: =IF(AE$5>=$F26,IF(AE$5<=#REF!,$K26,0),0) ->  | AF26: =IF(AF$5>=$F26,IF(AF$5<=#REF!,$K26,0),0) ->  | AG26: =IF(AG$5>=$F26,IF(AG$5<=#REF!,$K26,0),0) ->  | AH26: =IF(AH$5>=$F26,IF(AH$5<=#REF!,$K26,0),0) ->  | AI26: =IF(AI$5>=$F26,IF(AI$5<=#REF!,$K26,0),0) ->  | AJ26: =IF(AJ$5>=$F26,IF(AJ$5<=#REF!,$K26,0),0) ->  | AK26: =IF(AK$5>=$F26,IF(AK$5<=#REF!,$K26,0),0) ->  | AL26: =IF(AL$5>=$F26,IF(AL$5<=#REF!,$K26,0),0) ->  | AM26: =IF(AM$5>=$F26,IF(AM$5<=#REF!,$K26,0),0) ->  | AN26: =IF(AN$5>=$F26,IF(AN$5<=#REF!,$K26,0),0) ->  | AO26: =IF(AO$5>=$F26,IF(AO$5<=#REF!,$K26,0),0) ->  | AP26: =IF(AP$5>=$F26,IF(AP$5<=#REF!,$K26,0),0) ->  | AQ26: =IF(AQ$5>=$F26,IF(AQ$5<=#REF!,$K26,0),0) ->  | AR26: =IF(AR$5>=$F26,IF(AR$5<=#REF!,$K26,0),0) ->  | AS26: =IF(AS$5>=$F26,IF(AS$5<=#REF!,$K26,0),0) ->  | AT26: =IF(AT$5>=$F26,IF(AT$5<=#REF!,$K26,0),0) ->  | AU26: =IF(AU$5>=$F26,IF(AU$5<=#REF!,$K26,0),0) ->  | AV26: =IF(AV$5>=$F26,IF(AV$5<=#REF!,$K26,0),0) ->  | AW26: =IF(AW$5>=$F26,IF(AW$5<=#REF!,$K26,0),0) ->  | AX26: =IF(AX$5>=$F26,IF(AX$5<=#REF!,$K26,0),0) ->  | AY26: =IF(AY$5>=$F26,IF(AY$5<=#REF!,$K26,0),0) ->  | AZ26: =IF(AZ$5>=$F26,IF(AZ$5<=#REF!,$K26,0),0) ->  | BA26: =IF(BA$5>=$F26,IF(BA$5<=#REF!,$K26,0),0) ->  | BB26: =IF(BB$5>=$F26,IF(BB$5<=#REF!,$K26,0),0) ->  | BC26: =IF(BC$5>=$F26,IF(BC$5<=#REF!,$K26,0),0) ->  | BD26: =IF(BD$5>=$F26,IF(BD$5<=#REF!,$K26,0),0) ->  | BE26: =IF(BE$5>=$F26,IF(BE$5<=#REF!,$K26,0),0) ->  | BF26: =IF(BF$5>=$F26,IF(BF$5<=#REF!,$K26,0),0) ->  | BG26: =IF(BG$5>=$F26,IF(BG$5<=#REF!,$K26,0),0) ->  | BH26: =IF(BH$5>=$F26,IF(BH$5<=#REF!,$K26,0),0) ->  | BI26: =IF(BI$5>=$F26,IF(BI$5<=#REF!,$K26,0),0) ->  | BJ26: =IF(BJ$5>=$F26,IF(BJ$5<=#REF!,$K26,0),0) ->  | BK26: =IF(BK$5>=$F26,IF(BK$5<=#REF!,$K26,0),0) ->  | BL26: =IF(BL$5>=$F26,IF(BL$5<=#REF!,$K26,0),0) ->  | BM26: =IF(BM$5>=$F26,IF(BM$5<=#REF!,$K26,0),0) ->  | BN26: =IF(BN$5>=$F26,IF(BN$5<=#REF!,$K26,0),0) ->  | BO26: =IF(BO$5>=$F26,IF(BO$5<=#REF!,$K26,0),0) ->  | BP26: =IF(BP$5>=$F26,IF(BP$5<=#REF!,$K26,0),0) ->  | BQ26: =IF(BQ$5>=$F26,IF(BQ$5<=#REF!,$K26,0),0) ->  | BR26: =IF(BR$5>=$F26,IF(BR$5<=#REF!,$K26,0),0) ->  | BS26: =IF(BS$5>=$F26,IF(BS$5<=#REF!,$K26,0),0) ->  | BT26: =IF(BT$5>=$F26,IF(BT$5<=#REF!,$K26,0),0) ->  | BU26: =IF(BU$5>=$F26,IF(BU$5<=#REF!,$K26,0),0) ->  | BV26: =IF(BV$5>=$F26,IF(BV$5<=#REF!,$K26,0),0) ->  | BW26: =IF(BW$5>=$F26,IF(BW$5<=#REF!,$K26,0),0) ->  | BX26: =IF(BX$5>=$F26,IF(BX$5<=#REF!,$K26,0),0) ->  | BY26: =IF(BY$5>=$F26,IF(BY$5<=#REF!,$K26,0),0) ->  | BZ26: =IF(BZ$5>=$F26,IF(BZ$5<=#REF!,$K26,0),0) ->  | CA26: =IF(CA$5>=$F26,IF(CA$5<=#REF!,$K26,0),0) ->  | CB26: =IF(CB$5>=$F26,IF(CB$5<=#REF!,$K26,0),0) ->  | CC26: =IF(CC$5>=$F26,IF(CC$5<=#REF!,$K26,0),0) ->  | CD26: =IF(CD$5>=$F26,IF(CD$5<=#REF!,$K26,0),0) ->  | CE26: =IF(CE$5>=$F26,IF(CE$5<=#REF!,$K26,0),0) ->  | CF26: =IF(CF$5>=$F26,IF(CF$5<=#REF!,$K26,0),0) ->  | CG26: =IF(CG$5>=$F26,IF(CG$5<=#REF!,$K26,0),0) ->  | CH26: =IF(CH$5>=$F26,IF(CH$5<=#REF!,$K26,0),0) ->  | CI26: =IF(CI$5>=$F26,IF(CI$5<=#REF!,$K26,0),0) ->  | CJ26: =IF(CJ$5>=$F26,IF(CJ$5<=#REF!,$K26,0),0) ->  | CK26: =IF(CK$5>=$F26,IF(CK$5<=#REF!,$K26,0),0) ->  | CL26: =IF(CL$5>=$F26,IF(CL$5<=#REF!,$K26,0),0) ->  | CM26: =IF(CM$5>=$F26,IF(CM$5<=#REF!,$K26,0),0) ->  | CN26: =IF(CN$5>=$F26,IF(CN$5<=#REF!,$K26,0),0) ->  | CO26: =IF(CO$5>=$F26,IF(CO$5<=#REF!,$K26,0),0) ->  | CP26: =IF(CP$5>=$F26,IF(CP$5<=#REF!,$K26,0),0) ->  | CQ26: =IF(CQ$5>=$F26,IF(CQ$5<=#REF!,$K26,0),0) ->  | CR26: =IF(CR$5>=$F26,IF(CR$5<=#REF!,$K26,0),0) ->  | CS26: =IF(CS$5>=$F26,IF(CS$5<=#REF!,$K26,0),0) ->  | CT26: =IF(CT$5>=$F26,IF(CT$5<=#REF!,$K26,0),0) ->  | CU26: =IF(CU$5>=$F26,IF(CU$5<=#REF!,$K26,0),0) ->  | CV26: =IF(CV$5>=$F26,IF(CV$5<=#REF!,$K26,0),0) ->  | CW26: =IF(CW$5>=$F26,IF(CW$5<=#REF!,$K26,0),0) ->  | CX26: =IF(CX$5>=$F26,IF(CX$5<=#REF!,$K26,0),0) ->  | CY26: =IF(CY$5>=$F26,IF(CY$5<=#REF!,$K26,0),0) ->  | CZ26: =IF(CZ$5>=$F26,IF(CZ$5<=#REF!,$K26,0),0) ->  | DA26: =IF(DA$5>=$F26,IF(DA$5<=#REF!,$K26,0),0) ->  | DB26: =IF(DB$5>=$F26,IF(DB$5<=#REF!,$K26,0),0) ->  | DC26: =IF(DC$5>=$F26,IF(DC$5<=#REF!,$K26,0),0) ->  | DD26: =IF(DD$5>=$F26,IF(DD$5<=#REF!,$K26,0),0) ->  | DE26: =IF(DE$5>=$F26,IF(DE$5<=#REF!,$K26,0),0) ->  | DF26: =IF(DF$5>=$F26,IF(DF$5<=#REF!,$K26,0),0) ->  | DG26: =IF(DG$5>=$F26,IF(DG$5<=#REF!,$K26,0),0) ->  | DH26: =IF(DH$5>=$F26,IF(DH$5<=#REF!,$K26,0),0) ->  | DI26: =IF(DI$5>=$F26,IF(DI$5<=#REF!,$K26,0),0) ->  | DJ26: =IF(DJ$5>=$F26,IF(DJ$5<=#REF!,$K26,0),0) ->  | DK26: =IF(DK$5>=$F26,IF(DK$5<=#REF!,$K26,0),0) ->  | DL26: =IF(DL$5>=$F26,IF(DL$5<=#REF!,$K26,0),0) ->  | DM26: =IF(DM$5>=$F26,IF(DM$5<=#REF!,$K26,0),0) ->  | DN26: =IF(DN$5>=$F26,IF(DN$5<=#REF!,$K26,0),0) ->  | DO26: =IF(DO$5>=$F26,IF(DO$5<=#REF!,$K26,0),0) ->  | DP26: =IF(DP$5>=$F26,IF(DP$5<=#REF!,$K26,0),0) ->  | DQ26: =IF(DQ$5>=$F26,IF(DQ$5<=#REF!,$K26,0),0) ->  | DR26: =IF(DR$5>=$F26,IF(DR$5<=#REF!,$K26,0),0) ->  | DY26: ステンレス管 (上記以外・不明なものを含む） (m) | DZ26: H9 | EA26: 900
G27: =IF($D27="",0,VLOOKUP(($DU27&$C27&$D27),単価情報!$B$66:$C$932,2,FALSE)) -> 0 | H27: 0 | I27: 0 | J27: 0 | K27: =IF(E27=0,0,ROUND(E27/#REF!,1)) -> 0 | L27: =IF(L$5>=$F27,IF(L$5<=#REF!,$K27,0),0) ->  | M27: =IF(M$5>=$F27,IF(M$5<=#REF!,$K27,0),0) ->  | N27: =IF(N$5>=$F27,IF(N$5<=#REF!,$K27,0),0) ->  | O27: =IF(O$5>=$F27,IF(O$5<=#REF!,$K27,0),0) ->  | P27: =IF(P$5>=$F27,IF(P$5<=#REF!,$K27,0),0) ->  | Q27: =IF(Q$5>=$F27,IF(Q$5<=#REF!,$K27,0),0) ->  | R27: =IF(R$5>=$F27,IF(R$5<=#REF!,$K27,0),0) ->  | S27: =IF(S$5>=$F27,IF(S$5<=#REF!,$K27,0),0) ->  | T27: =IF(T$5>=$F27,IF(T$5<=#REF!,$K27,0),0) ->  | U27: =IF(U$5>=$F27,IF(U$5<=#REF!,$K27,0),0) ->  | V27: =IF(V$5>=$F27,IF(V$5<=#REF!,$K27,0),0) ->  | W27: =IF(W$5>=$F27,IF(W$5<=#REF!,$K27,0),0) ->  | X27: =IF(X$5>=$F27,IF(X$5<=#REF!,$K27,0),0) ->  | Y27: =IF(Y$5>=$F27,IF(Y$5<=#REF!,$K27,0),0) ->  | Z27: =IF(Z$5>=$F27,IF(Z$5<=#REF!,$K27,0),0) ->  | AA27: =IF(AA$5>=$F27,IF(AA$5<=#REF!,$K27,0),0) ->  | AB27: =IF(AB$5>=$F27,IF(AB$5<=#REF!,$K27,0),0) ->  | AC27: =IF(AC$5>=$F27,IF(AC$5<=#REF!,$K27,0),0) ->  | AD27: =IF(AD$5>=$F27,IF(AD$5<=#REF!,$K27,0),0) ->  | AE27: =IF(AE$5>=$F27,IF(AE$5<=#REF!,$K27,0),0) ->  | AF27: =IF(AF$5>=$F27,IF(AF$5<=#REF!,$K27,0),0) ->  | AG27: =IF(AG$5>=$F27,IF(AG$5<=#REF!,$K27,0),0) ->  | AH27: =IF(AH$5>=$F27,IF(AH$5<=#REF!,$K27,0),0) ->  | AI27: =IF(AI$5>=$F27,IF(AI$5<=#REF!,$K27,0),0) ->  | AJ27: =IF(AJ$5>=$F27,IF(AJ$5<=#REF!,$K27,0),0) ->  | AK27: =IF(AK$5>=$F27,IF(AK$5<=#REF!,$K27,0),0) ->  | AL27: =IF(AL$5>=$F27,IF(AL$5<=#REF!,$K27,0),0) ->  | AM27: =IF(AM$5>=$F27,IF(AM$5<=#REF!,$K27,0),0) ->  | AN27: =IF(AN$5>=$F27,IF(AN$5<=#REF!,$K27,0),0) ->  | AO27: =IF(AO$5>=$F27,IF(AO$5<=#REF!,$K27,0),0) ->  | AP27: =IF(AP$5>=$F27,IF(AP$5<=#REF!,$K27,0),0) ->  | AQ27: =IF(AQ$5>=$F27,IF(AQ$5<=#REF!,$K27,0),0) ->  | AR27: =IF(AR$5>=$F27,IF(AR$5<=#REF!,$K27,0),0) ->  | AS27: =IF(AS$5>=$F27,IF(AS$5<=#REF!,$K27,0),0) ->  | AT27: =IF(AT$5>=$F27,IF(AT$5<=#REF!,$K27,0),0) ->  | AU27: =IF(AU$5>=$F27,IF(AU$5<=#REF!,$K27,0),0) ->  | AV27: =IF(AV$5>=$F27,IF(AV$5<=#REF!,$K27,0),0) ->  | AW27: =IF(AW$5>=$F27,IF(AW$5<=#REF!,$K27,0),0) ->  | AX27: =IF(AX$5>=$F27,IF(AX$5<=#REF!,$K27,0),0) ->  | AY27: =IF(AY$5>=$F27,IF(AY$5<=#REF!,$K27,0),0) ->  | AZ27: =IF(AZ$5>=$F27,IF(AZ$5<=#REF!,$K27,0),0) ->  | BA27: =IF(BA$5>=$F27,IF(BA$5<=#REF!,$K27,0),0) ->  | BB27: =IF(BB$5>=$F27,IF(BB$5<=#REF!,$K27,0),0) ->  | BC27: =IF(BC$5>=$F27,IF(BC$5<=#REF!,$K27,0),0) ->  | BD27: =IF(BD$5>=$F27,IF(BD$5<=#REF!,$K27,0),0) ->  | BE27: =IF(BE$5>=$F27,IF(BE$5<=#REF!,$K27,0),0) ->  | BF27: =IF(BF$5>=$F27,IF(BF$5<=#REF!,$K27,0),0) ->  | BG27: =IF(BG$5>=$F27,IF(BG$5<=#REF!,$K27,0),0) ->  | BH27: =IF(BH$5>=$F27,IF(BH$5<=#REF!,$K27,0),0) ->  | BI27: =IF(BI$5>=$F27,IF(BI$5<=#REF!,$K27,0),0) ->  | BJ27: =IF(BJ$5>=$F27,IF(BJ$5<=#REF!,$K27,0),0) ->  | BK27: =IF(BK$5>=$F27,IF(BK$5<=#REF!,$K27,0),0) ->  | BL27: =IF(BL$5>=$F27,IF(BL$5<=#REF!,$K27,0),0) ->  | BM27: =IF(BM$5>=$F27,IF(BM$5<=#REF!,$K27,0),0) ->  | BN27: =IF(BN$5>=$F27,IF(BN$5<=#REF!,$K27,0),0) ->  | BO27: =IF(BO$5>=$F27,IF(BO$5<=#REF!,$K27,0),0) ->  | BP27: =IF(BP$5>=$F27,IF(BP$5<=#REF!,$K27,0),0) ->  | BQ27: =IF(BQ$5>=$F27,IF(BQ$5<=#REF!,$K27,0),0) ->  | BR27: =IF(BR$5>=$F27,IF(BR$5<=#REF!,$K27,0),0) ->  | BS27: =IF(BS$5>=$F27,IF(BS$5<=#REF!,$K27,0),0) ->  | BT27: =IF(BT$5>=$F27,IF(BT$5<=#REF!,$K27,0),0) ->  | BU27: =IF(BU$5>=$F27,IF(BU$5<=#REF!,$K27,0),0) ->  | BV27: =IF(BV$5>=$F27,IF(BV$5<=#REF!,$K27,0),0) ->  | BW27: =IF(BW$5>=$F27,IF(BW$5<=#REF!,$K27,0),0) ->  | BX27: =IF(BX$5>=$F27,IF(BX$5<=#REF!,$K27,0),0) ->  | BY27: =IF(BY$5>=$F27,IF(BY$5<=#REF!,$K27,0),0) ->  | BZ27: =IF(BZ$5>=$F27,IF(BZ$5<=#REF!,$K27,0),0) ->  | CA27: =IF(CA$5>=$F27,IF(CA$5<=#REF!,$K27,0),0) ->  | CB27: =IF(CB$5>=$F27,IF(CB$5<=#REF!,$K27,0),0) ->  | CC27: =IF(CC$5>=$F27,IF(CC$5<=#REF!,$K27,0),0) ->  | CD27: =IF(CD$5>=$F27,IF(CD$5<=#REF!,$K27,0),0) ->  | CE27: =IF(CE$5>=$F27,IF(CE$5<=#REF!,$K27,0),0) ->  | CF27: =IF(CF$5>=$F27,IF(CF$5<=#REF!,$K27,0),0) ->  | CG27: =IF(CG$5>=$F27,IF(CG$5<=#REF!,$K27,0),0) ->  | CH27: =IF(CH$5>=$F27,IF(CH$5<=#REF!,$K27,0),0) ->  | CI27: =IF(CI$5>=$F27,IF(CI$5<=#REF!,$K27,0),0) ->  | CJ27: =IF(CJ$5>=$F27,IF(CJ$5<=#REF!,$K27,0),0) ->  | CK27: =IF(CK$5>=$F27,IF(CK$5<=#REF!,$K27,0),0) ->  | CL27: =IF(CL$5>=$F27,IF(CL$5<=#REF!,$K27,0),0) ->  | CM27: =IF(CM$5>=$F27,IF(CM$5<=#REF!,$K27,0),0) ->  | CN27: =IF(CN$5>=$F27,IF(CN$5<=#REF!,$K27,0),0) ->  | CO27: =IF(CO$5>=$F27,IF(CO$5<=#REF!,$K27,0),0) ->  | CP27: =IF(CP$5>=$F27,IF(CP$5<=#REF!,$K27,0),0) ->  | CQ27: =IF(CQ$5>=$F27,IF(CQ$5<=#REF!,$K27,0),0) ->  | CR27: =IF(CR$5>=$F27,IF(CR$5<=#REF!,$K27,0),0) ->  | CS27: =IF(CS$5>=$F27,IF(CS$5<=#REF!,$K27,0),0) ->  | CT27: =IF(CT$5>=$F27,IF(CT$5<=#REF!,$K27,0),0) ->  | CU27: =IF(CU$5>=$F27,IF(CU$5<=#REF!,$K27,0),0) ->  | CV27: =IF(CV$5>=$F27,IF(CV$5<=#REF!,$K27,0),0) ->  | CW27: =IF(CW$5>=$F27,IF(CW$5<=#REF!,$K27,0),0) ->  | CX27: =IF(CX$5>=$F27,IF(CX$5<=#REF!,$K27,0),0) ->  | CY27: =IF(CY$5>=$F27,IF(CY$5<=#REF!,$K27,0),0) ->  | CZ27: =IF(CZ$5>=$F27,IF(CZ$5<=#REF!,$K27,0),0) ->  | DA27: =IF(DA$5>=$F27,IF(DA$5<=#REF!,$K27,0),0) ->  | DB27: =IF(DB$5>=$F27,IF(DB$5<=#REF!,$K27,0),0) ->  | DC27: =IF(DC$5>=$F27,IF(DC$5<=#REF!,$K27,0),0) ->  | DD27: =IF(DD$5>=$F27,IF(DD$5<=#REF!,$K27,0),0) ->  | DE27: =IF(DE$5>=$F27,IF(DE$5<=#REF!,$K27,0),0) ->  | DF27: =IF(DF$5>=$F27,IF(DF$5<=#REF!,$K27,0),0) ->  | DG27: =IF(DG$5>=$F27,IF(DG$5<=#REF!,$K27,0),0) ->  | DH27: =IF(DH$5>=$F27,IF(DH$5<=#REF!,$K27,0),0) ->  | DI27: =IF(DI$5>=$F27,IF(DI$5<=#REF!,$K27,0),0) ->  | DJ27: =IF(DJ$5>=$F27,IF(DJ$5<=#REF!,$K27,0),0) ->  | DK27: =IF(DK$5>=$F27,IF(DK$5<=#REF!,$K27,0),0) ->  | DL27: =IF(DL$5>=$F27,IF(DL$5<=#REF!,$K27,0),0) ->  | DM27: =IF(DM$5>=$F27,IF(DM$5<=#REF!,$K27,0),0) ->  | DN27: =IF(DN$5>=$F27,IF(DN$5<=#REF!,$K27,0),0) ->  | DO27: =IF(DO$5>=$F27,IF(DO$5<=#REF!,$K27,0),0) ->  | DP27: =IF(DP$5>=$F27,IF(DP$5<=#REF!,$K27,0),0) ->  | DQ27: =IF(DQ$5>=$F27,IF(DQ$5<=#REF!,$K27,0),0) ->  | DR27: =IF(DR$5>=$F27,IF(DR$5<=#REF!,$K27,0),0) ->  | DY27: その他 （管種が不明のものを含む） (m) | DZ27: Z9 | EA27: 1000
